Workbook

Sheet AER only (hidden)
B1: Data in these columns used for data validation and database purposes.
B2: Date last modified: | C2: 2017-01-16 | D2: added (Albury and Victora) for AGN
C3: 2016-10-17 | D3: updated TransGrid's correct legal name, corrected TasNetworks (T) to June financial year
C4: 2017-02-01 | D4: inserted Power and Water, added NRs (dms_FeederCat_1 and dms_FeederCat_2)
C5: 2017-03-03 | D5: inserted AEMO as a business | AB5: FOR ELECTRICITY BUSINESSES ONLY
C6: 2018-03-28 | D6: major changes to accommodate STPIS
C7: Template Version | D7: 5 | AB7: Feeder Types | AF7: TasNetworks (D) | AG7: MAIFI flag | AH7: Feeder Names
AB8: CBD | AC8: Urban | AD8: Short rural | AE8: long rural | AF8: EXTRA
B9: dms_TradingName_List | C9: dms_TradingNameFull_List | D9: dms_ABN_List | E9: dms_JurisdictionList | F9: dms_Sector_List | G9: dms_Segment_List | H9: dms_FormControl_List | I9: dms_RPT_List | J9: dms_RPTMonth_List | K9: dms_CRCPlength_List | L9: dms_FRCPlength_List | M9: dms_663_List | N9: dms_DeterminationRef_List | O9: dms_Addr1_List | P9: dms_Addr2_List | Q9: dms_Suburb_List | R9: dms_State_List | S9: dms_PostCode_List | T9: dms_PAddr1_List | U9: dms_PAddr2_List | V9: dms_PSuburb_List | W9: dms_PState_List | X9: dms_PPostCode_List | Y9: dms_ContactName1_List | Z9: dms_ContactPh1_List | AA9: dms_ContactEmail_List | AB9: dms_CBD_flag | AC9: dms_Urban_flag | AD9: dms_ShortRural_flag | AE9: dms_LongRural_flag | AF9: dms_FeederType_5_flag | AG9: dms_MAIFI_flag_List | AH9: dms_FeederName_1 | AI9: dms_FeederName_2 | AJ9: dms_FeederName_3 | AK9: dms_FeederName_4 | AL9: dms_FeederName_5 | AM9: Column1
B10: ActewAGL Distribution | C10: ActewAGL Distribution | D10: 76670568688 | E10: ACT | F10: Electricity | G10: Distribution | H10: Revenue cap | I10: Financial | J10: June | K10: 5 | L10: 5 | M10: 5 | N10: 2014-19 Distribution Determination | O10: 40 Bunda Street | Q10: CANBERRA | R10: ACT | S10: 2600 | T10: GPO BOX 366 | V10: CANBERRA | W10: ACT | X10: 2601 | Y10: Robert Walker | Z10: 02 6248 3847 | AA10: robert.walker@actewagle.com.au | AB10: NO | AC10: YES | AD10: YES | AE10: NO | AF10: NO | AH10: CBD | AI10: Urban | AJ10: Short rural | AK10: Long rural | AM10: ActewAGL Distribution
B11: ActewAGL Distribution (Tx Assets) | C11: ActewAGL Distribution (Tx Assets) | D11: 76670568688 | E11: ACT | F11: Electricity | G11: Distribution | H11: Revenue cap | I11: Financial | J11: June | K11: 5 | L11: 5 | M11: 5 | N11: distribution determination | O11: 40 Bunda Street | Q11: CANBERRA | R11: ACT | S11: 2600 | T11: GPO BOX 366 | V11: CANBERRA | W11: ACT | X11: 2601 | Y11: Robert Walker | Z11: 02 6248 3847 | AA11: robert.walker@actewagle.com.au | AB11: NO | AC11: YES | AD11: YES | AE11: NO | AF11: NO | AH11: CBD | AI11: Urban | AJ11: Short rural | AK11: Long rural | AM11: ActewAGL Distribution (Tx Assets)
B12: ActewAGL Gas | C12: ActewAGL Gas | D12: 76670568688 | E12: ACT | F12: Gas | G12: Distribution | H12: Weighted average price cap | I12: Financial | J12: June | K12: 5 | L12: 5 | M12: x | O12: 40 Bunda Street | Q12: CANBERRA | R12: ACT | S12: 2600 | T12: GPO BOX 366 | V12: CANBERRA | W12: ACT | X12: 2601 | Y12: Philip Deamer | Z12: 02 6248 3438 | AA12: GasAAReview@actewagl.com.au | AH12: CBD | AI12: Urban | AJ12: Short rural | AK12: Long rural | AM12: ActewAGL Gas
B13: AEMO | C13: Australian Energy Market Operator Ltd | D13: 94072010327 | E13: Vic | F13: Electricity | G13: Transmission | H13: - | I13: Financial | J13: March | K13: 5 | L13: 5 | M13: x | N13: - | O13: Level 22 | P13: 530 Collins Street | Q13: MELBOURNE | R13: VIC | S13: 3000 | T13: GPO Box 2008 | V13: MELBOURNE | W13: VIC | X13: 3001 | AB13: n/a | AC13: n/a | AD13: n/a | AE13: n/a | AF13: n/a | AH13: CBD | AI13: Urban | AJ13: Short rural | AK13: Long rural | AM13: AEMO
B14: AGN (Albury and Victoria) | C14: Australian Gas Networks Limited (reporting data for Albury and Victoria) | D14: 19078551685 | E14: Vic | F14: Gas | G14: Distribution | H14: Weighted average price cap | I14: Calendar | J14: December | K14: 5 | L14: 5 | M14: x | O14: Level 6 | P14: 400 King William Street | Q14: ADELAIDE | R14: SA | S14: 5000 | T14: PO Box 6468 | U14: Halifax Street | V14: ADELAIDE | W14: SA | X14: 5000 | Y14: Craig de Laine | Z14: 08 8418 1129 | AA14: craig.delaine@agn.com.au | AB14: n/a | AC14: n/a | AD14: n/a | AE14: n/a | AF14: n/a | AH14: CBD | AI14: Urban | AJ14: Short rural | AK14: Long rural | AM14: AGN (Albury)
B15: AGN (Albury) | C15: Australian Gas Networks Limited (reporting data for Albury) | D15: 19078551685 | E15: Vic | F15: Gas | G15: Distribution | H15: Weighted average price cap | I15: Calendar | J15: December | K15: 5 | L15: 5 | M15: x | O15: Level 6 | P15: 400 King William Street | Q15: ADELAIDE | R15: SA | S15: 5000 | T15: PO Box 6468 | U15: Halifax Street | V15: ADELAIDE | W15: SA | X15: 5000 | Y15: Craig de Laine | Z15: 08 8418 1129 | AA15: craig.delaine@agn.com.au | AB15: n/a | AC15: n/a | AD15: n/a | AE15: n/a | AF15: n/a | AH15: CBD | AI15: Urban | AJ15: Short rural | AK15: Long rural
B16: AGN (SA) | C16: Australian Gas Networks Limited (reporting data for SA) | D16: 19078551685 | E16: SA | F16: Gas | G16: Distribution | H16: Weighted average price cap | I16: Financial | J16: June | K16: 5 | L16: 5 | M16: 5 | N16: distribution determination | O16: Level 6 | P16: 400 King William Street | Q16: ADELAIDE | R16: SA | S16: 5000 | T16: PO Box 6468 | U16: Halifax Street | V16: ADELAIDE | W16: SA | X16: 5000 | Y16: Craig de Laine | Z16: 08 8418 1129 | AA16: craig.delaine@agn.com.au | AB16: n/a | AC16: n/a | AD16: n/a | AE16: n/a | AF16: n/a | AH16: CBD | AI16: Urban | AJ16: Short rural | AK16: Long rural | AM16: AGN (SA)
B17: AGN (Victoria) | C17: Australian Gas Networks Limited (reporting data for Victoria) | D17: 19078551685 | E17: Vic | F17: Gas | G17: Distribution | H17: Weighted average price cap | I17: Calendar | J17: December | K17: 5 | L17: 5 | M17: x | O17: Level 6 | P17: 400 King William Street | Q17: ADELAIDE | R17: SA | S17: 5000 | T17: PO Box 6468 | U17: Halifax Street | V17: ADELAIDE | W17: SA | X17: 5000 | Y17: Craig de Laine | Z17: 08 8418 1129 | AA17: craig.delaine@agn.com.au | AB17: n/a | AC17: n/a | AD17: n/a | AE17: n/a | AF17: n/a | AH17: CBD | AI17: Urban | AJ17: Short rural | AK17: Long rural | AM17: AGN (Victoria)
B18: Amadeus | C18: APT Pipelines (NT) Pty Ltd | D18: 39009737393 | E18: NT | F18: Gas | G18: Transmission | H18: Weighted average price cap | I18: Financial | J18: June | K18: 5 | L18: 5 | M18: x | N18: n/a | O18: Level 19, HSBC Building | P18: 580 George Street | Q18: SYDNEY | R18: NSW | S18: 2000 | T18: Level 19, HSBC Building | U18: 580 George Street | V18: SYDNEY | W18: NSW | X18: 2000 | Y18: Alexandra Curran | Z18: 02 9275 0020 | AA18: alexandra.curran@apa.com.au | AB18: n/a | AC18: n/a | AD18: n/a | AE18: n/a | AF18: n/a | AH18: CBD | AI18: Urban | AJ18: Short rural | AK18: Long rural | AM18: Amadeus
B19: APA GasNet | C19: APA GasNet Australia (Operations) Pty Ltd | D19: 065083009 | E19: Vic | F19: Gas | G19: Transmission | H19: Weighted average price cap | I19: Calendar | J19: December | K19: 5 | L19: 5 | M19: x | O19: Level 19, HSBC Building | P19: 580 George Street | Q19: SYDNEY | R19: NSW | S19: 2000 | T19: PO Box R41 | V19: ROYAL EXCHANGE | W19: NSW | X19: 1225 | Y19: Alexandra Curran | Z19: 02 9275 0020 | AA19: alexandra.curran@apa.com.au | AB19: n/a | AC19: n/a | AD19: n/a | AE19: n/a | AF19: n/a | AH19: CBD | AI19: Urban | AJ19: Short rural | AK19: Long rural | AM19: APA GasNet
B20: Ausgrid | C20: Ausgrid | D20: 78508211731 | E20: NSW | F20: Electricity | G20: Distribution | H20: Revenue cap | I20: Financial | J20: June | K20: 5 | L20: 5 | M20: 5 | N20: 2014-19 Distribution Determination | O20: 570 George St | Q20: SYDNEY | R20: NSW | S20: 2000 | T20: GPO Box 4009 | V20: SYDNEY | W20: NSW | X20: 2001 | Y20: John Thomson | Z20: 02 9269 2312 | AA20: john.thomson@ausgrid.com.au | AB20: YES | AC20: YES | AD20: YES | AE20: YES | AF20: NO | AH20: CBD | AI20: Urban | AJ20: Short rural | AK20: Long rural | AM20: Ausgrid
B21: Ausgrid (Tx Assets) | C21: Ausgrid (Tx Assets) | D21: 67505337385 | E21: NSW | F21: Electricity | G21: Distribution | H21: Revenue cap | I21: Financial | J21: June | K21: 5 | L21: 5 | M21: 5 | N21: distribution determination | O21: 570 George St | Q21: SYDNEY | R21: NSW | S21: 2000 | T21: GPO Box 4009 | V21: SYDNEY | W21: NSW | X21: 2001 | Y21: John Thomson | Z21: 02 9269 2312 | AA21: john.thomson@ausgrid.com.au | AB21: YES | AC21: YES | AD21: YES | AE21: YES | AF21: NO | AH21: CBD | AI21: Urban | AJ21: Short rural | AK21: Long rural | AM21: Ausgrid (Tx Assets)
B22: AusNet (D) | C22: AusNet Electricity Services Pty Ltd | D22: 91064651118 | E22: Vic | F22: Electricity | G22: Distribution | H22: Revenue cap | I22: Calendar | J22: December | K22: 5 | L22: 5 | M22: 2 | N22: 2016-20 Distribution Determination | O22: Level 32 | P22: 2 Southbank Boulevard | Q22: SOUTHBANK | R22: Vic | S22: 3006 | T22: Locked Bag 14051 | V22: MELBOURNE CITY MAIL CENTRE | W22: VIC | X22: 8001 | Y22: please provide contact details | AC22: YES | AD22: YES | AE22: YES | AF22: NO | AH22: CBD | AI22: Urban | AJ22: Short rural | AK22: Long rural | AM22: AusNet (D)
B23: AusNet (Gas) | C23: AusNet Gas Services | D23: 086015036 | E23: Vic | F23: Gas | G23: Distribution | H23: Weighted average price cap | I23: Calendar | J23: December | K23: 5 | L23: 5 | M23: X | O23: Level 19, HSBC Building | P23: 580 George Street | Q23: SYDNEY | R23: NSW | S23: 2000 | T23: PO Box R41 | V23: ROYAL EXCHANGE | W23: NSW | X23: 1225 | Y23: Alexandra Curran | Z23: 02 9275 0020 | AA23: alexandra.curran@apa.com.au | AB23: n/a | AC23: n/a | AD23: n/a | AE23: n/a | AF23: n/a | AH23: CBD | AI23: Urban | AJ23: Short rural | AK23: Long rural | AM23: AusNet (Gas)
B24: AusNet (T) | C24: Ausnet Services (Transmission) Ltd | D24: 48116124362 | E24: Vic | F24: Electricity | G24: Transmission | H24: Revenue cap | I24: Financial | J24: March | K24: 5 | L24: 5 | M24: 2 | N24: transmission determination | O24: Level 32 | P24: 2 Southbank Boulevard | Q24: SOUTHBANK | R24: Vic | S24: 3006 | T24: Locked Bag 14051 | V24: MELBOURNE CITY MAIL CENTRE | W24: Vic | X24: 8001 | Y24: Clare Thompson | Z24: 03 9695 6670 | AA24: clare.e.thompson@ausnetservices.com.au | AB24: n/a | AC24: n/a | AD24: n/a | AE24: n/a | AF24: n/a | AH24: CBD | AI24: Urban | AJ24: Short rural | AK24: Long rural | AM24: AusNet (T)
B25: Australian Distribution Co. | C25: Australian Distribution Co. | D25: 11222333444 | E25: - | F25: Electricity | G25: Distribution | H25: Revenue cap | I25: Financial | J25: June | K25: 5 | L25: 5 | M25: 2 | N25: distribution determination | O25: 123 Straight Street | Q25: SYDNEY | R25: NSW | S25: 2000 | T25: PO Box 123 | V25: SYDNEY | W25: NSW | X25: 2000 | Y25: Bob Smith | Z25: 02 1234 5678 | AA25: bob@auselec.net.au | AB25: n/a | AC25: n/a | AD25: n/a | AE25: n/a | AF25: NO | AH25: CBD | AI25: Urban | AJ25: Short rural | AK25: Long rural | AM25: Australian Distribution Co.
B26: Australian Distribution Co. (Vic) | C26: Australian Distribution Co. (Victoria) | D26: 11222333444 | E26: Vic | F26: Electricity | G26: Distribution | H26: Revenue cap | I26: Calendar | J26: December | K26: 5 | L26: 5 | M26: 2 | N26: distribution determination | O26: 123 Straight Street | Q26: MELBOURNE | R26: Vic | S26: 3000 | T26: PO Box 123 | V26: MELBOURNE | W26: VIC | X26: 3000 | Y26: Bob Smith | Z26: 02 1234 5678 | AA26: bob@auselec.net.au | AB26: n/a | AC26: n/a | AD26: n/a | AE26: n/a | AF26: NO | AH26: CBD | AI26: Urban | AJ26: Short rural | AK26: Long rural | AM26: Australian Distribution Co. (Vic)
B27: Australian Transmission Co. | C27: Australian Transmission Co. | D27: 11222333444 | E27: - | F27: Electricity | G27: Transmission | H27: Revenue cap | I27: Financial | J27: June | K27: 5 | L27: 5 | M27: 5 | N27: transmission determination | O27: 123 Straight Street | Q27: SYDNEY | R27: NSW | S27: 2000 | T27: PO Box 123 | V27: SYDNEY | W27: NSW | X27: 2000 | Y27: Bob Smith | Z27: 02 1234 5678 | AA27: bob@auselec.net.au | AB27: n/a | AC27: n/a | AD27: n/a | AE27: n/a | AF27: NO | AH27: CBD | AI27: Urban | AJ27: Short rural | AK27: Long rural | AM27: Australian Transmission Co.
B28: Central Ranges Pipeline (D) | C28: Central Ranges Pipeline Pty Ltd | D28: 108218355 | E28: NSW | F28: Gas | G28: Distribution | H28: Weighted average price cap | I28: Financial | J28: June | K28: 15 | L28: 5 | M28: 5 | N28: distribution determination | O28: Level 19 | P28: 580 George Street | Q28: SYDNEY | R28: NSW | S28: 2000 | T28: PO Box R41 | V28: ROYAL EXCHANGE | W28: NSW | X28: 1225 | Y28: Scott Young | Z28: 02 9275 0031 | AA28: scott.young@apa.com.au | AB28: n/a | AC28: n/a | AD28: n/a | AE28: n/a | AF28: n/a | AH28: CBD | AI28: Urban | AJ28: Short rural | AK28: Long rural
B29: Central Ranges Pipeline (T) | C29: Central Ranges Pipeline Pty Ltd | D29: 108218355 | E29: NSW | F29: Gas | G29: Distribution | H29: Weighted average price cap | I29: Financial | J29: June | K29: 14 | L29: 5 | M29: 5 | N29: transmission determination | O29: Level 19 | P29: 580 George Street | Q29: SYDNEY | R29: NSW | S29: 2000 | T29: PO Box R41 | V29: ROYAL EXCHANGE | W29: NSW | X29: 1225 | Y29: Scott Young | Z29: 02 9275 0031 | AA29: scott.young@apa.com.au | AB29: n/a | AC29: n/a | AD29: n/a | AE29: n/a | AF29: n/a | AH29: CBD | AI29: Urban | AJ29: Short rural | AK29: Long rural
B30: CitiPower | C30: CitiPower | D30: 76064651056 | E30: Vic | F30: Electricity | G30: Distribution | H30: Revenue cap | I30: Calendar | J30: December | K30: 5 | L30: 5 | M30: 2 | N30: 2016-20 Distribution Determination | O30: 40 Market Street | Q30: MELBOURNE | R30: Vic | S30: 3000 | T30: Locked Bag 14090 | V30: MELBOURNE | W30: VIC | X30: 8001 | Y30: Hannah Williams | Z30: 03 9683 4088 | AA30: hwilliams@powercor.com.au | AB30: YES | AC30: YES | AD30: NO | AE30: NO | AF30: NO | AH30: CBD | AI30: Urban | AJ30: Short rural | AK30: Long rural | AM30: CitiPower
B31: Directlink | C31: Directlink | D31: 16779340889 | E31: Qld | F31: Electricity | G31: Transmission | H31: Revenue cap | I31: Financial | J31: June | K31: 9 | L31: 5 | M31: 5 | N31: transmission determination | O31: Level 19, HSBC Building | P31: 580 George Street | Q31: SYDNEY | R31: NSW | S31: 2000 | T31: PO Box R41 | V31: ROYAL EXCHANGE | W31: NSW | X31: 1225 | Y31: Scott Young | Z31: 02 9275 0031 | AA31: scott.young@apa.com.au | AB31: n/a | AC31: n/a | AD31: n/a | AE31: n/a | AF31: n/a | AH31: CBD | AI31: Urban | AJ31: Short rural | AK31: Long rural | AM31: Directlink
B32: ElectraNet | C32: ElectraNet | D32: 41094482416 | E32: SA | F32: Electricity | G32: Transmission | H32: Revenue cap | I32: Financial | J32: June | K32: 5 | L32: 5 | M32: 5 | N32: transmission determination | O32: 52-55 East Terrace | P32: Rymill Park | Q32: ADELAIDE | R32: SA | S32: 5000 | T32: PO Box 7096 | U32: Hutt Street Post Office | V32: ADELAIDE | W32: SA | X32: 5000 | Y32: Bill Jackson | Z32: 08 8404 7969 | AA32: jackson.bill@electranet.com.au | AB32: n/a | AC32: n/a | AD32: n/a | AE32: n/a | AF32: n/a | AH32: CBD | AI32: Urban | AJ32: Short rural | AK32: Long rural | AM32: ElectraNet
B33: Endeavour Energy | C33: Endeavour Energy | D33: 11247365823 | E33: NSW | F33: Electricity | G33: Distribution | H33: Revenue cap | I33: Financial | J33: June | K33: 5 | L33: 5 | M33: 5 | N33: 2014-19 Distribution Determination | O33: 51 Huntingwood Drive | Q33: HUNTINGWOOD | R33: NSW | S33: 2148 | T33: PO Box 811 | V33: SEVEN HILLS | W33: NSW | X33: 1730 | Y33: Jon Hocking | Z33: 02 9853 4386 / 0407 348 156 | AA33: Jon.Hocking@Endeavourenergy.com.au | AB33: NO | AC33: YES | AD33: YES | AE33: YES | AF33: NO | AH33: CBD | AI33: Urban | AJ33: Short rural | AK33: Long rural | AM33: Endeavour Energy
B34: Energex | C34: Energex | D34: 40078849055 | E34: Qld | F34: Electricity | G34: Distribution | H34: Revenue cap | I34: Financial | J34: June | K34: 5 | L34: 5 | M34: 5 | N34: 2015-20 Distribution Determination | O34: 26 Reddacliff Street | Q34: NEWSTEAD | R34: Qld | S34: 4006 | T34: 26 Reddacliff Street | V34: NEWSTEAD | W34: QLD | X34: 4006 | Y34: Nicola Roscoe | Z34: 07 3664 5891 | AA34: nicolaroscoe@energex.com.au | AB34: YES | AC34: YES | AD34: YES | AE34: NO | AF34: NO | AH34: CBD | AI34: Urban | AJ34: Short rural | AK34: Long rural | AM34: Energex
B35: Ergon Energy | C35: Ergon Energy | D35: 50087646062 | E35: Qld | F35: Electricity | G35: Distribution | H35: Revenue cap | I35: Financial | J35: June | K35: 5 | L35: 5 | M35: 5 | N35: 2015-20 Distribution Determination | O35: 22 Walker Street | Q35: TOWNSVILLE | R35: Qld | S35: 4810 | T35: Po Box 264 | V35: FORTITUDE VALLEY | W35: QLD | X35: 4006 | Y35: Jenny Doyle, Group Manager Regulatory Affairs | Z35: (07) 3851 6416 | AA35: jenny.doyle@ergon.com.au | AB35: NO | AC35: YES | AD35: YES | AE35: YES | AF35: NO | AH35: CBD | AI35: Urban | AJ35: Short rural | AK35: Long rural | AM35: Ergon Energy
B36: Essential Energy | C36: Essential Energy | D36: 37428185226 | E36: NSW | F36: Electricity | G36: Distribution | H36: Revenue cap | I36: Financial | J36: June | K36: 5 | L36: 5 | M36: 5 | N36: 2014-19 Distribution Determination | O36: 8 Buller Street | Q36: PORT MACQUARIE | R36: NSW | S36: 2444 | T36: PO Box 5730 | V36: PORT MACQUARIE | W36: NSW | X36: 2444 | Y36: Catherine Waddell | Z36: 02 6338 3553 | AA36: catherine.waddell@essentialenergy.com.au | AB36: NO | AC36: NO | AD36: YES | AE36: YES | AF36: NO | AH36: CBD | AI36: Urban | AJ36: Short rural | AK36: Long rural | AM36: Essential Energy
B37: Jemena Electricity | C37: Jemena Electricity | D37: 82064651083 | E37: Vic | F37: Electricity | G37: Distribution | H37: Revenue cap | I37: Calendar | J37: December | K37: 5 | L37: 5 | M37: 2 | N37: 2016-20 Distribution Determination | O37: Level 16 | P37: 567 Collins Street | Q37: MELBOURNE | R37: VIC | S37: 3000 | T37: PO Box 16182 | V37: MELBOURNE | W37: VIC | X37: 8001 | Y37: Matthew Serpell | Z37: 03 9173 8231 | AA37: matthew.serpell@jemena.com.au | AB37: NO | AC37: NO | AD37: YES | AE37: NO | AF37: NO | AH37: CBD | AI37: Urban | AJ37: Short rural | AK37: Long rural | AM37: Jemena Electricity
B38: JGN | C38: Jemena Gas Networks (NSW) Ltd | D38: 003 004 322 | E38: NSW | F38: Gas | G38: Distribution | H38: Weighted average price cap | I38: Financial | J38: June | K38: 5 | L38: 5 | Y38: please provide contact details | AB38: n/a | AC38: n/a | AD38: n/a | AE38: n/a | AF38: n/a | AH38: CBD | AI38: Urban | AJ38: Short rural | AK38: Long rural | AM38: JGN
B39: Multinet Gas | C39: Multinet Gas (DB No.1) Pty Ltd (ACN 086 026 986), Multinet Gas (DB No.2) Pty Ltd (ACN 086 230 122) | D39: 086026986 | E39: Vic | F39: Gas | G39: Distribution | H39: Weighted average price cap | I39: Calendar | J39: December | K39: 5 | L39: 5 | M39: x | O39: 43-45 Centreway | Q39: MT WAVERLEY | R39: Vic | S39: 3149 | Y39: Andrew Schille | Z39: 03 8846 9860 | AA39: andrew.schille@ue.com.au | AB39: n/a | AC39: n/a | AD39: n/a | AE39: n/a | AF39: n/a | AH39: CBD | AI39: Urban | AJ39: Short rural | AK39: Long rural | AM39: Multinet Gas
B40: Murraylink | C40: Murraylink | D40: 79181207909 | E40: SA | F40: Electricity | G40: Transmission | H40: Revenue cap | I40: Financial | J40: June | K40: 5 | L40: 5 | M40: 5 | N40: transmission determination | O40: Level 19 | P40: 580 George Street | Q40: SYDNEY | R40: NSW | S40: 2000 | T40: PO Box R41 | V40: ROYAL EXCHANGE | W40: NSW | X40: 1225 | Y40: Scott Young | Z40: 02 9275 0031 | AA40: scott.young@apa.com.au | AB40: n/a | AC40: n/a | AD40: n/a | AE40: n/a | AF40: n/a | AH40: CBD | AI40: Urban | AJ40: Short rural | AK40: Long rural | AM40: Murraylink
B41: Power and Water | C41: Power and Water Corporation | D41: 15947352360 | E41: NT | F41: Electricity | G41: Distribution | H41: Revenue cap | I41: Financial | J41: June | K41: 5 | L41: 5 | M41: x | N41: distribution determination | O41: GPO Box 1921 | Q41: DARWIN | R41: NT | S41: 801 | T41: GPO Box 1921 | V41: DARWIN | W41: NT | X41: 801 | Y41: Lucy Moon | Z41: 08 8924 5822 | AA41: Lucy.Moon@powerwater.com.au | AB41: YES | AC41: YES | AD41: YES | AE41: YES | AF41: NO | AH41: CBD | AI41: Urban | AJ41: Short rural | AK41: Long rural
B42: Powercor Australia | C42: Powercor Australia | D42: 89064651109 | E42: Vic | F42: Electricity | G42: Distribution | H42: Revenue cap | I42: Calendar | J42: December | K42: 5 | L42: 5 | M42: 2 | N42: 2016-20 Distribution Determination | O42: 40 Market Street | Q42: MELBOURNE | R42: Vic | S42: 3000 | T42: Locked bag 14090 | V42: MELBOURNE | W42: VIC | X42: 8001 | Y42: Hannah Williams | Z42: 03 9683 4088 | AA42: hwilliams@powercor.com.au | AD42: YES | AE42: YES | AF42: NO | AH42: CBD | AI42: Urban | AJ42: Short rural | AK42: Long rural | AM42: Powercor Australia
B43: Powerlink | C43: Queensland Electricity Transmission Corporation Limited trading as Powerlink Queensland | D43: 82078849233 | E43: Qld | F43: Electricity | G43: Transmission | H43: Revenue cap | I43: Financial | J43: June | K43: 5 | L43: 5 | M43: 5 | N43: transmission determination | O43: 33 Harold St | Q43: VIRGINIA | R43: Qld | S43: 4014 | T43: PO Box 1193 | V43: VIRGINIA | W43: QLD | X43: 4014 | Y43: Jennifer Harris | Z43: 07 3860 2667 | AA43: jharris@powerlink.com.au | AB43: n/a | AC43: n/a | AD43: n/a | AE43: n/a | AF43: n/a | AH43: CBD | AI43: Urban | AJ43: Short rural | AK43: Long rural | AM43: Powerlink
B44: Roma to Brisbane Pipeline | C44: APT Petroleum Pipelines Limited t/a Roma to Brisbane Pipeline | D44: 009 737 393 | E44: Qld | F44: Gas | G44: Transmission | H44: Weighted average price cap | I44: Financial | J44: June | K44: 5 | L44: 5 | M44: x | N44: n/a | O44: 580 George Street | Q44: SYDNEY | R44: NSW | S44: 2000 | T44: PO Box R41 | V44: ROYAL EXCHANGE | W44: NSW | X44: 1225 | Y44: Mark Allen | Z44: 02 9275 0010 | AA44: mark.allen@apa.com.au | AB44: n/a | AC44: n/a | AD44: n/a | AE44: n/a | AF44: n/a | AH44: CBD | AI44: Urban | AJ44: Short rural | AK44: Long rural | AM44: Roma to Brisbane Pipeline
B45: SA Power Networks | C45: SA Power Networks | D45: 13332330749 | E45: SA | F45: Electricity | G45: Distribution | H45: Revenue cap | I45: Financial | J45: June | K45: 5 | L45: 5 | M45: 5 | N45: 2015-20 Distribution Determination | O45: 1 Anzac Highway | Q45: KESWICK | R45: SA | S45: 5035 | T45: GPO Box 77 | V45: ADELAIDE | W45: SA | X45: 5000 | Y45: Richard Sibly | Z45: 08 8404 5613 | AA45: richard.sibly@sapowernetworks.com.au | AB45: NO | AC45: NO | AD45: YES | AE45: YES | AF45: NO | AH45: CBD | AI45: Urban | AJ45: Short rural | AK45: Long rural | AM45: SA Power Networks
B46: TasNetworks (D) | C46: TasNetworks (D) | D46: 24167357299 | E46: Tas | F46: Electricity | G46: Distribution | H46: Revenue cap | I46: Financial | J46: June | K46: 5 | L46: 5 | M46: 5 | N46: distribution determination | O46: 1-7 Maria Street | Q46: LENAH VALLEY | R46: Tas | S46: 7008 | T46: PO Box 606 | V46: MOONAH | W46: Tas | X46: 7009 | Y46: John Sayers | Z46: 03 6271 6469 | AA46: john.sayers@tasnetworks.com.au | AB46: YES | AC46: YES | AD46: YES | AE46: YES | AF46: YES | AH46: Critical Infrastructure | AI46: High density commercial | AJ46: Urban | AK46: High density rural | AL46: Low density rural | AM46: TasNetworks (D)
B47: TasNetworks (T) | C47: TasNetworks (T) | D47: 24167357299 | E47: Tas | F47: Electricity | G47: Transmission | H47: Revenue cap | I47: Financial | J47: June | K47: 5 | L47: 5 | M47: 5 | N47: transmission determination | O47: 1-7 Maria Street | Q47: LENAH VALLEY | R47: Tas | S47: 7008 | T47: PO Box 606 | V47: MOONAH | W47: Tas | X47: 7009 | Y47: John Sayers | Z47: 03 6271 6469 | AA47: john.sayers@tasnetworks.com.au | AB47: n/a | AC47: n/a | AD47: n/a | AE47: n/a | AF47: n/a | AH47: CBD | AI47: Urban | AJ47: Short rural | AK47: Long rural | AM47: TasNetworks (T)
B48: TransGrid | C48: NSW Electricity Networks Operations Pty Ltd trading as TransGrid | D48: 70250995390 | E48: NSW | F48: Electricity | G48: Transmission | H48: Revenue cap | I48: Financial | J48: June | K48: 5 | L48: 4 | M48: 5 | N48: transmission determination | O48: 180 Thomas Street | Q48: SYDNEY | R48: NSW | S48: 2000 | T48: PO Box A1000 | V48: SYDNEY SOUTH | W48: NSW | X48: 1235 | Y48: Garrie Chubb | Z48: 0408 210 221 | AA48: garrie.chubb@transgrid.com.au | AB48: n/a | AC48: n/a | AD48: n/a | AE48: n/a | AF48: n/a | AH48: CBD | AI48: Urban | AJ48: Short rural | AK48: Long rural | AM48: TransGrid
B49: United Energy | C49: United Energy | D49: 70064651029 | E49: Vic | F49: Electricity | G49: Distribution | H49: Revenue cap | I49: Calendar | J49: December | K49: 5 | L49: 5 | M49: 2 | N49: 2016-20 Distribution Determination | O49: Level 3 | P49: 6 Nexus Court | Q49: MULGRAVE | R49: Vic | S49: 3149 | T49: PO Box 449 | V49: MOUNT WAVERLEY | W49: VIC | X49: 3170 | Y49: Mathew Abraham | Z49: 03 8846 9758 | AA49: mathew.abraham@ue.com.au | AB49: NO | AC49: NO | AD49: YES | AE49: NO | AF49: NO | AH49: CBD | AI49: Urban | AJ49: Short rural | AK49: Long rural | AM49: United Energy
B50: Western Power (D) | C50: Western Power (D) | D50: 18540492861 | E50: WA | F50: Electricity | G50: Distribution | H50: Revenue cap | I50: Financial | J50: June | K50: 12 | L50: 4 | M50: x | N50: distribution determination | O50: 363 Wellington Street | Q50: PERTH | R50: WA | S50: 6000 | T50: GPO Box L921 | V50: PERTH | W50: WA | X50: 6842 | Y50: Judy Hunter | Z50: 08 9326 6239 | AA50: judy.hunter@westernpower.com.au | AB50: NO | AC50: NO | AD50: YES | AE50: YES | AF50: NO | AG50: NO | AH50: CBD | AI50: Urban | AJ50: Short rural | AK50: Long rural | AM50: Western Power (D)
B51: Western Power (T) | C51: Western Power (T) | D51: 18540492861 | E51: WA | F51: Electricity | G51: Transmission | H51: Revenue cap | I51: Financial | J51: June | K51: 12 | L51: 4 | M51: x | N51: transmission determination | O51: 363 Wellington Street | Q51: PERTH | R51: WA | S51: 6000 | T51: GPO Box L921 | V51: PERTH | W51: WA | X51: 6842 | Y51: Judy Hunter | Z51: 08 9326 6239 | AA51: judy.hunter@westernpower.com.au | AB51: n/a | AC51: n/a | AD51: n/a | AE51: n/a | AF51: n/a | AH51: CBD | AI51: Urban | AJ51: Short rural | AK51: Long rural | AM51: Western Power (T)
Y54: For EB & Reset RINs only | AD54: For AARs only
B55: The Reg Year Ending (dms_RYE) must be set to the last year of the regulatory period. For forecast data is is usually (FRCP_y5) for actual it is a single year (CRY). For historical actual data the RYE will need to be set manually in the business details sheet by setting the dms_Multiyear_flag to 1 and putting the correct value in 'dms_Specified_FinalYear. See cells C67:C68 | G55: =IF(dms_RPT="financial",VALUE(LEFT(CRCP_y1,4)-1)&"-"&TEXT(VALUE(RIGHT(CRCP_y1,2)-1),"00"),VALUE(LEFT(CRCP_y1,4)-1)) -> 2014-15 | N55: Drop down selector box for CA & Reset RINs. | O55: For CA & Reset RINs only | Y55: for DNSP only | AD55: For DNSPs only | AJ55: Reason for interruption | AK55: dms_Reason_Interruption_Detailed | AL55: dms_Reason_Interruption | AM55: dms_STPIS_Exclusion_List | AN55: dms_020301_ProjectType_List | AO55: dms_020302_ProjectType_List
B56: dms_Model_List | C56: DELETE NR 'CRY' IF NOT AN ANNUAL RIN (EB, CA , ARR) | E56: dms_RYE_Formula_Result | N56: dms_0203_ProjectType | O56: dms_020303_01_UOM | P56: dms_020501_01_UOM | Q56: dms_020501_02_UOM | R56: dms_020501_03_UOM | S56: dms_020501_04_UOM | T56: dms_020603_01_UOM | U56: dms_020701_01_UOM | V56: dms_020701_02_UOM | W56: dms_040102_01_UOM | X56: dms_040102_04_UOM | Y56: dms_030601_01_UOM | Z56: dms_030601_02_UOM | AA56: dms_030701_01_UOM | AB56: dms_030702_01_UOM | AC56: dms_030703_01_UOM | AD56: dms_030605_UOM | AE56: dms_03060703_UOM | AJ56: Animal | AK56: Animal impact | AL56: Animal | AM56: Weather | AN56: New substation establishment | AO56: New line on new route - single circuit
B57: ARR | C57: ANNUAL REPORTING STATEMENT | E57: =LEFT(dms_SingleYear_FinalYear_Result,2)&RIGHT(dms_SingleYear_FinalYear_Result,2) -> 2018 | F57: =LEFT(dms_SingleYear_FinalYear_Result,2)&RIGHT(dms_SingleYear_FinalYear_Result,2) | H57: Formula errors are OK | N57: New line on new route - single circuit | O57: Circuit line length in km | P57: 0's | Q57: 0's | R57: 0's | S57: 0's | T57: 0's | U57: km | V57: km | W57: 0's | X57: days | Y57: minutes/customer | Z57: minutes/customer | AA57: Customer / km | AB57: % | AC57: km | AD57: number | AE57: number | AK57: Animal nesting/burrowing, etc and other | AL57: Asset failure | AM57: Equipment failure | AN57: Capacity upgrade | AO57: New line on new route - dual circuit
B58: CA | C58: CATEGORY ANALYSIS | E58: =LEFT(dms_SingleYear_FinalYear_Result,2)&RIGHT(dms_SingleYear_FinalYear_Result,2) -> 2018 | F58: =LEFT(dms_SingleYear_FinalYear_Result,2)&RIGHT(dms_SingleYear_FinalYear_Result,2) | H58: Formula errors are OK | N58: New line on new route - dual circuit | O58: Circuit line length in km | P58: 0's | Q58: 0's | R58: 0's | S58: 0's | T58: 0's | U58: 0's | V58: 0's | W58: 0's | X58: 0's | Y58: minutes/customer | Z58: minutes/customer | AA58: MWh/customer | AB58: Number of spans | AD58: number | AE58: number | AK58: Other | AL58: Other | AM58: Operational error | AN58: Voltage upgrade | AO58: New line on new route - other
B59: CPI | C59: CPI | N59: New line on new route - other | O59: Circuit line length in km | P59: MVA added | Q59: MVA added | R59: MVA added | S59: MVA added | T59: 0's | U59: km | V59: km | W59: 0's | X59: $0s | Y59: interruptions/customer | Z59: interruptions/customer | AA59: kVA / customer | AB59: Number of spans | AD59: number | AE59: number | AJ59: Asset failure | AK59: LV | AL59: Overloads | AM59: Vegetation | AN59: Other | AO59: Line rebuild over existing route - single circuit
B60: EB | C60: ECONOMIC BENCHMARKING | E60: =LEFT(dms_SingleYear_FinalYear_Result,2)&RIGHT(dms_SingleYear_FinalYear_Result,2) -> 2018 | F60: =LEFT(dms_SingleYear_FinalYear_Result,2)&RIGHT(dms_SingleYear_FinalYear_Result,2) | H60: Formula errors are OK | N60: Line rebuild over existing route - single circuit | O60: Circuit line length in km | P60: 0's | Q60: 0's | R60: 0's | S60: 0's | T60: 0's | U60: km | V60: km | W60: $0s | X60: 0's | Y60: interruptions/customer | Z60: interruptions/customer | AB60: Number of spans | AD60: number | AE60: number | AK60: Distribution substation | AL60: Planned | AM60: Animals | AO60: Line rebuild over existing route - dual circuit
B61: PTRM | C61: POST TAX REVENUE MODEL | E61: =LEFT(dms_MultiYear_FinalYear_Result,2)&RIGHT(dms_MultiYear_FinalYear_Result,2) -> 2024 | F61: =LEFT(dms_MultiYear_FinalYear_Result,2)&RIGHT(dms_MultiYear_FinalYear_Result,2) | N61: Line rebuild over existing route - dual circuit | O61: Number | P61: total spend $0s | Q61: total spend $0s | R61: total spend $0s | S61: total spend $0s | T61: (per cent) | U61: 0's | V61: 0's | AB61: Number of spans | AD61: number | AE61: (per cent) | AK61: HV | AL61: Network business | AM61: Third party impacts | AO61: Reconductor - Single circuit
B62: Reset | C62: REGULATORY REPORTING STATEMENT | E62: =LEFT(dms_MultiYear_FinalYear_Result,2)&RIGHT(dms_MultiYear_FinalYear_Result,2) -> 2024 | F62: =LEFT(dms_MultiYear_FinalYear_Result,2)&RIGHT(dms_MultiYear_FinalYear_Result,2) | H62: Formula errors are OK | N62: Reconductor - Single circuit | O62: Number | P62: net circuit km added | Q62: net circuit km added | R62: net circuit km added | S62: net circuit km added | U62: years | V62: years | AB62: Years | AD62: number | AK62: Zone substation | AL62: Third party | AM62: Transmission failure | AO62: Reconductor - Dual circuit
B63: RFM | C63: ROLL FORWARD MODEL | E63: =LEFT(dms_CRCP_FinalYear_Result,2)&RIGHT(dms_CRCP_FinalYear_Result,2) -> 2018 | F63: =LEFT(dms_CRCP_FinalYear_Result,2)&RIGHT(dms_CRCP_FinalYear_Result,2) | N63: Reconductor - Dual circuit | O63: Number | P63: total spend $0s | Q63: total spend $0s | R63: total spend $0s | S63: total spend $0s | AB63: Years | AD63: number | AK63: Subtransmission | AL63: Unknown | AM63: Load shedding | AO63: Reconductor - Other
B64: WACC | C64: WEIGHTED AVERAGE COST OF CAPITAL | E64: =LEFT(dms_MultiYear_FinalYear_Result,2)&RIGHT(dms_MultiYear_FinalYear_Result,2) -> 2024 | F64: =LEFT(dms_MultiYear_FinalYear_Result,2)&RIGHT(dms_MultiYear_FinalYear_Result,2) | N64: Other | P64: net circuit km added | Q64: net circuit km added | R64: net circuit km added | S64: net circuit km added | AB64: Trees | AD64: number | AJ64: Other | AK64: insert description of 'other' | AL64: Vegetation | AM64: Inter-distributor connection failure | AO64: Line upgrade - raising/retensoring
P65: total spend $0s | Q65: total spend $0s | R65: total spend $0s | S65: total spend $0s | AB65: Trees | AD65: number | AJ65: Overloads | AK65: - | AL65: Weather | AM65: Other | AO65: Line upgrade - voltage upgrade
B66: dms_DataQuality_List | P66: 0's | R66: $0s | AB66: Defects | AD66: number | AJ66: Planned | AK66: - | AL66: 2 - STPIS Exclusion (3.3)(a) | AO66: Line upgrade - capacity
B67: Actual | P67: 0's | AB67: Defects | AD67: number | AJ67: Network business | AK67: Network error | AL67: 3 - STPIS Exclusion (3.3)(a) | AO67: String spare circuit
B68: Estimate | P68: 0's | AB68: Spans | AD68: number | AK68: Switching and protection error | AL68: 4 - STPIS Exclusion (3.3)(a) | AO68: Other
B69: Consolidated | P69: $0s | AB69: km | AD69: (per cent) | AJ69: Third party | AK69: Fire | AL69: 5 - STPIS Exclusion (3.3)(a)
B70: Recast | AB70: Spans | AD70: (per cent) | AK70: Other | AL70: 6 - STPIS Exclusion (3.3)(a)
B71: Public | AK71: Dig-in | AL71: 7 - STPIS Exclusion (3.3)(a)
AK72: Unauthorised access
B73: For all files either AER or business needs to be able to specify the type of submission | C73: For PTRM & RFM templates we must provide a choice in case they change their form of control - otherwise it is drawn from the business specific lookup table above. | O73: For PTRM files - this field set the text for the named range "DMS_Xfactor" which in all cases is simply the text "x factors" - this saves putting in each old gas PTRM file | Y73: for TNSP only | AK73: Vehicle impact
B74: dms_SourceList | C74: dms_FormControl_Choices | O74: DMS_Xfactor | Y74: dms_030601_01_UOM | AA74: dms_030701_01_UOM | AB74: dms_030702_01_UOM | AJ74: Unknown | AK74: Unknown
B75: After appeal | C75: Revenue cap | O75: x factors | Y75: % | AA75: Number of spans | AB75: km | AJ75: Vegetation | AK75: Blow-in/Fall-in - NSP responsibility
B76: Draft decision | C76: Revenue yield | Y76: number | AA76: Years | AB76: % | AK76: Grow-in - NSP responsibility
B77: Final decision | C77: Weighted average price cap | Y77: number | AA77: Trees | AB77: km | AK77: Blow-in/Fall-in - Other responsible party
B78: PTRM update 1 | Y78: % | AA78: Defects | AB78: number | AK78: Grow-in - Other responsible party
B79: PTRM update 2 | Y79: number | AA79: Number of spans | AJ79: Weather
B80: PTRM update 3 | Y80: number | AA80: km | AJ80: 2 - STPIS Exclusion (3.3)(a)
B81: PTRM update 4 | Y81: % | AA81: km | AJ81: 3 - STPIS Exclusion (3.3)(a)
B82: PTRM update 5 | Y82: number | AA82: Number of spans | AJ82: 4 - STPIS Exclusion (3.3)(a)
B83: PTRM update 6 | Y83: number | AJ83: 5 - STPIS Exclusion (3.3)(a)
B84: PTRM update 7 | Y84: % | AJ84: 6 - STPIS Exclusion (3.3)(a)
B85: Regulatory proposal | Y85: number | AJ85: 7 - STPIS Exclusion (3.3)(a)
B86: Reporting | Y86: %
B87: Revised regulatory proposal | Y87: number
Y88: %
Y89: number
B93: These are indeces and lookup values for various dates. All step from the value placed in FRCP_y1 on the business and other details worksheet | C93: =IF(dms_FifthFeeder_flag_NSP="NO","This NSP has only 4 feeder categories","This NSP has 5 feeder categories") -> This NSP has 5 feeder categories | L93: These date tables are currently used in the Recast templates to provide column headings and conditional formatting
B94: dms_FRCPlength_Num_List | C94: dms_FinalYear_List | D94: dms_CRCPlength_Num_List | E94: dms_CFinalYear_List | F94: dms_FRCP_years | H94: dms_CRCP_years | J94: dms_CRCP_index | L94: CRY from input cell on business sheet | M94: CRY - financial | N94: dms_FinYears | O94: CRY calendar | P94: dms_CalYears | Y94: These "row descriptions" are the column headings in the various templates but become row descriptions in the ETL process
B95: 1 | C95: dms_FRCP_y1 | D95: 1 | E95: CRCP_y1 | F95: =FRCP_y1 -> 2020-21 | G95: dms_FRCP_y1 | H95: =IF(dms_RPT="financial",VALUE(LEFT(dms_FRCP_y1,4)-1)&"-"&TEXT(VALUE(MID(dms_FRCP_y1,3,2)),"00"),VALUE(LEFT(dms_FRCP_y1,4)-1)) -> 2019-20 | I95: dms_CRCP_yZ | J95: 1 | L95: =CRY -> 2017-18 | M95: =VALUE(LEFT(CRY,4))&"-"&TEXT(MID(CRY,3,2)+1,"00") -> 2017-18 | N95: dms_CRYf_y1 | O95: =VALUE(LEFT(CRY,4)+1) -> 2018 | P95: dms_CRYc_y1 | Z95: Table 6.3 sustained interruptions - row descriptions
B96: 2 | C96: dms_FRCP_y2 | D96: 2 | E96: CRCP_y2 | F96: =IF(dms_RPT="financial",VALUE(LEFT(dms_FRCP_y1,4)+1)&"-"&TEXT(VALUE(RIGHT(dms_FRCP_y1,2)+1),"00"),VALUE(LEFT(dms_FRCP_y1,4)+1)) -> 2021-22 | G96: dms_FRCP_y2 | H96: =IF(dms_RPT="financial",VALUE(LEFT(dms_CRCP_yZ,4)-1)&"-"&TEXT(VALUE(MID(dms_CRCP_yZ,3,2)),"00"),VALUE(LEFT(dms_CRCP_yZ,4)-1)) -> 2018-19 | I96: dms_CRCP_yY | J96: 2 | M96: =VALUE(LEFT(dms_CRYf_y1,4)+1)&"-"&TEXT(MID(dms_CRYf_y1,3,2)+2,"00") -> 2018-19 | N96: dms_CRYf_y2 | O96: =VALUE(LEFT(dms_CRYc_y1,4)+1) -> 2019 | P96: dms_CRYc_y2 | Z96: dms_060301_CustNo_Affected_Row | AA96: dms_060301_Avg_Duration_Sustained_Int_Row | AB96: dms_060301_Effect_unplanned_SAIDI_Row | AC96: dms_060301_Effect_unplanned_SAIFI_Row
B97: 3 | C97: =IF(dms_Model="ARR",15,9) | D97: 3 | E97: =IF(dms_Model="ARR",15,9) | F97: =IF(dms_RPT="financial",VALUE(LEFT(dms_FRCP_y2,4)+1)&"-"&TEXT(VALUE(RIGHT(dms_FRCP_y2,2)+1),"00"),VALUE(LEFT(dms_FRCP_y2,4)+1)) -> 2022-23 | G97: dms_FRCP_y3 | H97: =IF(dms_RPT="financial",VALUE(LEFT(dms_CRCP_yY,4)-1)&"-"&TEXT(VALUE(MID(dms_CRCP_yY,3,2)),"00"),VALUE(LEFT(dms_CRCP_yY,4)-1)) -> 2017-18 | I97: dms_CRCP_yX | J97: 3 | M97: =VALUE(LEFT(dms_CRYf_y2,4)+1)&"-"&TEXT(MID(dms_CRYf_y2,3,2)+2,"00") -> 2019-20 | N97: dms_CRYf_y3 | O97: =VALUE(LEFT(dms_CRYc_y2,4)+1) -> 2020 | P97: dms_CRYc_y3 | Z97: Number of customers affected by the interruption | AA97: Average duration of sustained customer interruption | AB97: Effect on unplanned SAIDI | AC97: Effect on unplanned SAIFI
B98: 4 | C98: dms_FRCP_y4 | D98: 4 | E98: CRCP_y4 | F98: =IF(dms_RPT="financial",VALUE(LEFT(dms_FRCP_y3,4)+1)&"-"&TEXT(VALUE(RIGHT(dms_FRCP_y3,2)+1),"00"),VALUE(LEFT(dms_FRCP_y3,4)+1)) -> 2023-24 | G98: dms_FRCP_y4 | H98: =IF(dms_RPT="financial",VALUE(LEFT(dms_CRCP_yX,4)-1)&"-"&TEXT(VALUE(MID(dms_CRCP_yX,3,2)),"00"),VALUE(LEFT(dms_CRCP_yX,4)-1)) -> 2016-17 | I98: dms_CRCP_yW | J98: 4 | M98: =VALUE(LEFT(dms_CRYf_y3,4)+1)&"-"&TEXT(MID(dms_CRYf_y3,3,2)+2,"00") -> 2020-21 | N98: dms_CRYf_y4 | O98: =VALUE(LEFT(dms_CRYc_y3,4)+1) -> 2021 | P98: dms_CRYc_y4
B99: 5 | C99: dms_FRCP_y5 | D99: 5 | E99: CRCP_y5 | F99: =IF(dms_RPT="financial",VALUE(LEFT(dms_FRCP_y4,4)+1)&"-"&TEXT(VALUE(RIGHT(dms_FRCP_y4,2)+1),"00"),VALUE(LEFT(dms_FRCP_y4,4)+1)) -> 2024-25 | G99: dms_FRCP_y5 | H99: =IF(dms_RPT="financial",VALUE(LEFT(dms_CRCP_yW,4)-1)&"-"&TEXT(VALUE(MID(dms_CRCP_yW,3,2)),"00"),VALUE(LEFT(dms_CRCP_yW,4)-1)) -> 2015-16 | I99: dms_CRCP_yV | J99: 5 | M99: =VALUE(LEFT(dms_CRYf_y4,4)+1)&"-"&TEXT(MID(dms_CRYf_y4,3,2)+2,"00") -> 2021-22 | N99: dms_CRYf_y5 | O99: =VALUE(LEFT(dms_CRYc_y4,4)+1) -> 2022 | P99: dms_CRYc_y5
B100: 6 | C100: dms_FRCP_y6 | D100: 6 | E100: CRCP_y6 | F100: =IF(dms_RPT="financial",VALUE(LEFT(dms_FRCP_y5,4)+1)&"-"&TEXT(VALUE(RIGHT(dms_FRCP_y5,2)+1),"00"),VALUE(LEFT(dms_FRCP_y5,4)+1)) -> 2025-26 | G100: dms_FRCP_y6 | H100: =IF(dms_RPT="financial",VALUE(LEFT(dms_CRCP_yV,4)-1)&"-"&TEXT(VALUE(MID(dms_CRCP_yV,3,2)),"00"),VALUE(LEFT(dms_CRCP_yV,4)-1)) -> 2014-15 | I100: dms_CRCP_yU | J100: 6 | M100: =VALUE(LEFT(dms_CRYf_y5,4)+1)&"-"&TEXT(MID(dms_CRYf_y5,3,2)+2,"00") -> 2022-23 | N100: dms_CRYf_y6 | O100: =VALUE(LEFT(dms_CRYc_y5,4)+1) -> 2023 | P100: dms_CRYc_y6
B101: 7 | C101: dms_FRCP_y7 | D101: 7 | E101: CRCP_y7 | F101: =IF(dms_RPT="financial",VALUE(LEFT(dms_FRCP_y6,4)+1)&"-"&TEXT(VALUE(RIGHT(dms_FRCP_y6,2)+1),"00"),VALUE(LEFT(dms_FRCP_y6,4)+1)) -> 2026-27 | G101: dms_FRCP_y7 | H101: =IF(dms_RPT="financial",VALUE(LEFT(dms_CRCP_yU,4)-1)&"-"&TEXT(VALUE(MID(dms_CRCP_yU,3,2)),"00"),VALUE(LEFT(dms_CRCP_yU,4)-1)) -> 2013-14 | I101: dms_CRCP_yT | J101: 7 | M101: =VALUE(LEFT(dms_CRYf_y6,4)+1)&"-"&TEXT(MID(dms_CRYf_y6,3,2)+2,"00") -> 2023-24 | N101: dms_CRYf_y7 | O101: =VALUE(LEFT(dms_CRYc_y6,4)+1) -> 2024 | P101: dms_CRYc_y7 | Z101: Table 6.1 telephone answering - row descriptions and start date
B102: 8 | C102: dms_FRCP_y8 | D102: 8 | E102: CRCP_y8 | F102: =IF(dms_RPT="financial",VALUE(LEFT(dms_FRCP_y7,4)+1)&"-"&TEXT(VALUE(RIGHT(dms_FRCP_y7,2)+1),"00"),VALUE(LEFT(dms_FRCP_y7,4)+1)) -> 2027-28 | G102: dms_FRCP_y8 | H102: =IF(dms_RPT="financial",VALUE(LEFT(dms_CRCP_yT,4)-1)&"-"&TEXT(VALUE(MID(dms_CRCP_yT,3,2)),"00"),VALUE(LEFT(dms_CRCP_yT,4)-1)) -> 2012-13 | I102: dms_CRCP_yS | J102: 8 | M102: =VALUE(LEFT(dms_CRYf_y7,4)+1)&"-"&TEXT(MID(dms_CRYf_y7,3,2)+2,"00") -> 2024-25 | N102: dms_CRYf_y8 | O102: =VALUE(LEFT(dms_CRYc_y7,4)+1) -> 2025 | P102: dms_CRYc_y8 | Z102: dms_060101_Rows | AA102: dms_060102_Rows | AB102: dms_060101_StartDateTxt
B103: 9 | C103: dms_FRCP_y9 | D103: 9 | E103: CRCP_y9 | F103: =IF(dms_RPT="financial",VALUE(LEFT(dms_FRCP_y8,4)+1)&"-"&TEXT(VALUE(RIGHT(dms_FRCP_y8,2)+1),"00"),VALUE(LEFT(dms_FRCP_y8,4)+1)) -> 2028-29 | G103: dms_FRCP_y9 | H103: =IF(dms_RPT="financial",VALUE(LEFT(dms_CRCP_yS,4)-1)&"-"&TEXT(VALUE(MID(dms_CRCP_yS,3,2)),"00"),VALUE(LEFT(dms_CRCP_yS,4)-1)) -> 2011-12 | I103: dms_CRCP_yR | J103: 9 | M103: =VALUE(LEFT(dms_CRYf_y8,4)+1)&"-"&TEXT(MID(dms_CRYf_y8,3,2)+2,"00") -> 2025-26 | N103: dms_CRYf_y9 | O103: =VALUE(LEFT(dms_CRYc_y8,4)+1) -> 2026 | P103: dms_CRYc_y9 | Z103: Total number of calls (after removing excluded events) | AA103: Number of calls answered within 30 seconds (after excluding excluded events) | AB103: =dms_060701_StartDateTxt -> 1-Jul-2017
B104: 10 | C104: =IFERROR(IF(dms_Model="ARR",(MAX(0,dms_0608_LastRow-dms_0608_OffsetRows)),"not an ARR"),"6.8 not present") | D104: 10 | E104: =IFERROR(IF(dms_Model="ARR",(MAX(0,dms_0608_LastRow-dms_0608_OffsetRows)),"not an ARR"),"6.8 not present") | F104: =IF(dms_RPT="financial",VALUE(LEFT(dms_FRCP_y9,4)+1)&"-"&TEXT(VALUE(RIGHT(dms_FRCP_y9,2)+1),"00"),VALUE(LEFT(dms_FRCP_y9,4)+1)) -> 2029-30 | G104: dms_FRCP_y10 | H104: =IF(dms_RPT="financial",VALUE(LEFT(dms_CRCP_yR,4)-1)&"-"&TEXT(VALUE(MID(dms_CRCP_yR,3,2)),"00"),VALUE(LEFT(dms_CRCP_yR,4)-1)) -> 2010-11 | I104: dms_CRCP_yQ | J104: 10 | M104: =VALUE(LEFT(dms_CRYf_y9,4)+1)&"-"&TEXT(MID(dms_CRYf_y9,3,2)+2,"00") -> 2026-27 | N104: dms_CRYf_y10 | O104: =VALUE(LEFT(dms_CRYc_y9,4)+1) -> 2027 | P104: dms_CRYc_y10
B105: 11 | C105: dms_FRCP_y11 | D105: 11 | E105: CRCP_y11 | F105: =IF(dms_RPT="financial",VALUE(LEFT(dms_FRCP_y10,4)+1)&"-"&TEXT(VALUE(RIGHT(dms_FRCP_y10,2)+1),"00"),VALUE(LEFT(dms_FRCP_y10,4)+1)) -> 2030-31 | G105: dms_FRCP_y11 | H105: =IF(dms_RPT="financial",VALUE(LEFT(dms_CRCP_yQ,4)-1)&"-"&TEXT(VALUE(MID(dms_CRCP_yQ,3,2)),"00"),VALUE(LEFT(dms_CRCP_yQ,4)-1)) -> 2009-10 | I105: dms_CRCP_yP | J105: 11 | M105: =VALUE(LEFT(dms_CRYf_y10,4)+1)&"-"&TEXT(MID(dms_CRYf_y10,3,2)+2,"00") -> 2027-28 | N105: dms_CRYf_y11 | O105: =VALUE(LEFT(dms_CRYc_y10,4)+1) -> 2028 | P105: dms_CRYc_y11
B106: 12 | C106: dms_FRCP_y12 | D106: 12 | E106: CRCP_y12 | F106: =IF(dms_RPT="financial",VALUE(LEFT(dms_FRCP_y11,4)+1)&"-"&TEXT(VALUE(RIGHT(dms_FRCP_y11,2)+1),"00"),VALUE(LEFT(dms_FRCP_y11,4)+1)) -> 2031-32 | G106: dms_FRCP_y12 | H106: =IF(dms_RPT="financial",VALUE(LEFT(dms_CRCP_yP,4)-1)&"-"&TEXT(VALUE(MID(dms_CRCP_yP,3,2)),"00"),VALUE(LEFT(dms_CRCP_yP,4)-1)) -> 2008-09 | I106: dms_CRCP_yO | J106: 12 | M106: =VALUE(LEFT(dms_CRYf_y11,4)+1)&"-"&TEXT(MID(dms_CRYf_y11,3,2)+2,"00") -> 2028-29 | N106: dms_CRYf_y12 | O106: =VALUE(LEFT(dms_CRYc_y11,4)+1) -> 2029 | P106: dms_CRYc_y12
B107: 13 | C107: dms_FRCP_y13 | D107: 13 | E107: CRCP_y13 | F107: =IF(dms_RPT="financial",VALUE(LEFT(dms_FRCP_y12,4)+1)&"-"&TEXT(VALUE(RIGHT(dms_FRCP_y12,2)+1),"00"),VALUE(LEFT(dms_FRCP_y12,4)+1)) -> 2032-33 | G107: dms_FRCP_y13 | H107: =IF(dms_RPT="financial",VALUE(LEFT(dms_CRCP_yO,4)-1)&"-"&TEXT(VALUE(MID(dms_CRCP_yO,3,2)),"00"),VALUE(LEFT(dms_CRCP_yO,4)-1)) -> 2007-08 | I107: dms_CRCP_yN | J107: 13 | M107: =VALUE(LEFT(dms_CRYf_y12,4)+1)&"-"&TEXT(MID(dms_CRYf_y12,3,2)+2,"00") -> 2029-30 | N107: dms_CRYf_y13 | O107: =VALUE(LEFT(dms_CRYc_y12,4)+1) -> 2030 | P107: dms_CRYc_y13 | AE107: dms_0603_FeederList | AF107: =INDEX(dms_FeederName_1,MATCH(dms_TradingName,dms_TradingName_List)) -> CBD | AG107: =INDEX(dms_FeederName_2,MATCH(dms_TradingName,dms_TradingName_List)) -> Urban | AH107: =INDEX(dms_FeederName_3,MATCH(dms_TradingName,dms_TradingName_List)) -> Short rural | AI107: =INDEX(dms_FeederName_4,MATCH(dms_TradingName,dms_TradingName_List)) -> Long rural
B108: 14 | C108: dms_FRCP_y14 | D108: 14 | E108: CRCP_y14 | F108: =IF(dms_RPT="financial",VALUE(LEFT(dms_FRCP_y13,4)+1)&"-"&TEXT(VALUE(RIGHT(dms_FRCP_y13,2)+1),"00"),VALUE(LEFT(dms_FRCP_y13,4)+1)) -> 2033-34 | G108: dms_FRCP_y14 | H108: =IF(dms_RPT="financial",VALUE(LEFT(dms_CRCP_yN,4)-1)&"-"&TEXT(VALUE(MID(dms_CRCP_yN,3,2)),"00"),VALUE(LEFT(dms_CRCP_yN,4)-1)) -> 2006-07 | I108: dms_CRCP_yM | J108: 14 | M108: =VALUE(LEFT(dms_CRYf_y13,4)+1)&"-"&TEXT(MID(dms_CRYf_y13,3,2)+2,"00") -> 2030-31 | N108: dms_CRYf_y14 | O108: =VALUE(LEFT(dms_CRYc_y13,4)+1) -> 2031 | P108: dms_CRYc_y14 | Z108: Table 6.7.1 - daily performance data - unplanned - MAIFI -- row descriptions and header named range values
B109: 15 | C109: dms_FRCP_y15 | D109: 15 | E109: CRCP_y15 | F109: =IF(dms_RPT="financial",VALUE(LEFT(dms_FRCP_y14,4)+1)&"-"&TEXT(VALUE(RIGHT(dms_FRCP_y14,2)+1),"00"),VALUE(LEFT(dms_FRCP_y14,4)+1)) -> 2034-35 | G109: dms_FRCP_y15 | H109: =IF(dms_RPT="financial",VALUE(LEFT(dms_CRCP_yM,4)-1)&"-"&TEXT(VALUE(MID(dms_CRCP_yM,3,2)),"00"),VALUE(LEFT(dms_CRCP_yM,4)-1)) -> 2005-06 | I109: dms_CRCP_yL | J109: 15 | M109: =VALUE(LEFT(dms_CRYf_y14,4)+1)&"-"&TEXT(MID(dms_CRYf_y14,3,2)+2,"00") -> 2031-32 | N109: dms_CRYf_y15 | O109: =VALUE(LEFT(dms_CRYc_y14,4)+1) -> 2032 | P109: dms_CRYc_y15 | Z109: These headings (Lists) are determined from the INDEX/MATCH function on the NSP selected on the Business & other details sheet
M110: =VALUE(LEFT(dms_CRYf_y15,4)+1)&"-"&TEXT(MID(dms_CRYf_y15,3,2)+2,"00") -> 2032-33 | N110: dms_CRYf_y16 | O110: =VALUE(LEFT(dms_CRYc_y15,4)+1) -> 2033 | P110: dms_CRYc_y16 | Y110: dms_060701_Feeder_Header_Lvl4 | Z110: =INDEX(dms_FeederName_1,MATCH(dms_TradingName,dms_TradingName_List)) -> CBD | AA110: =INDEX(dms_FeederName_1,MATCH(dms_TradingName,dms_TradingName_List)) -> CBD | AB110: =INDEX(dms_FeederName_2,MATCH(dms_TradingName,dms_TradingName_List)) -> Urban | AC110: =INDEX(dms_FeederName_2,MATCH(dms_TradingName,dms_TradingName_List)) -> Urban | AD110: =INDEX(dms_FeederName_3,MATCH(dms_TradingName,dms_TradingName_List)) -> Short rural | AE110: =INDEX(dms_FeederName_3,MATCH(dms_TradingName,dms_TradingName_List)) -> Short rural | AF110: =INDEX(dms_FeederName_4,MATCH(dms_TradingName,dms_TradingName_List)) -> Long rural | AG110: =INDEX(dms_FeederName_4,MATCH(dms_TradingName,dms_TradingName_List)) -> Long rural | AH110: =IF((INDEX(dms_FeederName_5,MATCH(dms_TradingName,dms_TradingName_List))=0),"Network",(INDEX(dms_FeederName_5,MATCH(dms_TradingName,dms_TradingName_List)))) -> Network | AI110: =IF((INDEX(dms_FeederName_5,MATCH(dms_TradingName,dms_TradingName_List))=0),"Network",(INDEX(dms_FeederName_5,MATCH(dms_TradingName,dms_TradingName_List)))) -> Network | AJ110: Network | AK110: Network
B111: These are drop down lists for businesses to select the correct FRCP_y1 on the business and other details worksheet. This also populates the column headings in the worksheets | M111: =VALUE(LEFT(dms_CRYf_y16,4)+1)&"-"&TEXT(MID(dms_CRYf_y16,3,2)+2,"00") -> 2033-34 | N111: dms_CRYf_y17 | O111: =VALUE(LEFT(dms_CRYc_y16,4)+1) -> 2034 | P111: dms_CRYc_y17
B112: dms_RCP_fyear_list | C112: dms_CRY_ListF | D112: dms_CRY_ListC | E112: dms_RCP_cyear_list | F112: dms_FRCP_fyear_list | G112: dms_FRCP_ListF | H112: dms_FRCP_ListC | I112: dms_FRCP_cyear_list | M112: =VALUE(LEFT(dms_CRYf_y17,4)+1)&"-"&TEXT(MID(dms_CRYf_y17,3,2)+2,"00") -> 2034-35 | N112: dms_CRYf_y18 | O112: =VALUE(LEFT(dms_CRYc_y17,4)+1) -> 2035 | P112: dms_CRYc_y18 | Y112: dms_060701_Rows | Z112: All events | AA112: After removing excluded events | AB112: All events | AC112: After removing excluded events | AD112: All events | AE112: After removing excluded events | AF112: All events | AG112: After removing excluded events | AH112: All events | AI112: After removing excluded events | AJ112: All events | AK112: After removing excluded events
B113: dms_fy1 | C113: 2005-06 | D113: 2006 | E113: dms_cy1 | F113: dms_frcp_fy1 | G113: 2010-11 | H113: 2011 | I113: dms_crcp_cy1 | M113: =VALUE(LEFT(dms_CRYf_y18,4)+1)&"-"&TEXT(MID(dms_CRYf_y18,3,2)+2,"00") -> 2035-36 | N113: dms_CRYf_y19 | O113: =VALUE(LEFT(dms_CRYc_y18,4)+1) -> 2036 | P113: dms_CRYc_y19 | Z113: the number of column headings changes from 10 to 12 depending on the number of feeder categories for the NSP
B114: dms_fy2 | C114: 2006-07 | D114: 2007 | E114: dms_cy2 | F114: dms_frcp_fy2 | G114: 2011-12 | H114: 2012 | I114: dms_crcp_cy2 | M114: =VALUE(LEFT(dms_CRYf_y19,4)+1)&"-"&TEXT(MID(dms_CRYf_y19,3,2)+2,"00") -> 2036-37 | N114: dms_CRYf_y20 | O114: =VALUE(LEFT(dms_CRYc_y19,4)+1) -> 2037 | P114: dms_CRYc_y20
B115: dms_fy3 | C115: 2007-08 | D115: 2008 | E115: dms_cy3 | F115: dms_frcp_fy3 | G115: 2012-13 | H115: 2013 | I115: dms_crcp_cy3
B116: dms_fy4 | C116: 2008-09 | D116: 2009 | E116: dms_cy4 | F116: dms_frcp_fy4 | G116: 2013-14 | H116: 2014 | I116: dms_crcp_cy4
B117: dms_fy5 | C117: 2009-10 | D117: 2010 | E117: dms_cy5 | F117: dms_frcp_fy5 | G117: 2014-15 | H117: 2015 | I117: dms_crcp_cy5
B118: dms_fy6 | C118: 2010-11 | D118: 2011 | E118: dms_cy6 | F118: dms_frcp_fy6 | G118: 2015-16 | H118: 2016 | I118: dms_crcp_cy6 | Z118: Table 6.8.1 - row descriptions
B119: dms_fy7 | C119: 2011-12 | D119: 2012 | E119: dms_cy7 | F119: dms_frcp_fy7 | G119: 2016-17 | H119: 2017 | I119: dms_crcp_cy7 | Z119: dms_060801_01_Rows | AA119: dms_060801_02_Rows | AB119: dms_060801_03_Rows | AC119: dms_060801_04_Rows
B120: dms_fy8 | C120: 2012-13 | D120: 2013 | E120: dms_cy8 | F120: dms_frcp_fy8 | G120: 2017-18 | H120: 2018 | I120: dms_crcp_cy8 | L120: 2005-06 | M120: 2006 | Z120: Number of interruptions | AA120: Duration of interruptions | AB120: Total unplanned minutes off supply | AC120: Effect on unplanned MAIFI
B121: dms_fy9 | C121: 2013-14 | D121: 2014 | E121: dms_cy9 | F121: dms_frcp_fy9 | G121: 2018-19 | H121: 2019 | I121: dms_crcp_cy9 | L121: 2006-07 | M121: 2007
B122: dms_fy10 | C122: 2014-15 | D122: 2015 | E122: dms_cy10 | F122: dms_frcp_fy10 | G122: 2019-20 | H122: 2020 | I122: dms_crcp_cy10 | L122: 2007-08 | M122: 2008
B123: dms_fy11 | C123: 2015-16 | D123: 2016 | E123: dms_cy11 | F123: dms_frcp_fy11 | G123: 2020-21 | H123: 2021 | I123: dms_crcp_cy11 | L123: 2008-09 | M123: 2009
B124: dms_fy12 | C124: 2016-17 | D124: 2017 | E124: dms_cy12 | F124: dms_frcp_fy12 | G124: 2021-22 | H124: 2022 | I124: dms_crcp_cy12 | L124: 2009-10 | M124: 2010
B125: dms_fy13 | C125: 2017-18 | D125: 2018 | E125: dms_cy13 | F125: dms_frcp_fy13 | G125: 2022-23 | H125: 2023 | I125: dms_crcp_cy13 | L125: 2010-11 | M125: 2011 | Z125: Table 7.9.4 - market impact component - row descriptions
B126: dms_fy14 | C126: 2018-19 | D126: 2019 | E126: dms_cy14 | F126: dms_frcp_fy14 | G126: 2023-24 | H126: 2024 | I126: dms_crcp_cy14 | L126: 2011-12 | M126: 2012 | Y126: dms_070904_01_Rows | Z126: without exclusions | AA126: with exclusions
B127: dms_fy15 | C127: 2019-20 | D127: 2020 | E127: dms_cy15 | F127: dms_frcp_fy15 | G127: 2024-25 | H127: 2025 | I127: dms_crcp_cy15 | L127: 2012-13 | M127: 2013
B128: dms_fy16 | C128: 2020-21 | D128: 2021 | E128: dms_cy16 | L128: 2013-14 | M128: 2014
B129: dms_fy17 | C129: 2021-22 | D129: 2022 | E129: dms_cy17 | L129: 2014-15 | M129: 2015
B130: dms_fy18 | C130: 2022-23 | D130: 2023 | E130: dms_cy18 | L130: 2015-16 | M130: 2016
B131: dms_fy19 | C131: 2023-24 | D131: 2024 | E131: dms_cy19 | L131: 2016-17 | M131: 2017 | Z131: Use this to add to existing files
B132: dms_fy20 | C132: 2024-25 | D132: 2025 | E132: dms_cy20 | L132: 2017-18 | M132: 2018 | Z132: ARR's 6.8 STPIS exclusions
L133: 2018-19 | M133: 2019 | Z133: dms_060801_Event_Date | AA133: dms_060801_OutageID | AB133: dms_060801_FeederID | AC133: dms_060801_FeederClass | AD133: dms_060801_CauseID | AE133: dms_060801_01_Values | AF133: dms_060801_02_Values | AG133: dms_060801_03_Values | AH133: dms_060801_Excl_Cat | AI133: dms_060801_04_Values
L134: 2019-20 | M134: 2020
L135: 2020-21 | M135: 2021
L136: 2021-22 | M136: 2022 | Z136: CA 6.3 sustained interruptions
L137: 2022-23 | M137: 2023 | Z137: dms_060301_Event_Date | AA137: dms_060301_Event_Time | AB137: dms_060301_AssetID | AC137: dms_060301_FeederClass | AD137: dms_060301_Reason | AE137: dms_060301_DetailedReason | AF137: dms_060301_CustNo_Affected_Values | AG137: dms_060301_Avg_Duration_Sustained_Int_Values | AH137: dms_060301_Effect_unplanned_SAIDI_Values | AI137: dms_060301_Effect_unplanned_SAIFI_Values | AJ137: dms_060301_MED
L138: 2023-24 | M138: 2024
L139: 2024-25 | M139: 2025
L140: 2025-26 | M140: 2026
L141: 2026-27 | M141: 2027
L142: 2027-28 | M142: 2028
L143: 2028-29 | M143: 2029
L144: 2029-30 | M144: 2030
L145: 2030-31 | M145: 2031
L146: 2031-32 | M146: 2032
L147: 2032-33 | M147: 2033
L148: 2033-34 | M148: 2034
L149: 2034-35 | M149: 2035
L150: 2035-36 | M150: 2036

Sheet Instructions
B2: Transmission Network Service Provider
B3: Historical Reporting RIN Template
C4: This template is to be used by Powerlink to fulfil its reporting obligations to the AER.
C5: INSTRUCTIONS
C6: Complete the Business & other details worksheet before entering data or values in any other worksheets. The Business & other details worksheet is linked to other worksheets within the workbook and automatically generates certain column headings and conditional formatting.
C8: Identifying CONFIDENTIAL INFORMATION: Please use the macro at the top of each worksheet to identify confidential information.
C9: -Do this by selecting the cell or cells that contain confidential information and then run the Mark selection CONFIDENTIAL macro. This will format the cells a specific colour that is identified by the AER's database which in turn marks that information as confidential. -To reverse this, select the cell or cells and run the Return selection to NON-CONFIDENTIAL macro.
C11: UNITS OF MEASURE All amounts are to be unrounded and reported on a one for one basis: that is 1000 is to be entered as '1000'. Applicable units of measure may be identified in the table column headings or row descriptors.
C13: COLOUR CODING OF INPUT / NON-INPUT CELLS:
D14: Yellow = Input cell (mandatory)
D15: Darker yellow = input cell (mandatory)
D16: Orange = input cell (if data available)
D17: Grey = Not applicable/No inputs required
D18: . PLEASE DO NOT ENTER TEXT into cells that are to contain numeric data.
C21: WORKSHEET NAVIGATION Many tables in the worksheets have been "grouped" to allow for easy navigation. To ungroup or group data use the outline symbols in the left margin of excel (for Row groupings) or above the columns (for column groupings).
C23: RETURNING COMPLETED RESPONSES Please return four (4) files to the AER: 1. A confidential version which must contain a complete set of all responses with confidential information marked using the Mark selected cells CONFIDENTIAL macro and which has been completed using the locked template file provided by the AER. 2. An actual and an estimate version with confidential information marked using the Mark selection CONFIDENTIAL macro and which has been completed using the locked template file provided by the AER. 3. A public version with confidential information either removed completely or aggregated in some form together with writtten consent to disclose the public version of the response. Use the drop down box on the Business and other details worksheet to identify the file as either confidential ('consolidated') or public.
C25: SUBMITTING AMENDED DATA TO THE AER If an NSP wishes to correct data previously submitted to the AER it should resubmit that data using the original completed submission as the starting point. Please make any necessary changes to the data. Data that is not being amended should be left unchanged. NSPs must identify the reason for the amendments in the Amendment Reason box on the Business and other details worksheet. NSPs may provide further details regarding any amendments in the Amendments worksheet. .
C26: NSP may use Amended Data macro to highlight cells that contain amended data. NB: if data is also CONFIDENTIAL, re-apply the Confidentiality macro after applying the Amended macro
C27: Please resubmit two (2) files - a confidential version and a public version of the amended submission to the AER

Sheet Contents
B1: REGULATORY REPORTING STATEMENT
B2: =INDEX(dms_TradingNameFull_List,MATCH(dms_TradingName,dms_TradingName_List)) -> NSW Electricity Networks Operations Pty Ltd trading as TransGrid
B3: =CONCATENATE((LOOKUP(dms_Model,dms_Model_List,dms_Worksheet_List))&" "&CRY) -> CATEGORY ANALYSIS 2017-18
B4: CONTENTS
E7: 1. Business details | L7: 2. Expenditure
E26: 4. Network information | L26: 5. Network information

Sheet Business & other details
B1: =IF(dms_DataQuality="backcast",INDEX(dms_Worksheet_List,MATCH(dms_Model,dms_Model_List))&" BACKCAST",INDEX(dms_Worksheet_List,MATCH(dms_Model,dms_Model_List))) -> CATEGORY ANALYSIS
B2: =INDEX(dms_TradingNameFull_List,MATCH(dms_TradingName,dms_TradingName_List)) -> NSW Electricity Networks Operations Pty Ltd trading as TransGrid
B3: =IF(SUM(dms_SingleYear_Model)>0,CONCATENATE(CRY),CONCATENATE(FRCP_y1," to ",dms_MultiYear_FinalYear_Result)) -> 2017-18
B4: BUSINESS & OTHER DETAILS
B7: Instructions
B8: Complete the following business details regulatory template before entering data or values in any other regulatory template. This regulatory template is linked to other cells within the spreadsheet and automatically generates column headings and conditional formatting to distinguish business specific input and non-input cells.
B10: SUBMISSION PARTICULARS INPUT SHEETS
B12: ENTITY DETAILS
B14: Short name | C14: TransGrid | F14: Select business name from drop down list first
B15: ACN / ABN | C15: =INDEX(dms_ABN_List,MATCH(dms_TradingName,dms_TradingName_List)) -> 70250995390
B18: Business address | C18: Address 1 | E18: =INDEX(dms_Addr1_List,MATCH(dms_TradingName,dms_TradingName_List)) -> 180 Thomas Street
D19: Address 2 | E19: =IF(ISBLANK(INDEX(dms_Addr2_List,MATCH(dms_TradingName,dms_TradingName_List))),"",(INDEX(dms_Addr2_List,MATCH(dms_TradingName,dms_TradingName_List)))) -> 
C20: Suburb | E20: =INDEX(dms_Suburb_List,MATCH(dms_TradingName,dms_TradingName_List)) -> SYDNEY
D21: State | E21: =INDEX(dms_State_List,MATCH(dms_TradingName,dms_TradingName_List)) -> NSW | F21: p/code | G21: =INDEX(dms_PostCode_List,MATCH(dms_TradingName,dms_TradingName_List)) -> 2000
B23: Postal address | C23: Address 1 | E23: =INDEX(dms_PAddr1_List,MATCH(dms_TradingName,dms_TradingName_List)) -> PO Box A1000
D24: Address 2 | E24: =IF(ISBLANK(INDEX(dms_PAddr2_List,MATCH(dms_TradingName,dms_TradingName_List))),"",(INDEX(dms_PAddr2_List,MATCH(dms_TradingName,dms_TradingName_List)))) -> 
C25: Suburb | E25: =INDEX(dms_PSuburb_List,MATCH(dms_TradingName,dms_TradingName_List)) -> SYDNEY SOUTH
D26: State | E26: =INDEX(dms_PState_List,MATCH(dms_TradingName,dms_TradingName_List)) -> NSW | F26: p/code | G26: =INDEX(dms_PPostCode_List,MATCH(dms_TradingName,dms_TradingName_List)) -> 1235
B29: Contact name/s | C29: Jerome Yoong
B30: Contact phone/s | C30: 02 9284 3249
B31: Contact email address/s | C31: jerome.yoong@transgrid.com.au
B33: REGULATORY CONTROL PERIODS
B35: Forthcoming regulatory control period | C35: 2020-21 | D35: =dms_FRCP_y2 -> 2021-22 | E35: =dms_FRCP_y3 -> 2022-23 | F35: =dms_FRCP_y4 -> 2023-24 | G35: =dms_FRCP_y5 -> 2024-25
C36: =dms_FRCP_y6 -> 2025-26 | D36: =dms_FRCP_y7 -> 2026-27 | E36: =dms_FRCP_y8 -> 2027-28 | F36: =dms_FRCP_y9 -> 2028-29 | G36: =dms_FRCP_y10 -> 2029-30
B39: Current regulatory control period | C39: =dms_CRCP_FirstYear_Result -> 2015-16 | D39: =IF(dms_RPT="financial",VALUE(LEFT(CRCP_y1,4)+1)&"-"&TEXT(MID(CRCP_y1,3,2)+2,"00"),VALUE(LEFT(CRCP_y1,4)+1)) -> 2016-17 | E39: =IF(dms_RPT="financial",VALUE(LEFT(CRCP_y1,4)+2)&"-"&TEXT(VALUE(MID(CRCP_y1,3,2)+3),"00"),VALUE(LEFT(CRCP_y1,4)+2)) -> 2017-18 | F39: =IF(dms_RPT="financial",VALUE(LEFT(CRCP_y1,4)+3)&"-"&TEXT(MID(CRCP_y1,3,2)+4,"00"),VALUE(LEFT(CRCP_y1,4)+3)) -> 2018-19 | G39: =IF(dms_RPT="financial",VALUE(LEFT(CRCP_y1,4)+4)&"-"&TEXT(MID(CRCP_y1,3,2)+5,"00"),VALUE(LEFT(CRCP_y1,4)+4)) -> 2019-20
C40: =IF(dms_RPT="financial",VALUE(LEFT(CRCP_y1,4)+5)&"-"&TEXT(MID(CRCP_y1,3,2)+6,"00"),VALUE(LEFT(CRCP_y1,4)+5)) -> 2020-21 | D40: =IF(dms_RPT="financial",VALUE(LEFT(CRCP_y1,4)+6)&"-"&TEXT(MID(CRCP_y1,3,2)+7,"00"),VALUE(LEFT(CRCP_y1,4)+6)) -> 2021-22 | E40: =IF(dms_RPT="financial",VALUE(LEFT(CRCP_y1,4)+7)&"-"&TEXT(MID(CRCP_y1,3,2)+8,"00"),VALUE(LEFT(CRCP_y1,4)+7)) -> 2022-23 | F40: =IF(dms_RPT="financial",VALUE(LEFT(CRCP_y1,4)+8)&"-"&TEXT(MID(CRCP_y1,3,2)+9,"00"),VALUE(LEFT(CRCP_y1,4)+8)) -> 2023-24 | G40: =IF(dms_RPT="financial",VALUE(LEFT(CRCP_y1,4)+9)&"-"&TEXT(MID(CRCP_y1,3,2)+10,"00"),VALUE(LEFT(CRCP_y1,4)+9)) -> 2024-25
C41: =IF(dms_RPT="financial",VALUE(LEFT(CRCP_y1,4)+10)&"-"&TEXT(MID(CRCP_y1,3,2)+11,"00"),VALUE(LEFT(CRCP_y1,4)+10)) -> 2025-26 | D41: =IF(dms_RPT="financial",VALUE(LEFT(CRCP_y1,4)+11)&"-"&TEXT(MID(CRCP_y1,3,2)+12,"00"),VALUE(LEFT(CRCP_y1,4)+11)) -> 2026-27 | E41: =IF(dms_RPT="financial",VALUE(LEFT(CRCP_y1,4)+12)&"-"&TEXT(MID(CRCP_y1,3,2)+13,"00"),VALUE(LEFT(CRCP_y1,4)+12)) -> 2027-28 | F41: =IF(dms_RPT="financial",VALUE(LEFT(CRCP_y1,4)+13)&"-"&TEXT(MID(CRCP_y1,3,2)+14,"00"),VALUE(LEFT(CRCP_y1,4)+13)) -> 2028-29 | G41: =IF(dms_RPT="financial",VALUE(LEFT(CRCP_y1,4)+14)&"-"&TEXT(MID(CRCP_y1,3,2)+15,"00"),VALUE(LEFT(CRCP_y1,4)+14)) -> 2029-30
B44: Previous regulatory control period | C44: =IF(dms_RPT="financial",VALUE(LEFT(PRCP_y2,4)-1)&"-"&TEXT(VALUE(MID(PRCP_y2,3,2)),"00"),VALUE(LEFT(PRCP_y2,4)-1)) -> 2010-11 | D44: =IF(dms_RPT="financial",VALUE(LEFT(PRCP_y3,4)-1)&"-"&TEXT(VALUE(MID(PRCP_y3,3,2)),"00"),VALUE(LEFT(PRCP_y3,4)-1)) -> 2011-12 | E44: =IF(dms_RPT="financial",VALUE(LEFT(PRCP_y4,4)-1)&"-"&TEXT(VALUE(MID(PRCP_y4,3,2)),"00"),VALUE(LEFT(PRCP_y4,4)-1)) -> 2012-13 | F44: =IF(dms_RPT="financial",VALUE(LEFT(PRCP_y5,4)-1)&"-"&TEXT(VALUE(RIGHT(PRCP_y5,2)-1),"00"),VALUE(LEFT(PRCP_y5,4)-1)) -> 2013-14 | G44: =IF(dms_RPT="financial",VALUE(LEFT(CRCP_y1,4)-1)&"-"&TEXT(VALUE(RIGHT(CRCP_y1,2)-1),"00"),VALUE(LEFT(CRCP_y1,4)-1)) -> 2014-15
B48: Commencing regulatory year | C48: 2017-18 | D48: CRY
B50: Last completed regulatory year | C50: 2017-18 | D50: dms_FinalYear
C54: IF THIS IS AN ABC RIN - make sure the the named range CRY is applied and the named range dms_dollar_nom_UOM is applied
C55: IF THIS IS A RESET RIN - make sure the named ranges CRY and dms_dollar_nom_UOM are NOT present in the workbook
C56: FOR ABC RINS THAT SPAN MULTIPLE YEARS - make sure MultiYear Flag is set and final year entered as required
B58: Source | C58: Reporting | E58: Please select the correct submission type from the dropdown list.
B59: Data quality (actual, estimate, public, consolidated) | C59: Public | E59: Use Consolidated for Consolidated Confidential version Use Public for Consolidated Public version
B60: Amended RIN submission - amendment reason | C60: .
B61: Submission Date | C61: 2018-10-31 | D61: dms_SubmissionDate | E61: Please enter date this file submitted to AER (dd/mm/yyyy)
B62: EBSS - First application of scheme in forthcoming period? | C62: No
B63: Sector | C63: =INDEX(dms_Sector_List,MATCH(dms_TradingName,dms_TradingName_List)) -> Electricity | D63: dms_Sector | E63: =INDEX(dms_Sector_List,MATCH(dms_TradingName,dms_TradingName_List))
B64: Segment | C64: =INDEX(dms_Segment_List,MATCH(dms_TradingName,dms_TradingName_List)) -> Transmission | D64: dms_Segment | E64: =INDEX(dms_Segment_List,MATCH(dms_TradingName,dms_TradingName_List))
B65: Regulatory Year Ending | C65: =IF(dms_MultiYear_Flag=1,LEFT(dms_Specified_FinalYear,2)&RIGHT(dms_Specified_FinalYear,2),INDEX(dms_RYE_Formula_Result,MATCH(dms_Model,dms_Model_List))) -> 2018 | D65: dms_RYE | E65: =IF(dms_MultiYear_Flag=1,LEFT(dms_Specified_FinalYear,2)&RIGHT(dms_Specified_FinalYear,2),INDEX(dms_RYE_Formula_Result,MATCH(dms_Model,dms_Model_List)))
B66: Reporting Period Type | C66: =INDEX(dms_RPT_List,MATCH(dms_TradingName,dms_TradingName_List)) -> Financial | D66: dms_RPT | E66: =INDEX(dms_RPT_List,MATCH(dms_TradingName,dms_TradingName_List))
B67: Model or RIN Type | C67: CA | D67: dms_Model | E67: Drop down selection
B68: EB/CA Unit of Measure for Monetary Values | C68: $0s | D68: dms_dollar_nom_UOM | E68: If the cover sheet is attached to an ABC RIN make the NAMED RANGE on this field is set
B69: Security Classification | C69: Public | D69: dms_Classification | E69: Always Public
B70: Jurisdiction | C70: =INDEX(dms_JurisdictionList,MATCH(dms_TradingName,dms_TradingName_List)) -> NSW | D70: dms_Jurisdiction | E70: =INDEX(dms_JurisdictionList,MATCH(dms_TradingName,dms_TradingName_List))
B71: FOR RESET RINS
B72: CRY-1 | C72: =VALUE(LEFT(CRY,4)-1) -> 2016 | D72: dms_Left_CRY_minus1 | E72: =VALUE(LEFT(CRY,4)-1) | G72: Not used in Reset RINS but may be useful in other cases
B73: Dollar $ real month | C73: =INDEX(dms_RPTMonth_List,MATCH(dms_TradingName,dms_TradingName_List)) -> June | D73: dms_RPTMonth | E73: =INDEX(dms_RPTMonth_List,MATCH(dms_TradingName,dms_TradingName_List))
B74: Dollar $ real (the last month before the FRCP_y1) | C74: =IF(SUM(dms_SingleYear_Model)>0,CONCATENATE(dms_RPTMonth)&" "&VALUE((LEFT(CRY,2))&RIGHT(CRY,2)),CONCATENATE(dms_RPTMonth)&" "&VALUE((LEFT(dms_CRCP_FinalYear_Result,2)&RIGHT(dms_CRCP_FinalYear_Result,2)))) -> June 2018 | D74: dms_DollarReal | E74: =IF(SUM(dms_SingleYear_Model)>0,CONCATENATE(dms_RPTMonth)&" "&VALUE((LEFT(CRY,2))&RIGHT(CRY,2)),CONCATENATE(dms_RPTMonth)&" "&VALUE((LEFT(dms_CRCP_FinalYear_Result,2)&RIGHT(dms_CRCP_FinalYear_Result,2))))
B75: Dollar $ real previous year (PRCP_y5) | C75: =IF(SUM(dms_SingleYear_Model)>0,CONCATENATE(dms_RPTMonth)&" "&VALUE(((LEFT(CRY,2))&RIGHT(CRY,2))-1),CONCATENATE(dms_RPTMonth)&" "&VALUE(((LEFT(dms_CRCP_FirstYear_Result,2)&RIGHT(dms_CRCP_FirstYear_Result,2))))-1) -> June 2017 | D75: dms_DollarReal_Prev | E75: =IF(SUM(dms_SingleYear_Model)>0,CONCATENATE(dms_RPTMonth)&" "&VALUE(((LEFT(CRY,2))&RIGHT(CRY,2))-1),CONCATENATE(dms_RPTMonth)&" "&VALUE(((LEFT(dms_CRCP_FirstYear_Result,2)&RIGHT(dms_CRCP_FirstYear_Result,2))))-1)
B76: FOR PTRM/ RFMs
B77: Form of control | C77: =INDEX(dms_FormControl_List,MATCH(dms_TradingName,dms_TradingName_List)) -> Revenue cap | D77: dms_FormControl | E77: =INDEX(dms_FormControl_List,MATCH(dms_TradingName,dms_TradingName_List))
B78: FOR EB RINS
B79: Calendar Year for table 3.6 data | C79: =VALUE(dms_RYE)-1 -> 2017 | D79: dms_0306_Year | E79: =VALUE(dms_RYE)-1
B80: FOR ABC RINS THAT SPAN MULTIPLE YEARS
B81: Is this a multi year ABC RIN? | C81: No
B82: Backcast Multiyear EB, CA or ARR? | C82: =IF(dms_MultiYear_ResponseFlag="No",0,1) -> 0 | D82: dms_MultiYear_Flag | E82: This is set from the answer provided above
C83: =IF(dms_MultiYear_Flag=1,"Specify Final Reg Year here eg 2016 or 2015-16","not a Multi Reg Year submission") -> not a Multi Reg Year submission | D83: dms_Specified_FinalYear | E83: The result here is returned to dms_CRCP_FinalYear_Result if response to Q in C73 is "yes" and dms_MultiYear_Flag is set to 1
B84: This block works out the various RYE's for ALL RIN types and MODELS
B85: Single Year Model T/F | C85: =IF(dms_Model="EB",1,0) -> 0 | D85: dms_EB
C86: =IF(dms_Model="CA",1,0) -> 1 | D86: dms_CA | E86: =dms_SingleYear_Model
C87: =IF(dms_Model="ARR",1,0) -> 0 | D87: dms_ARR
B88: Single Year Final Year Reference | C88: CRY | D88: dms_SingleYear_FinalYear_Ref | E88: This is the reference for EB, CA & ARR RINs
B89: Single Year Final Year Result | C89: =IFERROR(IF(SUM(dms_SingleYear_Model)<>0,(INDIRECT(dms_SingleYear_FinalYear_Ref)),"not a single year RIN"),"CRY not present") -> 2017-18 | D89: dms_SingleYear_FinalYear_Result | E89: =IFERROR(IF(SUM(dms_SingleYear_Model)<>0,(INDIRECT(dms_SingleYear_FinalYear_Ref)),"not a single year RIN"),"CRY not present")
B90: FRCP length in years | C90: =INDEX(dms_FRCPlength_List,MATCH(dms_TradingName,dms_TradingName_List)) -> 4 | D90: dms_FRCPlength_Num | E90: =INDEX(dms_FRCPlength_List,MATCH(dms_TradingName,dms_TradingName_List))
B91: Multi Year Final Year Reference | C91: =INDEX(dms_FinalYear_List,MATCH(dms_FRCPlength_Num,dms_FRCPlength_Num_List)) -> dms_FRCP_y4 | D91: dms_MultiYear_FinalYear_Ref | E91: =INDEX(dms_FinalYear_List,MATCH(dms_FRCPlength_Num,dms_FRCPlength_Num_List))
B92: Multi Year Final Year Result | C92: =IF(dms_MultiYear_Flag=0,INDIRECT(dms_MultiYear_FinalYear_Ref),dms_Specified_FinalYear) -> 2023-24 | D92: dms_MultiYear_FinalYear_Result | E92: =IF(dms_MultiYear_Flag=0,INDIRECT(dms_MultiYear_FinalYear_Ref),dms_Specified_FinalYear) | I92: Formula errors OK
B93: CRCP length in years | C93: =INDEX(dms_CRCPlength_List,MATCH(dms_TradingName,dms_TradingName_List)) -> 5 | D93: dms_CRCPlength_Num | E93: =INDEX(dms_CRCPlength_List,MATCH(dms_TradingName,dms_TradingName_List))
B94: CRCP Final Year Reference | C94: =INDEX(dms_CFinalYear_List,MATCH(dms_CRCPlength_Num,dms_CRCPlength_Num_List)) -> CRCP_y5 | D94: dms_CRCP_FinalYear_Ref | E94: =INDEX(dms_CFinalYear_List,MATCH(dms_CRCPlength_Num,dms_CRCPlength_Num_List))
B95: CRCP First Year Result | C95: =INDEX(dms_CRCP_years,MATCH(dms_CRCPlength_Num,dms_CRCP_index)) -> 2015-16 | D95: dms_CRCP_FirstYear_Result | E95: =INDEX(dms_CRCP_years,MATCH(dms_CRCPlength_Num,dms_CRCP_index))
B96: CRCP Final Year Result | C96: =IF(dms_MultiYear_Flag=0,(IF(SUM(dms_SingleYear_Model)>0,CRY,dms_CRCP_yZ)),dms_Specified_FinalYear) -> 2017-18 | D96: dms_CRCP_FinalYear_Result | E96: =IF(dms_MultiYear_Flag=0,(IF(SUM(dms_SingleYear_Model)>0,CRY,dms_CRCP_yZ)),dms_Specified_FinalYear)
B97: FOR CATEGORY ANALYSIS FILES
B98: How many rows in tables 6.3 sustained interruptions? | C98: =IF(dms_Model<>"CA","not a CA","Is a CA") -> Is a CA | D98: dms_060301_MaxRows only returns a valid value when cover sheet is attached to a CA file
B99: Table 6.3.1 - last row reference | C99: =IFERROR(IF(dms_Model="CA", LOOKUP(2,1/(dms_060301_Avg_Duration_Sustained_Int_Values<>""), (ROW(dms_060301_Avg_Duration_Sustained_Int_Values))), "not a CA"),"no data in 6.3 or 6.3 not present") -> no data in 6.3 or 6.3 not present | D99: dms_060301_LastRow | E99: =IFERROR(IF(dms_Model="CA",LOOKUP(2,1/(dms_060301_Avg_Duration_Sustained_Int_Values<>""),(ROW(dms_060301_Avg_Duration_Sustained_Int_Values))),"not a CA"),"6.3 not present")
B100: Table 6.3.1 - max number rows | C100: =IFERROR(IF(dms_Model="CA",(dms_060301_LastRow-15),"not a CA"),"no data in 6.3 or 6.3 not present") -> no data in 6.3 or 6.3 not present | D100: dms_060301_MaxRows | E100: =IFERROR(IF(dms_Model="CA",(dms_060301_LastRow-15),"not a CA"),"6.3 not present")
B101: Table 6.6.3 - Public lighting repair - no. business days | C101: =INDEX(dms_663_List,MATCH(dms_TradingName,dms_TradingName_List)) -> 5 | D101: dms_663 | E101: =INDEX(dms_663_List,MATCH(dms_TradingName,dms_TradingName_List))
B102: FOR ARR or RESET RINS
B103: How many rows in tables 6.1 or 6.7? (leap year?) | C103: insert dms_LeapYear NR if required | D103: dms_LeapYear is used to determine dms_060701_Max_Rows BUT it is only found on worksheet 6.1 or 6.7 and the date value in the cell is used to determine whether it is a leap year
B104: Is dms_LeapYear named range present? | C104: =IFERROR(IF(dms_LeapYear,"yes"),"no") -> no
B105: Table 6.7.1 - includes a leap year? | C105: =IFERROR(IF(MONTH(DATE(YEAR(dms_LeapYear),2,29))=2,"is a leap year","not a leap year"), "dms_LeapYear not present") -> dms_LeapYear not present | D105: dms_LeapYear_Result | E105: =IFERROR(IF(MONTH(DATE(YEAR(dms_LeapYear),2,29))=2,"is a leap year","not a leap year"),"dms_LeapYear not present")
B106: Table 6.7.1 - Last row (leap year/ non leap year) | C106: =IFERROR(IF(dms_Model="ARR", IF(dms_LeapYear_Result="is a leap year",366,365), (IF(dms_Model="Reset", (IF(dms_LeapYear_Result="is a leap year",1827,1826)), "not a relevant RIN type"))), "dms_LeapYear in either 6.1 or 6.7 not present") -> not a relevant RIN type | D106: dms_060701_MaxRows | E106: =IFERROR(IF(dms_Model="ARR",IF(dms_LeapYear_Result="is a leap year",366,365),(IF(dms_Model="Reset",(IF(dms_LeapYear_Result="is a leap year",1827,1826)),"not a relevant RIN type"))),"dms_LeapYear in either 6.1 or 6.7 not present")
B107: How many columns in 6.7? (4 or 5 feeder categories) | C107: =IF(dms_FifthFeeder_flag_NSP="NO","This NSP has only 4 feeder categories","This NSP has 5 feeder categories") -> This NSP has 5 feeder categories
B108: Table 6.7.1 - Last column (# of feeder categories > 4) | C108: =IF(dms_FifthFeeder_flag_NSP="NO",10,12) -> 12 | D108: dms_060701_MaxCols | E108: =IF(dms_FifthFeeder_flag_NSP="NO",8,10)
B109: Table 6.7.1 - Number of offset rows | C109: =IF(dms_Model="ARR",15,9) -> 9 | D109: dms_060701_OffsetRows | E109: =IF(dms_Model="ARR",15,9)
B110: Start date for telephone answering in 6.1 or 6.7? | E110: Using 060701 as naming standard not 060101
B111: Table 6.1.1 and 6.7.1 - Start Date as Text | C111: =IF(SUM(dms_SingleYear_Model)>0,(CONCATENATE(IF(LEN(CRY)=4,"1-Jan-","1-Jul-"),LEFT(CRY,4))),(CONCATENATE(IF(LEN(CRCP_y4)=4,"1-Jan-","1-Jul-"),LEFT(CRCP_y4,4)))) -> 1-Jul-2017 | D111: dms_060701_StartDateTxt | E111: =IF(SUM(dms_SingleYear_Model)>1,(CONCATENATE(IF(LEN(CRY)=4,"1-Jan-","1-Jul-"),LEFT(CRY,4))),(CONCATENATE(IF(LEN(CRCP_y4)=4,"1-Jan-","1-Jul-"),LEFT(CRCP_y4,4))))
B112: Table 6.1.1 and 6.7.1 - Start Date as Date Value | C112: =DATEVALUE(dms_060701_StartDateTxt) -> 42917 | D112: dms_060701_StartDateVal | E112: =DATEVALUE(dms_060701_StartDateTxt)
B113: FOR ARRs
B114: How many rows in table 6.8? | C114: insert dms_060801_StartCell NR if required | D114: dms_060801_StartCell is only found on worksheet 6.8 and is used to determine the starting date for the date range
B115: Table 6.8 - Number of offset rows | C115: =IFERROR(IF(dms_Model="ARR",(ROW(dms_060801_StartCell)-1),"not an ARR"),"6.8 not present") -> not an ARR | D115: dms_0608_OffsetRows | E115: =IFERROR(IF(dms_Model="ARR",(ROW(dms_060801_StartCell)-1),"not an ARR"),"6.8 not present")
B116: Table 6.8 - Last row | C116: =IFERROR(IF(dms_060801_StartCell<>"",IF(dms_Model="ARR",(LOOKUP(2,1/(dms_060801_01_Values<>""),(ROW(dms_060801_01_Values)))),"not an ARR"),0),"6.8 not present") -> 6.8 not present | D116: dms_0608_LastRow | E116: =IFERROR(IF(dms_060801_StartCell<>"",IF(dms_Model="ARR",(LOOKUP(2,1/(dms_060801_01_Values<>""),(ROW(dms_060801_01_Values)))),"not an ARR"),0),"6.8 not present")
B117: Table 6.8 - MaxRows | C117: =IFERROR(IF(dms_Model="ARR",(MAX(0,dms_0608_LastRow-dms_0608_OffsetRows)),"not an ARR"),"6.8 not present") -> not an ARR | D117: dms_060801_MaxRows | E117: =IFERROR(IF(dms_Model="ARR",(MAX(0,dms_0608_LastRow-dms_0608_OffsetRows)),"not an ARR"),"6.8 not present")
B118: FOR TNSP RESET RINS
B119: Table 7.9.4 only appears in TNSPs Reset RIN
B120: Table 7.9.4 - first year | C120: =LEFT(PRCP_y3,4) -> 2012 | D120: dms_070904_Start_Year | E120: =LEFT(PRCP_y3,4)
B121: FOR SUBSET FILES
B122: Is this Submission File a Subset File | C122: NO | D122: dms_Partial
B123: MISC
B124: Distribution Determination Reference | C124: =INDEX(dms_DeterminationRef_List,MATCH(dms_TradingName,dms_TradingName_List)) -> transmission determination | D124: dms_DeterminationRef
B125: CBD Feeder for this business | C125: =INDEX(dms_CBD_flag,MATCH(dms_TradingName,dms_TradingName_List)) -> n/a | D125: dms_CBD_flag_NSP
B126: Urban Feeder for this business | C126: =INDEX(dms_Urban_flag,MATCH(dms_TradingName,dms_TradingName_List)) -> n/a | D126: dms_Urban_flag_NSP
B127: Short rural Feeder for this business | C127: =INDEX(dms_ShortRural_flag,MATCH(dms_TradingName,dms_TradingName_List)) -> n/a | D127: dms_ShortRural_flag_NSP
B128: Long rural Feeder for this business | C128: =INDEX(dms_LongRural_flag,MATCH(dms_TradingName,dms_TradingName_List)) -> n/a | D128: dms_LongRural_flag_NSP
B129: Fifth Feeder Category (eg. TasNetworks (D)) | C129: =INDEX(dms_FeederType_5_flag,MATCH(dms_TradingName,dms_TradingName_List)) -> n/a | D129: dms_FifthFeeder_flag_NSP | E129: =INDEX(dms_FeederType_5_flag,MATCH(dms_TradingName,dms_TradingName_List))
B131: DISCARD FILES
B132: discard this record? | C132: NO | D132: dms_DISCARD | E132: If record is to be discarded from DB set this flag to YES
B134: USES NAMED RANGES FLAG | C134: yes | D134: dms_Defined_Names_Used
B136: REGULATORY YEARS FOR MULTI RYE SUBMISSIONS
B137: Multiple RYE flag | C137: NO | D137: dms_Multi_RYE_flag
C138: Manually specify RYE | D138: Named ranges to apply
C139: 2013 | D139: dms_RYE_01
C140: 2014 | D140: dms_RYE_02
C141: 2015 | D141: dms_RYE_03
C142: 2016 | D142: dms_RYE_04
C143: 2017 | D143: dms_RYE_05

Sheet 2.1 Expenditure summary
B1: REGULATORY REPORTING STATEMENT
B2: NSW Electricity Networks Operations Pty Ltd trading as TransGrid
B3: CATEGORY ANALYSIS 2017-18
B4: 2.1 EXPENDITURE SUMMARY AND RECONCILIATION
B6: There are TWO tables on this worksheet. Each has been grouped for ease of navigation. See the Instructions sheet on how to group or ungroup tables.
B8: 2.1.1 - PRESCRIBED TRANSMISSION SERVICES CAPEX (as incurred)
C9: Actual ($0's)
C10: 2017-18
B11: Replacement expenditure | C11: 160271360.6
B12: Connections | C12: 334354.95
B13: Augmentation Expenditure | C13: 4427435.12
B14: Non-network | C14: 29591065.03
B15: Capitalised network overheads | C15: 30780233.94
B16: Capitalised corporate overheads | C16: 1050613.923
B32: balancing item | C32: 4226024.12
B33: TOTAL CAPEX | C33: 230681087.7
B35: 2.1.2 - PRESCRIBED TRANSMISSION SERVICE OPEX
C36: Actual ($0's)
C37: 2017-18
B38: Vegetation management | C38: 15457041.51
B39: Maintenance | C39: 34304899.3
B40: Non-network | C40: 0
B41: Network overheads | C41: 21631139.23
B42: Corporate overheads | C42: 82163613.95
B58: balancing item
B59: TOTAL OPEX | C59: 153556694

Sheet 2.2 Repex
B1: REGULATORY REPORTING STATEMENT
B2: =INDEX(dms_TradingNameFull_List,MATCH(dms_TradingName,dms_TradingName_List)) -> NSW Electricity Networks Operations Pty Ltd trading as TransGrid
B3: =CONCATENATE((LOOKUP(dms_Model,dms_Model_List,dms_Worksheet_List))&" "&CRY) -> CATEGORY ANALYSIS 2017-18
B4: 2.2 REPEX
B6: There are TWO tables (with three sub-tables each) on this worksheet. Each table has been grouped (and sub-grouped) for ease of navigation. See the Instructions sheet on how to group or ungroup data.
B8: 2.2.1 - REPLACEMENT EXPENDITURE, VOLUMES AND ASSET FAILURES BY ASSET CATEGORY
D9: EXPENDITURE ($0's) | E9: ASSET REPLACEMENTS | F9: ASSET FAILURES
B10: ASSET GROUP | C10: ASSET CATEGORY | D10: =CRY -> 2017-18 | E10: =CRY -> 2017-18 | F10: =CRY -> 2017-18
B11: TRANSMISSION TOWERS Highest operating voltage; Circuit configuration | C11: < = 33 kV ; Single Circuit | E11: 0 | F11: 0
C12: > 33 kV & < = 66 kV ; Single Circuit | E12: 0 | F12: 0
C13: > 66 kV & < = 132 kV ; Single Circuit | E13: 438 | F13: 0
C14: > 132 kV & < = 275 kV ; Single Circuit | E14: 0 | F14: 0
C15: > 275 kV & < = 330 kV ; Single Circuit | E15: 8 | F15: 0
C16: > 330 kV & < = 500 kV ; Single Circuit | E16: 0 | F16: 0
C17: > 500 kV ; Single Circuit | E17: 0 | F17: 0
C18: < = 33 kV ; Multiple Circuit | E18: 0 | F18: 0
C19: > 33 kV & < = 66 kV ; Multiple Circuit | E19: 0 | F19: 0
C20: > 66 kV & < = 132 kV ; Multiple Circuit | E20: 2 | F20: 0
C21: > 132 kV & < = 275 kV ; Multiple Circuit | E21: 0 | F21: 0
C22: > 275 kV & < = 330 kV ; Multiple Circuit | E22: 0 | F22: 0
C23: > 330 kV & < = 500 kV ; Multiple Circuit | E23: 0 | F23: 0
C24: > 500 kV ; Multiple Circuit | E24: 0 | F24: 0
C25: Other | E25: 43 | F25: 0
B26: TRANSMISSION TOWER SUPPORT STRUCTURES BY: Highest operating voltage; Circuit configuration | C26: < = 33 kV ; Single Circuit | E26: 0 | F26: 0
C27: > 33 kV & < = 66 kV ; Single Circuit | E27: 0 | F27: 0
C28: > 66 kV & < = 132 kV ; Single Circuit | E28: 36 | F28: 0
C29: > 132 kV & < = 275 kV ; Single Circuit | E29: 0 | F29: 0
C30: > 275 kV & < = 330 kV ; Single Circuit | E30: 64 | F30: 0
C31: > 330 kV & < = 500 kV ; Single Circuit | E31: 0 | F31: 0
C32: > 500 kV ; Single Circuit | E32: 0 | F32: 0
C33: < = 33 kV ; Multiple Circuit | E33: 0 | F33: 0
C34: > 33 kV & < = 66 kV ; Multiple Circuit | E34: 0 | F34: 0
C35: > 66 kV & < = 132 kV ; Multiple Circuit | E35: 13 | F35: 0
C36: > 132 kV & < = 275 kV ; Multiple Circuit | E36: 0 | F36: 0
C37: > 275 kV & < = 330 kV ; Multiple Circuit | E37: 0 | F37: 0
C38: > 330 kV & < = 500 kV ; Multiple Circuit | E38: 0 | F38: 0
C39: > 500 kV ; Multiple Circuit | E39: 0 | F39: 0
C40: Other | E40: 0 | F40: 0
B41: CONDUCTORS BY: Voltage; Maximum continuous rating | C41: < = 33 kV ; < = 100 MVA | E41: 0 | F41: 0
C42: < = 33 kV ; > 100 MVA & < = 400 MVA | E42: 0 | F42: 0
C43: < = 33 kV ; > 400 MVA | E43: 0 | F43: 0
C44: > 33 kV & < = 66 kV ; < = 100 MVA | E44: 0 | F44: 0
C45: > 33 kV & < = 66 kV ; > 100 MVA & < = 400 MVA | E45: 0 | F45: 0
C46: > 33 kV & < = 66 kV ; > 400 MVA | E46: 0 | F46: 0
C47: > 66 kV & < = 132 kV ; < = 100 MVA | E47: 0 | F47: 0
C48: > 66 kV & < = 132 kV ; > 100 MVA & < = 400 MVA | E48: 0 | F48: 2
C49: > 66 kV & < = 132 kV ; > 400 MVA | E49: 0 | F49: 0
C50: > 132 kV & < = 275 kV ; < = 200 MVA | E50: 0 | F50: 0
C51: > 132 kV & < = 275 kV ; > 200 MVA & < = 600 MVA | E51: 0 | F51: 0
C52: > 132 kV & < = 275 kV ; > 600 MVA | E52: 0 | F52: 0
C53: > 275 kV & < = 330 kV ; < = 800 MVA | E53: 0 | F53: 0
C54: > 275 kV & < = 330 kV ; > 800 MVA & < = 1200 MVA | E54: 0 | F54: 0
C55: > 275 kV & < = 330 kV ; > 1200 MVA | E55: 0 | F55: 1
C56: > 330 kV & < = 500 kV ; < = 1000 MVA | E56: 0 | F56: 0
C57: > 330 kV & < = 500 kV ; > 1000 MVA & < = 1500 MVA | E57: 0 | F57: 0
C58: > 330 kV & < = 500 kV ; > 1500 MVA | E58: 0 | F58: 0
C59: > 500 kV ; < = 2000 MVA | E59: 0 | F59: 0
C60: > 500 kV ; > 2000 MVA & < = 3000 MVA | E60: 0 | F60: 0
C61: > 500 kV ; > 3000 MVA | E61: 0 | F61: 0
C62: Other | E62: 25 | F62: 0
B63: TRANSMISSION CABLES BY: Highest operating voltage; Insulation type | C63: < = 33 kV ; Oil Filled | E63: 0 | F63: 0
C64: > 33 kV & < = 66 kV ; Oil Filled | E64: 0 | F64: 0
C65: > 66 kV & < = 132 kV ; Oil Filled | E65: 0 | F65: 0
C66: > 132 kV & < = 275 kV ; Oil Filled | E66: 0 | F66: 0
C67: > 275 kV & < = 330 kV ; Oil Filled | E67: 0 | F67: 0
C68: > 330 kV & < = 500 kV ; Oil Filled | E68: 0 | F68: 0
C69: > 500 kV ; Oil Filled | E69: 0 | F69: 0
C70: < = 33 kV ; XLPE Insulated | E70: 0 | F70: 0
C71: > 33 kV & < = 66 kV ; XLPE Insulated | E71: 0 | F71: 0
C72: > 66 kV & < = 132 kV ; XLPE Insulated | E72: 0 | F72: 0
C73: > 132 kV & < = 275 kV ; XLPE Insulated | E73: 0 | F73: 0
C74: > 275 kV & < = 330 kV ; XLPE Insulated | E74: 0 | F74: 0
C75: > 330 kV & < = 500 kV ; XLPE Insulated | E75: 0 | F75: 0
C76: > 500 kV ; XLPE Insulated | E76: 0 | F76: 0
C77: < = 33 kV ; Other Insulated | E77: 0 | F77: 0
C78: > 33 kV & < = 66 kV ; Other Insulated | E78: 0 | F78: 0
C79: > 66 kV & < = 132 kV ; Other Insulated | E79: 0 | F79: 0
C80: > 132 kV & < = 275 kV ; Other Insulated | E80: 0 | F80: 0
C81: > 275 kV & < = 330 kV ; Other Insulated | E81: 0 | F81: 0
C82: > 330 kV & < = 500 kV ; Other Insulated | E82: 0 | F82: 0
C83: > 500 kV ; Other Insulated | E83: 0 | F83: 0
C84: Other | E84: 0 | F84: 0
B85: SUBSTATION SWITCHBAYS BY: Highest operating voltage; Switch type | C85: < = 33 kV ; Air Insulated circuit Breaker | E85: 2 | F85: 0
C86: > 33 kV & < = 66 kV ; Air Insulated circuit Breaker | E86: 17 | F86: 2
C87: > 66 kV & < = 132 kV ; Air Insulated circuit Breaker | E87: 6 | F87: 4
C88: > 132 kV & < = 275 kV ; Air Insulated circuit Breaker | E88: 0 | F88: 0
C89: > 275 kV & < = 330 kV ; Air Insulated circuit Breaker | E89: 21 | F89: 5
C90: > 330 kV & < = 500 kV ; Air Insulated circuit Breaker | E90: 5 | F90: 2
C91: > 500 kV ; Air Insulated circuit Breaker | E91: 0 | F91: 0
C92: < = 33 kV ; Air Insulated Isolators / Earth Switch | E92: 0 | F92: 0
C93: > 33 kV & < = 66 kV ; Air Insulated Isolators / Earth Switch | E93: 23 | F93: 0
C94: > 66 kV & < = 132 kV ; Air Insulated Isolators / Earth Switch | E94: 19 | F94: 2
C95: > 132 kV & < = 275 kV ; Air Insulated Isolators / Earth Switch | E95: 0 | F95: 0
C96: > 275 kV & < = 330 kV ; Air Insulated Isolators / Earth Switch | E96: 18 | F96: 4
C97: > 330 kV & < = 500 kV ; Air Insulated Isolators / Earth Switch | E97: 0 | F97: 0
C98: > 500 kV ; Air Insulated Isolators / Earth Switch | E98: 0 | F98: 0
C99: < = 33 kV ; VT | E99: 0 | F99: 0
C100: > 33 kV & < = 66 kV ; VT | E100: 40 | F100: 0
C101: > 66 kV & < = 132 kV ; VT | E101: 6 | F101: 0
C102: > 132 kV & < = 275 kV ; VT | E102: 0 | F102: 0
C103: > 275 kV & < = 330 kV ; VT | E103: 20 | F103: 1
C104: > 330 kV & < = 500 kV ; VT | E104: 0 | F104: 0
C105: > 500 kV ; VT | E105: 0 | F105: 0
C106: < = 33 kV ; CT | E106: 0 | F106: 0
C107: > 33 kV & < = 66 kV ; CT | E107: 18 | F107: 0
C108: > 66 kV & < = 132 kV ; CT | E108: 24 | F108: 1
C109: > 132 kV & < = 275 kV ; CT | E109: 0 | F109: 0
C110: > 275 kV & < = 330 kV ; CT | E110: 66 | F110: 2
C111: > 330 kV & < = 500 kV ; CT | E111: 0 | F111: 0
C112: > 500 kV ; CT | E112: 0 | F112: 0
C113: < = 33 kV ; GIS Module | E113: 11 | F113: 0
C114: > 33 kV & < = 66 kV ; GIS Module | E114: 0 | F114: 0
C115: > 66 kV & < = 132 kV ; GIS Module | E115: 0 | F115: 1
C116: > 132 kV & < = 275 kV ; GIS Module | E116: 0 | F116: 0
C117: > 275 kV & < = 330 kV ; GIS Module | E117: 0 | F117: 0
C118: > 330 kV & < = 500 kV ; GIS Module | E118: 0 | F118: 0
C119: > 500 kV ; GIS Module | E119: 0 | F119: 0
C120: Other | E120: 0 | F120: 1
B121: SUBSTATION POWER TRANSFORMERS BY: Highest operating voltage; Ampere rating | C121: < = 33 kV ; < = 10 MVA | E121: 0 | F121: 0
C122: < = 33 kV ; > 10 MVA & < = 30 MVA | E122: 0 | F122: 0
C123: < = 33 kV ; > 30 MVA | E123: 0 | F123: 0
C124: > 33 kV & < = 66 kV ; < = 10 MVA | E124: 0 | F124: 0
C125: > 33 kV & < = 66 kV ; > 10 MVA & < = 30 MVA | E125: 0 | F125: 0
C126: > 33 kV & < = 66 kV ; > 30 MVA | E126: 0 | F126: 0
C127: > 66 kV & < = 132 kV ; < = 30 MVA | E127: 0 | F127: 0
C128: > 66 kV & < = 132 kV ; > 30 MVA & < = 60 MVA | E128: 0 | F128: 2
C129: > 66 kV & < = 132 kV ; > 60 MVA | E129: 2 | F129: 0
C130: > 132 kV & < = 220 kV ; < = 50 MVA | E130: 0 | F130: 0
C131: > 132 kV & < = 220 kV ; > 50 MVA & < = 100 MVA | E131: 0 | F131: 0
C132: > 132 kV & < = 220 kV ; > 100 MVA | E132: 0 | F132: 0
C133: > 220 kV & < = 275 kV ; < = 50 MVA | E133: 0 | F133: 0
C134: > 220 kV & < = 275 kV ; > 50 MVA & < = 100 MVA | E134: 0 | F134: 0
C135: > 220 kV & < = 275 kV ; > 100 MVA | E135: 0 | F135: 0
C136: > 275 kV & < = 330 kV ; < = 100 MVA | E136: 0 | F136: 0
C137: > 275 kV & < = 330 kV ; > 100 MVA & < = 250 MVA | E137: 0 | F137: 0
C138: > 275 kV & < = 330 kV ; > 250 MVA | E138: 0 | F138: 4
C139: > 330 kV & < = 500 kV ; < = 150 MVA | E139: 0 | F139: 0
C140: > 330 kV & < = 500 kV ; > 150 MVA & < = 300 MVA | E140: 0 | F140: 0
C141: > 330 kV & < = 500 kV ; > 300 MVA | E141: 0 | F141: 0
C142: > 500 kV ; < = 1000 MVA | E142: 0 | F142: 0
C143: > 500 kV ; > 1000 MVA & < = 1500 MVA | E143: 0 | F143: 0
C144: > 500 kV ; > 1500 MVA | E144: 0 | F144: 0
C145: Other | E145: 0 | F145: 0
B146: SUBSTATION REACTIVE PLANT BY: Highest operating voltage; Function | C146: < = 33 kV ; SVCS | E146: 0 | F146: 1
C147: > 33 kV & < = 66 kV ; SVCS | E147: 0 | F147: 0
C148: > 66 kV & < = 132 kV ; SVCS | E148: 0 | F148: 5
C149: > 132 kV & < = 275 kV ; SVCS | E149: 0 | F149: 0
C150: > 275 kV & < = 330 kV ; SVCS | E150: 0 | F150: 8
C151: > 330 kV & < = 500 kV ; SVCS | E151: 0 | F151: 0
C152: > 500 kV ; SVCS | E152: 0 | F152: 0
C153: < = 33 kV ; Capacitors | E153: 0 | F153: 0
C154: > 33 kV & < = 66 kV ; Capacitors | E154: 0 | F154: 0
C155: > 66 kV & < = 132 kV ; Capacitors | E155: 0 | F155: 1
C156: > 132 kV & < = 275 kV ; Capacitors | E156: 0 | F156: 0
C157: > 275 kV & < = 330 kV ; Capacitors | E157: 0 | F157: 1
C158: > 330 kV & < = 500 kV ; Capacitors | E158: 0 | F158: 0
C159: > 500 kV ; Capacitors | E159: 0 | F159: 0
C160: < = 33 kV ; Oil Filled Reactors | E160: 0 | F160: 0
C161: > 33 kV & < = 66 kV ; Oil Filled Reactors | E161: 0 | F161: 0
C162: > 66 kV & < = 132 kV ; Oil Filled Reactors | E162: 0 | F162: 0
C163: > 132 kV & < = 275 kV ; Oil Filled Reactors | E163: 0 | F163: 0
C164: > 275 kV & < = 330 kV ; Oil Filled Reactors | E164: 0 | F164: 0
C165: > 330 kV & < = 500 kV ; Oil Filled Reactors | E165: 0 | F165: 0
C166: > 500 kV ; Oil Filled Reactors | E166: 0 | F166: 0
C167: Other | E167: 0 | F167: 0
B168: SCADA, NETWORK CONTROL AND PROTECTION SYSTEMS BY: Function | C168: Communications Network Assets | E168: 33 | F168: 4
C169: Master Station Assets | E169: 0 | F169: 0
C170: Control equipment / systems | E170: 59 | F170: 2
C171: Infrastructure: protection and control | E171: 0 | F171: 0
C172: Metering systems | E172: 48 | F172: 0
C173: OPGW | E173: 328.08 | F173: 0
C174: Protection schemes / systems | E174: 166 | F174: 14
C175: Site establishment | E175: 0 | F175: 0
C176: Station SCADA and control systems | E176: 2 | F176: 0
C177: Telecommunications Network / Systems | E177: 0 | F177: 0
C178: Total secondary systems | E178: 0 | F178: 0
C179: Other | E179: 26 | F179: 0
B180: OTHER BY: TNSP defined
C181: < = 11 kV Auxiliary Transformer | E181: 9
C182: > 275 kV & < = 330 kV ; CT (Excluding Plant Cost) | E182: 11
C183: 132kV Low Span Risk Remediation - non structural | E183: 141
C184: 132kV Post Insulators | E184: 9
C185: 330 kV Low Span Risk Remediation - Non structural | E185: 27
C186: 330kV Bus | E186: 2
C187: All dielectric self supporting cable (km) | E187: 2.1
C188: Building | E188: 1
C189: Lighting | E189: 20
C190: LINE TRAP | E190: 4
C191: Major Substation Earthing Works | E191: 1
C192: Minor Substation Bay Works (Excluding Plant Cost) | E192: 5
C193: Online Condition Monitoring Installation (Sites) | E193: 14
C194: Substation Oil Containment | E194: 5
C195: Substation Security | E195: 107
C196: Substation Spares | E196: 5
C197: Transformer Refurbishment | E197: 5
B211: 2.2.2 - SELECTED ASSET CHARACTERISTICS
D212: ASSET VOLUMES CURRENTLY IN COMMISSION | E212: ASSET REPLACEMENTS
B213: ASSET GROUP | C213: ASSET CATEGORY | D213: =CRY -> 2017-18 | E213: =CRY -> 2017-18
B214: CONDUCTORS BY: CONDUCTOR LENGTH MATERIAL TYPE | C214: AAAC | D214: 1225.735199 | E214: 0
C215: AAC | D215: 1.005199982 | E215: 0
... 6 more rows

Sheet 2.3 Augex
B1: REGULATORY REPORTING STATEMENT
B2: =INDEX(dms_TradingNameFull_List,MATCH(dms_TradingName,dms_TradingName_List)) -> NSW Electricity Networks Operations Pty Ltd trading as TransGrid
B3: =CONCATENATE((LOOKUP(dms_Model,dms_Model_List,dms_Worksheet_List))&" "&CRY) -> CATEGORY ANALYSIS 2017-18
B4: 2.3 AUGEX PROJECTS
B6: There are THREE tables on this worksheet - each has been 'grouped' for easy navigation. Both ROWS and COLUMNS have been grouped. See the Instructions sheet on how to group or ungroup tables.
B8: 2.3.1 - AUGEX ASSET DATA - SUBSTATIONS
B9: NOTE: TNSP MUST PROVIDE EXPENDITURE INFORMATION ON A PROJECT CLOSE BASIS.
B10: SUBSTATION AND PROJECT SUMMARY | L10: PLANT AND EQUIPMENT EXPENDITURE AND VOLUME | Z10: OTHER EXPENDITURE | AB10: TOTAL DIRECT EXPENDITURE ($0's) | AC10: YEARS INCURRED | AD10: RELATED PARTY CONTRACTS | AG10: LAND AND EASEMENTS
B11: SUBSTATION ID | C11: SUBSTATION TYPE | D11: PROJECT ID | E11: PROJECT TYPE | F11: PROJECT TRIGGER | G11: VOLTAGE (KV) | H11: SUBSTATION RATING NORMAL CYCLIC (MVA) | J11: SUBSTATION RATING N-1 EMERGENCY (MVA) | L11: TRANSFORMERS | P11: SWITCHGEAR | S11: REACTIVE PLANT | W11: OTHER PLANT ITEM | X11: INSTALLATION (LABOUR) | Z11: CIVIL WORKS | AA11: OTHER DIRECT | AD11: RELATED PARTY MARGINS | AE11: TOTAL | AF11: ALL NON RELATED PARTYCONTRACTS | AG11: LAND PURCHASES | AH11: EASEMENTS | AI11: Comments
H12: PRE | I12: POST | J12: PRE | K12: POST | L12: Units Added | M12: MVA Added | N12: OLTC INCLUDED? | O12: Expenditure ($0's) | P12: Insulation | Q12: Units Added | R12: Expenditure ($0's) | S12: Plant Type | T12: Units Added | U12: Expenditure ($0's) | W12: Expenditure ($0's) | X12: Volume | Y12: Expenditure ($0's) | Z12: Expenditure ($0's) | AD12: Expenditure ($0's) | AG12: Expenditure ($0's)
B13: <Enter substation ID>
B20: Project Totals | L20: =SUM(L13:L19) -> 0 | M20: =SUM(M13:M19) -> 0 | O20: =SUM(O13:O19) -> 0 | Q20: =SUM(Q13:Q19) -> 0 | R20: =SUM(R13:R19) -> 0 | T20: =SUM(T13:T19) -> 0 | U20: =SUM(U13:U19) -> 0 | W20: =SUM(W13:W19) -> 0 | X20: =SUM(X13:X19) -> 0 | Y20: =SUM(Y13:Y19) -> 0 | Z20: =SUM(Z13) -> 0 | AA20: =SUM(AA13) -> 0 | AB20: =O20+R20+U20+W20+SUM(Y20:AA20) -> 0 | AD20: =SUM(AD13) -> 0 | AE20: =SUM(AE13) -> 0 | AF20: =SUM(AF13) -> 0 | AG20: =SUM(AG13) -> 0 | AH20: =SUM(AH13) -> 0
B21: <Enter substation ID>
B28: Project Totals | L28: =SUM(L21:L27) -> 0 | M28: =SUM(M21:M27) -> 0 | O28: =SUM(O21:O27) -> 0 | Q28: =SUM(Q21:Q27) -> 0 | R28: =SUM(R21:R27) -> 0 | T28: =SUM(T21:T27) -> 0 | U28: =SUM(U21:U27) -> 0 | W28: =SUM(W21:W27) -> 0 | X28: =SUM(X21:X27) -> 0 | Y28: =SUM(Y21:Y27) -> 0 | Z28: =SUM(Z21) -> 0 | AA28: =SUM(AA21) -> 0 | AB28: =O28+R28+U28+W28+SUM(Y28:AA28) -> 0 | AD28: =SUM(AD21) -> 0 | AE28: =SUM(AE21) -> 0 | AF28: =SUM(AF21) -> 0 | AG28: =SUM(AG21) -> 0 | AH28: =SUM(AH21) -> 0
B29: <Enter substation ID>
B36: Project Totals | L36: =SUM(L29:L35) -> 0 | M36: =SUM(M29:M35) -> 0 | O36: =SUM(O29:O35) -> 0 | Q36: =SUM(Q29:Q35) -> 0 | R36: =SUM(R29:R35) -> 0 | T36: =SUM(T29:T35) -> 0 | U36: =SUM(U29:U35) -> 0 | W36: =SUM(W29:W35) -> 0 | X36: =SUM(X29:X35) -> 0 | Y36: =SUM(Y29:Y35) -> 0 | Z36: =SUM(Z29) -> 0 | AA36: =SUM(AA29) -> 0 | AB36: =O36+R36+U36+W36+SUM(Y36:AA36) -> 0 | AD36: =SUM(AD29) -> 0 | AE36: =SUM(AE29) -> 0 | AF36: =SUM(AF29) -> 0 | AG36: =SUM(AG29) -> 0 | AH36: =SUM(AH29) -> 0
B37: <Enter substation ID>
B44: Project Totals | L44: =SUM(L37:L43) -> 0 | M44: =SUM(M37:M43) -> 0 | O44: =SUM(O37:O43) -> 0 | Q44: =SUM(Q37:Q43) -> 0 | R44: =SUM(R37:R43) -> 0 | T44: =SUM(T37:T43) -> 0 | U44: =SUM(U37:U43) -> 0 | W44: =SUM(W37:W43) -> 0 | X44: =SUM(X37:X43) -> 0 | Y44: =SUM(Y37:Y43) -> 0 | Z44: =SUM(Z37) -> 0 | AA44: =SUM(AA37) -> 0 | AB44: =O44+R44+U44+W44+SUM(Y44:AA44) -> 0 | AD44: =SUM(AD37) -> 0 | AE44: =SUM(AE37) -> 0 | AF44: =SUM(AF37) -> 0 | AG44: =SUM(AG37) -> 0 | AH44: =SUM(AH37) -> 0
B45: <Enter substation ID>
B52: Project Totals | L52: =SUM(L45:L51) -> 0 | M52: =SUM(M45:M51) -> 0 | O52: =SUM(O45:O51) -> 0 | Q52: =SUM(Q45:Q51) -> 0 | R52: =SUM(R45:R51) -> 0 | T52: =SUM(T45:T51) -> 0 | U52: =SUM(U45:U51) -> 0 | W52: =SUM(W45:W51) -> 0 | X52: =SUM(X45:X51) -> 0 | Y52: =SUM(Y45:Y51) -> 0 | Z52: =SUM(Z45) -> 0 | AA52: =SUM(AA45) -> 0 | AB52: =O52+R52+U52+W52+SUM(Y52:AA52) -> 0 | AD52: =SUM(AD45) -> 0 | AE52: =SUM(AE45) -> 0 | AF52: =SUM(AF45) -> 0 | AG52: =SUM(AG45) -> 0 | AH52: =SUM(AH45) -> 0
B53: <Enter substation ID>
B60: Project Totals | L60: =SUM(L53:L59) -> 0 | M60: =SUM(M53:M59) -> 0 | O60: =SUM(O53:O59) -> 0 | Q60: =SUM(Q53:Q59) -> 0 | R60: =SUM(R53:R59) -> 0 | T60: =SUM(T53:T59) -> 0 | U60: =SUM(U53:U59) -> 0 | W60: =SUM(W53:W59) -> 0 | X60: =SUM(X53:X59) -> 0 | Y60: =SUM(Y53:Y59) -> 0 | Z60: =SUM(Z53) -> 0 | AA60: =SUM(AA53) -> 0 | AB60: =O60+R60+U60+W60+SUM(Y60:AA60) -> 0 | AD60: =SUM(AD53) -> 0 | AE60: =SUM(AE53) -> 0 | AF60: =SUM(AF53) -> 0 | AG60: =SUM(AG53) -> 0 | AH60: =SUM(AH53) -> 0
B61: <Enter substation ID>
B68: Project Totals | L68: =SUM(L61:L67) -> 0 | M68: =SUM(M61:M67) -> 0 | O68: =SUM(O61:O67) -> 0 | Q68: =SUM(Q61:Q67) -> 0 | R68: =SUM(R61:R67) -> 0 | T68: =SUM(T61:T67) -> 0 | U68: =SUM(U61:U67) -> 0 | W68: =SUM(W61:W67) -> 0 | X68: =SUM(X61:X67) -> 0 | Y68: =SUM(Y61:Y67) -> 0 | Z68: =SUM(Z61) -> 0 | AA68: =SUM(AA61) -> 0 | AB68: =O68+R68+U68+W68+SUM(Y68:AA68) -> 0 | AD68: =SUM(AD61) -> 0 | AE68: =SUM(AE61) -> 0 | AF68: =SUM(AF61) -> 0 | AG68: =SUM(AG61) -> 0 | AH68: =SUM(AH61) -> 0
B69: <Enter substation ID>
B76: Project Totals | L76: =SUM(L69:L75) -> 0 | M76: =SUM(M69:M75) -> 0 | O76: =SUM(O69:O75) -> 0 | Q76: =SUM(Q69:Q75) -> 0 | R76: =SUM(R69:R75) -> 0 | T76: =SUM(T69:T75) -> 0 | U76: =SUM(U69:U75) -> 0 | W76: =SUM(W69:W75) -> 0 | X76: =SUM(X69:X75) -> 0 | Y76: =SUM(Y69:Y75) -> 0 | Z76: =SUM(Z69) -> 0 | AA76: =SUM(AA69) -> 0 | AB76: =O76+R76+U76+W76+SUM(Y76:AA76) -> 0 | AD76: =SUM(AD69) -> 0 | AE76: =SUM(AE69) -> 0 | AF76: =SUM(AF69) -> 0 | AG76: =SUM(AG69) -> 0 | AH76: =SUM(AH69) -> 0
B77: <Enter substation ID>
B84: Project Totals | L84: =SUM(L77:L83) -> 0 | M84: =SUM(M77:M83) -> 0 | O84: =SUM(O77:O83) -> 0 | Q84: =SUM(Q77:Q83) -> 0 | R84: =SUM(R77:R83) -> 0 | T84: =SUM(T77:T83) -> 0 | U84: =SUM(U77:U83) -> 0 | W84: =SUM(W77:W83) -> 0 | X84: =SUM(X77:X83) -> 0 | Y84: =SUM(Y77:Y83) -> 0 | Z84: =SUM(Z77) -> 0 | AA84: =SUM(AA77) -> 0 | AB84: =O84+R84+U84+W84+SUM(Y84:AA84) -> 0 | AD84: =SUM(AD77) -> 0 | AE84: =SUM(AE77) -> 0 | AF84: =SUM(AF77) -> 0 | AG84: =SUM(AG77) -> 0 | AH84: =SUM(AH77) -> 0
B85: <Enter substation ID>
B92: Project Totals | L92: =SUM(L85:L91) -> 0 | M92: =SUM(M85:M91) -> 0 | O92: =SUM(O85:O91) -> 0 | Q92: =SUM(Q85:Q91) -> 0 | R92: =SUM(R85:R91) -> 0 | T92: =SUM(T85:T91) -> 0 | U92: =SUM(U85:U91) -> 0 | W92: =SUM(W85:W91) -> 0 | X92: =SUM(X85:X91) -> 0 | Y92: =SUM(Y85:Y91) -> 0 | Z92: =SUM(Z85) -> 0 | AA92: =SUM(AA85) -> 0 | AB92: =O92+R92+U92+W92+SUM(Y92:AA92) -> 0 | AD92: =SUM(AD85) -> 0 | AE92: =SUM(AE85) -> 0 | AF92: =SUM(AF85) -> 0 | AG92: =SUM(AG85) -> 0 | AH92: =SUM(AH85) -> 0
B93: <Enter substation ID>
B100: Project Totals | L100: =SUM(L93:L99) -> 0 | M100: =SUM(M93:M99) -> 0 | O100: =SUM(O93:O99) -> 0 | Q100: =SUM(Q93:Q99) -> 0 | R100: =SUM(R93:R99) -> 0 | T100: =SUM(T93:T99) -> 0 | U100: =SUM(U93:U99) -> 0 | W100: =SUM(W93:W99) -> 0 | X100: =SUM(X93:X99) -> 0 | Y100: =SUM(Y93:Y99) -> 0 | Z100: =SUM(Z93) -> 0 | AA100: =SUM(AA93) -> 0 | AB100: =O100+R100+U100+W100+SUM(Y100:AA100) -> 0 | AD100: =SUM(AD93) -> 0 | AE100: =SUM(AE93) -> 0 | AF100: =SUM(AF93) -> 0 | AG100: =SUM(AG93) -> 0 | AH100: =SUM(AH93) -> 0
B101: <Enter substation ID>
B108: Project Totals | L108: =SUM(L101:L107) -> 0 | M108: =SUM(M101:M107) -> 0 | O108: =SUM(O101:O107) -> 0 | Q108: =SUM(Q101:Q107) -> 0 | R108: =SUM(R101:R107) -> 0 | T108: =SUM(T101:T107) -> 0 | U108: =SUM(U101:U107) -> 0 | W108: =SUM(W101:W107) -> 0 | X108: =SUM(X101:X107) -> 0 | Y108: =SUM(Y101:Y107) -> 0 | Z108: =SUM(Z101) -> 0 | AA108: =SUM(AA101) -> 0 | AB108: =O108+R108+U108+W108+SUM(Y108:AA108) -> 0 | AD108: =SUM(AD101) -> 0 | AE108: =SUM(AE101) -> 0 | AF108: =SUM(AF101) -> 0 | AG108: =SUM(AG101) -> 0 | AH108: =SUM(AH101) -> 0
B109: <Enter substation ID>
B116: Project Totals | L116: =SUM(L109:L115) -> 0 | M116: =SUM(M109:M115) -> 0 | O116: =SUM(O109:O115) -> 0 | Q116: =SUM(Q109:Q115) -> 0 | R116: =SUM(R109:R115) -> 0 | T116: =SUM(T109:T115) -> 0 | U116: =SUM(U109:U115) -> 0 | W116: =SUM(W109:W115) -> 0 | X116: =SUM(X109:X115) -> 0 | Y116: =SUM(Y109:Y115) -> 0 | Z116: =SUM(Z109) -> 0 | AA116: =SUM(AA109) -> 0 | AB116: =O116+R116+U116+W116+SUM(Y116:AA116) -> 0 | AD116: =SUM(AD109) -> 0 | AE116: =SUM(AE109) -> 0 | AF116: =SUM(AF109) -> 0 | AG116: =SUM(AG109) -> 0 | AH116: =SUM(AH109) -> 0
B117: <Enter substation ID>
B124: Project Totals | L124: =SUM(L117:L123) -> 0 | M124: =SUM(M117:M123) -> 0 | O124: =SUM(O117:O123) -> 0 | Q124: =SUM(Q117:Q123) -> 0 | R124: =SUM(R117:R123) -> 0 | T124: =SUM(T117:T123) -> 0 | U124: =SUM(U117:U123) -> 0 | W124: =SUM(W117:W123) -> 0 | X124: =SUM(X117:X123) -> 0 | Y124: =SUM(Y117:Y123) -> 0 | Z124: =SUM(Z117) -> 0 | AA124: =SUM(AA117) -> 0 | AB124: =O124+R124+U124+W124+SUM(Y124:AA124) -> 0 | AD124: =SUM(AD117) -> 0 | AE124: =SUM(AE117) -> 0 | AF124: =SUM(AF117) -> 0 | AG124: =SUM(AG117) -> 0 | AH124: =SUM(AH117) -> 0
B125: <Enter substation ID>
B132: Project Totals | L132: =SUM(L125:L131) -> 0 | M132: =SUM(M125:M131) -> 0 | O132: =SUM(O125:O131) -> 0 | Q132: =SUM(Q125:Q131) -> 0 | R132: =SUM(R125:R131) -> 0 | T132: =SUM(T125:T131) -> 0 | U132: =SUM(U125:U131) -> 0 | W132: =SUM(W125:W131) -> 0 | X132: =SUM(X125:X131) -> 0 | Y132: =SUM(Y125:Y131) -> 0 | Z132: =SUM(Z125) -> 0 | AA132: =SUM(AA125) -> 0 | AB132: =O132+R132+U132+W132+SUM(Y132:AA132) -> 0 | AD132: =SUM(AD125) -> 0 | AE132: =SUM(AE125) -> 0 | AF132: =SUM(AF125) -> 0 | AG132: =SUM(AG125) -> 0 | AH132: =SUM(AH125) -> 0
D133: Non material projects | AB133: 90024.39
D134: Non material projects
B137: 2.3.2 - AUGEX ASSET DATA - LINES
B138: NOTE: TNSP MUST PROVIDE EXPENDITURE INFORMATION ON A PROJECT CLOSE BASIS.
B139: LINE AND PROJECT SUMMARY | L139: PLANT AND EQUIPMENT EXPENDITURE AND VOLUME | Z139: OTHER EXPENDITURE | AB139: TOTAL DIRECT EXPENDITURE ($0's) | AC139: YEARS INCURRED | AD139: ALL RELATED PARTY CONTRACTS | AG139: LAND AND EASEMENTS
B140: LINE ID | D140: PROJECT ID | E140: PROJECT TYPE | F140: PROJECT TRIGGER | G140: VOLTAGE (KV) | H140: ROUTE LINE LENGTH ADDED | L140: TOWERS/POLES (INCLUDING STRUCTURES, AND CIVIL WORKS) | P140: LINES AND CABLES | W140: OTHER PLANT ITEM | X140: INSTALLATION (LABOUR) | Z140: CIVIL WORKS | AA140: OTHER DIRECT | AD140: RELATED PARTY MARGINS | AE140: TOTAL | AF140: ALL NON RELATED PARTYCONTRACTS | AG140: LAND PURCHASES | AH140: EASEMENTS
P141: Type | Q141: Rating (MVA) | S141: N-1 Emergency Rating (MVA) | U141: Circuit KM Added | V141: Expenditure ($0's)
H142: KM ADDED | L142: Configuration | M142: Towers/Poles Added | N142: Towers/Poles Upgraded | O142: Expenditure ($0's) | Q142: PRE | R142: POST | S142: PRE | T142: POST | W142: Expenditure ($0's) | X142: Volume | Y142: Expenditure ($0's) | Z142: Expenditure ($0's) | AD142: Expenditure ($0's) | AG142: Expenditure ($0's)
B143: <Enter line ID>
B150: Project Totals | M150: =SUM(M143:M149) -> 0 | N150: =SUM(N143:N149) -> 0 | O150: =SUM(O143:O149) -> 0 | U150: =SUM(U143:U149) -> 0 | V150: 0 | W150: 0 | X150: 0 | Y150: 0 | Z150: 0 | AA150: 0 | AB150: =O150+R150+U150+W150+SUM(Y150:AA150) -> 0 | AD150: =SUM(AD143:AD149) -> 0 | AE150: =SUM(AE143:AE149) -> 0 | AF150: =SUM(AF143:AF149) -> 0 | AG150: =SUM(AG143:AG149) -> 0 | AH150: =SUM(AH143:AH149) -> 0
B151: <Enter line ID>
B158: Project Totals | M158: =SUM(M151:M157) -> 0 | N158: =SUM(N151:N157) -> 0 | O158: =SUM(O151:O157) -> 0 | U158: =SUM(U151:U157) -> 0 | V158: =SUM(V151:V157) -> 0 | W158: =SUM(W151:W157) -> 0 | X158: 0 | Y158: 0 | Z158: 0 | AA158: 0 | AB158: =O158+R158+U158+W158+SUM(Y158:AA158) -> 0 | AD158: =SUM(AD151:AD157) -> 0 | AE158: =SUM(AE151:AE157) -> 0 | AF158: =SUM(AF151:AF157) -> 0 | AG158: =SUM(AG151:AG157) -> 0 | AH158: =SUM(AH151:AH157) -> 0
B159: <Enter line ID>
B166: Project Totals | M166: =SUM(M159:M165) -> 0 | N166: =SUM(N159:N165) -> 0 | O166: =SUM(O159:O165) -> 0 | U166: =SUM(U159:U165) -> 0 | V166: =SUM(V159:V165) -> 0 | W166: =SUM(W159:W165) -> 0 | X166: 0 | Y166: 0 | Z166: 0 | AA166: 0 | AB166: =O166+R166+U166+W166+SUM(Y166:AA166) -> 0 | AD166: =SUM(AD159:AD165) -> 0 | AE166: =SUM(AE159:AE165) -> 0 | AF166: =SUM(AF159:AF165) -> 0 | AG166: =SUM(AG159:AG165) -> 0 | AH166: =SUM(AH159:AH165) -> 0
B167: <Enter line ID>
B174: Project Totals | M174: =SUM(M167:M173) -> 0 | N174: =SUM(N167:N173) -> 0 | O174: =SUM(O167:O173) -> 0 | U174: =SUM(U167:U173) -> 0 | V174: =SUM(V167:V173) -> 0 | W174: =SUM(W167:W173) -> 0 | X174: 0 | Y174: 0 | Z174: 0 | AA174: 0 | AB174: =O174+R174+U174+W174+SUM(Y174:AA174) -> 0 | AD174: =SUM(AD167:AD173) -> 0 | AE174: =SUM(AE167:AE173) -> 0 | AF174: =SUM(AF167:AF173) -> 0 | AG174: =SUM(AG167:AG173) -> 0 | AH174: =SUM(AH167:AH173) -> 0
B175: <Enter line ID>
B182: Project Totals | M182: =SUM(M175:M181) -> 0 | N182: =SUM(N175:N181) -> 0 | O182: =SUM(O175:O181) -> 0 | U182: =SUM(U175:U181) -> 0 | V182: =SUM(V175:V181) -> 0 | W182: =SUM(W175:W181) -> 0 | X182: 0 | Y182: 0 | Z182: 0 | AA182: 0 | AB182: =O182+R182+U182+W182+SUM(Y182:AA182) -> 0 | AD182: =SUM(AD175:AD181) -> 0 | AE182: =SUM(AE175:AE181) -> 0 | AF182: =SUM(AF175:AF181) -> 0 | AG182: =SUM(AG175:AG181) -> 0 | AH182: =SUM(AH175:AH181) -> 0
B183: <Enter line ID>
B190: Project Totals | M190: =SUM(M183:M189) -> 0 | N190: =SUM(N183:N189) -> 0 | O190: =SUM(O183:O189) -> 0 | U190: =SUM(U183:U189) -> 0 | V190: =SUM(V183:V189) -> 0 | W190: =SUM(W183:W189) -> 0 | X190: 0 | Y190: 0 | Z190: 0 | AA190: 0 | AB190: =O190+R190+U190+W190+SUM(Y190:AA190) -> 0 | AD190: =SUM(AD183:AD189) -> 0 | AE190: =SUM(AE183:AE189) -> 0 | AF190: =SUM(AF183:AF189) -> 0 | AG190: =SUM(AG183:AG189) -> 0 | AH190: =SUM(AH183:AH189) -> 0
B191: <Enter line ID>
B198: Project Totals | M198: =SUM(M191:M197) -> 0 | N198: =SUM(N191:N197) -> 0 | O198: =SUM(O191:O197) -> 0 | U198: =SUM(U191:U197) -> 0 | V198: =SUM(V191:V197) -> 0 | W198: =SUM(W191:W197) -> 0 | X198: 0 | Y198: 0 | Z198: 0 | AA198: 0 | AB198: =O198+R198+U198+W198+SUM(Y198:AA198) -> 0 | AD198: =SUM(AD191:AD197) -> 0 | AE198: =SUM(AE191:AE197) -> 0 | AF198: =SUM(AF191:AF197) -> 0 | AG198: =SUM(AG191:AG197) -> 0 | AH198: =SUM(AH191:AH197) -> 0
D199: Non material projects | AB199: 103265.38
D200: Non material projects
D201: Non material projects
B205: 2.3.4 - AUGEX - TOTAL EXPENDITURE
C207: EXPENDITURE ($0's)
B208: AUGMENTATION CAPEX (as incurred) | C208: =CRY -> 2017-18
B209: Substations | C209: 2753228.88
B210: Lines | C210: 1672731.09
B211: Other assets | C211: 1475.15
B212: Total augmentation capex | C212: =SUM(C209:C211) -> 4427435.12

Sheet 2.5 Connections
B1: REGULATORY REPORTING STATEMENT
B2: =INDEX(dms_TradingNameFull_List,MATCH(dms_TradingName,dms_TradingName_List)) -> NSW Electricity Networks Operations Pty Ltd trading as TransGrid
B3: =CONCATENATE((LOOKUP(dms_Model,dms_Model_List,dms_Worksheet_List))&" "&CRY) -> CATEGORY ANALYSIS 2017-18
B4: 2.5 CONNECTIONS EXPENDITURE
B6: There are TWO tables on this worksheet. Each has been grouped (or sub-grouped). See the Instructions sheet on how to group or ungroup data.
B8: 2.5.1 - EXPENDITURE ON CONNECTION PROJECTS
C9: EXPENDITURE ($0's)
B10: CONNECTION PROJECT | C10: =CRY -> 2017-18
B11: DIRECT MATERIALS EXPENDITURE
B12: Beaconsfield 132 KV cable 9RT Connection
B13: Wagga North 132-66kV Substation - Reinforcement of Supply to Temora
B14: Orange132 kV 94G Cable Connection through to Orange North
B37: DIRECT LABOUR EXPENDITURE
B38: =IF(ISBLANK(B12),"",B12) -> Beaconsfield 132 KV cable 9RT Connection
B39: Wagga North 132-66kV Substation - Reinforcement of Supply to Temora
B40: Orange132 kV 94G Cable Connection through to Orange North
B66: 2.5.2 - DESCRIPTION OF CONNECTION PROJECTS
C67: CONNECTION RATING (MVA) | D67: CONNECTION VOLTAGE (KV) | E67: UNDERGROUND / OVERHEAD | F67: YEAR CONNECTION PROJECT COMPLETED
B68: =IF(ISBLANK(B12),"",B12) -> Beaconsfield 132 KV cable 9RT Connection | C68: 9RT (329) | D68: 132 | E68: Underground | F68: 2017
B69: Wagga North 132-66kV Substation - Reinforcement of Supply to Temora | C69: 9J5 (132) | D69: 132 | E69: Overhead | F69: 2018
B70: Orange132 kV 94G Cable Connection through to Orange North | C70: 94G (229) | D70: 132 | E70: Overhead | F70: 2017

Sheet 2.6 Non-network
B1: REGULATORY REPORTING STATEMENT
B2: =INDEX(dms_TradingNameFull_List,MATCH(dms_TradingName,dms_TradingName_List)) -> NSW Electricity Networks Operations Pty Ltd trading as TransGrid
B3: =CONCATENATE((LOOKUP(dms_Model,dms_Model_List,dms_Worksheet_List))&" "&CRY) -> CATEGORY ANALYSIS 2017-18
B4: 2.6 NON NETWORK EXPENDITURE
B6: There are THREE tables on this worksheet - each has been 'grouped' (and sub-grouped) for easy navigation. See the Instructions sheet on how to group or ungroup tables.
B8: 2.6.1 - NON-NETWORK EXPENDITURE
E9: EXPENDITURE ($0's)
B10: SERVICE SUBCATEGORY | C10: ASSET CATEGORY | E10: =CRY -> 2017-18
B11: OPEX
B12: IT & COMMUNICATIONS | C12: Client device expenditure | E12: 257120.01
C13: Recurrent expenditure | E13: 19134219.14
C14: Non-recurrent expenditure | E14: 784850.43
B15: MOTOR VEHICLES | C15: Car | E15: 225055.1448
C16: Light commercial vehicle | E16: 2810602.491
C17: Elevated work platform (LCV) | E17: 44455.48429
C18: Elevated work platform (HCV) | E18: 3153.929448
C19: Heavy commercial vehicle | E19: 722643.4011
B20: BUILDINGS AND PROPERTY | C20: Total buildings and property expenditure
B21: OTHER | C21: Other expenditure
B22: OTHER - DNSP nominated | C22: Miscellaneous mobile plant (e.g. Mowers, Excavators, Forklifts etc..) | E22: 428102.0897
B33: CAPEX
B34: IT & COMMUNICATIONS | C34: Client device expenditure | E34: 5073125.43
C35: Recurrent expenditure | E35: 5045726.71
C36: Non-recurrent expenditure | E36: 9526511.65
B37: MOTOR VEHICLES | C37: Car | E37: 447439.8
C38: Light commercial vehicle | E38: 5929492.74
C39: Elevated work platform (LCV) | E39: 5500
C40: Elevated work platform (HCV) | E40: 1150418.5
C41: Heavy commercial vehicle | E41: 927018.3
B42: BUILDINGS AND PROPERTY | C42: Total buildings and property expenditure | E42: 0
B43: OTHER | C43: Other expenditure
B44: OTHER - DNSP nominated | C44: Miscellaneous mobile plant (e.g. Mowers, Excavators, Forklifts etc..) | E44: 706407.74
C45: Miscellaneous Plant | E45: 779424.1567
B58: 2.6.2 - ANNUAL DESCRIPTOR METRICS - IT & COMMUNICATIONS EXPENDITURE
E59: VOLUMES (0's)
B60: NON-NETWORK CATEGORY | C60: DESCRIPTOR METRIC | E60: =CRY -> 2017-18
B61: IT & COMMUNICATIONS | C61: Employee numbers | E61: 939.94
C62: User numbers | E62: 1139
C63: Number of devices | E63: 1611
B66: 2.6.3 - ANNUAL DESCRIPTOR METRICS - MOTOR VEHICLES
E67: VOLUMES / %
B68: ASSET CATEGORY | C68: DESCRIPTOR METRIC | D68: UNITS | E68: =CRY -> 2017-18
B69: CAR | C69: Average kilometres travelled | D69: 0's | E69: 18221.50261
C70: Number purchased | D70: 0's | E70: 11
C71: Number leased | D71: 0's | E71: 0
C72: Number in fleet | D72: 0's | E72: 41
C73: Proportion of total fleet expenditure allocated as regulatory expenditure | D73: (per cent) | E73: 1
B74: LIGHT COMMERCIAL VEHICLE | C74: Average kilometres travelled | D74: 0's | E74: 25031.32132
C75: Number purchased | D75: 0's | E75: 117
C76: Number leased | D76: 0's | E76: 0
C77: Number in fleet | D77: 0's | E77: 479
C78: Proportion of total fleet expenditure allocated as regulatory expenditure | D78: (per cent) | E78: 1
B79: ELEVATED WORK PLATFORM (LCV) | C79: Average kilometres travelled | D79: 0's | E79: 0
C80: Number purchased | D80: 0's | E80: 0
C81: Number leased | D81: 0's | E81: 0
C82: Number in fleet | D82: 0's | E82: 27
C83: Proportion of total fleet expenditure allocated as regulatory expenditure | D83: (per cent) | E83: 1
B84: ELEVATED WORK PLATFORM (HCV) | C84: Average kilometres travelled | D84: 0's | E84: 0
C85: Number purchased | D85: 0's | E85: 2
C86: Number leased | D86: 0's | E86: 0
C87: Number in fleet | D87: 0's | E87: 11
C88: Proportion of total fleet expenditure allocated as regulatory expenditure | D88: (per cent) | E88: 1
B89: HEAVY COMMERCIAL VEHICLE | C89: Average kilometres travelled | D89: 0's | E89: 9970.37432
C90: Number purchased | D90: 0's | E90: 9
C91: Number leased | D91: 0's | E91: 0
C92: Number in fleet | D92: 0's | E92: 68
C93: Proportion of total fleet expenditure allocated as regulatory expenditure | D93: (per cent) | E93: 1

Sheet 2.7 Vegetation management
B1: REGULATORY REPORTING STATEMENT
B2: =INDEX(dms_TradingNameFull_List,MATCH(dms_TradingName,dms_TradingName_List)) -> NSW Electricity Networks Operations Pty Ltd trading as TransGrid
B3: =CONCATENATE((LOOKUP(dms_Model,dms_Model_List,dms_Worksheet_List))&" "&CRY) -> CATEGORY ANALYSIS 2017-18
B4: 2.7 VEGETATION MANAGEMENT
B6: There are THREE tables on this worksheet. Each has been 'grouped' for easy navigation. See the Instructions sheet on how to group or ungroup data.
B8: 2.7.1 - DESCRIPTOR METRICS BY ZONE
E9: VOLUMES
B10: ZONES | C10: ASSET / ENVIRONMENTAL FACTOR | D10: UNITS | E10: =CRY -> 2017-18
B11: ZONE 1 | C11: Route line length within zone | D11: km | E11: 11295.17324
C12: Number of maintenance spans | D12: 0's | E12: 4206
C13: Total length of maintenance spans | D13: km | E13: 1636.757999
C14: Average number of trees per maintenance span | D14: 0's | E14: 625.7845934
C15: Length of vegetation corridors | D15: km | E15: 3592.3115
C16: Average width of vegetation corridors | D16: metres | E16: 54.66203627
C17: Average frequency of cutting cycle | D17: years | E17: 3.802883067
B18: ZONE 2 | C18: Route line length within zone | D18: km
C19: Number of maintenance spans | D19: 0's
C20: Total length of maintenance spans | D20: km
C21: Average number of trees per maintenance span | D21: 0's
C22: Length of vegetation corridors | D22: km
C23: Average width of vegetation corridors | D23: metres
C24: Average frequency of cutting cycle | D24: years
B25: ZONE 3 | C25: Route line length within zone | D25: km
C26: Number of maintenance spans | D26: 0's
C27: Total length of maintenance spans | D27: km
C28: Average number of trees per maintenance span | D28: 0's
C29: Length of vegetation corridors | D29: km
C30: Average width of vegetation corridors | D30: metres
C31: Average frequency of cutting cycle | D31: years
B32: ZONE 4 | C32: Route line length within zone | D32: km
C33: Number of maintenance spans | D33: 0's
C34: Total length of maintenance spans | D34: km
C35: Average number of trees per maintenance span | D35: 0's
C36: Length of vegetation corridors | D36: km
C37: Average width of vegetation corridors | D37: metres
C38: Average frequency of cutting cycle | D38: years
B39: ZONE 5 | C39: Route line length within zone | D39: km
C40: Number of maintenance spans | D40: 0's
C41: Total length of maintenance spans | D41: km
C42: Average number of trees per maintenance span | D42: 0's
C43: Length of vegetation corridors | D43: km
C44: Average width of vegetation corridors | D44: metres
C45: Average frequency of cutting cycle | D45: years
B46: ZONE 6 | C46: Route line length within zone | D46: km
C47: Number of maintenance spans | D47: 0's
C48: Total length of maintenance spans | D48: km
C49: Average number of trees per maintenance span | D49: 0's
C50: Length of vegetation corridors | D50: km
C51: Average width of vegetation corridors | D51: metres
C52: Average frequency of cutting cycle | D52: years
B53: ZONE 7 | C53: Route line length within zone | D53: km
C54: Number of maintenance spans | D54: 0's
C55: Total length of maintenance spans | D55: km
C56: Average number of trees per maintenance span | D56: 0's
C57: Length of vegetation corridors | D57: km
C58: Average width of vegetation corridors | D58: metres
C59: Average frequency of cutting cycle | D59: years
B60: ZONE 8 | C60: Route line length within zone | D60: km
C61: Number of maintenance spans | D61: 0's
C62: Total length of maintenance spans | D62: km
C63: Average number of trees per maintenance span | D63: 0's
C64: Length of vegetation corridors | D64: km
C65: Average width of vegetation corridors | D65: metres
C66: Average frequency of cutting cycle | D66: years
B67: ZONE 9 | C67: Route line length within zone | D67: km
C68: Number of maintenance spans | D68: 0's
C69: Total length of maintenance spans | D69: km
C70: Average number of trees per maintenance span | D70: 0's
C71: Length of vegetation corridors | D71: km
C72: Average width of vegetation corridors | D72: metres
C73: Average frequency of cutting cycle | D73: years
B74: ZONE 10 | C74: Route line length within zone | D74: km
C75: Number of maintenance spans | D75: 0's
C76: Total length of maintenance spans | D76: km
C77: Average number of trees per maintenance span | D77: 0's
C78: Length of vegetation corridors | D78: km
C79: Average width of vegetation corridors | D79: metres
C80: Average frequency of cutting cycle | D80: years
B83: 2.7.2 - EXPENDITURE METRICS BY ZONE
E84: EXPENDITURE ($0's)
B85: ZONES | C85: SERVICE SUBCATEGORY | E85: 2017-18
B86: =B11 -> ZONE 1 | C86: Tree trimming | E86: 8222805.631
C87: Vegetation corridor clearance | E87: 3953271.938
C88: Inspection | E88: 1105156.502
C89: Audit
C90: Contractor liaison expenditure | E90: 1344970.121
C91: Other vegetation management expenditure | E91: 830837.3195
B92: =B18 -> ZONE 2 | C92: Tree trimming
C93: Vegetation corridor clearance
C94: Inspection
C95: Audit
C96: Contractor liaison expenditure
C97: Other vegetation management expenditure
B98: =B25 -> ZONE 3 | C98: Tree trimming
C99: Vegetation corridor clearance
C100: Inspection
C101: Audit
C102: Contractor liaison expenditure
C103: Other vegetation management expenditure
B104: =B32 -> ZONE 4 | C104: Tree trimming
C105: Vegetation corridor clearance
C106: Inspection
C107: Audit
C108: Contractor liaison expenditure
C109: Other vegetation management expenditure
B110: =B39 -> ZONE 5 | C110: Tree trimming
C111: Vegetation corridor clearance
C112: Inspection
C113: Audit
C114: Contractor liaison expenditure
C115: Other vegetation management expenditure
B116: =B46 -> ZONE 6 | C116: Tree trimming
C117: Vegetation corridor clearance
C118: Inspection
C119: Audit
C120: Contractor liaison expenditure
C121: Other vegetation management expenditure
B122: =B53 -> ZONE 7 | C122: Tree trimming
C123: Vegetation corridor clearance
C124: Inspection
C125: Audit
C126: Contractor liaison expenditure
C127: Other vegetation management expenditure
B128: =B60 -> ZONE 8 | C128: Tree trimming
C129: Vegetation corridor clearance
C130: Inspection
C131: Audit
C132: Contractor liaison expenditure
C133: Other vegetation management expenditure
B134: =B67 -> ZONE 9 | C134: Tree trimming
C135: Vegetation corridor clearance
C136: Inspection
C137: Audit
C138: Contractor liaison expenditure
C139: Other vegetation management expenditure
B140: =B74 -> ZONE 10 | C140: Tree trimming
C141: Vegetation corridor clearance
C142: Inspection
C143: Audit
C144: Contractor liaison expenditure
C145: Other vegetation management expenditure
B148: 2.7.3 - DESCRIPTOR METRICS ACROSS ALL ZONES - UNPLANNED VEGETATION EVENTS
E149: VOLUMES (0's)
B150: DESCRIPTOR METRIC | E150: 2017-18
B151: Number of fire starts caused by vegetation grow-ins (NSP responsibility) | E151: 0
B152: Number of fire starts caused by vegetation blow-ins and fall-ins (NSP responsibility) | E152: 0
B153: Number of outages caused by vegetation grow-ins (NSP responsibility) | E153: 0
B154: Number of outages caused by vegetation blow-ins and fall-ins (NSP responsibility) | E154: 0
B155: Number of fire starts caused by vegetation grow-ins (other party responsibility) | E155: 0
B156: Number of fire starts caused by vegetation blow-ins and fall-ins (other party responsibility) | E156: 0
B157: Number of outages caused by vegetation grow-ins (other party responsibility) | E157: 0
B158: Number of outages caused by vegetation blow-ins and fall-ins (other party responsibility) | E158: 0

Sheet 2.8 Maintenance
B1: REGULATORY REPORTING STATEMENT
B2: =INDEX(dms_TradingNameFull_List,MATCH(dms_TradingName,dms_TradingName_List)) -> NSW Electricity Networks Operations Pty Ltd trading as TransGrid
B3: =CONCATENATE((LOOKUP(dms_Model,dms_Model_List,dms_Worksheet_List))&" "&CRY) -> CATEGORY ANALYSIS 2017-18
B4: 2.8 MAINTENANCE
B6: There are TWO tables on this worksheet. Each has been 'grouped' for easy navigation. See the Instructions sheet on how to group or ungroup data.
B8: 2.8.1 - DESCRIPTOR METRICS FOR ROUTINE AND NON-ROUTINE MAINTENANCE
F9: ASSET QUANTITY | H9: AVERAGE AGE OF ASSET GROUP | I9: INSPECTION CYCLE (YEARS) | J9: MAINTENANCE CYCLE (YEARS)
B10: MAINTENANCE ACTIVITY | C10: MAINTENANCE ASSET CATEGORY | D10: MEASURE / ASSET QUANTITY | E10: UNITS | F10: AT YEAR END | G10: INSPECTED/ MAINTAINED
F11: =CRY -> 2017-18 | G11: =CRY -> 2017-18 | H11: =CRY -> 2017-18
B12: Transmission lines maintenance | C12: Transmission towers | D12: Number of towers | E12: 0's | F12: 37419 | G12: 7911 | H12: 38.04250745 | I12: 5.040955631 | J12: 5.348950084
C13: Transmission tower support structures | D13: Number of towers | E13: 0's | F13: 0 | G13: 0 | H13: 0 | I13: 0 | J13: 0
C14: Conductors | D14: Route length | E14: km | F14: 11295.17324 | G14: 7595.3823 | H14: 41.16846291 | I14: 7.618687226 | J14: 0
C15: Transmission cables | D15: Route length | E15: km | F15: 66.317 | G15: 66.317 | H15: 19.08129425 | I15: 0.08801515816 | J15: 1.30019808
B16: Substations equipment & property maintenance | C16: Substation switchbays (incl. Reactive plant) | D16: Number of switchbays | E16: 0's | F16: 2284 | G16: 434 | H16: 30.17250438 | I16: 0.5 | J16: 5.22377475
C17: Substation power transformers | D17: Number of transformers | E17: 0's | F17: 217 | G17: 207 | H17: 21.83410138 | I17: 0.5 | J17: 4.774193548
C18: Substation property | D18: Number of substation properties maintained | E18: 0's | F18: 94 | G18: 92 | H18: 34.68085106 | I18: 0.585106383 | J18: 0.25
B19: SCADA & network control maintenance | C19: SCADA & network control maintenance | D19: Units | F19: 1961 | G19: 98 | H19: 7.84
B20: Protection systems maintenance | C20: Protection systems maintenance | D20: Units | F20: 3183 | G20: 1343 | H20: 15.15 | J20: 6.24
B21: Other maintenance activity | C21: Metering | D21: Units | F21: 837 | G21: 519 | H21: 6.39 | I21: 2.5 | J21: 5
C22: Communications | D22: Units | F22: 1918 | G22: 1352 | H22: 6.07 | I22: 0.5 | J22: 3
B46: 2.8.2 - COST METRICS FOR ROUTINE AND NON-ROUTINE MAINTENANCE
F47: DIRECT EXPENDITURE ($0's)
B48: ASSET CATEGORIES | C48: ASSET SUBCATEGORIES | F48: ROUTINE MAINTENANCE | G48: NON-ROUTINE MAINTENANCE
F49: =CRY -> 2017-18 | G49: =CRY -> 2017-18
B50: Transmission lines maintenance | C50: Transmission towers | F50: 4177862.105 | G50: 5675314.132
C51: Transmission tower support structures
C52: Conductors | F52: 28748.38897 | G52: 343931.6238
C53: Transmission cables | F53: 662774.2947 | G53: 689718.7087
B54: Substations equipment & property maintenance | C54: Substation switchbays (incl. Reactive plant) | F54: 1173863.004 | G54: 3283259.883
C55: Substation power transformers | F55: 545966.1361 | G55: 798383.3177
C56: Substation property | F56: 2469935.401 | G56: 8052590.836
B57: SCADA & network control maintenance | C57: SCADA & network control maintenance | F57: 136809.595 | G57: 331027.7417
B58: Protection systems maintenance | C58: Protection systems maintenance | F58: 735456.973 | G58: 1380826.436
B59: Other maintenance activity | C59: =IF(ISBLANK(C21),"",C21) -> Metering | D59: =IF(ISBLANK(D21),"",D21) -> Units | F59: 482089.6861 | G59: 43819.19565
C60: =IF(ISBLANK(C22),"",C22) -> Communications | D60: Units | F60: 298879.9427 | G60: 2993641.897

Sheet 2.10 Overheads
B1: REGULATORY REPORTING STATEMENT
B2: =INDEX(dms_TradingNameFull_List,MATCH(dms_TradingName,dms_TradingName_List)) -> NSW Electricity Networks Operations Pty Ltd trading as TransGrid
B3: =CONCATENATE((LOOKUP(dms_Model,dms_Model_List,dms_Worksheet_List))&" "&CRY) -> CATEGORY ANALYSIS 2017-18
B4: 2.10 OVERHEADS
B7: There are TWO tables on this worksheet. Each has been 'grouped' (and sub-grouped) for easy navigation. See the Instructions sheet on how to group or ungroup data.
B9: Instructions
B10: Enter each expenditure category currently reported under annual Information Guidelines.
B12: 2.10.1 - NETWORK OVERHEADS EXPENDITURE
D13: EXPENDITURE ($0's)
D14: =CRY -> 2017-18
B15: MAINTENANCE SUPPORT
B16: Prescribed Services | C16: Maintenance Support | D16: 16507294.02
B41: Negotiated Services | C41: Total | D41: 396780.3843
B42: Unregulated Services | C42: Total | D42: 1613892.307
B43: NETWORK MONITORING AND CONTROL
B44: Prescribed Services | C44: Operations | D44: 8742296.713
B65: Negotiated Services | C65: Total | D65: 210135.704
B66: Unregulated Services | C66: Total | D66: 854720.6705
B67: ASEET MANAGEMENT SUPPORT
B68: Prescribed Services | C68: Asset Management | D68: 19774395.81
C69: Grid Planning | D69: 7387386.626
C70: Network Support | D70: 0
B94: Negotiated Services | C94: Total | D94: 652878.8098
B95: Unregulated Services | C95: Total | D95: 2655564.968
B99: 2.10.2 - CORPORATE OVERHEADS EXPENDITURE
D100: EXPENDITURE ($0's)
D101: =CRY -> 2017-18
B102: CORPORATE OVERHEADS
B103: Prescribed Services | C103: Insurance | D103: 6256042.31
C104: Rates, Taxes & Charges | D104: 5340526.1
C105: Property Management | D105: 2585766.643
C106: Environmental | D106: 3316741.06
C107: Corporate Governance | D107: 17940569.74
C108: Customer Relations | D108: 6456039.172
C109: Regulatory | D109: 2109395.899
C110: Finance | D110: 9349451.685
C111: Information technology | D111: 21263114.28
C112: HR & Payroll | D112: 7997138.932
C113: Defined benefit superannuation | D113: 599442.05
B128: Negotiated Services | C128: Total | D128: 2000192.962
B129: Unregulated Services | C129: Total | D129: 8135724.854

Sheet 2.11 Labour
B1: REGULATORY REPORTING STATEMENT
B2: =INDEX(dms_TradingNameFull_List,MATCH(dms_TradingName,dms_TradingName_List)) -> NSW Electricity Networks Operations Pty Ltd trading as TransGrid
B3: =CONCATENATE((LOOKUP(dms_Model,dms_Model_List,dms_Worksheet_List))&" "&CRY) -> CATEGORY ANALYSIS 2017-18
B4: 2.11 LABOUR
B6: There are TWO tables on this worksheet. Each table has been 'grouped' (and sub-grouped) for easy navigation. See the Instructions sheet on how to group or ungroup data.
B8: 2.11.1 - COST METRICS PER ANNUM
D9: ASL (0's) | E9: TOTAL LABOUR EXPENDITURE ($0's) | F9: AVERAGE PRODUCTIVE WORK HOURS PER ASL (0's) | G9: STAND-DOWN OCCURENCES PER ASL (0's)
D11: =CRY -> 2017-18 | E11: =CRY -> 2017-18 | F11: =CRY -> 2017-18 | G11: =CRY -> 2017-18
B12: CORPORATE OVERHEADS | C12: Executive manager
C13: Senior manager
C14: Manager
C15: Professional
C16: Semi professional
C17: Support staff
C18: Intern, junior staff, apprentice
B19: NETWORK OVERHEADS | C19: Executive manager
C20: Senior manager
C21: Manager
C22: Professional
C23: Semi professional
C24: Support staff
C25: Intern, junior staff, apprentice
B26: TOTAL DIRECT NETWORK LABOUR | C26: Skilled electrical worker
C27: Skilled non electical worker
C28: Apprentice
C29: Unskilled worker
B32: 2.11.2 - DESCRIPTOR METRICS
B33: AVERAGE PRODUCTIVE WORK HOURS PER ASL
D34: ORDINARY TIME (0's) | F34: OVERTIME (0's)
D35: PER ASL | E35: HOURLY RATE PER ASL | F35: PER ASL | G35: HOURLY RATE PER ASL
D36: =CRY -> 2017-18 | E36: =CRY -> 2017-18 | F36: =CRY -> 2017-18 | G36: =CRY -> 2017-18
B37: CORPORATE OVERHEADS | C37: Executive manager
C38: Senior manager
C39: Manager
C40: Professional
C41: Semi professional
C42: Support staff
C43: Intern, junior staff, apprentice
B44: NETWORK OVERHEADS | C44: Executive manager
C45: Senior manager
C46: Manager
C47: Professional
C48: Semi professional
C49: Support staff
C50: Intern, junior staff, apprentice
B51: TOTAL DIRECT NETWORK LABOUR | C51: Skilled electrical worker
C52: Skilled non electical worker
C53: Apprentice
C54: Unskilled worker

Sheet 2.12 Input tables
B1: REGULATORY REPORTING STATEMENT
B2: =INDEX(dms_TradingNameFull_List,MATCH(dms_TradingName,dms_TradingName_List)) -> NSW Electricity Networks Operations Pty Ltd trading as TransGrid
B3: =CONCATENATE((LOOKUP(dms_Model,dms_Model_List,dms_Worksheet_List))&" "&CRY) -> CATEGORY ANALYSIS 2017-18
B4: 2.12 INPUT TABLES
B7: 2.12 INPUT TABLES
D8: DIRECT MATERIAL EXPENDITURE ($0's) | E8: DIRECT LABOUR EXPENDITURE ($0's) | F8: CONTRACT EXPENDITURE ($0's) | G8: OTHER EXPENDITURE ($0's) | H8: RELATED PARTY CONTRACT EXPENDITURE ($0's) | I8: RELATED PARTY CONTRACT MARGIN
D9: =CRY -> 2017-18 | E9: 2017-18 | F9: 2017-18 | G9: 2017-18 | H9: 2017-18 | I9: 2017-18
B10: VEGETATION MANAGEMENT | C10: ZONE 1 | D10: 26801.21902 | E10: 2025895.305 | F10: 12244426.47 | G10: 1159918.517 | H10: 0 | I10: 0
C11: ZONE 2
C12: ZONE 3
C13: ZONE 4
C14: ZONE 5
C15: ZONE 6
C16: ZONE 7
C17: ZONE 8
C18: ZONE 9
C19: ZONE 10
B30: ROUTINE MAINTENANCE | C30: Transmission Lines Maintenance | D30: 342658.0299 | E30: 3009363.783 | F30: 18230.52558 | G30: 1499132.45 | H30: 0 | I30: 0
C31: Substations Equipment & Propoerty Maintenance | D31: 359539.1827 | E31: 2981011.614 | F31: 21409.7372 | G31: 827804.0072 | H31: 0 | I31: 0
C32: SCADA & Network Control Maintenance | D32: 93.49506114 | E32: 136650.0179 | F32: 0 | G32: 66.08202106 | H32: 0 | I32: 0
C33: Protection Systems Maintenance | D33: 3918.853559 | E33: 729803.2601 | F33: 1584.601366 | G33: 150.2580011 | H33: 0 | I33: 0
C34: Other Maintenance Activities - Telecommunications Systems | D34: 37259.42845 | E34: 261192.8528 | F34: 0 | G34: 427.6614347 | H34: 0 | I34: 0
C35: Other Maintenance Activities - Metering Systems | D35: 9722.151234 | E35: 323132.4058 | F35: 0 | G35: 149235.1291 | H35: 0 | I35: 0
B48: NON-ROUTINE MAINTENANCE | C48: Transmission Lines Maintenance | D48: 1779673.183 | E48: 3761894.246 | F48: 378418.5535 | G48: 788978.4822 | H48: 0 | I48: 0
C49: Substations Equipment & Propoerty Maintenance | D49: 2078182.005 | E49: 5592142.921 | F49: 1705825.547 | G49: 2758083.563 | H49: 0 | I49: 0
C50: Scada & Network Control Maintenance | D50: 81150.94241 | E50: 240070.2114 | F50: 0 | G50: 9806.58786 | H50: 0 | I50: 0
C51: Protection Systems Maintenance | D51: 546340.6624 | E51: 690459.6157 | F51: 0 | G51: 144026.1579 | H51: 0 | I51: 0
C52: Other Maintenance Activities - Telecommunications Systems | D52: 349838.8559 | E52: 1163999.145 | F52: 60177.95267 | G52: 1419625.943 | H52: 0 | I52: 0
C53: Other Maintenance Activities - Metering Systems | D53: -15699.7962 | E53: 59075.1024 | F53: 0 | G53: 443.889455 | H53: 0 | I53: 0
B64: OVERHEADS | C64: Network Overheads | D64: 2280077.386 | E64: 29860648.76 | F64: 28654.09349 | G64: 20241992.92 | H64: 0 | I64: 0
C65: Corporate Overheads | D65: 3620108.914 | E65: 47410145.56 | F65: 45494.48185 | G65: 32138478.92 | H65: 0 | I65: 0
B66: AUGMENTATION | C66: Subtransmission Substations, Switching Stations , Zone Substations | D66: 207834.8 | E66: 1241087.76 | F66: 365006.14 | G66: 939300.18
C67: Subtransmission Lines | D67: 9048.93 | E67: 444697.07 | F67: 0 | G67: 1218985.09
C68: HV Feeders | D68: 0 | E68: 0 | F68: 0 | G68: 0
C69: Other Assets | D69: 15.39 | E69: 840.99 | F69: 0 | G69: 618.77
B70: CONNECTIONS | C70: All New Customer Connections | D70: 49935.66 | E70: 194479.14 | F70: 10107.26 | G70: 79832.89
B71: REPLACEMENT | C71: Transmission Towers | D71: 5609107.868 | E71: 9892825.142 | F71: 17779930.78 | G71: 4387424.395 | H71: 0
C72: Transmission Tower Support Structures | D72: 681451.2617 | E72: 1201880.644 | F72: 2160086.158 | G72: 533028.7739 | H72: 0
C73: Conductors | D73: 465409.0453 | E73: 820845.3845 | F73: 1475268.582 | G73: 364041.3141 | H73: 0
C74: Transmission Cables | D74: 0 | E74: 0 | F74: 0 | G74: 0 | H74: 0
C75: Substation Switchbays | D75: 5497301.265 | E75: 9695631.006 | F75: 17425522.61 | G75: 4299969.664 | H75: 595109.457
C76: Substation Power Transformers | D76: 825940.8419 | E76: 1456717.988 | F76: 2618093.883 | G76: 646048.014 | H76: 495924.5475
C77: Substation Reactive Plant | D77: 0 | E77: 0 | F77: 0 | G77: 0 | H77: 198369.819
C78: SCADA network control and protection systems | D78: 8008791.316 | E78: 14125164.63 | F78: 25386524.66 | G78: 6264448.326 | H78: 694294.3665
C79: Other | D79: 2167907.093 | E79: 3823553.816 | F79: 6871901.727 | G79: 1695729.283 | H79: 2107116.91
B80: NON-NETWORK EXPENDITURE | C80: IT and communications | D80: 3385247.48 | E80: 1848754.43 | F80: 0 | G80: 14411361.88
C81: Motor Vehicles | D81: 9588508.47 | E81: 148.47 | F81: 0 | G81: -422379.86
C82: Buildings And Property | D82: 0 | E82: 0 | F82: 0 | G82: 0
C83: Other | D83: 774991.27 | E83: -21264.64335 | F83: 0 | G83: 25697.53

Sheet 5.2 Asset Age Profile
B1: REGULATORY REPORTING STATEMENT
B2: =INDEX(dms_TradingNameFull_List,MATCH(dms_TradingName,dms_TradingName_List)) -> NSW Electricity Networks Operations Pty Ltd trading as TransGrid
B3: =CONCATENATE((LOOKUP(dms_Model,dms_Model_List,dms_Worksheet_List))&" "&CRY) -> CATEGORY ANALYSIS 2017-18
B4: 5.2 ASSET AGE PROFILE
B5: .
B6: There is ONE table on this worksheet. Both ROWS and COLUMNS have been 'grouped' for easy navigation. See the Instructions sheet on how to group or ungroup data.
B8: TABLE 5.2.1 - ASSET AGE PROFILE
D9: ECONOMIC LIFE (YEARS) | F9: INSTALLED ASSETS -˃ QUANTITY CURRENTLY IN COMMISSION BY YEAR
B10: ASSET GROUP | C10: ASSET CATEGORY | D10: MEAN | E10: STANDARD DEVIATION | F10: =CRY -> 2017-18 | G10: =IF(dms_RPT="financial",(VALUE(LEFT(F10,4)-1)&"-"&MID(F10,3,2)),VALUE(LEFT(F10,4)-1)) -> 2016-17 | H10: =IF(dms_RPT="financial",(VALUE(LEFT(G10,4)-1)&"-"&MID(G10,3,2)),VALUE(LEFT(G10,4)-1)) -> 2015-16 | I10: 2014-15 | J10: 2013-14 | K10: 2012-13 | L10: 2011-12 | M10: 2010-11 | N10: 2009-10 | O10: 2008-09 | P10: 2007-08 | Q10: 2006-07 | R10: 2005-06 | S10: 2004-05 | T10: 2003-04 | U10: 2002-03 | V10: 2001-02 | W10: 2000-01 | X10: 1999-00 | Y10: 1998-99 | Z10: 1997-98 | AA10: 1996-97 | AB10: 1995-96 | AC10: 1994-95 | AD10: 1993-94 | AE10: 1992-93 | AF10: 1991-92 | AG10: 1990-91 | AH10: 1989-90 | AI10: 1988-89 | AJ10: 1987-88 | AK10: 1986-87 | AL10: 1985-86 | AM10: =IF(dms_RPT="financial",(VALUE(LEFT(AL10,4)-1)&"-"&MID(AL10,3,2)),VALUE(LEFT(AL10,4)-1)) -> 1984-85 | AN10: 1983-84 | AO10: 1982-83 | AP10: 1981-82 | AQ10: 1980-81 | AR10: 1979-80 | AS10: 1978-79 | AT10: 1977-78 | AU10: 1976-77 | AV10: 1975-76 | AW10: 1974-75 | AX10: 1973-74 | AY10: 1972-73 | AZ10: 1971-72 | BA10: 1970-71 | BB10: 1969-70 | BC10: 1968-69 | BD10: 1967-68 | BE10: 1966-67 | BF10: 1965-66 | BG10: 1964-65 | BH10: 1963-64 | BI10: 1962-63 | BJ10: 1961-62 | BK10: 1960-61 | BL10: 1959-60 | BM10: 1958-59 | BN10: 1957-58 | BO10: 1956-57 | BP10: 1955-56 | BQ10: 1954-55 | BR10: 1953-54 | BS10: =IF(dms_RPT="financial",(VALUE(LEFT(BR10,4)-1)&"-"&MID(BR10,3,2)),VALUE(LEFT(BR10,4)-1)) -> 1952-53 | BT10: 1951-52 | BU10: 1950-51 | BV10: 1949-50 | BW10: 1948-49 | BX10: 1947-48 | BY10: 1946-47 | BZ10: 1945-46 | CA10: 1944-45 | CB10: 1943-44 | CC10: 1942-43 | CD10: 1941-42 | CE10: 1940-41 | CF10: 1939-40 | CG10: 1938-39 | CH10: 1937-38 | CI10: 1936-37 | CJ10: 1935-36 | CK10: 1934-35 | CL10: 1933-34 | CM10: 1932-33 | CN10: 1931-32 | CO10: 1930-31 | CP10: 1929-30 | CQ10: 1928-29 | CR10: 1927-28 | CS10: 1926-27 | CT10: 1925-26 | CU10: 1924-25 | CV10: 1923-24 | CW10: 1922-23 | CX10: 1921-22 | CY10: =IF(dms_RPT="financial",(VALUE(LEFT(CX10,4)-1)&"-"&MID(CX10,3,2)),VALUE(LEFT(CX10,4)-1)) -> 1920-21 | CZ10: 1919-20 | DA10: 1918-19 | DB10: =IF(dms_RPT="financial",(VALUE(LEFT(DA10,4)-1)&"-"&MID(DA10,3,2)),VALUE(LEFT(DA10,4)-1)) -> 1917-18 | DC10: =IF(dms_RPT="financial",(VALUE(LEFT(DB10,4)-1)&"-"&MID(DB10,3,2)),VALUE(LEFT(DB10,4)-1)) -> 1916-17 | DD10: =IF(dms_RPT="financial",(VALUE(LEFT(DC10,4)-1)&"-"&MID(DC10,3,2)),VALUE(LEFT(DC10,4)-1)) -> 1915-16 | DE10: =IF(dms_RPT="financial",(VALUE(LEFT(DD10,4)-1)&"-"&MID(DD10,3,2)),VALUE(LEFT(DD10,4)-1)) -> 1914-15 | DF10: =IF(dms_RPT="financial",(VALUE(LEFT(DE10,4)-1)&"-"&MID(DE10,3,2)),VALUE(LEFT(DE10,4)-1)) -> 1913-14 | DG10: =IF(dms_RPT="financial",(VALUE(LEFT(DF10,4)-1)&"-"&MID(DF10,3,2)),VALUE(LEFT(DF10,4)-1)) -> 1912-13 | DH10: =IF(dms_RPT="financial",(VALUE(LEFT(DG10,4)-1)&"-"&MID(DG10,3,2)),VALUE(LEFT(DG10,4)-1)) -> 1911-12 | DI10: =IF(dms_RPT="financial",(VALUE(LEFT(DH10,4)-1)&"-"&MID(DH10,3,2)),VALUE(LEFT(DH10,4)-1)) -> 1910-11 | DJ10: =IF(dms_RPT="financial",(VALUE(LEFT(DI10,4)-1)&"-"&MID(DI10,3,2)),VALUE(LEFT(DI10,4)-1)) -> 1909-10
B11: TRANSMISSION TOWERS Highest operating voltage; Circuit configuration | C11: < = 33 kV; Single Circuit
C12: > 33 kV & < = 66 kV ; Single Circuit | D12: 67.14285714 | E12: 2.474358297 | I12: 1 | J12: 3 | V12: 3
C13: > 66 kV & < = 132 kV ; Single Circuit | D13: 66.83675409 | E13: 2.75099829 | F13: 230 | G13: 437 | H13: 111 | I13: 90 | J13: 88 | K13: 162 | L13: 301 | M13: 442 | N13: 198 | O13: 660 | P13: 686 | Q13: 207 | R13: 617 | S13: 175 | T13: 60 | U13: 42 | V13: 248 | W13: 105 | X13: 78 | Y13: 9 | Z13: 662 | AB13: 1 | AE13: 2 | AF13: 294 | AG13: 4 | AH13: 681 | AI13: 293 | AL13: 631 | AM13: 359 | AN13: 168 | AO13: 1192 | AR13: 81 | AS13: 617 | AT13: 231 | AU13: 2 | AV13: 515 | AW13: 749 | AX13: 495 | AZ13: 526 | BA13: 1378 | BB13: 731 | BC13: 134 | BD13: 1503 | BE13: 1 | BF13: 611 | BG13: 6 | BH13: 747 | BI13: 1713 | BL13: 631 | BO13: 458 | BP13: 117 | BR13: 374 | BS13: 173 | CF13: 22
C14: > 132 kV & < = 275 kV ; Single Circuit | D14: 74.96491228 | E14: 0.417381658 | G14: 5 | H14: 7 | AK14: 991 | AS14: 707
C15: > 275 kV & < = 330 kV ; Single Circuit | D15: 71.47201434 | E15: 9.92311712 | F15: 26 | G15: 15 | I15: 29 | J15: 3 | K15: 6 | L15: 49 | M15: 24 | N15: 5 | O15: 287 | R15: 6 | S15: 13 | T15: 2 | U15: 2 | X15: 9 | AA15: 10 | AC15: 24 | AD15: 1 | AE15: 1 | AF15: 30 | AG15: 233 | AH15: 2 | AK15: 387 | AL15: 37 | AM15: 1 | AN15: 345 | AO15: 515 | AP15: 521 | AQ15: 1 | AR15: 57 | AS15: 272 | AU15: 3 | AV15: 299 | AW15: 14 | AX15: 246 | AY15: 498 | AZ15: 334 | BA15: 414 | BC15: 286 | BE15: 319 | BF15: 341 | BH15: 523 | BI15: 567 | BJ15: 684 | BK15: 742 | BL15: 1 | BM15: 522 | BN15: 111 | BO15: 670
C16: > 330 kV & < = 500 kV ; Single Circuit | D16: 75 | E16: 0 | AL16: 1
C17: > 500 kV ; Single Circuit
C18: < = 33 kV; Multiple Circuit
C19: > 33 kV & < = 66 kV ; Multiple Circuit
C20: > 66 kV & < = 132 kV ; Multiple Circuit | D20: 70.02869898 | E20: 4.937343936 | G20: 1 | H20: 2 | J20: 283 | K20: 68 | L20: 259 | M20: 4 | N20: 96 | O20: 46 | P20: 15 | R20: 2 | S20: 2 | V20: 435 | W20: 95 | X20: 11 | AL20: 3 | AP20: 2 | AV20: 1 | BB20: 34 | BD20: 47 | BH20: 55 | BI20: 8 | BK20: 4 | BO20: 35 | BS20: 60
C21: > 132 kV & < = 275 kV ; Multiple Circuit
C22: > 275 kV & < = 330 kV ; Multiple Circuit | D22: 69.28276147 | E22: 12.93655762 | J22: 17 | N22: 1 | O22: 6 | R22: 5 | U22: 32 | X22: 539 | Z22: 2 | AC22: 4 | AD22: 5 | AF22: 47 | AJ22: 1 | AL22: 2 | AM22: 2 | AN22: 156 | AO22: 138 | AP22: 20 | AQ22: 52 | AR22: 14 | AT22: 22 | AU22: 186 | AV22: 20 | AW22: 249 | BA22: 33 | BB22: 522 | BF22: 1 | BH22: 1 | BI22: 342
C23: > 330 kV & < = 500 kV ; Multiple Circuit | D23: 74.22619048 | E23: 5.146314424 | J23: 32 | N23: 2 | O23: 1 | AF23: 327 | AL23: 494 | AP23: 320
C24: > 500 kV ; Multiple Circuit
C25: Other
B26: TRANSMISSION TOWER SUPPORT STRUCTURES BY: Highest operating voltage; Circuit configuration | C26: < = 33 kV; Single Circuit
C27: > 33 kV & < = 66 kV ; Single Circuit
C28: > 66 kV & < = 132 kV ; Single Circuit
C29: > 132 kV & < = 275 kV ; Single Circuit
C30: > 275 kV & < = 330 kV ; Single Circuit
C31: > 330 kV & < = 500 kV ; Single Circuit
C32: > 500 kV ; Single Circuit
C33: < = 33 kV; Multiple Circuit
C34: > 33 kV & < = 66 kV ; Multiple Circuit
C35: > 66 kV & < = 132 kV ; Multiple Circuit
C36: > 132 kV & < = 275 kV ; Multiple Circuit
C37: > 275 kV & < = 330 kV ; Multiple Circuit
C38: > 330 kV & < = 500 kV ; Multiple Circuit
C39: > 500 kV ; Multiple Circuit
C40: Other
B41: CONDUCTORS BY: Voltage; Maximum continuous rating | C41: < = 33 kV ; < = 100 MVA | D41: 60 | E41: 0 | J41: 38.65729981
C42: < = 33 kV ; > 100 MVA & < = 400 MVA
C43: < = 33 kV ; > 400 MVA
C44: > 33 kV & < = 66 kV ; < = 100 MVA | D44: 60 | E44: 0 | M44: 10.39480005 | V44: 11.07119992
C45: > 33 kV & < = 66 kV ; > 100 MVA & < = 400 MVA
C46: > 33 kV & < = 66 kV ; > 400 MVA
C47: > 66 kV & < = 132 kV ; < = 100 MVA | D47: 60 | E47: 0 | H47: 0.5736000023 | I47: 20.43089966 | N47: 17.23219999 | R47: 0.04829999924 | S47: 0.3462000122 | AK47: 1.844299995 | BH47: 143.9083999 | BL47: 114.3138996 | BO47: 19.97479988
C48: > 66 kV & < = 132 kV ; > 100 MVA & < = 400 MVA | D48: 57.87368048 | E48: 6.164832177 | H48: 1.241399994 | I48: 14.44909979 | J48: 59.10589985 | K48: 33.51960002 | L48: 147.1349002 | M48: 92.90949996 | N48: 171.9580999 | O48: 2.503500027 | P48: 4.976499973 | Q48: 0.6516000013 | R48: 0.5564000015 | S48: 2.330000011 | V48: 88.29880008 | W48: 169.1375002 | X48: 6.419499948 | Y48: 143.2098002 | Z48: 3.999600006 | AF48: 104.8355001 | AG48: 0.3716999979 | AH48: 166.6814998 | AL48: 145.4403 | AM48: 87.71599986 | AN48: 63.41989975 | AO48: 207.8441 | AP48: 4.997299995 | AQ48: 4.017699984 | AR48: 11.46980002 | AS48: 192.2465 | AT48: 66.1101999 | AU48: 36.79009993 | AV48: 134.7742001 | AW48: 169.8057002 | AX48: 140.5211998 | AZ48: 124.0681999 | BA48: 446.5688997 | BB48: 278.1218003 | BC48: 183.3160003 | BD48: 402.801 | BE48: 3.183799988 | BF48: 202.5151001 | BG48: 0.0955 | BH48: 47.81540008 | BI48: 468.7669997 | BJ48: 89.81840007 | BK48: 1.4795 | BL48: 45.45859998 | BM48: 92.98059994 | BO48: 156.8537003 | BP48: 123.5908999 | BR48: 170.1620998 | BS48: 64.89300005
C49: > 66 kV & < = 132 kV ; > 400 MVA | D49: 59.66666667 | E49: 2.560381916 | P49: 33.01660008 | AI49: 1.772799995 | AO49: 0.03579999924 | AV49: 8.167599998
C50: > 132 kV & < = 275 kV ; < = 200 MVA
C51: > 132 kV & < = 275 kV ; > 200 MVA & < = 600 MVA | D51: 60 | E51: 0 | H51: 2.359 | AK51: 397.7753997 | AS51: 281.015
C52: > 132 kV & < = 275 kV ; > 600 MVA
C53: > 275 kV & < = 330 kV ; < = 800 MVA | D53: 60 | E53: 0 | I53: 0.08699999809
C54: > 275 kV & < = 330 kV ; > 800 MVA & < = 1200 MVA | D54: 59.58427115 | E54: 2.853374583 | F54: 6.216 | I54: 0.0875 | J54: 0.1061999969 | M54: 0.1125999985 | N54: 118.2147001 | O54: 3.332299973 | Q54: 0.09469999695 | R54: 3.868599983 | X54: 0.1215999985 | AA54: 2.568199982 | AF54: 3.153700027 | AG54: 169.2813002 | AK54: 151.6308001 | AN54: 169.9280999 | AO54: 134.2156002 | AP54: 111.0049002 | AR54: 22.18650006 | AS54: 99.48629991 | AX54: 229.4825997 | AY54: 75.4840998 | AZ54: 141.0958002 | BA54: 142.8909996 | BC54: 124.1140002 | BE54: 140.1897 | BF54: 170.7440003 | BH54: 17.13110016 | BI54: 2.340000031 | BJ54: 217.8806998 | BK54: 249.6233001 | BM54: 128.1237997 | BN54: 118.6411 | BO54: 304.3683998
C55: > 275 kV & < = 330 kV ; > 1200 MVA | D55: 55.67128947 | E55: 8.236290172 | F55: 2.8166 | G55: 1.726400017 | H55: 8.919200027 | J55: 14.78550002 | L55: 15.71110001 | N55: 0.1626999969 | O55: 1.48669998 | P55: 0.223 | R55: 4.057699997 | U55: 26.40670016 | X55: 440.1950996 | AA55: 0.1329000015 | AC55: 7.230499985 | AD55: 2.631799986 | AF55: 39.74660001 | AG55: 12.40160001 | AL55: 1.198699982 | AM55: 0.7215999985 | AN55: 62.41489997 | AO55: 90.18640035 | AP55: 48.74669999 | AQ55: 38.89799989 | AR55: 10.22569995 | AT55: 5.213300018 | AU55: 109.9929001 | AV55: 21.94330002 | AW55: 196.6310996 | AX55: 0.02279999924 | AY55: 82.00810001 | BA55: 23.94269987 | BB55: 378.9587991 | BC55: 37.91690015 | BE55: 1.037699997 | BF55: 115.4819 | BH55: 192.7738999 | BI55: 265.4348999 | BJ55: 115.4641001 | BK55: 27.86360004 | BM55: 35.70789988
C56: > 330 kV & < = 500 kV ; < = 1000 MVA
C57: > 330 kV & < = 500 kV ; > 1000 MVA & < = 1500 MVA
C58: > 330 kV & < = 500 kV ; > 1500 MVA | D58: 59.56043956 | E58: 2.93223386 | J58: 22.80770012 | O58: 0.09090000153 | P58: 0.4668000107 | Q58: 0.6402999954 | AF58: 281.9972999 | AL58: 431.4191 | AP58: 286.3353999
C59: > 500 kV ; < = 2000 MVA
C60: > 500 kV ; > 2000 MVA & < = 3000 MVA
C61: > 500 kV ; > 3000 MVA
C62: Other
B63: TRANSMISSION CABLES BY: Highest operating voltage; Insulation type | C63: < = 33 kV; Oil Filled
C64: > 33 kV & < = 66 kV ; Oil Filled
C65: > 66 kV & < = 132 kV ; Oil Filled
C66: > 132 kV & < = 275 kV ; Oil Filled
C67: > 275 kV & < = 330 kV ; Oil Filled | D67: 40 | E67: 0 | G67: 0 | H67: 0 | I67: 0 | J67: 0 | K67: 0 | L67: 0 | M67: 0 | N67: 0 | O67: 0 | P67: 0 | Q67: 0 | R67: 0 | S67: 26.986 | T67: 0 | U67: 0 | V67: 0 | W67: 0 | X67: 0 | Y67: 0 | Z67: 0 | AA67: 0 | AB67: 0 | AC67: 0 | AD67: 0 | AE67: 0 | AF67: 0 | AG67: 0 | AH67: 0 | AI67: 0 | AJ67: 0 | AK67: 0 | AL67: 0 | AM67: 0 | AN67: 0 | AO67: 0 | AP67: 0 | AQ67: 0 | AR67: 0 | AS67: 19.7
C68: > 330 kV & < = 500 kV ; Oil Filled | D68: 0 | E68: 0 | G68: 0 | H68: 0 | I68: 0 | J68: 0 | K68: 0 | L68: 0 | M68: 0 | N68: 0 | O68: 0 | P68: 0 | Q68: 0 | R68: 0 | S68: 0 | T68: 0 | U68: 0 | V68: 0 | W68: 0 | X68: 0 | Y68: 0 | Z68: 0 | AA68: 0 | AB68: 0 | AC68: 0 | AD68: 0 | AE68: 0 | AF68: 0 | AG68: 0 | AH68: 0 | AI68: 0 | AJ68: 0 | AK68: 0 | AL68: 0 | AM68: 0 | AN68: 0 | AO68: 0 | AP68: 0 | AQ68: 0 | AR68: 0 | AS68: 0
C69: > 500 kV ; Oil Filled | D69: 0 | E69: 0 | G69: 0 | H69: 0 | I69: 0 | J69: 0 | K69: 0 | L69: 0 | M69: 0 | N69: 0 | O69: 0 | P69: 0 | Q69: 0 | R69: 0 | S69: 0 | T69: 0 | U69: 0 | V69: 0 | W69: 0 | X69: 0 | Y69: 0 | Z69: 0 | AA69: 0 | AB69: 0 | AC69: 0 | AD69: 0 | AE69: 0 | AF69: 0 | AG69: 0 | AH69: 0 | AI69: 0 | AJ69: 0 | AK69: 0 | AL69: 0 | AM69: 0 | AN69: 0 | AO69: 0 | AP69: 0 | AQ69: 0 | AR69: 0 | AS69: 0
C70: < = 33 kV; XLPE Insulated | D70: 0 | E70: 0 | G70: 0 | H70: 0 | I70: 0 | J70: 0 | K70: 0 | L70: 0 | M70: 0 | N70: 0 | O70: 0 | P70: 0 | Q70: 0 | R70: 0 | S70: 0 | T70: 0 | U70: 0 | V70: 0 | W70: 0 | X70: 0 | Y70: 0 | Z70: 0 | AA70: 0 | AB70: 0 | AC70: 0 | AD70: 0 | AE70: 0 | AF70: 0 | AG70: 0 | AH70: 0 | AI70: 0 | AJ70: 0 | AK70: 0 | AL70: 0 | AM70: 0 | AN70: 0 | AO70: 0 | AP70: 0 | AQ70: 0 | AR70: 0 | AS70: 0
C71: > 33 kV & < = 66 kV ; XLPE Insulated | D71: 0 | E71: 0 | G71: 0 | H71: 0 | I71: 0 | J71: 0 | K71: 0 | L71: 0 | M71: 0 | N71: 0 | O71: 0 | P71: 0 | Q71: 0 | R71: 0 | S71: 0 | T71: 0 | U71: 0 | V71: 0 | W71: 0 | X71: 0 | Y71: 0 | Z71: 0 | AA71: 0 | AB71: 0 | AC71: 0 | AD71: 0 | AE71: 0 | AF71: 0 | AG71: 0 | AH71: 0 | AI71: 0 | AJ71: 0 | AK71: 0 | AL71: 0 | AM71: 0 | AN71: 0 | AO71: 0 | AP71: 0 | AQ71: 0 | AR71: 0 | AS71: 0
C72: > 66 kV & < = 132 kV ; XLPE Insulated | D72: 40 | E72: 0 | G72: 0.07 | H72: 0 | I72: 0 | J72: 3.617 | K72: 0.2 | L72: 0 | M72: 0 | N72: 0 | O72: 0 | P72: 0 | Q72: 0 | R72: 0 | S72: 0 | T72: 0 | U72: 0 | V72: 0 | W72: 0 | X72: 0 | Y72: 0 | Z72: 0 | AA72: 0 | AB72: 0 | AC72: 0 | AD72: 0 | AE72: 0 | AF72: 0 | AG72: 0 | AH72: 0 | AI72: 0 | AJ72: 0 | AK72: 0 | AL72: 0 | AM72: 0 | AN72: 0 | AO72: 0 | AP72: 0 | AQ72: 0 | AR72: 0 | AS72: 0
C73: > 132 kV & < = 275 kV ; XLPE Insulated | D73: 0 | E73: 0 | G73: 0 | H73: 0 | I73: 0 | J73: 0 | K73: 0 | L73: 0 | M73: 0 | N73: 0 | O73: 0 | P73: 0 | Q73: 0 | R73: 0 | S73: 0 | T73: 0 | U73: 0 | V73: 0 | W73: 0 | X73: 0 | Y73: 0 | Z73: 0 | AA73: 0 | AB73: 0 | AC73: 0 | AD73: 0 | AE73: 0 | AF73: 0 | AG73: 0 | AH73: 0 | AI73: 0 | AJ73: 0 | AK73: 0 | AL73: 0 | AM73: 0 | AN73: 0 | AO73: 0 | AP73: 0 | AQ73: 0 | AR73: 0 | AS73: 0
C74: > 275 kV & < = 330 kV ; XLPE Insulated | D74: 40 | E74: 0 | G74: 0 | H74: 0 | I74: 30.787 | J74: 0 | K74: 0 | L74: 0 | M74: 0 | N74: 0 | O74: 0 | P74: 0 | Q74: 0 | R74: 0 | S74: 0 | T74: 0 | U74: 0 | V74: 0 | W74: 0 | X74: 0 | Y74: 0 | Z74: 0 | AA74: 0 | AB74: 0 | AC74: 0 | AD74: 0 | AE74: 0 | AF74: 0 | AG74: 0 | AH74: 0 | AI74: 0 | AJ74: 0 | AK74: 0 | AL74: 0 | AM74: 0 | AN74: 0 | AO74: 0 | AP74: 0 | AQ74: 0 | AR74: 0 | AS74: 0
C75: > 330 kV & < = 500 kV ; XLPE Insulated
C76: > 500 kV ; XLPE Insulated
C77: < = 33 kV; Other Insulated
C78: > 33 kV & < = 66 kV ; Other Insulated
C79: > 66 kV & < = 132 kV ; Other Insulated
C80: > 132 kV & < = 275 kV ; Other Insulated
C81: > 275 kV & < = 330 kV ; Other Insulated
C82: > 330 kV & < = 500 kV ; Other Insulated
C83: > 500 kV ; Other Insulated
C84: Other
B85: SUBSTATION SWITCHBAYS BY: Highest operating voltage; Switch type | C85: < = 33 kV; Air Insulated circuit Breaker | D85: 40 | E85: 6.3 | F85: 0 | G85: 8 | H85: 8 | I85: 0 | J85: 0 | K85: 2 | L85: 3 | M85: 3 | N85: 0 | O85: 0 | P85: 1 | Q85: 3 | R85: 10 | S85: 3 | T85: 3 | U85: 1 | V85: 11 | W85: 3 | X85: 0 | Y85: 5 | Z85: 0 | AA85: 7 | AB85: 1 | AC85: 0 | AD85: 0 | AE85: 1 | AF85: 0 | AG85: 0 | AH85: 0 | AI85: 1 | AJ85: 2 | AK85: 0 | AL85: 4 | AM85: 0 | AN85: 2 | AO85: 0 | AP85: 0 | AQ85: 0 | AR85: 0 | AS85: 0 | AT85: 0 | AU85: 0 | AV85: 0 | AW85: 0 | AX85: 0 | AY85: 4 | AZ85: 0 | BA85: 0 | BB85: 0 | BC85: 0 | BD85: 2 | BE85: 0 | BF85: 0 | BG85: 0 | BH85: 0 | BI85: 0 | BJ85: 0 | BK85: 0 | BL85: 0 | BM85: 0 | BN85: 0 | BO85: 0 | BP85: 0 | BQ85: 0 | BR85: 0 | BS85: 0 | BT85: 0 | BU85: 0 | BV85: 0 | BW85: 0 | BX85: 0 | BY85: 0 | BZ85: 0 | CA85: 0 | CB85: 0 | CC85: 0 | CD85: 0 | CE85: 0 | CF85: 0 | CG85: 0 | CH85: 0 | CI85: 0 | CJ85: 0 | CK85: 0 | CL85: 0 | CM85: 0 | CN85: 0 | CO85: 0 | CP85: 0 | CQ85: 0 | CR85: 0 | CS85: 0 | CT85: 0 | CU85: 0 | CV85: 0 | CW85: 0 | CX85: 0 | CY85: 0 | CZ85: 0 | DA85: 0 | DB85: 0 | DC85: 0 | DD85: 0 | DE85: 0 | DF85: 0 | DG85: 0 | DH85: 0 | DI85: 0 | DJ85: 0
C86: > 33 kV & < = 66 kV ; Air Insulated circuit Breaker | D86: 40 | E86: 6.3 | F86: 21 | G86: 18 | H86: 18 | I86: 4 | J86: 13 | K86: 9 | L86: 6 | M86: 28 | N86: 8 | O86: 16 | P86: 6 | Q86: 16 | R86: 10 | S86: 0 | T86: 4 | U86: 8 | V86: 14 | W86: 1 | X86: 3 | Y86: 2 | Z86: 2 | AA86: 11 | AB86: 3 | AC86: 2 | AD86: 6 | AE86: 4 | AF86: 1 | AG86: 2 | AH86: 0 | AI86: 0 | AJ86: 2 | AK86: 0 | AL86: 0 | AM86: 7 | AN86: 33 | AO86: 1 | AP86: 6 | AQ86: 0 | AR86: 0 | AS86: 10 | AT86: 0 | AU86: 0 | AV86: 0 | AW86: 0 | AX86: 0 | AY86: 0 | AZ86: 1 | BA86: 0 | BB86: 2 | BC86: 2 | BD86: 0 | BE86: 1 | BF86: 0 | BG86: 0 | BH86: 0 | BI86: 4 | BJ86: 0 | BK86: 0 | BL86: 0 | BM86: 0 | BN86: 0 | BO86: 0 | BP86: 0 | BQ86: 0 | BR86: 0 | BS86: 0 | BT86: 0 | BU86: 0 | BV86: 0 | BW86: 0 | BX86: 0 | BY86: 0 | BZ86: 0 | CA86: 0 | CB86: 0 | CC86: 0 | CD86: 0 | CE86: 0 | CF86: 0 | CG86: 0 | CH86: 0 | CI86: 0 | CJ86: 0 | CK86: 0 | CL86: 0 | CM86: 0 | CN86: 0 | CO86: 0 | CP86: 0 | CQ86: 0 | CR86: 0 | CS86: 0 | CT86: 0 | CU86: 0 | CV86: 0 | CW86: 0 | CX86: 0 | CY86: 0 | CZ86: 0 | DA86: 0 | DB86: 0 | DC86: 0 | DD86: 0 | DE86: 0 | DF86: 0 | DG86: 0 | DH86: 0 | DI86: 0 | DJ86: 0
C87: > 66 kV & < = 132 kV ; Air Insulated circuit Breaker | D87: 40 | E87: 6.3 | F87: 5 | G87: 5 | H87: 19 | I87: 11 | J87: 13 | K87: 30 | L87: 38 | M87: 29 | N87: 24 | O87: 21 | P87: 15 | Q87: 16 | R87: 31 | S87: 19 | T87: 11 | U87: 18 | V87: 45 | W87: 20 | X87: 22 | Y87: 10 | Z87: 27 | AA87: 19 | AB87: 20 | AC87: 11 | AD87: 15 | AE87: 13 | AF87: 3 | AG87: 1 | AH87: 15 | AI87: 4 | AJ87: 4 | AK87: 1 | AL87: 1 | AM87: 7 | AN87: 24 | AO87: 10 | AP87: 8 | AQ87: 10 | AR87: 1 | AS87: 0 | AT87: 0 | AU87: 0 | AV87: 0 | AW87: 0 | AX87: 0 | AY87: 0 | AZ87: 1 | BA87: 0 | BB87: 3 | BC87: 0 | BD87: 1 | BE87: 0 | BF87: 0 | BG87: 0 | BH87: 0 | BI87: 0 | BJ87: 0 | BK87: 0 | BL87: 0 | BM87: 0 | BN87: 0 | BO87: 0 | BP87: 0 | BQ87: 0 | BR87: 0 | BS87: 0 | BT87: 0 | BU87: 0 | BV87: 0 | BW87: 0 | BX87: 0 | BY87: 0 | BZ87: 0 | CA87: 0 | CB87: 0 | CC87: 0 | CD87: 0 | CE87: 0 | CF87: 0 | CG87: 0 | CH87: 0 | CI87: 0 | CJ87: 0 | CK87: 0 | CL87: 0 | CM87: 0 | CN87: 0 | CO87: 0 | CP87: 0 | CQ87: 0 | CR87: 0 | CS87: 0 | CT87: 0 | CU87: 0 | CV87: 0 | CW87: 0 | CX87: 0 | CY87: 0 | CZ87: 0 | DA87: 0 | DB87: 0 | DC87: 0 | DD87: 0 | DE87: 0 | DF87: 0 | DG87: 0 | DH87: 0 | DI87: 0 | DJ87: 0
C88: > 132 kV & < = 275 kV ; Air Insulated circuit Breaker | D88: 40 | E88: 6.3 | F88: 0 | G88: 0 | H88: 0 | I88: 0 | J88: 0 | K88: 0 | L88: 0 | M88: 0 | N88: 0 | O88: 0 | P88: 0 | Q88: 0 | R88: 0 | S88: 0 | T88: 0 | U88: 0 | V88: 1 | W88: 0 | X88: 0 | Y88: 0 | Z88: 1 | AA88: 0 | AB88: 0 | AC88: 0 | AD88: 0 | AE88: 0 | AF88: 0 | AG88: 0 | AH88: 0 | AI88: 0 | AJ88: 9 | AK88: 0 | AL88: 2 | AM88: 0 | AN88: 0 | AO88: 0 | AP88: 0 | AQ88: 0 | AR88: 0 | AS88: 0 | AT88: 0 | AU88: 0 | AV88: 0 | AW88: 0 | AX88: 0 | AY88: 0 | AZ88: 0 | BA88: 0 | BB88: 0 | BC88: 0 | BD88: 0 | BE88: 0 | BF88: 0 | BG88: 0 | BH88: 0 | BI88: 0 | BJ88: 0 | BK88: 0 | BL88: 0 | BM88: 0 | BN88: 0 | BO88: 0 | BP88: 0 | BQ88: 0 | BR88: 0 | BS88: 0 | BT88: 0 | BU88: 0 | BV88: 0 | BW88: 0 | BX88: 0 | BY88: 0 | BZ88: 0 | CA88: 0 | CB88: 0 | CC88: 0 | CD88: 0 | CE88: 0 | CF88: 0 | CG88: 0 | CH88: 0 | CI88: 0 | CJ88: 0 | CK88: 0 | CL88: 0 | CM88: 0 | CN88: 0 | CO88: 0 | CP88: 0 | CQ88: 0 | CR88: 0 | CS88: 0 | CT88: 0 | CU88: 0 | CV88: 0 | CW88: 0 | CX88: 0 | CY88: 0 | CZ88: 0 | DA88: 0 | DB88: 0 | DC88: 0 | DD88: 0 | DE88: 0 | DF88: 0 | DG88: 0 | DH88: 0 | DI88: 0 | DJ88: 0
C89: > 275 kV & < = 330 kV ; Air Insulated circuit Breaker | D89: 40 | E89: 6.3 | F89: 10 | G89: 11 | H89: 8 | I89: 13 | J89: 22 | K89: 19 | L89: 7 | M89: 26 | N89: 9 | O89: 33 | P89: 6 | Q89: 7 | R89: 29 | S89: 7 | T89: 10 | U89: 11 | V89: 5 | W89: 21 | X89: 11 | Y89: 16 | Z89: 23 | AA89: 8 | AB89: 16 | AC89: 5 | AD89: 29 | AE89: 7 | AF89: 14 | AG89: 1 | AH89: 1 | AI89: 2 | AJ89: 12 | AK89: 9 | AL89: 10 | AM89: 9 | AN89: 5 | AO89: 0 | AP89: 0 | AQ89: 0 | AR89: 0 | AS89: 0 | AT89: 0 | AU89: 0 | AV89: 0 | AW89: 0 | AX89: 0 | AY89: 0 | AZ89: 0 | BA89: 0 | BB89: 0 | BC89: 0 | BD89: 0 | BE89: 0 | BF89: 0 | BG89: 0 | BH89: 0 | BI89: 0 | BJ89: 0 | BK89: 0 | BL89: 6 | BM89: 0 | BN89: 0 | BO89: 0 | BP89: 0 | BQ89: 0 | BR89: 0 | BS89: 0 | BT89: 0 | BU89: 0 | BV89: 0 | BW89: 0 | BX89: 0 | BY89: 0 | BZ89: 0 | CA89: 0 | CB89: 0 | CC89: 0 | CD89: 0 | CE89: 0 | CF89: 0 | CG89: 0 | CH89: 0 | CI89: 0 | CJ89: 0 | CK89: 0 | CL89: 0 | CM89: 0 | CN89: 0 | CO89: 0 | CP89: 0 | CQ89: 0 | CR89: 0 | CS89: 0 | CT89: 0 | CU89: 0 | CV89: 0 | CW89: 0 | CX89: 0 | CY89: 0 | CZ89: 0 | DA89: 0 | DB89: 0 | DC89: 0 | DD89: 0 | DE89: 0 | DF89: 0 | DG89: 0 | DH89: 0 | DI89: 0 | DJ89: 0
C90: > 330 kV & < = 500 kV ; Air Insulated circuit Breaker | D90: 40 | E90: 6.3 | F90: 5 | G90: 5 | H90: 1 | I90: 1 | J90: 0 | K90: 0 | L90: 0 | M90: 4 | N90: 3 | O90: 19 | P90: 0 | Q90: 0 | R90: 0 | S90: 0 | T90: 0 | U90: 0 | V90: 0 | W90: 1 | X90: 0 | Y90: 0 | Z90: 0 | AA90: 0 | AB90: 0 | AC90: 0 | AD90: 0 | AE90: 0 | AF90: 0 | AG90: 0 | AH90: 0 | AI90: 0 | AJ90: 0 | AK90: 0 | AL90: 0 | AM90: 0 | AN90: 0 | AO90: 0 | AP90: 0 | AQ90: 0 | AR90: 0 | AS90: 0 | AT90: 0 | AU90: 0 | AV90: 0 | AW90: 0 | AX90: 0 | AY90: 0 | AZ90: 0 | BA90: 0 | BB90: 0 | BC90: 0 | BD90: 0 | BE90: 0 | BF90: 0 | BG90: 0 | BH90: 0 | BI90: 0 | BJ90: 0 | BK90: 0 | BL90: 0 | BM90: 0 | BN90: 0 | BO90: 0 | BP90: 0 | BQ90: 0 | BR90: 0 | BS90: 0 | BT90: 0 | BU90: 0 | BV90: 0 | BW90: 0 | BX90: 0 | BY90: 0 | BZ90: 0 | CA90: 0 | CB90: 0 | CC90: 0 | CD90: 0 | CE90: 0 | CF90: 0 | CG90: 0 | CH90: 0 | CI90: 0 | CJ90: 0 | CK90: 0 | CL90: 0 | CM90: 0 | CN90: 0 | CO90: 0 | CP90: 0 | CQ90: 0 | CR90: 0 | CS90: 0 | CT90: 0 | CU90: 0 | CV90: 0 | CW90: 0 | CX90: 0 | CY90: 0 | CZ90: 0 | DA90: 0 | DB90: 0 | DC90: 0 | DD90: 0 | DE90: 0 | DF90: 0 | DG90: 0 | DH90: 0 | DI90: 0 | DJ90: 0
C91: > 500 kV ; Air Insulated circuit Breaker | D91: 0 | E91: 0 | F91: 0 | G91: 0 | H91: 0 | I91: 0 | J91: 0 | K91: 0 | L91: 0 | M91: 0 | N91: 0 | O91: 0 | P91: 0 | Q91: 0 | R91: 0 | S91: 0 | T91: 0 | U91: 0 | V91: 0 | W91: 0 | X91: 0 | Y91: 0 | Z91: 0 | AA91: 0 | AB91: 0 | AC91: 0 | AD91: 0 | AE91: 0 | AF91: 0 | AG91: 0 | AH91: 0 | AI91: 0 | AJ91: 0 | AK91: 0 | AL91: 0 | AM91: 0 | AN91: 0 | AO91: 0 | AP91: 0 | AQ91: 0 | AR91: 0 | AS91: 0 | AT91: 0 | AU91: 0 | AV91: 0 | AW91: 0 | AX91: 0 | AY91: 0 | AZ91: 0 | BA91: 0 | BB91: 0 | BC91: 0 | BD91: 0 | BE91: 0 | BF91: 0 | BG91: 0 | BH91: 0 | BI91: 0 | BJ91: 0 | BK91: 0 | BL91: 0 | BM91: 0 | BN91: 0 | BO91: 0 | BP91: 0 | BQ91: 0 | BR91: 0 | BS91: 0 | BT91: 0 | BU91: 0 | BV91: 0 | BW91: 0 | BX91: 0 | BY91: 0 | BZ91: 0 | CA91: 0 | CB91: 0 | CC91: 0 | CD91: 0 | CE91: 0 | CF91: 0 | CG91: 0 | CH91: 0 | CI91: 0 | CJ91: 0 | CK91: 0 | CL91: 0 | CM91: 0 | CN91: 0 | CO91: 0 | CP91: 0 | CQ91: 0 | CR91: 0 | CS91: 0 | CT91: 0 | CU91: 0 | CV91: 0 | CW91: 0 | CX91: 0 | CY91: 0 | CZ91: 0 | DA91: 0 | DB91: 0 | DC91: 0 | DD91: 0 | DE91: 0 | DF91: 0 | DG91: 0 | DH91: 0 | DI91: 0 | DJ91: 0
C92: < = 33 kV; Air Insulated Isolators / Earth Switch | D92: 40 | E92: 6.3 | F92: 0 | G92: 3 | H92: 3 | I92: 3 | J92: 2 | K92: 2 | L92: 9 | M92: 8 | N92: 0 | O92: 0 | P92: 0 | Q92: 0 | R92: 0 | S92: 75 | T92: 0 | U92: 0 | V92: 1 | W92: 0 | X92: 0 | Y92: 0 | Z92: 0 | AA92: 2 | AB92: 0 | AC92: 8 | AD92: 27 | AE92: 1 | AF92: 0 | AG92: 1 | AH92: 0 | AI92: 14 | AJ92: 3 | AK92: 0 | AL92: 10 | AM92: 0 | AN92: 3 | AO92: 0 | AP92: 2 | AQ92: 0 | AR92: 0 | AS92: 14 | AT92: 0 | AU92: 0 | AV92: 0 | AW92: 0 | AX92: 1 | AY92: 0 | AZ92: 0 | BA92: 0 | BB92: 7 | BC92: 3 | BD92: 0 | BE92: 2 | BF92: 0 | BG92: 3 | BH92: 0 | BI92: 0 | BJ92: 0 | BK92: 0 | BL92: 0 | BM92: 0 | BN92: 0 | BO92: 0 | BP92: 0 | BQ92: 0 | BR92: 0 | BS92: 0 | BT92: 0 | BU92: 0 | BV92: 0 | BW92: 0 | BX92: 0 | BY92: 0 | BZ92: 0 | CA92: 0 | CB92: 0 | CC92: 0 | CD92: 0 | CE92: 0 | CF92: 0 | CG92: 0 | CH92: 0 | CI92: 0 | CJ92: 0 | CK92: 0 | CL92: 0 | CM92: 0 | CN92: 0 | CO92: 0 | CP92: 0 | CQ92: 0 | CR92: 0 | CS92: 0 | CT92: 0 | CU92: 0 | CV92: 0 | CW92: 0 | CX92: 0 | CY92: 0 | CZ92: 0 | DA92: 0 | DB92: 0 | DC92: 0 | DD92: 0 | DE92: 0 | DF92: 0 | DG92: 0 | DH92: 0 | DI92: 0 | DJ92: 0
C93: > 33 kV & < = 66 kV ; Air Insulated Isolators / Earth Switch | D93: 40 | E93: 6.3 | F93: 22 | G93: 3 | H93: 45 | I93: 9 | J93: 28 | K93: 1 | L93: 0 | M93: 48 | N93: 18 | O93: 43 | P93: 1 | Q93: 28 | R93: 3 | S93: 130 | T93: 2 | U93: 1 | V93: 15 | W93: 0 | X93: 0 | Y93: 1 | Z93: 1 | AA93: 0 | AB93: 2 | AC93: 20 | AD93: 15 | AE93: 12 | AF93: 1 | AG93: 12 | AH93: 0 | AI93: 1 | AJ93: 1 | AK93: 1 | AL93: 0 | AM93: 13 | AN93: 70 | AO93: 8 | AP93: 11 | AQ93: 0 | AR93: 0 | AS93: 6 | AT93: 0 | AU93: 9 | AV93: 1 | AW93: 0 | AX93: 0 | AY93: 0 | AZ93: 1 | BA93: 1 | BB93: 15 | BC93: 39 | BD93: 1 | BE93: 22 | BF93: 0 | BG93: 0 | BH93: 0 | BI93: 19 | BJ93: 0 | BK93: 0 | BL93: 0 | BM93: 0 | BN93: 0 | BO93: 0 | BP93: 0 | BQ93: 0 | BR93: 0 | BS93: 0 | BT93: 0 | BU93: 0 | BV93: 0 | BW93: 0 | BX93: 0 | BY93: 0 | BZ93: 0 | CA93: 0 | CB93: 0 | CC93: 0 | CD93: 0 | CE93: 0 | CF93: 0 | CG93: 0 | CH93: 0 | CI93: 0 | CJ93: 0 | CK93: 0 | CL93: 0 | CM93: 0 | CN93: 0 | CO93: 0 | CP93: 0 | CQ93: 0 | CR93: 0 | CS93: 0 | CT93: 0 | CU93: 0 | CV93: 0 | CW93: 0 | CX93: 0 | CY93: 0 | CZ93: 0 | DA93: 0 | DB93: 0 | DC93: 0 | DD93: 0 | DE93: 0 | DF93: 0 | DG93: 0 | DH93: 0 | DI93: 0 | DJ93: 0
C94: > 66 kV & < = 132 kV ; Air Insulated Isolators / Earth Switch | D94: 40 | E94: 6.3 | F94: 4 | G94: 7 | H94: 60 | I94: 38 | J94: 40 | K94: 44 | L94: 80 | M94: 88 | N94: 51 | O94: 58 | P94: 28 | Q94: 35 | R94: 59 | S94: 189 | T94: 13 | U94: 50 | V94: 69 | W94: 24 | X94: 9 | Y94: 4 | Z94: 26 | AA94: 5 | AB94: 28 | AC94: 31 | AD94: 99 | AE94: 97 | AF94: 0 | AG94: 1 | AH94: 40 | AI94: 24 | AJ94: 9 | AK94: 8 | AL94: 10 | AM94: 26 | AN94: 79 | AO94: 65 | AP94: 31 | AQ94: 16 | AR94: 9 | AS94: 52 | AT94: 2 | AU94: 16 | AV94: 0 | AW94: 68 | AX94: 133 | AY94: 24 | AZ94: 13 | BA94: 3 | BB94: 75 | BC94: 39 | BD94: 13 | BE94: 85 | BF94: 1 | BG94: 19 | BH94: 0 | BI94: 3 | BJ94: 1 | BK94: 2 | BL94: 0 | BM94: 7 | BN94: 0 | BO94: 1 | BP94: 0 | BQ94: 0 | BR94: 0 | BS94: 0 | BT94: 0 | BU94: 0 | BV94: 0 | BW94: 0 | BX94: 0 | BY94: 0 | BZ94: 0 | CA94: 0 | CB94: 0 | CC94: 0 | CD94: 0 | CE94: 0 | CF94: 0 | CG94: 0 | CH94: 0 | CI94: 0 | CJ94: 0 | CK94: 0 | CL94: 0 | CM94: 0 | CN94: 0 | CO94: 0 | CP94: 0 | CQ94: 0 | CR94: 0 | CS94: 0 | CT94: 0 | CU94: 0 | CV94: 0 | CW94: 0 | CX94: 0 | CY94: 0 | CZ94: 0 | DA94: 0 | DB94: 0 | DC94: 0 | DD94: 0 | DE94: 0 | DF94: 0 | DG94: 0 | DH94: 0 | DI94: 0 | DJ94: 0
C95: > 132 kV & < = 275 kV ; Air Insulated Isolators / Earth Switch | D95: 40 | E95: 6.3 | F95: 1 | G95: 0 | H95: 0 | I95: 0 | J95: 0 | K95: 0 | L95: 0 | M95: 0 | N95: 0 | O95: 0 | P95: 0 | Q95: 0 | R95: 0 | S95: 24 | T95: 0 | U95: 0 | V95: 3 | W95: 0 | X95: 0 | Y95: 0 | Z95: 0 | AA95: 0 | AB95: 0 | AC95: 0 | AD95: 0 | AE95: 0 | AF95: 0 | AG95: 0 | AH95: 0 | AI95: 0 | AJ95: 10 | AK95: 0 | AL95: 2 | AM95: 0 | AN95: 0 | AO95: 0 | AP95: 0 | AQ95: 0 | AR95: 0 | AS95: 3 | AT95: 0 | AU95: 0 | AV95: 0 | AW95: 0 | AX95: 0 | AY95: 0 | AZ95: 0 | BA95: 0 | BB95: 0 | BC95: 0 | BD95: 0 | BE95: 0 | BF95: 0 | BG95: 0 | BH95: 0 | BI95: 0 | BJ95: 0 | BK95: 0 | BL95: 0 | BM95: 0 | BN95: 0 | BO95: 0 | BP95: 0 | BQ95: 0 | BR95: 0 | BS95: 0 | BT95: 0 | BU95: 0 | BV95: 0 | BW95: 0 | BX95: 0 | BY95: 0 | BZ95: 0 | CA95: 0 | CB95: 0 | CC95: 0 | CD95: 0 | CE95: 0 | CF95: 0 | CG95: 0 | CH95: 0 | CI95: 0 | CJ95: 0 | CK95: 0 | CL95: 0 | CM95: 0 | CN95: 0 | CO95: 0 | CP95: 0 | CQ95: 0 | CR95: 0 | CS95: 0 | CT95: 0 | CU95: 0 | CV95: 0 | CW95: 0 | CX95: 0 | CY95: 0 | CZ95: 0 | DA95: 0 | DB95: 0 | DC95: 0 | DD95: 0 | DE95: 0 | DF95: 0 | DG95: 0 | DH95: 0 | DI95: 0 | DJ95: 0
C96: > 275 kV & < = 330 kV ; Air Insulated Isolators / Earth Switch | D96: 40 | E96: 6.3 | F96: 15 | G96: 30 | H96: 7 | I96: 2 | J96: 46 | K96: 56 | L96: 44 | M96: 142 | N96: 42 | O96: 69 | P96: 44 | Q96: 30 | R96: 83 | S96: 80 | T96: 29 | U96: 37 | V96: 4 | W96: 25 | X96: 6 | Y96: 0 | Z96: 36 | AA96: 0 | AB96: 24 | AC96: 0 | AD96: 302 | AE96: 47 | AF96: 33 | AG96: 0 | AH96: 22 | AI96: 7 | AJ96: 13 | AK96: 7 | AL96: 49 | AM96: 105 | AN96: 54 | AO96: 3 | AP96: 5 | AQ96: 13 | AR96: 1 | AS96: 0 | AT96: 37 | AU96: 35 | AV96: 33 | AW96: 79 | AX96: 13 | AY96: 28 | AZ96: 42 | BA96: 0 | BB96: 0 | BC96: 26 | BD96: 22 | BE96: 63 | BF96: 0 | BG96: 12 | BH96: 0 | BI96: 0 | BJ96: 0 | BK96: 0 | BL96: 3 | BM96: 0 | BN96: 0 | BO96: 0 | BP96: 0 | BQ96: 0 | BR96: 0 | BS96: 0 | BT96: 0 | BU96: 0 | BV96: 0 | BW96: 0 | BX96: 0 | BY96: 0 | BZ96: 0 | CA96: 0 | CB96: 0 | CC96: 0 | CD96: 0 | CE96: 0 | CF96: 0 | CG96: 0 | CH96: 0 | CI96: 0 | CJ96: 0 | CK96: 0 | CL96: 0 | CM96: 0 | CN96: 0 | CO96: 0 | CP96: 0 | CQ96: 0 | CR96: 0 | CS96: 0 | CT96: 0 | CU96: 0 | CV96: 0 | CW96: 0 | CX96: 0 | CY96: 0 | CZ96: 0 | DA96: 0 | DB96: 0 | DC96: 0 | DD96: 0 | DE96: 0 | DF96: 0 | DG96: 0 | DH96: 0 | DI96: 0 | DJ96: 0
C97: > 330 kV & < = 500 kV ; Air Insulated Isolators / Earth Switch | D97: 40 | E97: 6.3 | F97: 0 | G97: 0 | H97: 0 | I97: 0 | J97: 0 | K97: 0 | L97: 0 | M97: 40 | N97: 27 | O97: 118 | P97: 0 | Q97: 0 | R97: 0 | S97: 0 | T97: 0 | U97: 0 | V97: 0 | W97: 0 | X97: 0 | Y97: 0 | Z97: 0 | AA97: 0 | AB97: 0 | AC97: 0 | AD97: 45 | AE97: 0 | AF97: 0 | AG97: 0 | AH97: 0 | AI97: 0 | AJ97: 0 | AK97: 0 | AL97: 0 | AM97: 1 | AN97: 36 | AO97: 0 | AP97: 0 | AQ97: 0 | AR97: 0 | AS97: 0 | AT97: 0 | AU97: 0 | AV97: 0 | AW97: 0 | AX97: 0 | AY97: 0 | AZ97: 0 | BA97: 0 | BB97: 0 | BC97: 0 | BD97: 0 | BE97: 0 | BF97: 0 | BG97: 0 | BH97: 0 | BI97: 0 | BJ97: 0 | BK97: 0 | BL97: 0 | BM97: 0 | BN97: 0 | BO97: 0 | BP97: 0 | BQ97: 0 | BR97: 0 | BS97: 0 | BT97: 0 | BU97: 0 | BV97: 0 | BW97: 0 | BX97: 0 | BY97: 0 | BZ97: 0 | CA97: 0 | CB97: 0 | CC97: 0 | CD97: 0 | CE97: 0 | CF97: 0 | CG97: 0 | CH97: 0 | CI97: 0 | CJ97: 0 | CK97: 0 | CL97: 0 | CM97: 0 | CN97: 0 | CO97: 0 | CP97: 0 | CQ97: 0 | CR97: 0 | CS97: 0 | CT97: 0 | CU97: 0 | CV97: 0 | CW97: 0 | CX97: 0 | CY97: 0 | CZ97: 0 | DA97: 0 | DB97: 0 | DC97: 0 | DD97: 0 | DE97: 0 | DF97: 0 | DG97: 0 | DH97: 0 | DI97: 0 | DJ97: 0
C98: > 500 kV ; Air Insulated Isolators / Earth Switch | D98: 0 | E98: 0 | F98: 0 | G98: 0 | H98: 0 | I98: 0 | J98: 0 | K98: 0 | L98: 0 | M98: 0 | N98: 0 | O98: 0 | P98: 0 | Q98: 0 | R98: 0 | S98: 0 | T98: 0 | U98: 0 | V98: 0 | W98: 0 | X98: 0 | Y98: 0 | Z98: 0 | AA98: 0 | AB98: 0 | AC98: 0 | AD98: 0 | AE98: 0 | AF98: 0 | AG98: 0 | AH98: 0 | AI98: 0 | AJ98: 0 | AK98: 0 | AL98: 0 | AM98: 0 | AN98: 0 | AO98: 0 | AP98: 0 | AQ98: 0 | AR98: 0 | AS98: 0 | AT98: 0 | AU98: 0 | AV98: 0 | AW98: 0 | AX98: 0 | AY98: 0 | AZ98: 0 | BA98: 0 | BB98: 0 | BC98: 0 | BD98: 0 | BE98: 0 | BF98: 0 | BG98: 0 | BH98: 0 | BI98: 0 | BJ98: 0 | BK98: 0 | BL98: 0 | BM98: 0 | BN98: 0 | BO98: 0 | BP98: 0 | BQ98: 0 | BR98: 0 | BS98: 0 | BT98: 0 | BU98: 0 | BV98: 0 | BW98: 0 | BX98: 0 | BY98: 0 | BZ98: 0 | CA98: 0 | CB98: 0 | CC98: 0 | CD98: 0 | CE98: 0 | CF98: 0 | CG98: 0 | CH98: 0 | CI98: 0 | CJ98: 0 | CK98: 0 | CL98: 0 | CM98: 0 | CN98: 0 | CO98: 0 | CP98: 0 | CQ98: 0 | CR98: 0 | CS98: 0 | CT98: 0 | CU98: 0 | CV98: 0 | CW98: 0 | CX98: 0 | CY98: 0 | CZ98: 0 | DA98: 0 | DB98: 0 | DC98: 0 | DD98: 0 | DE98: 0 | DF98: 0 | DG98: 0 | DH98: 0 | DI98: 0 | DJ98: 0
C99: < = 33 kV; VT | D99: 40 | E99: 6.3 | F99: 0 | G99: 2 | H99: 9 | I99: 6 | J99: 4 | K99: 6 | L99: 3 | M99: 0 | N99: 0 | O99: 0 | P99: 0 | Q99: 0 | R99: 1 | S99: 6 | T99: 0 | U99: 2 | V99: 0 | W99: 4 | X99: 0 | Y99: 0 | Z99: 0 | AA99: 0 | AB99: 0 | AC99: 0 | AD99: 7 | AE99: 0 | AF99: 0 | AG99: 0 | AH99: 1 | AI99: 2 | AJ99: 0 | AK99: 0 | AL99: 4 | AM99: 1 | AN99: 0 | AO99: 0 | AP99: 0 | AQ99: 0 | AR99: 0 | AS99: 2 | AT99: 0 | AU99: 0 | AV99: 0 | AW99: 1 | AX99: 0 | AY99: 0 | AZ99: 0 | BA99: 0 | BB99: 2 | BC99: 2 | BD99: 0 | BE99: 0 | BF99: 0 | BG99: 1 | BH99: 0 | BI99: 0 | BJ99: 0 | BK99: 0 | BL99: 0 | BM99: 0 | BN99: 0 | BO99: 0 | BP99: 0 | BQ99: 0 | BR99: 0 | BS99: 0 | BT99: 0 | BU99: 0 | BV99: 0 | BW99: 0 | BX99: 0 | BY99: 0 | BZ99: 0 | CA99: 0 | CB99: 0 | CC99: 0 | CD99: 0 | CE99: 0 | CF99: 0 | CG99: 0 | CH99: 0 | CI99: 0 | CJ99: 0 | CK99: 0 | CL99: 0 | CM99: 0 | CN99: 0 | CO99: 0 | CP99: 0 | CQ99: 0 | CR99: 0 | CS99: 0 | CT99: 0 | CU99: 0 | CV99: 0 | CW99: 0 | CX99: 0 | CY99: 0 | CZ99: 0 | DA99: 0 | DB99: 0 | DC99: 0 | DD99: 0 | DE99: 0 | DF99: 0 | DG99: 0 | DH99: 0 | DI99: 0 | DJ99: 0
C100: > 33 kV & < = 66 kV ; VT | D100: 40 | E100: 6.3 | F100: 34 | G100: 18 | H100: 75 | I100: 18 | J100: 33 | K100: 17 | L100: 7 | M100: 40 | N100: 36 | O100: 42 | P100: 10 | Q100: 12 | R100: 9 | S100: 20 | T100: 24 | U100: 8 | V100: 18 | W100: 0 | X100: 0 | Y100: 0 | Z100: 1 | AA100: 3 | AB100: 0 | AC100: 3 | AD100: 13 | AE100: 3 | AF100: 3 | AG100: 6 | AH100: 0 | AI100: 0 | AJ100: 0 | AK100: 3 | AL100: 0 | AM100: 8 | AN100: 26 | AO100: 3 | AP100: 0 | AQ100: 0 | AR100: 3 | AS100: 6 | AT100: 0 | AU100: 0 | AV100: 0 | AW100: 0 | AX100: 0 | AY100: 0 | AZ100: 0 | BA100: 1 | BB100: 8 | BC100: 0 | BD100: 0 | BE100: 4 | BF100: 0 | BG100: 0 | BH100: 0 | BI100: 3 | BJ100: 0 | BK100: 0 | BL100: 0 | BM100: 0 | BN100: 0 | BO100: 2 | BP100: 0 | BQ100: 0 | BR100: 0 | BS100: 0 | BT100: 0 | BU100: 0 | BV100: 0 | BW100: 0 | BX100: 0 | BY100: 0 | BZ100: 0 | CA100: 0 | CB100: 0 | CC100: 0 | CD100: 0 | CE100: 0 | CF100: 0 | CG100: 0 | CH100: 0 | CI100: 0 | CJ100: 0 | CK100: 0 | CL100: 0 | CM100: 0 | CN100: 0 | CO100: 0 | CP100: 0 | CQ100: 0 | CR100: 0 | CS100: 0 | CT100: 0 | CU100: 0 | CV100: 0 | CW100: 0 | CX100: 0 | CY100: 0 | CZ100: 0 | DA100: 0 | DB100: 0 | DC100: 0 | DD100: 0 | DE100: 0 | DF100: 0 | DG100: 0 | DH100: 0 | DI100: 0 | DJ100: 0
C101: > 66 kV & < = 132 kV ; VT | D101: 40 | E101: 6.3 | F101: 6 | G101: 6 | H101: 41 | I101: 42 | J101: 35 | K101: 23 | L101: 119 | M101: 89 | N101: 81 | O101: 75 | P101: 35 | Q101: 7 | R101: 48 | S101: 35 | T101: 8 | U101: 29 | V101: 47 | W101: 9 | X101: 11 | Y101: 16 | Z101: 27 | AA101: 19 | AB101: 34 | AC101: 5 | AD101: 29 | AE101: 26 | AF101: 2 | AG101: 3 | AH101: 8 | AI101: 10 | AJ101: 15 | AK101: 5 | AL101: 0 | AM101: 21 | AN101: 33 | AO101: 28 | AP101: 9 | AQ101: 18 | AR101: 0 | AS101: 11 | AT101: 1 | AU101: 3 | AV101: 0 | AW101: 0 | AX101: 3 | AY101: 10 | AZ101: 3 | BA101: 0 | BB101: 6 | BC101: 9 | BD101: 5 | BE101: 3 | BF101: 0 | BG101: 0 | BH101: 0 | BI101: 0 | BJ101: 0 | BK101: 0 | BL101: 0 | BM101: 0 | BN101: 0 | BO101: 0 | BP101: 0 | BQ101: 0 | BR101: 0 | BS101: 0 | BT101: 0 | BU101: 0 | BV101: 0 | BW101: 0 | BX101: 0 | BY101: 0 | BZ101: 0 | CA101: 0 | CB101: 0 | CC101: 0 | CD101: 0 | CE101: 0 | CF101: 0 | CG101: 0 | CH101: 0 | CI101: 0 | CJ101: 0 | CK101: 0 | CL101: 0 | CM101: 0 | CN101: 0 | CO101: 0 | CP101: 0 | CQ101: 0 | CR101: 0 | CS101: 0 | CT101: 0 | CU101: 0 | CV101: 0 | CW101: 0 | CX101: 0 | CY101: 0 | CZ101: 0 | DA101: 0 | DB101: 0 | DC101: 0 | DD101: 0 | DE101: 0 | DF101: 0 | DG101: 0 | DH101: 0 | DI101: 0 | DJ101: 0
C102: > 132 kV & < = 275 kV ; VT | D102: 40 | E102: 6.3 | F102: 0 | G102: 0 | H102: 3 | I102: 0 | J102: 0 | K102: 0 | L102: 0 | M102: 0 | N102: 0 | O102: 0 | P102: 0 | Q102: 2 | R102: 0 | S102: 0 | T102: 0 | U102: 0 | V102: 6 | W102: 0 | X102: 0 | Y102: 0 | Z102: 0 | AA102: 0 | AB102: 0 | AC102: 0 | AD102: 0 | AE102: 0 | AF102: 0 | AG102: 1 | AH102: 0 | AI102: 0 | AJ102: 8 | AK102: 0 | AL102: 3 | AM102: 0 | AN102: 0 | AO102: 0 | AP102: 0 | AQ102: 0 | AR102: 0 | AS102: 1 | AT102: 0 | AU102: 0 | AV102: 0 | AW102: 0 | AX102: 0 | AY102: 0 | AZ102: 0 | BA102: 0 | BB102: 0 | BC102: 0 | BD102: 0 | BE102: 0 | BF102: 0 | BG102: 0 | BH102: 0 | BI102: 0 | BJ102: 0 | BK102: 0 | BL102: 0 | BM102: 0 | BN102: 0 | BO102: 0 | BP102: 0 | BQ102: 0 | BR102: 0 | BS102: 0 | BT102: 0 | BU102: 0 | BV102: 0 | BW102: 0 | BX102: 0 | BY102: 0 | BZ102: 0 | CA102: 0 | CB102: 0 | CC102: 0 | CD102: 0 | CE102: 0 | CF102: 0 | CG102: 0 | CH102: 0 | CI102: 0 | CJ102: 0 | CK102: 0 | CL102: 0 | CM102: 0 | CN102: 0 | CO102: 0 | CP102: 0 | CQ102: 0 | CR102: 0 | CS102: 0 | CT102: 0 | CU102: 0 | CV102: 0 | CW102: 0 | CX102: 0 | CY102: 0 | CZ102: 0 | DA102: 0 | DB102: 0 | DC102: 0 | DD102: 0 | DE102: 0 | DF102: 0 | DG102: 0 | DH102: 0 | DI102: 0 | DJ102: 0
C103: > 275 kV & < = 330 kV ; VT | D103: 40 | E103: 6.3 | F103: 9 | G103: 16 | H103: 3 | I103: 38 | J103: 12 | K103: 0 | L103: 22 | M103: 52 | N103: 21 | O103: 37 | P103: 25 | Q103: 20 | R103: 34 | S103: 37 | T103: 3 | U103: 19 | V103: 0 | W103: 38 | X103: 3 | Y103: 3 | Z103: 22 | AA103: 7 | AB103: 5 | AC103: 7 | AD103: 58 | AE103: 7 | AF103: 9 | AG103: 1 | AH103: 0 | AI103: 6 | AJ103: 7 | AK103: 3 | AL103: 7 | AM103: 28 | AN103: 10 | AO103: 7 | AP103: 0 | AQ103: 3 | AR103: 3 | AS103: 3 | AT103: 12 | AU103: 6 | AV103: 0 | AW103: 7 | AX103: 8 | AY103: 18 | AZ103: 0 | BA103: 0 | BB103: 0 | BC103: 0 | BD103: 0 | BE103: 4 | BF103: 0 | BG103: 0 | BH103: 0 | BI103: 0 | BJ103: 0 | BK103: 0 | BL103: 18 | BM103: 0 | BN103: 0 | BO103: 0 | BP103: 0 | BQ103: 0 | BR103: 0 | BS103: 0 | BT103: 0 | BU103: 0 | BV103: 0 | BW103: 0 | BX103: 0 | BY103: 0 | BZ103: 0 | CA103: 0 | CB103: 0 | CC103: 0 | CD103: 0 | CE103: 0 | CF103: 0 | CG103: 0 | CH103: 0 | CI103: 0 | CJ103: 0 | CK103: 0 | CL103: 0 | CM103: 0 | CN103: 0 | CO103: 0 | CP103: 0 | CQ103: 0 | CR103: 0 | CS103: 0 | CT103: 0 | CU103: 0 | CV103: 0 | CW103: 0 | CX103: 0 | CY103: 0 | CZ103: 0 | DA103: 0 | DB103: 0 | DC103: 0 | DD103: 0 | DE103: 0 | DF103: 0 | DG103: 0 | DH103: 0 | DI103: 0 | DJ103: 0
C104: > 330 kV & < = 500 kV ; VT | D104: 40 | E104: 6.3 | F104: 0 | G104: 0 | H104: 0 | I104: 1 | J104: 1 | K104: 0 | L104: 0 | M104: 6 | N104: 6 | O104: 24 | P104: 0 | Q104: 0 | R104: 0 | S104: 0 | T104: 0 | U104: 0 | V104: 0 | W104: 0 | X104: 0 | Y104: 0 | Z104: 0 | AA104: 0 | AB104: 0 | AC104: 0 | AD104: 4 | AE104: 0 | AF104: 0 | AG104: 0 | AH104: 0 | AI104: 0 | AJ104: 1 | AK104: 0 | AL104: 0 | AM104: 1 | AN104: 4 | AO104: 0 | AP104: 0 | AQ104: 0 | AR104: 0 | AS104: 0 | AT104: 0 | AU104: 0 | AV104: 0 | AW104: 0 | AX104: 0 | AY104: 0 | AZ104: 0 | BA104: 0 | BB104: 0 | BC104: 0 | BD104: 0 | BE104: 0 | BF104: 0 | BG104: 0 | BH104: 0 | BI104: 0 | BJ104: 0 | BK104: 0 | BL104: 0 | BM104: 0 | BN104: 0 | BO104: 0 | BP104: 0 | BQ104: 0 | BR104: 0 | BS104: 0 | BT104: 0 | BU104: 0 | BV104: 0 | BW104: 0 | BX104: 0 | BY104: 0 | BZ104: 0 | CA104: 0 | CB104: 0 | CC104: 0 | CD104: 0 | CE104: 0 | CF104: 0 | CG104: 0 | CH104: 0 | CI104: 0 | CJ104: 0 | CK104: 0 | CL104: 0 | CM104: 0 | CN104: 0 | CO104: 0 | CP104: 0 | CQ104: 0 | CR104: 0 | CS104: 0 | CT104: 0 | CU104: 0 | CV104: 0 | CW104: 0 | CX104: 0 | CY104: 0 | CZ104: 0 | DA104: 0 | DB104: 0 | DC104: 0 | DD104: 0 | DE104: 0 | DF104: 0 | DG104: 0 | DH104: 0 | DI104: 0 | DJ104: 0
C105: > 500 kV ; VT | D105: 0 | E105: 0 | F105: 0 | G105: 0 | H105: 0 | I105: 0 | J105: 0 | K105: 0 | L105: 0 | M105: 0 | N105: 0 | O105: 0 | P105: 0 | Q105: 0 | R105: 0 | S105: 0 | T105: 0 | U105: 0 | V105: 0 | W105: 0 | X105: 0 | Y105: 0 | Z105: 0 | AA105: 0 | AB105: 0 | AC105: 0 | AD105: 0 | AE105: 0 | AF105: 0 | AG105: 0 | AH105: 0 | AI105: 0 | AJ105: 0 | AK105: 0 | AL105: 0 | AM105: 0 | AN105: 0 | AO105: 0 | AP105: 0 | AQ105: 0 | AR105: 0 | AS105: 0 | AT105: 0 | AU105: 0 | AV105: 0 | AW105: 0 | AX105: 0 | AY105: 0 | AZ105: 0 | BA105: 0 | BB105: 0 | BC105: 0 | BD105: 0 | BE105: 0 | BF105: 0 | BG105: 0 | BH105: 0 | BI105: 0 | BJ105: 0 | BK105: 0 | BL105: 0 | BM105: 0 | BN105: 0 | BO105: 0 | BP105: 0 | BQ105: 0 | BR105: 0 | BS105: 0 | BT105: 0 | BU105: 0 | BV105: 0 | BW105: 0 | BX105: 0 | BY105: 0 | BZ105: 0 | CA105: 0 | CB105: 0 | CC105: 0 | CD105: 0 | CE105: 0 | CF105: 0 | CG105: 0 | CH105: 0 | CI105: 0 | CJ105: 0 | CK105: 0 | CL105: 0 | CM105: 0 | CN105: 0 | CO105: 0 | CP105: 0 | CQ105: 0 | CR105: 0 | CS105: 0 | CT105: 0 | CU105: 0 | CV105: 0 | CW105: 0 | CX105: 0 | CY105: 0 | CZ105: 0 | DA105: 0 | DB105: 0 | DC105: 0 | DD105: 0 | DE105: 0 | DF105: 0 | DG105: 0 | DH105: 0 | DI105: 0 | DJ105: 0
C106: < = 33 kV; CT | D106: 40 | E106: 6.3 | F106: 0 | G106: 3 | H106: 0 | I106: 18 | J106: 0 | K106: 0 | L106: 0 | M106: 9 | N106: 0 | O106: 9 | P106: 0 | Q106: 0 | R106: 0 | S106: 15 | T106: 0 | U106: 3 | V106: 0 | W106: 3 | X106: 0 | Y106: 0 | Z106: 1 | AA106: 14 | AB106: 0 | AC106: 0 | AD106: 0 | AE106: 3 | AF106: 0 | AG106: 0 | AH106: 0 | AI106: 3 | AJ106: 15 | AK106: 0 | AL106: 2 | AM106: 9 | AN106: 9 | AO106: 0 | AP106: 4 | AQ106: 0 | AR106: 0 | AS106: 6 | AT106: 0 | AU106: 0 | AV106: 0 | AW106: 0 | AX106: 0 | AY106: 0 | AZ106: 0 | BA106: 0 | BB106: 7 | BC106: 3 | BD106: 6 | BE106: 0 | BF106: 0 | BG106: 0 | BH106: 0 | BI106: 0 | BJ106: 0 | BK106: 0 | BL106: 0 | BM106: 0 | BN106: 1 | BO106: 0 | BP106: 0 | BQ106: 0 | BR106: 0 | BS106: 0 | BT106: 0 | BU106: 0 | BV106: 0 | BW106: 0 | BX106: 0 | BY106: 0 | BZ106: 0 | CA106: 0 | CB106: 0 | CC106: 0 | CD106: 0 | CE106: 0 | CF106: 0 | CG106: 0 | CH106: 0 | CI106: 0 | CJ106: 0 | CK106: 0 | CL106: 0 | CM106: 0 | CN106: 0 | CO106: 0 | CP106: 0 | CQ106: 0 | CR106: 0 | CS106: 0 | CT106: 0 | CU106: 0 | CV106: 0 | CW106: 0 | CX106: 0 | CY106: 0 | CZ106: 0 | DA106: 0 | DB106: 0 | DC106: 0 | DD106: 0 | DE106: 0 | DF106: 0 | DG106: 0 | DH106: 0 | DI106: 0 | DJ106: 0
C107: > 33 kV & < = 66 kV ; CT | D107: 40 | E107: 6.3 | F107: 15 | G107: 15 | H107: 6 | I107: 6 | J107: 0 | K107: 15 | L107: 0 | M107: 18 | N107: 42 | O107: 27 | P107: 12 | Q107: 57 | R107: 19 | S107: 36 | T107: 33 | U107: 27 | V107: 31 | W107: 22 | X107: 19 | Y107: 11 | Z107: 7 | AA107: 25 | AB107: 3 | AC107: 5 | AD107: 35 | AE107: 9 | AF107: 7 | AG107: 13 | AH107: 0 | AI107: 1 | AJ107: 0 | AK107: 0 | AL107: 0 | AM107: 0 | AN107: 13 | AO107: 6 | AP107: 3 | AQ107: 0 | AR107: 0 | AS107: 0 | AT107: 0 | AU107: 0 | AV107: 3 | AW107: 0 | AX107: 0 | AY107: 0 | AZ107: 0 | BA107: 1 | BB107: 17 | BC107: 0 | BD107: 0 | BE107: 0 | BF107: 0 | BG107: 0 | BH107: 0 | BI107: 12 | BJ107: 0 | BK107: 0 | BL107: 0 | BM107: 0 | BN107: 0 | BO107: 0 | BP107: 0 | BQ107: 0 | BR107: 0 | BS107: 0 | BT107: 0 | BU107: 0 | BV107: 0 | BW107: 0 | BX107: 0 | BY107: 0 | BZ107: 0 | CA107: 0 | CB107: 0 | CC107: 0 | CD107: 0 | CE107: 0 | CF107: 0 | CG107: 0 | CH107: 0 | CI107: 0 | CJ107: 0 | CK107: 0 | CL107: 0 | CM107: 0 | CN107: 0 | CO107: 0 | CP107: 0 | CQ107: 0 | CR107: 0 | CS107: 0 | CT107: 0 | CU107: 0 | CV107: 0 | CW107: 0 | CX107: 0 | CY107: 0 | CZ107: 0 | DA107: 0 | DB107: 0 | DC107: 0 | DD107: 0 | DE107: 0 | DF107: 0 | DG107: 0 | DH107: 0 | DI107: 0 | DJ107: 0
C108: > 66 kV & < = 132 kV ; CT | D108: 40 | E108: 6.3 | F108: 6 | G108: 22 | H108: 12 | I108: 17 | J108: 24 | K108: 45 | L108: 31 | M108: 88 | N108: 47 | O108: 34 | P108: 39 | Q108: 44 | R108: 81 | S108: 57 | T108: 43 | U108: 39 | V108: 81 | W108: 13 | X108: 34 | Y108: 26 | Z108: 48 | AA108: 19 | AB108: 28 | AC108: 50 | AD108: 57 | AE108: 57 | AF108: 1 | AG108: 4 | AH108: 20 | AI108: 4 | AJ108: 17 | AK108: 10 | AL108: 6 | AM108: 15 | AN108: 18 | AO108: 10 | AP108: 6 | AQ108: 12 | AR108: 6 | AS108: 6 | AT108: 0 | AU108: 9 | AV108: 0 | AW108: 8 | AX108: 29 | AY108: 18 | AZ108: 14 | BA108: 0 | BB108: 12 | BC108: 0 | BD108: 0 | BE108: 3 | BF108: 0 | BG108: 1 | BH108: 0 | BI108: 0 | BJ108: 0 | BK108: 0 | BL108: 3 | BM108: 0 | BN108: 0 | BO108: 0 | BP108: 0 | BQ108: 0 | BR108: 0 | BS108: 0 | BT108: 0 | BU108: 0 | BV108: 0 | BW108: 0 | BX108: 0 | BY108: 0 | BZ108: 0 | CA108: 0 | CB108: 0 | CC108: 0 | CD108: 0 | CE108: 0 | CF108: 0 | CG108: 0 | CH108: 0 | CI108: 0 | CJ108: 0 | CK108: 0 | CL108: 0 | CM108: 0 | CN108: 0 | CO108: 0 | CP108: 0 | CQ108: 0 | CR108: 0 | CS108: 0 | CT108: 0 | CU108: 0 | CV108: 0 | CW108: 0 | CX108: 0 | CY108: 0 | CZ108: 0 | DA108: 0 | DB108: 0 | DC108: 0 | DD108: 0 | DE108: 0 | DF108: 0 | DG108: 0 | DH108: 0 | DI108: 0 | DJ108: 0
C109: > 132 kV & < = 275 kV ; CT | D109: 40 | E109: 6.3 | F109: 0 | G109: 6 | H109: 0 | I109: 0 | J109: 3 | K109: 0 | L109: 0 | M109: 0 | N109: 0 | O109: 0 | P109: 0 | Q109: 0 | R109: 0 | S109: 0 | T109: 0 | U109: 0 | V109: 0 | W109: 0 | X109: 0 | Y109: 0 | Z109: 0 | AA109: 0 | AB109: 0 | AC109: 0 | AD109: 0 | AE109: 0 | AF109: 0 | AG109: 1 | AH109: 0 | AI109: 1 | AJ109: 17 | AK109: 0 | AL109: 5 | AM109: 0 | AN109: 0 | AO109: 0 | AP109: 0 | AQ109: 0 | AR109: 0 | AS109: 0 | AT109: 0 | AU109: 0 | AV109: 0 | AW109: 0 | AX109: 0 | AY109: 0 | AZ109: 0 | BA109: 0 | BB109: 0 | BC109: 0 | BD109: 0 | BE109: 0 | BF109: 0 | BG109: 0 | BH109: 0 | BI109: 0 | BJ109: 0 | BK109: 0 | BL109: 0 | BM109: 0 | BN109: 0 | BO109: 0 | BP109: 0 | BQ109: 0 | BR109: 0 | BS109: 0 | BT109: 0 | BU109: 0 | BV109: 0 | BW109: 0 | BX109: 0 | BY109: 0 | BZ109: 0 | CA109: 0 | CB109: 0 | CC109: 0 | CD109: 0 | CE109: 0 | CF109: 0 | CG109: 0 | CH109: 0 | CI109: 0 | CJ109: 0 | CK109: 0 | CL109: 0 | CM109: 0 | CN109: 0 | CO109: 0 | CP109: 0 | CQ109: 0 | CR109: 0 | CS109: 0 | CT109: 0 | CU109: 0 | CV109: 0 | CW109: 0 | CX109: 0 | CY109: 0 | CZ109: 0 | DA109: 0 | DB109: 0 | DC109: 0 | DD109: 0 | DE109: 0 | DF109: 0 | DG109: 0 | DH109: 0 | DI109: 0 | DJ109: 0
C110: > 275 kV & < = 330 kV ; CT | D110: 40 | E110: 6.3 | F110: 48 | G110: 38 | H110: 33 | I110: 21 | J110: 38 | K110: 45 | L110: 87 | M110: 143 | N110: 47 | O110: 84 | P110: 57 | Q110: 52 | R110: 125 | S110: 41 | T110: 60 | U110: 37 | V110: 18 | W110: 30 | X110: 78 | Y110: 26 | Z110: 18 | AA110: 12 | AB110: 1 | AC110: 2 | AD110: 6 | AE110: 3 | AF110: 37 | AG110: 0 | AH110: 3 | AI110: 4 | AJ110: 17 | AK110: 1 | AL110: 12 | AM110: 10 | AN110: 9 | AO110: 0 | AP110: 1 | AQ110: 4 | AR110: 2 | AS110: 1 | AT110: 0 | AU110: 0 | AV110: 0 | AW110: 2 | AX110: 3 | AY110: 20 | AZ110: 0 | BA110: 0 | BB110: 0 | BC110: 0 | BD110: 0 | BE110: 1 | BF110: 0 | BG110: 0 | BH110: 0 | BI110: 8 | BJ110: 0 | BK110: 0 | BL110: 0 | BM110: 0 | BN110: 0 | BO110: 0 | BP110: 0 | BQ110: 0 | BR110: 0 | BS110: 0 | BT110: 0 | BU110: 0 | BV110: 0 | BW110: 0 | BX110: 0 | BY110: 0 | BZ110: 0 | CA110: 0 | CB110: 0 | CC110: 0 | CD110: 0 | CE110: 0 | CF110: 0 | CG110: 0 | CH110: 0 | CI110: 0 | CJ110: 0 | CK110: 0 | CL110: 0 | CM110: 0 | CN110: 0 | CO110: 0 | CP110: 0 | CQ110: 0 | CR110: 0 | CS110: 0 | CT110: 0 | CU110: 0 | CV110: 0 | CW110: 0 | CX110: 0 | CY110: 0 | CZ110: 0 | DA110: 0 | DB110: 0 | DC110: 0 | DD110: 0 | DE110: 0 | DF110: 0 | DG110: 0 | DH110: 0 | DI110: 0 | DJ110: 0
C111: > 330 kV & < = 500 kV ; CT | D111: 40 | E111: 6.3 | F111: 0 | G111: 0 | H111: 0 | I111: 0 | J111: 0 | K111: 0 | L111: 0 | M111: 12 | N111: 9 | O111: 63 | P111: 0 | Q111: 0 | R111: 0 | S111: 0 | T111: 0 | U111: 0 | V111: 0 | W111: 21 | X111: 15 | Y111: 0 | Z111: 0 | AA111: 0 | AB111: 0 | AC111: 0 | AD111: 0 | AE111: 0 | AF111: 0 | AG111: 0 | AH111: 0 | AI111: 0 | AJ111: 0 | AK111: 0 | AL111: 0 | AM111: 0 | AN111: 0 | AO111: 0 | AP111: 0 | AQ111: 0 | AR111: 0 | AS111: 0 | AT111: 0 | AU111: 0 | AV111: 0 | AW111: 0 | AX111: 0 | AY111: 0 | AZ111: 0 | BA111: 0 | BB111: 0 | BC111: 0 | BD111: 0 | BE111: 0 | BF111: 0 | BG111: 0 | BH111: 0 | BI111: 0 | BJ111: 0 | BK111: 0 | BL111: 0 | BM111: 0 | BN111: 0 | BO111: 0 | BP111: 0 | BQ111: 0 | BR111: 0 | BS111: 0 | BT111: 0 | BU111: 0 | BV111: 0 | BW111: 0 | BX111: 0 | BY111: 0 | BZ111: 0 | CA111: 0 | CB111: 0 | CC111: 0 | CD111: 0 | CE111: 0 | CF111: 0 | CG111: 0 | CH111: 0 | CI111: 0 | CJ111: 0 | CK111: 0 | CL111: 0 | CM111: 0 | CN111: 0 | CO111: 0 | CP111: 0 | CQ111: 0 | CR111: 0 | CS111: 0 | CT111: 0 | CU111: 0 | CV111: 0 | CW111: 0 | CX111: 0 | CY111: 0 | CZ111: 0 | DA111: 0 | DB111: 0 | DC111: 0 | DD111: 0 | DE111: 0 | DF111: 0 | DG111: 0 | DH111: 0 | DI111: 0 | DJ111: 0
C112: > 500 kV ; CT | D112: 0 | E112: 0 | F112: 0 | G112: 0 | H112: 0 | I112: 0 | J112: 0 | K112: 0 | L112: 0 | M112: 0 | N112: 0 | O112: 0 | P112: 0 | Q112: 0 | R112: 0 | S112: 0 | T112: 0 | U112: 0 | V112: 0 | W112: 0 | X112: 0 | Y112: 0 | Z112: 0 | AA112: 0 | AB112: 0 | AC112: 0 | AD112: 0 | AE112: 0 | AF112: 0 | AG112: 0 | AH112: 0 | AI112: 0 | AJ112: 0 | AK112: 0 | AL112: 0 | AM112: 0 | AN112: 0 | AO112: 0 | AP112: 0 | AQ112: 0 | AR112: 0 | AS112: 0 | AT112: 0 | AU112: 0 | AV112: 0 | AW112: 0 | AX112: 0 | AY112: 0 | AZ112: 0 | BA112: 0 | BB112: 0 | BC112: 0 | BD112: 0 | BE112: 0 | BF112: 0 | BG112: 0 | BH112: 0 | BI112: 0 | BJ112: 0 | BK112: 0 | BL112: 0 | BM112: 0 | BN112: 0 | BO112: 0 | BP112: 0 | BQ112: 0 | BR112: 0 | BS112: 0 | BT112: 0 | BU112: 0 | BV112: 0 | BW112: 0 | BX112: 0 | BY112: 0 | BZ112: 0 | CA112: 0 | CB112: 0 | CC112: 0 | CD112: 0 | CE112: 0 | CF112: 0 | CG112: 0 | CH112: 0 | CI112: 0 | CJ112: 0 | CK112: 0 | CL112: 0 | CM112: 0 | CN112: 0 | CO112: 0 | CP112: 0 | CQ112: 0 | CR112: 0 | CS112: 0 | CT112: 0 | CU112: 0 | CV112: 0 | CW112: 0 | CX112: 0 | CY112: 0 | CZ112: 0 | DA112: 0 | DB112: 0 | DC112: 0 | DD112: 0 | DE112: 0 | DF112: 0 | DG112: 0 | DH112: 0 | DI112: 0 | DJ112: 0
C113: < = 33 kV; GIS Module | D113: 40 | E113: 6.3 | F113: 11 | G113: 0 | H113: 0 | I113: 0 | J113: 0 | K113: 0 | L113: 0 | M113: 0 | N113: 0 | O113: 0 | P113: 0 | Q113: 0 | R113: 0 | S113: 0 | T113: 0 | U113: 0 | V113: 0 | W113: 0 | X113: 0 | Y113: 0 | Z113: 0 | AA113: 0 | AB113: 0 | AC113: 0 | AD113: 0 | AE113: 0 | AF113: 0 | AG113: 0 | AH113: 0 | AI113: 0 | AJ113: 0 | AK113: 0 | AL113: 0 | AM113: 0 | AN113: 0 | AO113: 0 | AP113: 0 | AQ113: 0 | AR113: 0 | AS113: 0 | AT113: 0 | AU113: 0 | AV113: 0 | AW113: 0 | AX113: 0 | AY113: 0 | AZ113: 0 | BA113: 0 | BB113: 0 | BC113: 0 | BD113: 0 | BE113: 0 | BF113: 0 | BG113: 0 | BH113: 0 | BI113: 0 | BJ113: 0 | BK113: 0 | BL113: 0 | BM113: 0 | BN113: 0 | BO113: 0 | BP113: 0 | BQ113: 0 | BR113: 0 | BS113: 0 | BT113: 0 | BU113: 0 | BV113: 0 | BW113: 0 | BX113: 0 | BY113: 0 | BZ113: 0 | CA113: 0 | CB113: 0 | CC113: 0 | CD113: 0 | CE113: 0 | CF113: 0 | CG113: 0 | CH113: 0 | CI113: 0 | CJ113: 0 | CK113: 0 | CL113: 0 | CM113: 0 | CN113: 0 | CO113: 0 | CP113: 0 | CQ113: 0 | CR113: 0 | CS113: 0 | CT113: 0 | CU113: 0 | CV113: 0 | CW113: 0 | CX113: 0 | CY113: 0 | CZ113: 0 | DA113: 0 | DB113: 0 | DC113: 0 | DD113: 0 | DE113: 0 | DF113: 0 | DG113: 0 | DH113: 0 | DI113: 0 | DJ113: 0
C114: > 33 kV & < = 66 kV ; GIS Module | D114: 0 | E114: 0 | F114: 0 | G114: 0 | H114: 0 | I114: 0 | J114: 0 | K114: 0 | L114: 0 | M114: 0 | N114: 0 | O114: 0 | P114: 0 | Q114: 0 | R114: 0 | S114: 0 | T114: 0 | U114: 0 | V114: 0 | W114: 0 | X114: 0 | Y114: 0 | Z114: 0 | AA114: 0 | AB114: 0 | AC114: 0 | AD114: 0 | AE114: 0 | AF114: 0 | AG114: 0 | AH114: 0 | AI114: 0 | AJ114: 0 | AK114: 0 | AL114: 0 | AM114: 0 | AN114: 0 | AO114: 0 | AP114: 0 | AQ114: 0 | AR114: 0 | AS114: 0 | AT114: 0 | AU114: 0 | AV114: 0 | AW114: 0 | AX114: 0 | AY114: 0 | AZ114: 0 | BA114: 0 | BB114: 0 | BC114: 0 | BD114: 0 | BE114: 0 | BF114: 0 | BG114: 0 | BH114: 0 | BI114: 0 | BJ114: 0 | BK114: 0 | BL114: 0 | BM114: 0 | BN114: 0 | BO114: 0 | BP114: 0 | BQ114: 0 | BR114: 0 | BS114: 0 | BT114: 0 | BU114: 0 | BV114: 0 | BW114: 0 | BX114: 0 | BY114: 0 | BZ114: 0 | CA114: 0 | CB114: 0 | CC114: 0 | CD114: 0 | CE114: 0 | CF114: 0 | CG114: 0 | CH114: 0 | CI114: 0 | CJ114: 0 | CK114: 0 | CL114: 0 | CM114: 0 | CN114: 0 | CO114: 0 | CP114: 0 | CQ114: 0 | CR114: 0 | CS114: 0 | CT114: 0 | CU114: 0 | CV114: 0 | CW114: 0 | CX114: 0 | CY114: 0 | CZ114: 0 | DA114: 0 | DB114: 0 | DC114: 0 | DD114: 0 | DE114: 0 | DF114: 0 | DG114: 0 | DH114: 0 | DI114: 0 | DJ114: 0
C115: > 66 kV & < = 132 kV ; GIS Module | D115: 40 | E115: 6.3 | F115: 0 | G115: 0 | H115: 0 | I115: 12 | J115: 0 | K115: 44 | L115: 0 | M115: 0 | N115: 0 | O115: 0 | P115: 0 | Q115: 0 | R115: 0 | S115: 23 | T115: 0 | U115: 0 | V115: 0 | W115: 0 | X115: 0 | Y115: 0 | Z115: 0 | AA115: 0 | AB115: 0 | AC115: 0 | AD115: 0 | AE115: 0 | AF115: 0 | AG115: 0 | AH115: 0 | AI115: 0 | AJ115: 0 | AK115: 0 | AL115: 0 | AM115: 0 | AN115: 0 | AO115: 0 | AP115: 0 | AQ115: 0 | AR115: 0 | AS115: 0 | AT115: 0 | AU115: 0 | AV115: 0 | AW115: 0 | AX115: 0 | AY115: 0 | AZ115: 0 | BA115: 0 | BB115: 0 | BC115: 0 | BD115: 0 | BE115: 0 | BF115: 0 | BG115: 0 | BH115: 0 | BI115: 0 | BJ115: 0 | BK115: 0 | BL115: 0 | BM115: 0 | BN115: 0 | BO115: 0 | BP115: 0 | BQ115: 0 | BR115: 0 | BS115: 0 | BT115: 0 | BU115: 0 | BV115: 0 | BW115: 0 | BX115: 0 | BY115: 0 | BZ115: 0 | CA115: 0 | CB115: 0 | CC115: 0 | CD115: 0 | CE115: 0 | CF115: 0 | CG115: 0 | CH115: 0 | CI115: 0 | CJ115: 0 | CK115: 0 | CL115: 0 | CM115: 0 | CN115: 0 | CO115: 0 | CP115: 0 | CQ115: 0 | CR115: 0 | CS115: 0 | CT115: 0 | CU115: 0 | CV115: 0 | CW115: 0 | CX115: 0 | CY115: 0 | CZ115: 0 | DA115: 0 | DB115: 0 | DC115: 0 | DD115: 0 | DE115: 0 | DF115: 0 | DG115: 0 | DH115: 0 | DI115: 0 | DJ115: 0
C116: > 132 kV & < = 275 kV ; GIS Module | D116: 40 | E116: 6.3 | F116: 0 | G116: 0 | H116: 0 | I116: 0 | J116: 0 | K116: 0 | L116: 0 | M116: 0 | N116: 0 | O116: 0 | P116: 0 | Q116: 0 | R116: 0 | S116: 0 | T116: 0 | U116: 0 | V116: 0 | W116: 0 | X116: 0 | Y116: 0 | Z116: 0 | AA116: 0 | AB116: 0 | AC116: 0 | AD116: 0 | AE116: 0 | AF116: 0 | AG116: 0 | AH116: 0 | AI116: 0 | AJ116: 0 | AK116: 0 | AL116: 0 | AM116: 0 | AN116: 0 | AO116: 0 | AP116: 0 | AQ116: 0 | AR116: 0 | AS116: 0 | AT116: 0 | AU116: 0 | AV116: 0 | AW116: 0 | AX116: 0 | AY116: 0 | AZ116: 0 | BA116: 0 | BB116: 0 | BC116: 0 | BD116: 0 | BE116: 0 | BF116: 0 | BG116: 0 | BH116: 0 | BI116: 0 | BJ116: 0 | BK116: 0 | BL116: 0 | BM116: 0 | BN116: 0 | BO116: 0 | BP116: 0 | BQ116: 0 | BR116: 0 | BS116: 0 | BT116: 0 | BU116: 0 | BV116: 0 | BW116: 0 | BX116: 0 | BY116: 0 | BZ116: 0 | CA116: 0 | CB116: 0 | CC116: 0 | CD116: 0 | CE116: 0 | CF116: 0 | CG116: 0 | CH116: 0 | CI116: 0 | CJ116: 0 | CK116: 0 | CL116: 0 | CM116: 0 | CN116: 0 | CO116: 0 | CP116: 0 | CQ116: 0 | CR116: 0 | CS116: 0 | CT116: 0 | CU116: 0 | CV116: 0 | CW116: 0 | CX116: 0 | CY116: 0 | CZ116: 0 | DA116: 0 | DB116: 0 | DC116: 0 | DD116: 0 | DE116: 0 | DF116: 0 | DG116: 0 | DH116: 0 | DI116: 0 | DJ116: 0
C117: > 275 kV & < = 330 kV ; GIS Module | D117: 40 | E117: 6.3 | F117: 0 | G117: 0 | H117: 0 | I117: 9 | J117: 11 | K117: 0 | L117: 0 | M117: 0 | N117: 0 | O117: 0 | P117: 0 | Q117: 0 | R117: 0 | S117: 4 | T117: 0 | U117: 0 | V117: 0 | W117: 0 | X117: 0 | Y117: 0 | Z117: 0 | AA117: 0 | AB117: 0 | AC117: 0 | AD117: 0 | AE117: 0 | AF117: 0 | AG117: 0 | AH117: 0 | AI117: 0 | AJ117: 0 | AK117: 0 | AL117: 0 | AM117: 0 | AN117: 0 | AO117: 0 | AP117: 0 | AQ117: 0 | AR117: 0 | AS117: 0 | AT117: 0 | AU117: 0 | AV117: 0 | AW117: 0 | AX117: 0 | AY117: 0 | AZ117: 0 | BA117: 0 | BB117: 0 | BC117: 0 | BD117: 0 | BE117: 0 | BF117: 0 | BG117: 0 | BH117: 0 | BI117: 0 | BJ117: 0 | BK117: 0 | BL117: 0 | BM117: 0 | BN117: 0 | BO117: 0 | BP117: 0 | BQ117: 0 | BR117: 0 | BS117: 0 | BT117: 0 | BU117: 0 | BV117: 0 | BW117: 0 | BX117: 0 | BY117: 0 | BZ117: 0 | CA117: 0 | CB117: 0 | CC117: 0 | CD117: 0 | CE117: 0 | CF117: 0 | CG117: 0 | CH117: 0 | CI117: 0 | CJ117: 0 | CK117: 0 | CL117: 0 | CM117: 0 | CN117: 0 | CO117: 0 | CP117: 0 | CQ117: 0 | CR117: 0 | CS117: 0 | CT117: 0 | CU117: 0 | CV117: 0 | CW117: 0 | CX117: 0 | CY117: 0 | CZ117: 0 | DA117: 0 | DB117: 0 | DC117: 0 | DD117: 0 | DE117: 0 | DF117: 0 | DG117: 0 | DH117: 0 | DI117: 0 | DJ117: 0
C118: > 330 kV & < = 500 kV ; GIS Module | D118: 0 | E118: 0 | F118: 0 | G118: 0 | H118: 0 | I118: 0 | J118: 0 | K118: 0 | L118: 0 | M118: 0 | N118: 0 | O118: 0 | P118: 0 | Q118: 0 | R118: 0 | S118: 0 | T118: 0 | U118: 0 | V118: 0 | W118: 0 | X118: 0 | Y118: 0 | Z118: 0 | AA118: 0 | AB118: 0 | AC118: 0 | AD118: 0 | AE118: 0 | AF118: 0 | AG118: 0 | AH118: 0 | AI118: 0 | AJ118: 0 | AK118: 0 | AL118: 0 | AM118: 0 | AN118: 0 | AO118: 0 | AP118: 0 | AQ118: 0 | AR118: 0 | AS118: 0 | AT118: 0 | AU118: 0 | AV118: 0 | AW118: 0 | AX118: 0 | AY118: 0 | AZ118: 0 | BA118: 0 | BB118: 0 | BC118: 0 | BD118: 0 | BE118: 0 | BF118: 0 | BG118: 0 | BH118: 0 | BI118: 0 | BJ118: 0 | BK118: 0 | BL118: 0 | BM118: 0 | BN118: 0 | BO118: 0 | BP118: 0 | BQ118: 0 | BR118: 0 | BS118: 0 | BT118: 0 | BU118: 0 | BV118: 0 | BW118: 0 | BX118: 0 | BY118: 0 | BZ118: 0 | CA118: 0 | CB118: 0 | CC118: 0 | CD118: 0 | CE118: 0 | CF118: 0 | CG118: 0 | CH118: 0 | CI118: 0 | CJ118: 0 | CK118: 0 | CL118: 0 | CM118: 0 | CN118: 0 | CO118: 0 | CP118: 0 | CQ118: 0 | CR118: 0 | CS118: 0 | CT118: 0 | CU118: 0 | CV118: 0 | CW118: 0 | CX118: 0 | CY118: 0 | CZ118: 0 | DA118: 0 | DB118: 0 | DC118: 0 | DD118: 0 | DE118: 0 | DF118: 0 | DG118: 0 | DH118: 0 | DI118: 0 | DJ118: 0
C119: > 500 kV ; GIS Module | D119: 0 | E119: 0 | F119: 0 | G119: 0 | H119: 0 | I119: 0 | J119: 0 | K119: 0 | L119: 0 | M119: 0 | N119: 0 | O119: 0 | P119: 0 | Q119: 0 | R119: 0 | S119: 0 | T119: 0 | U119: 0 | V119: 0 | W119: 0 | X119: 0 | Y119: 0 | Z119: 0 | AA119: 0 | AB119: 0 | AC119: 0 | AD119: 0 | AE119: 0 | AF119: 0 | AG119: 0 | AH119: 0 | AI119: 0 | AJ119: 0 | AK119: 0 | AL119: 0 | AM119: 0 | AN119: 0 | AO119: 0 | AP119: 0 | AQ119: 0 | AR119: 0 | AS119: 0 | AT119: 0 | AU119: 0 | AV119: 0 | AW119: 0 | AX119: 0 | AY119: 0 | AZ119: 0 | BA119: 0 | BB119: 0 | BC119: 0 | BD119: 0 | BE119: 0 | BF119: 0 | BG119: 0 | BH119: 0 | BI119: 0 | BJ119: 0 | BK119: 0 | BL119: 0 | BM119: 0 | BN119: 0 | BO119: 0 | BP119: 0 | BQ119: 0 | BR119: 0 | BS119: 0 | BT119: 0 | BU119: 0 | BV119: 0 | BW119: 0 | BX119: 0 | BY119: 0 | BZ119: 0 | CA119: 0 | CB119: 0 | CC119: 0 | CD119: 0 | CE119: 0 | CF119: 0 | CG119: 0 | CH119: 0 | CI119: 0 | CJ119: 0 | CK119: 0 | CL119: 0 | CM119: 0 | CN119: 0 | CO119: 0 | CP119: 0 | CQ119: 0 | CR119: 0 | CS119: 0 | CT119: 0 | CU119: 0 | CV119: 0 | CW119: 0 | CX119: 0 | CY119: 0 | CZ119: 0 | DA119: 0 | DB119: 0 | DC119: 0 | DD119: 0 | DE119: 0 | DF119: 0 | DG119: 0 | DH119: 0 | DI119: 0 | DJ119: 0
C120: Other | D120: 0 | E120: 0 | F120: 0 | G120: 0 | H120: 0 | I120: 0 | J120: 0 | K120: 0 | L120: 0 | M120: 0 | N120: 0 | O120: 0 | P120: 0 | Q120: 0 | R120: 0 | S120: 0 | T120: 0 | U120: 0 | V120: 0 | W120: 0 | X120: 0 | Y120: 0 | Z120: 0 | AA120: 0 | AB120: 0 | AC120: 0 | AD120: 0 | AE120: 0 | AF120: 0 | AG120: 0 | AH120: 0 | AI120: 0 | AJ120: 0 | AK120: 0 | AL120: 0 | AM120: 0 | AN120: 0 | AO120: 0 | AP120: 0 | AQ120: 0 | AR120: 0 | AS120: 0 | AT120: 0 | AU120: 0 | AV120: 0 | AW120: 0 | AX120: 0 | AY120: 0 | AZ120: 0 | BA120: 0 | BB120: 0 | BC120: 0 | BD120: 0 | BE120: 0 | BF120: 0 | BG120: 0 | BH120: 0 | BI120: 0 | BJ120: 0 | BK120: 0 | BL120: 0 | BM120: 0 | BN120: 0 | BO120: 0 | BP120: 0 | BQ120: 0 | BR120: 0 | BS120: 0 | BT120: 0 | BU120: 0 | BV120: 0 | BW120: 0 | BX120: 0 | BY120: 0 | BZ120: 0 | CA120: 0 | CB120: 0 | CC120: 0 | CD120: 0 | CE120: 0 | CF120: 0 | CG120: 0 | CH120: 0 | CI120: 0 | CJ120: 0 | CK120: 0 | CL120: 0 | CM120: 0 | CN120: 0 | CO120: 0 | CP120: 0 | CQ120: 0 | CR120: 0 | CS120: 0 | CT120: 0 | CU120: 0 | CV120: 0 | CW120: 0 | CX120: 0 | CY120: 0 | CZ120: 0 | DA120: 0 | DB120: 0 | DC120: 0 | DD120: 0 | DE120: 0 | DF120: 0 | DG120: 0 | DH120: 0 | DI120: 0 | DJ120: 0
B121: SUBSTATION POWER TRANSFORMERS BY: Highest operating voltage; Ampere rating | C121: < = 33 kV ; < = 10 MVA | D121: 0 | E121: 0 | F121: 0 | G121: 0 | H121: 0 | I121: 0 | J121: 0 | K121: 0 | L121: 0 | M121: 0 | N121: 0 | O121: 0 | P121: 0 | Q121: 0 | R121: 0 | S121: 0 | T121: 0 | U121: 0 | V121: 0 | W121: 0 | X121: 0 | Y121: 0 | Z121: 0 | AA121: 0 | AB121: 0 | AC121: 0 | AD121: 0 | AE121: 0 | AF121: 0 | AG121: 0 | AH121: 0 | AI121: 0 | AJ121: 0 | AK121: 0 | AL121: 0 | AM121: 0 | AN121: 0 | AO121: 0 | AP121: 0 | AQ121: 0 | AR121: 0 | AS121: 0 | AT121: 0 | AU121: 0 | AV121: 0 | AW121: 0 | AX121: 0 | AY121: 0 | AZ121: 0 | BA121: 0 | BB121: 0 | BC121: 0 | BD121: 0 | BE121: 0 | BF121: 0 | BG121: 0 | BH121: 0 | BI121: 0 | BJ121: 0 | BK121: 0 | BL121: 0 | BM121: 0 | BN121: 0 | BO121: 0 | BP121: 0 | BQ121: 0 | BR121: 0 | BS121: 0 | BT121: 0 | BU121: 0 | BV121: 0 | BW121: 0 | BX121: 0 | BY121: 0 | BZ121: 0 | CA121: 0 | CB121: 0 | CC121: 0 | CD121: 0 | CE121: 0 | CF121: 0 | CG121: 0 | CH121: 0 | CI121: 0 | CJ121: 0 | CK121: 0 | CL121: 0 | CM121: 0 | CN121: 0 | CO121: 0 | CP121: 0 | CQ121: 0 | CR121: 0 | CS121: 0 | CT121: 0 | CU121: 0 | CV121: 0 | CW121: 0 | CX121: 0 | CY121: 0 | CZ121: 0 | DA121: 0 | DB121: 0 | DC121: 0 | DD121: 0 | DE121: 0 | DF121: 0 | DG121: 0 | DH121: 0 | DI121: 0 | DJ121: 0
C122: < = 33 kV ; > 10 MVA & < = 30 MVA | D122: 0 | E122: 0 | F122: 0 | G122: 0 | H122: 0 | I122: 0 | J122: 0 | K122: 0 | L122: 0 | M122: 0 | N122: 0 | O122: 0 | P122: 0 | Q122: 0 | R122: 0 | S122: 0 | T122: 0 | U122: 0 | V122: 0 | W122: 0 | X122: 0 | Y122: 0 | Z122: 0 | AA122: 0 | AB122: 0 | AC122: 0 | AD122: 0 | AE122: 0 | AF122: 0 | AG122: 0 | AH122: 0 | AI122: 0 | AJ122: 0 | AK122: 0 | AL122: 0 | AM122: 0 | AN122: 0 | AO122: 0 | AP122: 0 | AQ122: 0 | AR122: 0 | AS122: 0 | AT122: 0 | AU122: 0 | AV122: 0 | AW122: 0 | AX122: 0 | AY122: 0 | AZ122: 0 | BA122: 0 | BB122: 0 | BC122: 0 | BD122: 0 | BE122: 0 | BF122: 0 | BG122: 0 | BH122: 0 | BI122: 0 | BJ122: 0 | BK122: 0 | BL122: 0 | BM122: 0 | BN122: 0 | BO122: 0 | BP122: 0 | BQ122: 0 | BR122: 0 | BS122: 0 | BT122: 0 | BU122: 0 | BV122: 0 | BW122: 0 | BX122: 0 | BY122: 0 | BZ122: 0 | CA122: 0 | CB122: 0 | CC122: 0 | CD122: 0 | CE122: 0 | CF122: 0 | CG122: 0 | CH122: 0 | CI122: 0 | CJ122: 0 | CK122: 0 | CL122: 0 | CM122: 0 | CN122: 0 | CO122: 0 | CP122: 0 | CQ122: 0 | CR122: 0 | CS122: 0 | CT122: 0 | CU122: 0 | CV122: 0 | CW122: 0 | CX122: 0 | CY122: 0 | CZ122: 0 | DA122: 0 | DB122: 0 | DC122: 0 | DD122: 0 | DE122: 0 | DF122: 0 | DG122: 0 | DH122: 0 | DI122: 0 | DJ122: 0
C123: < = 33 kV ; > 30 MVA | D123: 0 | E123: 0 | F123: 0 | G123: 0 | H123: 0 | I123: 0 | J123: 0 | K123: 0 | L123: 0 | M123: 0 | N123: 0 | O123: 0 | P123: 0 | Q123: 0 | R123: 0 | S123: 0 | T123: 0 | U123: 0 | V123: 0 | W123: 0 | X123: 0 | Y123: 0 | Z123: 0 | AA123: 0 | AB123: 0 | AC123: 0 | AD123: 0 | AE123: 0 | AF123: 0 | AG123: 0 | AH123: 0 | AI123: 0 | AJ123: 0 | AK123: 0 | AL123: 0 | AM123: 0 | AN123: 0 | AO123: 0 | AP123: 0 | AQ123: 0 | AR123: 0 | AS123: 0 | AT123: 0 | AU123: 0 | AV123: 0 | AW123: 0 | AX123: 0 | AY123: 0 | AZ123: 0 | BA123: 0 | BB123: 0 | BC123: 0 | BD123: 0 | BE123: 0 | BF123: 0 | BG123: 0 | BH123: 0 | BI123: 0 | BJ123: 0 | BK123: 0 | BL123: 0 | BM123: 0 | BN123: 0 | BO123: 0 | BP123: 0 | BQ123: 0 | BR123: 0 | BS123: 0 | BT123: 0 | BU123: 0 | BV123: 0 | BW123: 0 | BX123: 0 | BY123: 0 | BZ123: 0 | CA123: 0 | CB123: 0 | CC123: 0 | CD123: 0 | CE123: 0 | CF123: 0 | CG123: 0 | CH123: 0 | CI123: 0 | CJ123: 0 | CK123: 0 | CL123: 0 | CM123: 0 | CN123: 0 | CO123: 0 | CP123: 0 | CQ123: 0 | CR123: 0 | CS123: 0 | CT123: 0 | CU123: 0 | CV123: 0 | CW123: 0 | CX123: 0 | CY123: 0 | CZ123: 0 | DA123: 0 | DB123: 0 | DC123: 0 | DD123: 0 | DE123: 0 | DF123: 0 | DG123: 0 | DH123: 0 | DI123: 0 | DJ123: 0
C124: > 33 kV & < = 66 kV ; < = 10 MVA | D124: 0 | E124: 0 | F124: 0 | G124: 0 | H124: 0 | I124: 0 | J124: 0 | K124: 0 | L124: 0 | M124: 0 | N124: 0 | O124: 0 | P124: 0 | Q124: 0 | R124: 0 | S124: 0 | T124: 0 | U124: 0 | V124: 0 | W124: 0 | X124: 0 | Y124: 0 | Z124: 0 | AA124: 0 | AB124: 0 | AC124: 0 | AD124: 0 | AE124: 0 | AF124: 0 | AG124: 0 | AH124: 0 | AI124: 0 | AJ124: 0 | AK124: 0 | AL124: 0 | AM124: 0 | AN124: 0 | AO124: 0 | AP124: 0 | AQ124: 0 | AR124: 0 | AS124: 0 | AT124: 0 | AU124: 0 | AV124: 0 | AW124: 0 | AX124: 0 | AY124: 0 | AZ124: 0 | BA124: 0 | BB124: 0 | BC124: 0 | BD124: 0 | BE124: 0 | BF124: 0 | BG124: 0 | BH124: 0 | BI124: 0 | BJ124: 0 | BK124: 0 | BL124: 0 | BM124: 0 | BN124: 0 | BO124: 0 | BP124: 0 | BQ124: 0 | BR124: 0 | BS124: 0 | BT124: 0 | BU124: 0 | BV124: 0 | BW124: 0 | BX124: 0 | BY124: 0 | BZ124: 0 | CA124: 0 | CB124: 0 | CC124: 0 | CD124: 0 | CE124: 0 | CF124: 0 | CG124: 0 | CH124: 0 | CI124: 0 | CJ124: 0 | CK124: 0 | CL124: 0 | CM124: 0 | CN124: 0 | CO124: 0 | CP124: 0 | CQ124: 0 | CR124: 0 | CS124: 0 | CT124: 0 | CU124: 0 | CV124: 0 | CW124: 0 | CX124: 0 | CY124: 0 | CZ124: 0 | DA124: 0 | DB124: 0 | DC124: 0 | DD124: 0 | DE124: 0 | DF124: 0 | DG124: 0 | DH124: 0 | DI124: 0 | DJ124: 0
C125: > 33 kV & < = 66 kV ; > 10 MVA & < = 30 MVA | D125: 0 | E125: 0 | F125: 0 | G125: 0 | H125: 0 | I125: 0 | J125: 0 | K125: 0 | L125: 0 | M125: 0 | N125: 0 | O125: 0 | P125: 0 | Q125: 0 | R125: 0 | S125: 0 | T125: 0 | U125: 0 | V125: 0 | W125: 0 | X125: 0 | Y125: 0 | Z125: 0 | AA125: 0 | AB125: 0 | AC125: 0 | AD125: 0 | AE125: 0 | AF125: 0 | AG125: 0 | AH125: 0 | AI125: 0 | AJ125: 0 | AK125: 0 | AL125: 0 | AM125: 0 | AN125: 0 | AO125: 0 | AP125: 0 | AQ125: 0 | AR125: 0 | AS125: 0 | AT125: 0 | AU125: 0 | AV125: 0 | AW125: 0 | AX125: 0 | AY125: 0 | AZ125: 0 | BA125: 0 | BB125: 0 | BC125: 0 | BD125: 0 | BE125: 0 | BF125: 0 | BG125: 0 | BH125: 0 | BI125: 0 | BJ125: 0 | BK125: 0 | BL125: 0 | BM125: 0 | BN125: 0 | BO125: 0 | BP125: 0 | BQ125: 0 | BR125: 0 | BS125: 0 | BT125: 0 | BU125: 0 | BV125: 0 | BW125: 0 | BX125: 0 | BY125: 0 | BZ125: 0 | CA125: 0 | CB125: 0 | CC125: 0 | CD125: 0 | CE125: 0 | CF125: 0 | CG125: 0 | CH125: 0 | CI125: 0 | CJ125: 0 | CK125: 0 | CL125: 0 | CM125: 0 | CN125: 0 | CO125: 0 | CP125: 0 | CQ125: 0 | CR125: 0 | CS125: 0 | CT125: 0 | CU125: 0 | CV125: 0 | CW125: 0 | CX125: 0 | CY125: 0 | CZ125: 0 | DA125: 0 | DB125: 0 | DC125: 0 | DD125: 0 | DE125: 0 | DF125: 0 | DG125: 0 | DH125: 0 | DI125: 0 | DJ125: 0
C126: > 33 kV & < = 66 kV ; > 30 MVA | D126: 0 | E126: 0 | F126: 0 | G126: 0 | H126: 0 | I126: 0 | J126: 0 | K126: 0 | L126: 0 | M126: 0 | N126: 0 | O126: 0 | P126: 0 | Q126: 0 | R126: 0 | S126: 0 | T126: 0 | U126: 0 | V126: 0 | W126: 0 | X126: 0 | Y126: 0 | Z126: 0 | AA126: 0 | AB126: 0 | AC126: 0 | AD126: 0 | AE126: 0 | AF126: 0 | AG126: 0 | AH126: 0 | AI126: 0 | AJ126: 0 | AK126: 0 | AL126: 0 | AM126: 0 | AN126: 0 | AO126: 0 | AP126: 0 | AQ126: 0 | AR126: 0 | AS126: 0 | AT126: 0 | AU126: 0 | AV126: 0 | AW126: 0 | AX126: 0 | AY126: 0 | AZ126: 0 | BA126: 0 | BB126: 0 | BC126: 0 | BD126: 0 | BE126: 0 | BF126: 0 | BG126: 0 | BH126: 0 | BI126: 0 | BJ126: 0 | BK126: 0 | BL126: 0 | BM126: 0 | BN126: 0 | BO126: 0 | BP126: 0 | BQ126: 0 | BR126: 0 | BS126: 0 | BT126: 0 | BU126: 0 | BV126: 0 | BW126: 0 | BX126: 0 | BY126: 0 | BZ126: 0 | CA126: 0 | CB126: 0 | CC126: 0 | CD126: 0 | CE126: 0 | CF126: 0 | CG126: 0 | CH126: 0 | CI126: 0 | CJ126: 0 | CK126: 0 | CL126: 0 | CM126: 0 | CN126: 0 | CO126: 0 | CP126: 0 | CQ126: 0 | CR126: 0 | CS126: 0 | CT126: 0 | CU126: 0 | CV126: 0 | CW126: 0 | CX126: 0 | CY126: 0 | CZ126: 0 | DA126: 0 | DB126: 0 | DC126: 0 | DD126: 0 | DE126: 0 | DF126: 0 | DG126: 0 | DH126: 0 | DI126: 0 | DJ126: 0
C127: > 66 kV & < = 132 kV ; < = 30 MVA | D127: 45 | E127: 6.7 | F127: 0 | G127: 0 | H127: 0 | I127: 0 | J127: 0 | K127: 0 | L127: 0 | M127: 0 | N127: 0 | O127: 0 | P127: 0 | Q127: 0 | R127: 0 | S127: 0 | T127: 0 | U127: 0 | V127: 0 | W127: 0 | X127: 0 | Y127: 0 | Z127: 0 | AA127: 0 | AB127: 0 | AC127: 0 | AD127: 0 | AE127: 0 | AF127: 0 | AG127: 0 | AH127: 0 | AI127: 0 | AJ127: 0 | AK127: 0 | AL127: 0 | AM127: 0 | AN127: 0 | AO127: 0 | AP127: 0 | AQ127: 0 | AR127: 0 | AS127: 0 | AT127: 0 | AU127: 0 | AV127: 0 | AW127: 0 | AX127: 0 | AY127: 0 | AZ127: 0 | BA127: 0 | BB127: 0 | BC127: 2 | BD127: 0 | BE127: 1 | BF127: 0 | BG127: 0 | BH127: 0 | BI127: 0 | BJ127: 0 | BK127: 1 | BL127: 0 | BM127: 0 | BN127: 0 | BO127: 0 | BP127: 0 | BQ127: 0 | BR127: 0 | BS127: 0 | BT127: 0 | BU127: 0 | BV127: 0 | BW127: 0 | BX127: 0 | BY127: 0 | BZ127: 0 | CA127: 0 | CB127: 0 | CC127: 0 | CD127: 0 | CE127: 0 | CF127: 0 | CG127: 0 | CH127: 0 | CI127: 0 | CJ127: 0 | CK127: 0 | CL127: 0 | CM127: 0 | CN127: 0 | CO127: 0 | CP127: 0 | CQ127: 0 | CR127: 0 | CS127: 0 | CT127: 0 | CU127: 0 | CV127: 0 | CW127: 0 | CX127: 0 | CY127: 0 | CZ127: 0 | DA127: 0 | DB127: 0 | DC127: 0 | DD127: 0 | DE127: 0 | DF127: 0 | DG127: 0 | DH127: 0 | DI127: 0 | DJ127: 0
C128: > 66 kV & < = 132 kV ; > 30 MVA & < = 60 MVA | D128: 45 | E128: 6.7 | F128: 0 | G128: 0 | H128: 0 | I128: 4 | J128: 3 | K128: 2 | L128: 2 | M128: 0 | N128: 4 | O128: 7 | P128: 1 | Q128: 3 | R128: 4 | S128: 2 | T128: 1 | U128: 1 | V128: 2 | W128: 0 | X128: 0 | Y128: 0 | Z128: 0 | AA128: 0 | AB128: 0 | AC128: 0 | AD128: 0 | AE128: 1 | AF128: 0 | AG128: 0 | AH128: 0 | AI128: 2 | AJ128: 2 | AK128: 0 | AL128: 2 | AM128: 3 | AN128: 0 | AO128: 1 | AP128: 1 | AQ128: 0 | AR128: 0 | AS128: 2 | AT128: 0 | AU128: 0 | AV128: 0 | AW128: 0 | AX128: 0 | AY128: 0 | AZ128: 0 | BA128: 0 | BB128: 0 | BC128: 0 | BD128: 2 | BE128: 0 | BF128: 0 | BG128: 0 | BH128: 0 | BI128: 0 | BJ128: 0 | BK128: 0 | BL128: 0 | BM128: 0 | BN128: 0 | BO128: 0 | BP128: 0 | BQ128: 0 | BR128: 0 | BS128: 0 | BT128: 0 | BU128: 0 | BV128: 0 | BW128: 0 | BX128: 0 | BY128: 0 | BZ128: 0 | CA128: 0 | CB128: 0 | CC128: 0 | CD128: 0 | CE128: 0 | CF128: 0 | CG128: 0 | CH128: 0 | CI128: 0 | CJ128: 0 | CK128: 0 | CL128: 0 | CM128: 0 | CN128: 0 | CO128: 0 | CP128: 0 | CQ128: 0 | CR128: 0 | CS128: 0 | CT128: 0 | CU128: 0 | CV128: 0 | CW128: 0 | CX128: 0 | CY128: 0 | CZ128: 0 | DA128: 0 | DB128: 0 | DC128: 0 | DD128: 0 | DE128: 0 | DF128: 0 | DG128: 0 | DH128: 0 | DI128: 0 | DJ128: 0
C129: > 66 kV & < = 132 kV ; > 60 MVA | D129: 45 | E129: 6.7 | F129: 1 | G129: 1 | H129: 1 | I129: 1 | J129: 0 | K129: 0 | L129: 0 | M129: 0 | N129: 2 | O129: 3 | P129: 0 | Q129: 0 | R129: 0 | S129: 0 | T129: 0 | U129: 0 | V129: 0 | W129: 0 | X129: 1 | Y129: 0 | Z129: 0 | AA129: 0 | AB129: 0 | AC129: 0 | AD129: 0 | AE129: 0 | AF129: 0 | AG129: 0 | AH129: 0 | AI129: 0 | AJ129: 0 | AK129: 0 | AL129: 0 | AM129: 0 | AN129: 5 | AO129: 0 | AP129: 1 | AQ129: 2 | AR129: 0 | AS129: 0 | AT129: 0 | AU129: 0 | AV129: 0 | AW129: 0 | AX129: 0 | AY129: 0 | AZ129: 0 | BA129: 0 | BB129: 0 | BC129: 0 | BD129: 0 | BE129: 0 | BF129: 0 | BG129: 0 | BH129: 0 | BI129: 0 | BJ129: 0 | BK129: 0 | BL129: 0 | BM129: 0 | BN129: 0 | BO129: 0 | BP129: 0 | BQ129: 0 | BR129: 0 | BS129: 0 | BT129: 0 | BU129: 0 | BV129: 0 | BW129: 0 | BX129: 0 | BY129: 0 | BZ129: 0 | CA129: 0 | CB129: 0 | CC129: 0 | CD129: 0 | CE129: 0 | CF129: 0 | CG129: 0 | CH129: 0 | CI129: 0 | CJ129: 0 | CK129: 0 | CL129: 0 | CM129: 0 | CN129: 0 | CO129: 0 | CP129: 0 | CQ129: 0 | CR129: 0 | CS129: 0 | CT129: 0 | CU129: 0 | CV129: 0 | CW129: 0 | CX129: 0 | CY129: 0 | CZ129: 0 | DA129: 0 | DB129: 0 | DC129: 0 | DD129: 0 | DE129: 0 | DF129: 0 | DG129: 0 | DH129: 0 | DI129: 0 | DJ129: 0
C130: > 132 kV & < = 220 kV ; < = 50 MVA | D130: 45 | E130: 6.7 | F130: 0 | G130: 0 | H130: 0 | I130: 0 | J130: 0 | K130: 0 | L130: 0 | M130: 0 | N130: 0 | O130: 0 | P130: 0 | Q130: 0 | R130: 0 | S130: 0 | T130: 0 | U130: 0 | V130: 0 | W130: 1 | X130: 0 | Y130: 0 | Z130: 0 | AA130: 0 | AB130: 0 | AC130: 0 | AD130: 0 | AE130: 0 | AF130: 0 | AG130: 0 | AH130: 0 | AI130: 0 | AJ130: 0 | AK130: 0 | AL130: 0 | AM130: 0 | AN130: 0 | AO130: 0 | AP130: 0 | AQ130: 0 | AR130: 0 | AS130: 0 | AT130: 0 | AU130: 0 | AV130: 0 | AW130: 0 | AX130: 0 | AY130: 0 | AZ130: 0 | BA130: 0 | BB130: 0 | BC130: 0 | BD130: 0 | BE130: 0 | BF130: 0 | BG130: 0 | BH130: 0 | BI130: 0 | BJ130: 0 | BK130: 0 | BL130: 0 | BM130: 0 | BN130: 0 | BO130: 0 | BP130: 0 | BQ130: 0 | BR130: 0 | BS130: 0 | BT130: 0 | BU130: 0 | BV130: 0 | BW130: 0 | BX130: 0 | BY130: 0 | BZ130: 0 | CA130: 0 | CB130: 0 | CC130: 0 | CD130: 0 | CE130: 0 | CF130: 0 | CG130: 0 | CH130: 0 | CI130: 0 | CJ130: 0 | CK130: 0 | CL130: 0 | CM130: 0 | CN130: 0 | CO130: 0 | CP130: 0 | CQ130: 0 | CR130: 0 | CS130: 0 | CT130: 0 | CU130: 0 | CV130: 0 | CW130: 0 | CX130: 0 | CY130: 0 | CZ130: 0 | DA130: 0 | DB130: 0 | DC130: 0 | DD130: 0 | DE130: 0 | DF130: 0 | DG130: 0 | DH130: 0 | DI130: 0 | DJ130: 0
C131: > 132 kV & < = 220 kV ; > 50 MVA & < = 100 MVA | D131: 45 | E131: 6.7 | F131: 0 | G131: 0 | H131: 0 | I131: 0 | J131: 0 | K131: 0 | L131: 0 | M131: 0 | N131: 0 | O131: 0 | P131: 0 | Q131: 0 | R131: 0 | S131: 0 | T131: 0 | U131: 0 | V131: 0 | W131: 0 | X131: 0 | Y131: 0 | Z131: 0 | AA131: 0 | AB131: 0 | AC131: 0 | AD131: 0 | AE131: 0 | AF131: 0 | AG131: 0 | AH131: 0 | AI131: 0 | AJ131: 0 | AK131: 0 | AL131: 0 | AM131: 0 | AN131: 0 | AO131: 0 | AP131: 0 | AQ131: 0 | AR131: 0 | AS131: 2 | AT131: 0 | AU131: 0 | AV131: 0 | AW131: 0 | AX131: 0 | AY131: 0 | AZ131: 0 | BA131: 0 | BB131: 0 | BC131: 0 | BD131: 0 | BE131: 0 | BF131: 0 | BG131: 0 | BH131: 0 | BI131: 0 | BJ131: 0 | BK131: 0 | BL131: 0 | BM131: 0 | BN131: 0 | BO131: 0 | BP131: 0 | BQ131: 0 | BR131: 0 | BS131: 0 | BT131: 0 | BU131: 0 | BV131: 0 | BW131: 0 | BX131: 0 | BY131: 0 | BZ131: 0 | CA131: 0 | CB131: 0 | CC131: 0 | CD131: 0 | CE131: 0 | CF131: 0 | CG131: 0 | CH131: 0 | CI131: 0 | CJ131: 0 | CK131: 0 | CL131: 0 | CM131: 0 | CN131: 0 | CO131: 0 | CP131: 0 | CQ131: 0 | CR131: 0 | CS131: 0 | CT131: 0 | CU131: 0 | CV131: 0 | CW131: 0 | CX131: 0 | CY131: 0 | CZ131: 0 | DA131: 0 | DB131: 0 | DC131: 0 | DD131: 0 | DE131: 0 | DF131: 0 | DG131: 0 | DH131: 0 | DI131: 0 | DJ131: 0
C132: > 132 kV & < = 220 kV ; > 100 MVA | D132: 0 | E132: 0 | F132: 0 | G132: 0 | H132: 0 | I132: 0 | J132: 0 | K132: 0 | L132: 0 | M132: 0 | N132: 0 | O132: 0 | P132: 0 | Q132: 0 | R132: 0 | S132: 0 | T132: 0 | U132: 0 | V132: 0 | W132: 0 | X132: 0 | Y132: 0 | Z132: 0 | AA132: 0 | AB132: 0 | AC132: 0 | AD132: 0 | AE132: 0 | AF132: 0 | AG132: 0 | AH132: 0 | AI132: 0 | AJ132: 0 | AK132: 0 | AL132: 0 | AM132: 0 | AN132: 0 | AO132: 0 | AP132: 0 | AQ132: 0 | AR132: 0 | AS132: 0 | AT132: 0 | AU132: 0 | AV132: 0 | AW132: 0 | AX132: 0 | AY132: 0 | AZ132: 0 | BA132: 0 | BB132: 0 | BC132: 0 | BD132: 0 | BE132: 0 | BF132: 0 | BG132: 0 | BH132: 0 | BI132: 0 | BJ132: 0 | BK132: 0 | BL132: 0 | BM132: 0 | BN132: 0 | BO132: 0 | BP132: 0 | BQ132: 0 | BR132: 0 | BS132: 0 | BT132: 0 | BU132: 0 | BV132: 0 | BW132: 0 | BX132: 0 | BY132: 0 | BZ132: 0 | CA132: 0 | CB132: 0 | CC132: 0 | CD132: 0 | CE132: 0 | CF132: 0 | CG132: 0 | CH132: 0 | CI132: 0 | CJ132: 0 | CK132: 0 | CL132: 0 | CM132: 0 | CN132: 0 | CO132: 0 | CP132: 0 | CQ132: 0 | CR132: 0 | CS132: 0 | CT132: 0 | CU132: 0 | CV132: 0 | CW132: 0 | CX132: 0 | CY132: 0 | CZ132: 0 | DA132: 0 | DB132: 0 | DC132: 0 | DD132: 0 | DE132: 0 | DF132: 0 | DG132: 0 | DH132: 0 | DI132: 0 | DJ132: 0
C133: > 220 kV & < = 275 kV ; < = 50 MVA | D133: 0 | E133: 0 | F133: 0 | G133: 0 | H133: 0 | I133: 0 | J133: 0 | K133: 0 | L133: 0 | M133: 0 | N133: 0 | O133: 0 | P133: 0 | Q133: 0 | R133: 0 | S133: 0 | T133: 0 | U133: 0 | V133: 0 | W133: 0 | X133: 0 | Y133: 0 | Z133: 0 | AA133: 0 | AB133: 0 | AC133: 0 | AD133: 0 | AE133: 0 | AF133: 0 | AG133: 0 | AH133: 0 | AI133: 0 | AJ133: 0 | AK133: 0 | AL133: 0 | AM133: 0 | AN133: 0 | AO133: 0 | AP133: 0 | AQ133: 0 | AR133: 0 | AS133: 0 | AT133: 0 | AU133: 0 | AV133: 0 | AW133: 0 | AX133: 0 | AY133: 0 | AZ133: 0 | BA133: 0 | BB133: 0 | BC133: 0 | BD133: 0 | BE133: 0 | BF133: 0 | BG133: 0 | BH133: 0 | BI133: 0 | BJ133: 0 | BK133: 0 | BL133: 0 | BM133: 0 | BN133: 0 | BO133: 0 | BP133: 0 | BQ133: 0 | BR133: 0 | BS133: 0 | BT133: 0 | BU133: 0 | BV133: 0 | BW133: 0 | BX133: 0 | BY133: 0 | BZ133: 0 | CA133: 0 | CB133: 0 | CC133: 0 | CD133: 0 | CE133: 0 | CF133: 0 | CG133: 0 | CH133: 0 | CI133: 0 | CJ133: 0 | CK133: 0 | CL133: 0 | CM133: 0 | CN133: 0 | CO133: 0 | CP133: 0 | CQ133: 0 | CR133: 0 | CS133: 0 | CT133: 0 | CU133: 0 | CV133: 0 | CW133: 0 | CX133: 0 | CY133: 0 | CZ133: 0 | DA133: 0 | DB133: 0 | DC133: 0 | DD133: 0 | DE133: 0 | DF133: 0 | DG133: 0 | DH133: 0 | DI133: 0 | DJ133: 0
C134: > 220 kV & < = 275 kV ; > 50 MVA & < = 100 MVA | D134: 0 | E134: 0 | F134: 0 | G134: 0 | H134: 0 | I134: 0 | J134: 0 | K134: 0 | L134: 0 | M134: 0 | N134: 0 | O134: 0 | P134: 0 | Q134: 0 | R134: 0 | S134: 0 | T134: 0 | U134: 0 | V134: 0 | W134: 0 | X134: 0 | Y134: 0 | Z134: 0 | AA134: 0 | AB134: 0 | AC134: 0 | AD134: 0 | AE134: 0 | AF134: 0 | AG134: 0 | AH134: 0 | AI134: 0 | AJ134: 0 | AK134: 0 | AL134: 0 | AM134: 0 | AN134: 0 | AO134: 0 | AP134: 0 | AQ134: 0 | AR134: 0 | AS134: 0 | AT134: 0 | AU134: 0 | AV134: 0 | AW134: 0 | AX134: 0 | AY134: 0 | AZ134: 0 | BA134: 0 | BB134: 0 | BC134: 0 | BD134: 0 | BE134: 0 | BF134: 0 | BG134: 0 | BH134: 0 | BI134: 0 | BJ134: 0 | BK134: 0 | BL134: 0 | BM134: 0 | BN134: 0 | BO134: 0 | BP134: 0 | BQ134: 0 | BR134: 0 | BS134: 0 | BT134: 0 | BU134: 0 | BV134: 0 | BW134: 0 | BX134: 0 | BY134: 0 | BZ134: 0 | CA134: 0 | CB134: 0 | CC134: 0 | CD134: 0 | CE134: 0 | CF134: 0 | CG134: 0 | CH134: 0 | CI134: 0 | CJ134: 0 | CK134: 0 | CL134: 0 | CM134: 0 | CN134: 0 | CO134: 0 | CP134: 0 | CQ134: 0 | CR134: 0 | CS134: 0 | CT134: 0 | CU134: 0 | CV134: 0 | CW134: 0 | CX134: 0 | CY134: 0 | CZ134: 0 | DA134: 0 | DB134: 0 | DC134: 0 | DD134: 0 | DE134: 0 | DF134: 0 | DG134: 0 | DH134: 0 | DI134: 0 | DJ134: 0
C135: > 220 kV & < = 275 kV ; > 100 MVA | D135: 0 | E135: 0 | F135: 0 | G135: 0 | H135: 0 | I135: 0 | J135: 0 | K135: 0 | L135: 0 | M135: 0 | N135: 0 | O135: 0 | P135: 0 | Q135: 0 | R135: 0 | S135: 0 | T135: 0 | U135: 0 | V135: 0 | W135: 0 | X135: 0 | Y135: 0 | Z135: 0 | AA135: 0 | AB135: 0 | AC135: 0 | AD135: 0 | AE135: 0 | AF135: 0 | AG135: 0 | AH135: 0 | AI135: 0 | AJ135: 0 | AK135: 0 | AL135: 0 | AM135: 0 | AN135: 0 | AO135: 0 | AP135: 0 | AQ135: 0 | AR135: 0 | AS135: 0 | AT135: 0 | AU135: 0 | AV135: 0 | AW135: 0 | AX135: 0 | AY135: 0 | AZ135: 0 | BA135: 0 | BB135: 0 | BC135: 0 | BD135: 0 | BE135: 0 | BF135: 0 | BG135: 0 | BH135: 0 | BI135: 0 | BJ135: 0 | BK135: 0 | BL135: 0 | BM135: 0 | BN135: 0 | BO135: 0 | BP135: 0 | BQ135: 0 | BR135: 0 | BS135: 0 | BT135: 0 | BU135: 0 | BV135: 0 | BW135: 0 | BX135: 0 | BY135: 0 | BZ135: 0 | CA135: 0 | CB135: 0 | CC135: 0 | CD135: 0 | CE135: 0 | CF135: 0 | CG135: 0 | CH135: 0 | CI135: 0 | CJ135: 0 | CK135: 0 | CL135: 0 | CM135: 0 | CN135: 0 | CO135: 0 | CP135: 0 | CQ135: 0 | CR135: 0 | CS135: 0 | CT135: 0 | CU135: 0 | CV135: 0 | CW135: 0 | CX135: 0 | CY135: 0 | CZ135: 0 | DA135: 0 | DB135: 0 | DC135: 0 | DD135: 0 | DE135: 0 | DF135: 0 | DG135: 0 | DH135: 0 | DI135: 0 | DJ135: 0
C136: > 275 kV & < = 330 kV ; < = 100 MVA | D136: 45 | E136: 6.7 | F136: 0 | G136: 0 | H136: 0 | I136: 0 | J136: 0 | K136: 0 | L136: 0 | M136: 0 | N136: 0 | O136: 0 | P136: 0 | Q136: 0 | R136: 0 | S136: 0 | T136: 0 | U136: 0 | V136: 0 | W136: 0 | X136: 0 | Y136: 0 | Z136: 0 | AA136: 0 | AB136: 0 | AC136: 0 | AD136: 0 | AE136: 0 | AF136: 0 | AG136: 0 | AH136: 0 | AI136: 0 | AJ136: 0 | AK136: 0 | AL136: 0 | AM136: 0 | AN136: 0 | AO136: 0 | AP136: 0 | AQ136: 0 | AR136: 0 | AS136: 0 | AT136: 0 | AU136: 0 | AV136: 0 | AW136: 0 | AX136: 0 | AY136: 0 | AZ136: 0 | BA136: 0 | BB136: 0 | BC136: 0 | BD136: 1 | BE136: 0 | BF136: 0 | BG136: 0 | BH136: 1 | BI136: 0 | BJ136: 0 | BK136: 0 | BL136: 0 | BM136: 0 | BN136: 0 | BO136: 0 | BP136: 0 | BQ136: 0 | BR136: 0 | BS136: 0 | BT136: 0 | BU136: 0 | BV136: 0 | BW136: 0 | BX136: 0 | BY136: 0 | BZ136: 0 | CA136: 0 | CB136: 0 | CC136: 0 | CD136: 0 | CE136: 0 | CF136: 0 | CG136: 0 | CH136: 0 | CI136: 0 | CJ136: 0 | CK136: 0 | CL136: 0 | CM136: 0 | CN136: 0 | CO136: 0 | CP136: 0 | CQ136: 0 | CR136: 0 | CS136: 0 | CT136: 0 | CU136: 0 | CV136: 0 | CW136: 0 | CX136: 0 | CY136: 0 | CZ136: 0 | DA136: 0 | DB136: 0 | DC136: 0 | DD136: 0 | DE136: 0 | DF136: 0 | DG136: 0 | DH136: 0 | DI136: 0 | DJ136: 0
C137: > 275 kV & < = 330 kV ; > 100 MVA & < = 250 MVA | D137: 45 | E137: 6.7 | F137: 0 | G137: 0 | H137: 0 | I137: 0 | J137: 0 | K137: 0 | L137: 0 | M137: 0 | N137: 0 | O137: 1 | P137: 0 | Q137: 0 | R137: 0 | S137: 0 | T137: 4 | U137: 6 | V137: 1 | W137: 0 | X137: 0 | Y137: 1 | Z137: 0 | AA137: 1 | AB137: 1 | AC137: 0 | AD137: 0 | AE137: 0 | AF137: 0 | AG137: 0 | AH137: 0 | AI137: 0 | AJ137: 2 | AK137: 0 | AL137: 0 | AM137: 0 | AN137: 2 | AO137: 0 | AP137: 0 | AQ137: 0 | AR137: 0 | AS137: 0 | AT137: 0 | AU137: 0 | AV137: 0 | AW137: 0 | AX137: 9 | AY137: 0 | AZ137: 0 | BA137: 0 | BB137: 0 | BC137: 0 | BD137: 0 | BE137: 8 | BF137: 0 | BG137: 0 | BH137: 0 | BI137: 1 | BJ137: 0 | BK137: 0 | BL137: 0 | BM137: 0 | BN137: 0 | BO137: 0 | BP137: 0 | BQ137: 0 | BR137: 0 | BS137: 0 | BT137: 0 | BU137: 0 | BV137: 0 | BW137: 0 | BX137: 0 | BY137: 0 | BZ137: 0 | CA137: 0 | CB137: 0 | CC137: 0 | CD137: 0 | CE137: 0 | CF137: 0 | CG137: 0 | CH137: 0 | CI137: 0 | CJ137: 0 | CK137: 0 | CL137: 0 | CM137: 0 | CN137: 0 | CO137: 0 | CP137: 0 | CQ137: 0 | CR137: 0 | CS137: 0 | CT137: 0 | CU137: 0 | CV137: 0 | CW137: 0 | CX137: 0 | CY137: 0 | CZ137: 0 | DA137: 0 | DB137: 0 | DC137: 0 | DD137: 0 | DE137: 0 | DF137: 0 | DG137: 0 | DH137: 0 | DI137: 0 | DJ137: 0
C138: > 275 kV & < = 330 kV ; > 250 MVA | D138: 45 | E138: 6.7 | F138: 0 | G138: 0 | H138: 0 | I138: 0 | J138: 3 | K138: 6 | L138: 2 | M138: 1 | N138: 7 | O138: 8 | P138: 2 | Q138: 6 | R138: 4 | S138: 3 | T138: 4 | U138: 0 | V138: 2 | W138: 2 | X138: 0 | Y138: 0 | Z138: 0 | AA138: 0 | AB138: 0 | AC138: 0 | AD138: 1 | AE138: 2 | AF138: 0 | AG138: 0 | AH138: 0 | AI138: 1 | AJ138: 1 | AK138: 1 | AL138: 0 | AM138: 3 | AN138: 2 | AO138: 3 | AP138: 2 | AQ138: 2 | AR138: 3 | AS138: 0 | AT138: 0 | AU138: 0 | AV138: 0 | AW138: 0 | AX138: 0 | AY138: 0 | AZ138: 0 | BA138: 0 | BB138: 0 | BC138: 0 | BD138: 0 | BE138: 0 | BF138: 0 | BG138: 0 | BH138: 0 | BI138: 0 | BJ138: 0 | BK138: 0 | BL138: 0 | BM138: 0 | BN138: 0 | BO138: 0 | BP138: 0 | BQ138: 0 | BR138: 0 | BS138: 0 | BT138: 0 | BU138: 0 | BV138: 0 | BW138: 0 | BX138: 0 | BY138: 0 | BZ138: 0 | CA138: 0 | CB138: 0 | CC138: 0 | CD138: 0 | CE138: 0 | CF138: 0 | CG138: 0 | CH138: 0 | CI138: 0 | CJ138: 0 | CK138: 0 | CL138: 0 | CM138: 0 | CN138: 0 | CO138: 0 | CP138: 0 | CQ138: 0 | CR138: 0 | CS138: 0 | CT138: 0 | CU138: 0 | CV138: 0 | CW138: 0 | CX138: 0 | CY138: 0 | CZ138: 0 | DA138: 0 | DB138: 0 | DC138: 0 | DD138: 0 | DE138: 0 | DF138: 0 | DG138: 0 | DH138: 0 | DI138: 0 | DJ138: 0
C139: > 330 kV & < = 500 kV ; < = 150 MVA | D139: 0 | E139: 0 | F139: 0 | G139: 0 | H139: 0 | I139: 0 | J139: 0 | K139: 0 | L139: 0 | M139: 0 | N139: 0 | O139: 0 | P139: 0 | Q139: 0 | R139: 0 | S139: 0 | T139: 0 | U139: 0 | V139: 0 | W139: 0 | X139: 0 | Y139: 0 | Z139: 0 | AA139: 0 | AB139: 0 | AC139: 0 | AD139: 0 | AE139: 0 | AF139: 0 | AG139: 0 | AH139: 0 | AI139: 0 | AJ139: 0 | AK139: 0 | AL139: 0 | AM139: 0 | AN139: 0 | AO139: 0 | AP139: 0 | AQ139: 0 | AR139: 0 | AS139: 0 | AT139: 0 | AU139: 0 | AV139: 0 | AW139: 0 | AX139: 0 | AY139: 0 | AZ139: 0 | BA139: 0 | BB139: 0 | BC139: 0 | BD139: 0 | BE139: 0 | BF139: 0 | BG139: 0 | BH139: 0 | BI139: 0 | BJ139: 0 | BK139: 0 | BL139: 0 | BM139: 0 | BN139: 0 | BO139: 0 | BP139: 0 | BQ139: 0 | BR139: 0 | BS139: 0 | BT139: 0 | BU139: 0 | BV139: 0 | BW139: 0 | BX139: 0 | BY139: 0 | BZ139: 0 | CA139: 0 | CB139: 0 | CC139: 0 | CD139: 0 | CE139: 0 | CF139: 0 | CG139: 0 | CH139: 0 | CI139: 0 | CJ139: 0 | CK139: 0 | CL139: 0 | CM139: 0 | CN139: 0 | CO139: 0 | CP139: 0 | CQ139: 0 | CR139: 0 | CS139: 0 | CT139: 0 | CU139: 0 | CV139: 0 | CW139: 0 | CX139: 0 | CY139: 0 | CZ139: 0 | DA139: 0 | DB139: 0 | DC139: 0 | DD139: 0 | DE139: 0 | DF139: 0 | DG139: 0 | DH139: 0 | DI139: 0 | DJ139: 0
C140: > 330 kV & < = 500 kV ; > 150 MVA & < = 300 MVA | D140: 0 | E140: 0 | F140: 0 | G140: 0 | H140: 0 | I140: 0 | J140: 0 | K140: 0 | L140: 0 | M140: 0 | N140: 0 | O140: 0 | P140: 0 | Q140: 0 | R140: 0 | S140: 0 | T140: 0 | U140: 0 | V140: 0 | W140: 0 | X140: 0 | Y140: 0 | Z140: 0 | AA140: 0 | AB140: 0 | AC140: 0 | AD140: 0 | AE140: 0 | AF140: 0 | AG140: 0 | AH140: 0 | AI140: 0 | AJ140: 0 | AK140: 0 | AL140: 0 | AM140: 0 | AN140: 0 | AO140: 0 | AP140: 0 | AQ140: 0 | AR140: 0 | AS140: 0 | AT140: 0 | AU140: 0 | AV140: 0 | AW140: 0 | AX140: 0 | AY140: 0 | AZ140: 0 | BA140: 0 | BB140: 0 | BC140: 0 | BD140: 0 | BE140: 0 | BF140: 0 | BG140: 0 | BH140: 0 | BI140: 0 | BJ140: 0 | BK140: 0 | BL140: 0 | BM140: 0 | BN140: 0 | BO140: 0 | BP140: 0 | BQ140: 0 | BR140: 0 | BS140: 0 | BT140: 0 | BU140: 0 | BV140: 0 | BW140: 0 | BX140: 0 | BY140: 0 | BZ140: 0 | CA140: 0 | CB140: 0 | CC140: 0 | CD140: 0 | CE140: 0 | CF140: 0 | CG140: 0 | CH140: 0 | CI140: 0 | CJ140: 0 | CK140: 0 | CL140: 0 | CM140: 0 | CN140: 0 | CO140: 0 | CP140: 0 | CQ140: 0 | CR140: 0 | CS140: 0 | CT140: 0 | CU140: 0 | CV140: 0 | CW140: 0 | CX140: 0 | CY140: 0 | CZ140: 0 | DA140: 0 | DB140: 0 | DC140: 0 | DD140: 0 | DE140: 0 | DF140: 0 | DG140: 0 | DH140: 0 | DI140: 0 | DJ140: 0
C141: > 330 kV & < = 500 kV ; > 300 MVA | D141: 45 | E141: 6.7 | F141: 0 | G141: 0 | H141: 0 | I141: 0 | J141: 0 | K141: 0 | L141: 0 | M141: 0 | N141: 12 | O141: 9 | P141: 0 | Q141: 0 | R141: 0 | S141: 0 | T141: 0 | U141: 0 | V141: 0 | W141: 0 | X141: 0 | Y141: 0 | Z141: 0 | AA141: 0 | AB141: 0 | AC141: 0 | AD141: 0 | AE141: 0 | AF141: 0 | AG141: 0 | AH141: 0 | AI141: 0 | AJ141: 0 | AK141: 0 | AL141: 0 | AM141: 0 | AN141: 0 | AO141: 6 | AP141: 3 | AQ141: 0 | AR141: 0 | AS141: 0 | AT141: 0 | AU141: 0 | AV141: 0 | AW141: 0 | AX141: 0 | AY141: 0 | AZ141: 0 | BA141: 0 | BB141: 0 | BC141: 0 | BD141: 0 | BE141: 0 | BF141: 0 | BG141: 0 | BH141: 0 | BI141: 0 | BJ141: 0 | BK141: 0 | BL141: 0 | BM141: 0 | BN141: 0 | BO141: 0 | BP141: 0 | BQ141: 0 | BR141: 0 | BS141: 0 | BT141: 0 | BU141: 0 | BV141: 0 | BW141: 0 | BX141: 0 | BY141: 0 | BZ141: 0 | CA141: 0 | CB141: 0 | CC141: 0 | CD141: 0 | CE141: 0 | CF141: 0 | CG141: 0 | CH141: 0 | CI141: 0 | CJ141: 0 | CK141: 0 | CL141: 0 | CM141: 0 | CN141: 0 | CO141: 0 | CP141: 0 | CQ141: 0 | CR141: 0 | CS141: 0 | CT141: 0 | CU141: 0 | CV141: 0 | CW141: 0 | CX141: 0 | CY141: 0 | CZ141: 0 | DA141: 0 | DB141: 0 | DC141: 0 | DD141: 0 | DE141: 0 | DF141: 0 | DG141: 0 | DH141: 0 | DI141: 0 | DJ141: 0
C142: > 500 kV ; < = 1000 MVA | D142: 0 | E142: 0 | F142: 0 | G142: 0 | H142: 0 | I142: 0 | J142: 0 | K142: 0 | L142: 0 | M142: 0 | N142: 0 | O142: 0 | P142: 0 | Q142: 0 | R142: 0 | S142: 0 | T142: 0 | U142: 0 | V142: 0 | W142: 0 | X142: 0 | Y142: 0 | Z142: 0 | AA142: 0 | AB142: 0 | AC142: 0 | AD142: 0 | AE142: 0 | AF142: 0 | AG142: 0 | AH142: 0 | AI142: 0 | AJ142: 0 | AK142: 0 | AL142: 0 | AM142: 0 | AN142: 0 | AO142: 0 | AP142: 0 | AQ142: 0 | AR142: 0 | AS142: 0 | AT142: 0 | AU142: 0 | AV142: 0 | AW142: 0 | AX142: 0 | AY142: 0 | AZ142: 0 | BA142: 0 | BB142: 0 | BC142: 0 | BD142: 0 | BE142: 0 | BF142: 0 | BG142: 0 | BH142: 0 | BI142: 0 | BJ142: 0 | BK142: 0 | BL142: 0 | BM142: 0 | BN142: 0 | BO142: 0 | BP142: 0 | BQ142: 0 | BR142: 0 | BS142: 0 | BT142: 0 | BU142: 0 | BV142: 0 | BW142: 0 | BX142: 0 | BY142: 0 | BZ142: 0 | CA142: 0 | CB142: 0 | CC142: 0 | CD142: 0 | CE142: 0 | CF142: 0 | CG142: 0 | CH142: 0 | CI142: 0 | CJ142: 0 | CK142: 0 | CL142: 0 | CM142: 0 | CN142: 0 | CO142: 0 | CP142: 0 | CQ142: 0 | CR142: 0 | CS142: 0 | CT142: 0 | CU142: 0 | CV142: 0 | CW142: 0 | CX142: 0 | CY142: 0 | CZ142: 0 | DA142: 0 | DB142: 0 | DC142: 0 | DD142: 0 | DE142: 0 | DF142: 0 | DG142: 0 | DH142: 0 | DI142: 0 | DJ142: 0
C143: > 500 kV ; > 1000 MVA & < = 1500 MVA | D143: 0 | E143: 0 | F143: 0 | G143: 0 | H143: 0 | I143: 0 | J143: 0 | K143: 0 | L143: 0 | M143: 0 | N143: 0 | O143: 0 | P143: 0 | Q143: 0 | R143: 0 | S143: 0 | T143: 0 | U143: 0 | V143: 0 | W143: 0 | X143: 0 | Y143: 0 | Z143: 0 | AA143: 0 | AB143: 0 | AC143: 0 | AD143: 0 | AE143: 0 | AF143: 0 | AG143: 0 | AH143: 0 | AI143: 0 | AJ143: 0 | AK143: 0 | AL143: 0 | AM143: 0 | AN143: 0 | AO143: 0 | AP143: 0 | AQ143: 0 | AR143: 0 | AS143: 0 | AT143: 0 | AU143: 0 | AV143: 0 | AW143: 0 | AX143: 0 | AY143: 0 | AZ143: 0 | BA143: 0 | BB143: 0 | BC143: 0 | BD143: 0 | BE143: 0 | BF143: 0 | BG143: 0 | BH143: 0 | BI143: 0 | BJ143: 0 | BK143: 0 | BL143: 0 | BM143: 0 | BN143: 0 | BO143: 0 | BP143: 0 | BQ143: 0 | BR143: 0 | BS143: 0 | BT143: 0 | BU143: 0 | BV143: 0 | BW143: 0 | BX143: 0 | BY143: 0 | BZ143: 0 | CA143: 0 | CB143: 0 | CC143: 0 | CD143: 0 | CE143: 0 | CF143: 0 | CG143: 0 | CH143: 0 | CI143: 0 | CJ143: 0 | CK143: 0 | CL143: 0 | CM143: 0 | CN143: 0 | CO143: 0 | CP143: 0 | CQ143: 0 | CR143: 0 | CS143: 0 | CT143: 0 | CU143: 0 | CV143: 0 | CW143: 0 | CX143: 0 | CY143: 0 | CZ143: 0 | DA143: 0 | DB143: 0 | DC143: 0 | DD143: 0 | DE143: 0 | DF143: 0 | DG143: 0 | DH143: 0 | DI143: 0 | DJ143: 0
C144: > 500 kV ; > 1500 MVA | D144: 0 | E144: 0 | F144: 0 | G144: 0 | H144: 0 | I144: 0 | J144: 0 | K144: 0 | L144: 0 | M144: 0 | N144: 0 | O144: 0 | P144: 0 | Q144: 0 | R144: 0 | S144: 0 | T144: 0 | U144: 0 | V144: 0 | W144: 0 | X144: 0 | Y144: 0 | Z144: 0 | AA144: 0 | AB144: 0 | AC144: 0 | AD144: 0 | AE144: 0 | AF144: 0 | AG144: 0 | AH144: 0 | AI144: 0 | AJ144: 0 | AK144: 0 | AL144: 0 | AM144: 0 | AN144: 0 | AO144: 0 | AP144: 0 | AQ144: 0 | AR144: 0 | AS144: 0 | AT144: 0 | AU144: 0 | AV144: 0 | AW144: 0 | AX144: 0 | AY144: 0 | AZ144: 0 | BA144: 0 | BB144: 0 | BC144: 0 | BD144: 0 | BE144: 0 | BF144: 0 | BG144: 0 | BH144: 0 | BI144: 0 | BJ144: 0 | BK144: 0 | BL144: 0 | BM144: 0 | BN144: 0 | BO144: 0 | BP144: 0 | BQ144: 0 | BR144: 0 | BS144: 0 | BT144: 0 | BU144: 0 | BV144: 0 | BW144: 0 | BX144: 0 | BY144: 0 | BZ144: 0 | CA144: 0 | CB144: 0 | CC144: 0 | CD144: 0 | CE144: 0 | CF144: 0 | CG144: 0 | CH144: 0 | CI144: 0 | CJ144: 0 | CK144: 0 | CL144: 0 | CM144: 0 | CN144: 0 | CO144: 0 | CP144: 0 | CQ144: 0 | CR144: 0 | CS144: 0 | CT144: 0 | CU144: 0 | CV144: 0 | CW144: 0 | CX144: 0 | CY144: 0 | CZ144: 0 | DA144: 0 | DB144: 0 | DC144: 0 | DD144: 0 | DE144: 0 | DF144: 0 | DG144: 0 | DH144: 0 | DI144: 0 | DJ144: 0
C145: Other | D145: 0 | E145: 0 | F145: 0 | G145: 0 | H145: 0 | I145: 0 | J145: 0 | K145: 0 | L145: 0 | M145: 0 | N145: 0 | O145: 0 | P145: 0 | Q145: 0 | R145: 0 | S145: 0 | T145: 0 | U145: 0 | V145: 0 | W145: 0 | X145: 0 | Y145: 0 | Z145: 0 | AA145: 0 | AB145: 0 | AC145: 0 | AD145: 0 | AE145: 0 | AF145: 0 | AG145: 0 | AH145: 0 | AI145: 0 | AJ145: 0 | AK145: 0 | AL145: 0 | AM145: 0 | AN145: 0 | AO145: 0 | AP145: 0 | AQ145: 0 | AR145: 0 | AS145: 0 | AT145: 0 | AU145: 0 | AV145: 0 | AW145: 0 | AX145: 0 | AY145: 0 | AZ145: 0 | BA145: 0 | BB145: 0 | BC145: 0 | BD145: 0 | BE145: 0 | BF145: 0 | BG145: 0 | BH145: 0 | BI145: 0 | BJ145: 0 | BK145: 0 | BL145: 0 | BM145: 0 | BN145: 0 | BO145: 0 | BP145: 0 | BQ145: 0 | BR145: 0 | BS145: 0 | BT145: 0 | BU145: 0 | BV145: 0 | BW145: 0 | BX145: 0 | BY145: 0 | BZ145: 0 | CA145: 0 | CB145: 0 | CC145: 0 | CD145: 0 | CE145: 0 | CF145: 0 | CG145: 0 | CH145: 0 | CI145: 0 | CJ145: 0 | CK145: 0 | CL145: 0 | CM145: 0 | CN145: 0 | CO145: 0 | CP145: 0 | CQ145: 0 | CR145: 0 | CS145: 0 | CT145: 0 | CU145: 0 | CV145: 0 | CW145: 0 | CX145: 0 | CY145: 0 | CZ145: 0 | DA145: 0 | DB145: 0 | DC145: 0 | DD145: 0 | DE145: 0 | DF145: 0 | DG145: 0 | DH145: 0 | DI145: 0 | DJ145: 0
B146: SUBSTATION REACTIVE PLANT BY: Highest operating voltage; Function | C146: < = 33 kV; SVCS | D146: 20 | E146: 4.5 | F146: 0 | G146: 0 | H146: 0 | I146: 0 | J146: 0 | K146: 0 | L146: 0 | M146: 0 | N146: 0 | O146: 0 | P146: 0 | Q146: 0 | R146: 0 | S146: 1 | T146: 0 | U146: 0 | V146: 0 | W146: 2 | X146: 0 | Y146: 0 | Z146: 0 | AA146: 0 | AB146: 0 | AC146: 0 | AD146: 0 | AE146: 0 | AF146: 0 | AG146: 0 | AH146: 0 | AI146: 0 | AJ146: 0 | AK146: 0 | AL146: 2 | AM146: 0 | AN146: 0 | AO146: 0 | AP146: 0 | AQ146: 0 | AR146: 0 | AS146: 0 | AT146: 0 | AU146: 0 | AV146: 0 | AW146: 0 | AX146: 0 | AY146: 0 | AZ146: 0 | BA146: 0 | BB146: 0 | BC146: 0 | BD146: 0 | BE146: 0 | BF146: 0 | BG146: 0 | BH146: 0 | BI146: 0 | BJ146: 0 | BK146: 0 | BL146: 0 | BM146: 0 | BN146: 0 | BO146: 0 | BP146: 0 | BQ146: 0 | BR146: 0 | BS146: 0 | BT146: 0 | BU146: 0 | BV146: 0 | BW146: 0 | BX146: 0 | BY146: 0 | BZ146: 0 | CA146: 0 | CB146: 0 | CC146: 0 | CD146: 0 | CE146: 0 | CF146: 0 | CG146: 0 | CH146: 0 | CI146: 0 | CJ146: 0 | CK146: 0 | CL146: 0 | CM146: 0 | CN146: 0 | CO146: 0 | CP146: 0 | CQ146: 0 | CR146: 0 | CS146: 0 | CT146: 0 | CU146: 0 | CV146: 0 | CW146: 0 | CX146: 0 | CY146: 0 | CZ146: 0 | DA146: 0 | DB146: 0 | DC146: 0 | DD146: 0 | DE146: 0 | DF146: 0 | DG146: 0 | DH146: 0 | DI146: 0 | DJ146: 0
C147: > 33 kV & < = 66 kV ; SVCS | D147: 0 | E147: 0 | F147: 0 | G147: 0 | H147: 0 | I147: 0 | J147: 0 | K147: 0 | L147: 0 | M147: 0 | N147: 0 | O147: 0 | P147: 0 | Q147: 0 | R147: 0 | S147: 0 | T147: 0 | U147: 0 | V147: 0 | W147: 0 | X147: 0 | Y147: 0 | Z147: 0 | AA147: 0 | AB147: 0 | AC147: 0 | AD147: 0 | AE147: 0 | AF147: 0 | AG147: 0 | AH147: 0 | AI147: 0 | AJ147: 0 | AK147: 0 | AL147: 0 | AM147: 0 | AN147: 0 | AO147: 0 | AP147: 0 | AQ147: 0 | AR147: 0 | AS147: 0 | AT147: 0 | AU147: 0 | AV147: 0 | AW147: 0 | AX147: 0 | AY147: 0 | AZ147: 0 | BA147: 0 | BB147: 0 | BC147: 0 | BD147: 0 | BE147: 0 | BF147: 0 | BG147: 0 | BH147: 0 | BI147: 0 | BJ147: 0 | BK147: 0 | BL147: 0 | BM147: 0 | BN147: 0 | BO147: 0 | BP147: 0 | BQ147: 0 | BR147: 0 | BS147: 0 | BT147: 0 | BU147: 0 | BV147: 0 | BW147: 0 | BX147: 0 | BY147: 0 | BZ147: 0 | CA147: 0 | CB147: 0 | CC147: 0 | CD147: 0 | CE147: 0 | CF147: 0 | CG147: 0 | CH147: 0 | CI147: 0 | CJ147: 0 | CK147: 0 | CL147: 0 | CM147: 0 | CN147: 0 | CO147: 0 | CP147: 0 | CQ147: 0 | CR147: 0 | CS147: 0 | CT147: 0 | CU147: 0 | CV147: 0 | CW147: 0 | CX147: 0 | CY147: 0 | CZ147: 0 | DA147: 0 | DB147: 0 | DC147: 0 | DD147: 0 | DE147: 0 | DF147: 0 | DG147: 0 | DH147: 0 | DI147: 0 | DJ147: 0
C148: > 66 kV & < = 132 kV ; SVCS | D148: 0 | E148: 0 | F148: 0 | G148: 0 | H148: 0 | I148: 0 | J148: 0 | K148: 0 | L148: 0 | M148: 0 | N148: 0 | O148: 0 | P148: 0 | Q148: 0 | R148: 0 | S148: 0 | T148: 0 | U148: 0 | V148: 0 | W148: 0 | X148: 0 | Y148: 0 | Z148: 0 | AA148: 0 | AB148: 0 | AC148: 0 | AD148: 0 | AE148: 0 | AF148: 0 | AG148: 0 | AH148: 0 | AI148: 0 | AJ148: 0 | AK148: 0 | AL148: 0 | AM148: 0 | AN148: 0 | AO148: 0 | AP148: 0 | AQ148: 0 | AR148: 0 | AS148: 0 | AT148: 0 | AU148: 0 | AV148: 0 | AW148: 0 | AX148: 0 | AY148: 0 | AZ148: 0 | BA148: 0 | BB148: 0 | BC148: 0 | BD148: 0 | BE148: 0 | BF148: 0 | BG148: 0 | BH148: 0 | BI148: 0 | BJ148: 0 | BK148: 0 | BL148: 0 | BM148: 0 | BN148: 0 | BO148: 0 | BP148: 0 | BQ148: 0 | BR148: 0 | BS148: 0 | BT148: 0 | BU148: 0 | BV148: 0 | BW148: 0 | BX148: 0 | BY148: 0 | BZ148: 0 | CA148: 0 | CB148: 0 | CC148: 0 | CD148: 0 | CE148: 0 | CF148: 0 | CG148: 0 | CH148: 0 | CI148: 0 | CJ148: 0 | CK148: 0 | CL148: 0 | CM148: 0 | CN148: 0 | CO148: 0 | CP148: 0 | CQ148: 0 | CR148: 0 | CS148: 0 | CT148: 0 | CU148: 0 | CV148: 0 | CW148: 0 | CX148: 0 | CY148: 0 | CZ148: 0 | DA148: 0 | DB148: 0 | DC148: 0 | DD148: 0 | DE148: 0 | DF148: 0 | DG148: 0 | DH148: 0 | DI148: 0 | DJ148: 0
C149: > 132 kV & < = 275 kV ; SVCS | D149: 0 | E149: 0 | F149: 0 | G149: 0 | H149: 0 | I149: 0 | J149: 0 | K149: 0 | L149: 0 | M149: 0 | N149: 0 | O149: 0 | P149: 0 | Q149: 0 | R149: 0 | S149: 0 | T149: 0 | U149: 0 | V149: 0 | W149: 0 | X149: 0 | Y149: 0 | Z149: 0 | AA149: 0 | AB149: 0 | AC149: 0 | AD149: 0 | AE149: 0 | AF149: 0 | AG149: 0 | AH149: 0 | AI149: 0 | AJ149: 0 | AK149: 0 | AL149: 0 | AM149: 0 | AN149: 0 | AO149: 0 | AP149: 0 | AQ149: 0 | AR149: 0 | AS149: 0 | AT149: 0 | AU149: 0 | AV149: 0 | AW149: 0 | AX149: 0 | AY149: 0 | AZ149: 0 | BA149: 0 | BB149: 0 | BC149: 0 | BD149: 0 | BE149: 0 | BF149: 0 | BG149: 0 | BH149: 0 | BI149: 0 | BJ149: 0 | BK149: 0 | BL149: 0 | BM149: 0 | BN149: 0 | BO149: 0 | BP149: 0 | BQ149: 0 | BR149: 0 | BS149: 0 | BT149: 0 | BU149: 0 | BV149: 0 | BW149: 0 | BX149: 0 | BY149: 0 | BZ149: 0 | CA149: 0 | CB149: 0 | CC149: 0 | CD149: 0 | CE149: 0 | CF149: 0 | CG149: 0 | CH149: 0 | CI149: 0 | CJ149: 0 | CK149: 0 | CL149: 0 | CM149: 0 | CN149: 0 | CO149: 0 | CP149: 0 | CQ149: 0 | CR149: 0 | CS149: 0 | CT149: 0 | CU149: 0 | CV149: 0 | CW149: 0 | CX149: 0 | CY149: 0 | CZ149: 0 | DA149: 0 | DB149: 0 | DC149: 0 | DD149: 0 | DE149: 0 | DF149: 0 | DG149: 0 | DH149: 0 | DI149: 0 | DJ149: 0
C150: > 275 kV & < = 330 kV ; SVCS | D150: 0 | E150: 0 | F150: 0 | G150: 0 | H150: 0 | I150: 0 | J150: 0 | K150: 0 | L150: 0 | M150: 0 | N150: 0 | O150: 0 | P150: 0 | Q150: 0 | R150: 0 | S150: 0 | T150: 0 | U150: 0 | V150: 0 | W150: 0 | X150: 0 | Y150: 0 | Z150: 0 | AA150: 0 | AB150: 0 | AC150: 0 | AD150: 0 | AE150: 0 | AF150: 0 | AG150: 0 | AH150: 0 | AI150: 0 | AJ150: 0 | AK150: 0 | AL150: 0 | AM150: 0 | AN150: 0 | AO150: 0 | AP150: 0 | AQ150: 0 | AR150: 0 | AS150: 0 | AT150: 0 | AU150: 0 | AV150: 0 | AW150: 0 | AX150: 0 | AY150: 0 | AZ150: 0 | BA150: 0 | BB150: 0 | BC150: 0 | BD150: 0 | BE150: 0 | BF150: 0 | BG150: 0 | BH150: 0 | BI150: 0 | BJ150: 0 | BK150: 0 | BL150: 0 | BM150: 0 | BN150: 0 | BO150: 0 | BP150: 0 | BQ150: 0 | BR150: 0 | BS150: 0 | BT150: 0 | BU150: 0 | BV150: 0 | BW150: 0 | BX150: 0 | BY150: 0 | BZ150: 0 | CA150: 0 | CB150: 0 | CC150: 0 | CD150: 0 | CE150: 0 | CF150: 0 | CG150: 0 | CH150: 0 | CI150: 0 | CJ150: 0 | CK150: 0 | CL150: 0 | CM150: 0 | CN150: 0 | CO150: 0 | CP150: 0 | CQ150: 0 | CR150: 0 | CS150: 0 | CT150: 0 | CU150: 0 | CV150: 0 | CW150: 0 | CX150: 0 | CY150: 0 | CZ150: 0 | DA150: 0 | DB150: 0 | DC150: 0 | DD150: 0 | DE150: 0 | DF150: 0 | DG150: 0 | DH150: 0 | DI150: 0 | DJ150: 0
C151: > 330 kV & < = 500 kV ; SVCS | D151: 0 | E151: 0 | F151: 0 | G151: 0 | H151: 0 | I151: 0 | J151: 0 | K151: 0 | L151: 0 | M151: 0 | N151: 0 | O151: 0 | P151: 0 | Q151: 0 | R151: 0 | S151: 0 | T151: 0 | U151: 0 | V151: 0 | W151: 0 | X151: 0 | Y151: 0 | Z151: 0 | AA151: 0 | AB151: 0 | AC151: 0 | AD151: 0 | AE151: 0 | AF151: 0 | AG151: 0 | AH151: 0 | AI151: 0 | AJ151: 0 | AK151: 0 | AL151: 0 | AM151: 0 | AN151: 0 | AO151: 0 | AP151: 0 | AQ151: 0 | AR151: 0 | AS151: 0 | AT151: 0 | AU151: 0 | AV151: 0 | AW151: 0 | AX151: 0 | AY151: 0 | AZ151: 0 | BA151: 0 | BB151: 0 | BC151: 0 | BD151: 0 | BE151: 0 | BF151: 0 | BG151: 0 | BH151: 0 | BI151: 0 | BJ151: 0 | BK151: 0 | BL151: 0 | BM151: 0 | BN151: 0 | BO151: 0 | BP151: 0 | BQ151: 0 | BR151: 0 | BS151: 0 | BT151: 0 | BU151: 0 | BV151: 0 | BW151: 0 | BX151: 0 | BY151: 0 | BZ151: 0 | CA151: 0 | CB151: 0 | CC151: 0 | CD151: 0 | CE151: 0 | CF151: 0 | CG151: 0 | CH151: 0 | CI151: 0 | CJ151: 0 | CK151: 0 | CL151: 0 | CM151: 0 | CN151: 0 | CO151: 0 | CP151: 0 | CQ151: 0 | CR151: 0 | CS151: 0 | CT151: 0 | CU151: 0 | CV151: 0 | CW151: 0 | CX151: 0 | CY151: 0 | CZ151: 0 | DA151: 0 | DB151: 0 | DC151: 0 | DD151: 0 | DE151: 0 | DF151: 0 | DG151: 0 | DH151: 0 | DI151: 0 | DJ151: 0
C152: > 500 kV ; SVCS | D152: 0 | E152: 0 | F152: 0 | G152: 0 | H152: 0 | I152: 0 | J152: 0 | K152: 0 | L152: 0 | M152: 0 | N152: 0 | O152: 0 | P152: 0 | Q152: 0 | R152: 0 | S152: 0 | T152: 0 | U152: 0 | V152: 0 | W152: 0 | X152: 0 | Y152: 0 | Z152: 0 | AA152: 0 | AB152: 0 | AC152: 0 | AD152: 0 | AE152: 0 | AF152: 0 | AG152: 0 | AH152: 0 | AI152: 0 | AJ152: 0 | AK152: 0 | AL152: 0 | AM152: 0 | AN152: 0 | AO152: 0 | AP152: 0 | AQ152: 0 | AR152: 0 | AS152: 0 | AT152: 0 | AU152: 0 | AV152: 0 | AW152: 0 | AX152: 0 | AY152: 0 | AZ152: 0 | BA152: 0 | BB152: 0 | BC152: 0 | BD152: 0 | BE152: 0 | BF152: 0 | BG152: 0 | BH152: 0 | BI152: 0 | BJ152: 0 | BK152: 0 | BL152: 0 | BM152: 0 | BN152: 0 | BO152: 0 | BP152: 0 | BQ152: 0 | BR152: 0 | BS152: 0 | BT152: 0 | BU152: 0 | BV152: 0 | BW152: 0 | BX152: 0 | BY152: 0 | BZ152: 0 | CA152: 0 | CB152: 0 | CC152: 0 | CD152: 0 | CE152: 0 | CF152: 0 | CG152: 0 | CH152: 0 | CI152: 0 | CJ152: 0 | CK152: 0 | CL152: 0 | CM152: 0 | CN152: 0 | CO152: 0 | CP152: 0 | CQ152: 0 | CR152: 0 | CS152: 0 | CT152: 0 | CU152: 0 | CV152: 0 | CW152: 0 | CX152: 0 | CY152: 0 | CZ152: 0 | DA152: 0 | DB152: 0 | DC152: 0 | DD152: 0 | DE152: 0 | DF152: 0 | DG152: 0 | DH152: 0 | DI152: 0 | DJ152: 0
C153: < = 33 kV; Capacitors | D153: 30 | E153: 5.5 | F153: 0 | G153: 0 | H153: 0 | I153: 0 | J153: 0 | K153: 3 | L153: 0 | M153: 0 | N153: 0 | O153: 0 | P153: 2 | Q153: 0 | R153: 0 | S153: 0 | T153: 0 | U153: 0 | V153: 2 | W153: 0 | X153: 0 | Y153: 0 | Z153: 0 | AA153: 0 | AB153: 0 | AC153: 0 | AD153: 3 | AE153: 0 | AF153: 0 | AG153: 0 | AH153: 0 | AI153: 0 | AJ153: 0 | AK153: 0 | AL153: 2 | AM153: 0 | AN153: 2 | AO153: 0 | AP153: 2 | AQ153: 0 | AR153: 0 | AS153: 0 | AT153: 0 | AU153: 0 | AV153: 0 | AW153: 0 | AX153: 0 | AY153: 0 | AZ153: 0 | BA153: 0 | BB153: 0 | BC153: 0 | BD153: 0 | BE153: 0 | BF153: 0 | BG153: 0 | BH153: 0 | BI153: 0 | BJ153: 0 | BK153: 0 | BL153: 0 | BM153: 0 | BN153: 0 | BO153: 0 | BP153: 0 | BQ153: 0 | BR153: 0 | BS153: 0 | BT153: 0 | BU153: 0 | BV153: 0 | BW153: 0 | BX153: 0 | BY153: 0 | BZ153: 0 | CA153: 0 | CB153: 0 | CC153: 0 | CD153: 0 | CE153: 0 | CF153: 0 | CG153: 0 | CH153: 0 | CI153: 0 | CJ153: 0 | CK153: 0 | CL153: 0 | CM153: 0 | CN153: 0 | CO153: 0 | CP153: 0 | CQ153: 0 | CR153: 0 | CS153: 0 | CT153: 0 | CU153: 0 | CV153: 0 | CW153: 0 | CX153: 0 | CY153: 0 | CZ153: 0 | DA153: 0 | DB153: 0 | DC153: 0 | DD153: 0 | DE153: 0 | DF153: 0 | DG153: 0 | DH153: 0 | DI153: 0 | DJ153: 0
C154: > 33 kV & < = 66 kV ; Capacitors | D154: 30 | E154: 5.5 | F154: 0 | G154: 1 | H154: 0 | I154: 0 | J154: 0 | K154: 1 | L154: 0 | M154: 3 | N154: 0 | O154: 0 | P154: 1 | Q154: 11 | R154: 0 | S154: 0 | T154: 2 | U154: 4 | V154: 4 | W154: 0 | X154: 0 | Y154: 1 | Z154: 1 | AA154: 0 | AB154: 1 | AC154: 0 | AD154: 2 | AE154: 0 | AF154: 0 | AG154: 1 | AH154: 0 | AI154: 0 | AJ154: 0 | AK154: 0 | AL154: 0 | AM154: 1 | AN154: 0 | AO154: 1 | AP154: 2 | AQ154: 0 | AR154: 0 | AS154: 0 | AT154: 0 | AU154: 0 | AV154: 0 | AW154: 0 | AX154: 0 | AY154: 0 | AZ154: 0 | BA154: 0 | BB154: 0 | BC154: 0 | BD154: 0 | BE154: 0 | BF154: 0 | BG154: 0 | BH154: 0 | BI154: 0 | BJ154: 0 | BK154: 0 | BL154: 0 | BM154: 0 | BN154: 0 | BO154: 0 | BP154: 0 | BQ154: 0 | BR154: 0 | BS154: 0 | BT154: 0 | BU154: 0 | BV154: 0 | BW154: 0 | BX154: 0 | BY154: 0 | BZ154: 0 | CA154: 0 | CB154: 0 | CC154: 0 | CD154: 0 | CE154: 0 | CF154: 0 | CG154: 0 | CH154: 0 | CI154: 0 | CJ154: 0 | CK154: 0 | CL154: 0 | CM154: 0 | CN154: 0 | CO154: 0 | CP154: 0 | CQ154: 0 | CR154: 0 | CS154: 0 | CT154: 0 | CU154: 0 | CV154: 0 | CW154: 0 | CX154: 0 | CY154: 0 | CZ154: 0 | DA154: 0 | DB154: 0 | DC154: 0 | DD154: 0 | DE154: 0 | DF154: 0 | DG154: 0 | DH154: 0 | DI154: 0 | DJ154: 0
C155: > 66 kV & < = 132 kV ; Capacitors | D155: 30 | E155: 5.5 | F155: 0 | G155: 0 | H155: 1 | I155: 3 | J155: 1 | K155: 4 | L155: 0 | M155: 0 | N155: 0 | O155: 0 | P155: 2 | Q155: 2 | R155: 1 | S155: 1 | T155: 3 | U155: 4 | V155: 3 | W155: 3 | X155: 4 | Y155: 0 | Z155: 1 | AA155: 2 | AB155: 2 | AC155: 1 | AD155: 3 | AE155: 3 | AF155: 0 | AG155: 2 | AH155: 0 | AI155: 0 | AJ155: 1 | AK155: 0 | AL155: 0 | AM155: 1 | AN155: 1 | AO155: 0 | AP155: 0 | AQ155: 0 | AR155: 0 | AS155: 0 | AT155: 0 | AU155: 0 | AV155: 0 | AW155: 0 | AX155: 0 | AY155: 0 | AZ155: 0 | BA155: 0 | BB155: 0 | BC155: 0 | BD155: 0 | BE155: 0 | BF155: 0 | BG155: 0 | BH155: 0 | BI155: 0 | BJ155: 0 | BK155: 0 | BL155: 0 | BM155: 0 | BN155: 0 | BO155: 0 | BP155: 0 | BQ155: 0 | BR155: 0 | BS155: 0 | BT155: 0 | BU155: 0 | BV155: 0 | BW155: 0 | BX155: 0 | BY155: 0 | BZ155: 0 | CA155: 0 | CB155: 0 | CC155: 0 | CD155: 0 | CE155: 0 | CF155: 0 | CG155: 0 | CH155: 0 | CI155: 0 | CJ155: 0 | CK155: 0 | CL155: 0 | CM155: 0 | CN155: 0 | CO155: 0 | CP155: 0 | CQ155: 0 | CR155: 0 | CS155: 0 | CT155: 0 | CU155: 0 | CV155: 0 | CW155: 0 | CX155: 0 | CY155: 0 | CZ155: 0 | DA155: 0 | DB155: 0 | DC155: 0 | DD155: 0 | DE155: 0 | DF155: 0 | DG155: 0 | DH155: 0 | DI155: 0 | DJ155: 0
C156: > 132 kV & < = 275 kV ; Capacitors | D156: 0 | E156: 0 | F156: 0 | G156: 0 | H156: 0 | I156: 0 | J156: 0 | K156: 0 | L156: 0 | M156: 0 | N156: 0 | O156: 0 | P156: 0 | Q156: 0 | R156: 0 | S156: 0 | T156: 0 | U156: 0 | V156: 0 | W156: 0 | X156: 0 | Y156: 0 | Z156: 0 | AA156: 0 | AB156: 0 | AC156: 0 | AD156: 0 | AE156: 0 | AF156: 0 | AG156: 0 | AH156: 0 | AI156: 0 | AJ156: 0 | AK156: 0 | AL156: 0 | AM156: 0 | AN156: 0 | AO156: 0 | AP156: 0 | AQ156: 0 | AR156: 0 | AS156: 0 | AT156: 0 | AU156: 0 | AV156: 0 | AW156: 0 | AX156: 0 | AY156: 0 | AZ156: 0 | BA156: 0 | BB156: 0 | BC156: 0 | BD156: 0 | BE156: 0 | BF156: 0 | BG156: 0 | BH156: 0 | BI156: 0 | BJ156: 0 | BK156: 0 | BL156: 0 | BM156: 0 | BN156: 0 | BO156: 0 | BP156: 0 | BQ156: 0 | BR156: 0 | BS156: 0 | BT156: 0 | BU156: 0 | BV156: 0 | BW156: 0 | BX156: 0 | BY156: 0 | BZ156: 0 | CA156: 0 | CB156: 0 | CC156: 0 | CD156: 0 | CE156: 0 | CF156: 0 | CG156: 0 | CH156: 0 | CI156: 0 | CJ156: 0 | CK156: 0 | CL156: 0 | CM156: 0 | CN156: 0 | CO156: 0 | CP156: 0 | CQ156: 0 | CR156: 0 | CS156: 0 | CT156: 0 | CU156: 0 | CV156: 0 | CW156: 0 | CX156: 0 | CY156: 0 | CZ156: 0 | DA156: 0 | DB156: 0 | DC156: 0 | DD156: 0 | DE156: 0 | DF156: 0 | DG156: 0 | DH156: 0 | DI156: 0 | DJ156: 0
C157: > 275 kV & < = 330 kV ; Capacitors | D157: 30 | E157: 5.5 | F157: 0 | G157: 0 | H157: 0 | I157: 0 | J157: 1 | K157: 0 | L157: 0 | M157: 0 | N157: 0 | O157: 4 | P157: 2 | Q157: 0 | R157: 3 | S157: 1 | T157: 0 | U157: 2 | V157: 0 | W157: 1 | X157: 0 | Y157: 0 | Z157: 0 | AA157: 0 | AB157: 0 | AC157: 0 | AD157: 0 | AE157: 0 | AF157: 0 | AG157: 0 | AH157: 0 | AI157: 0 | AJ157: 0 | AK157: 0 | AL157: 0 | AM157: 0 | AN157: 0 | AO157: 0 | AP157: 0 | AQ157: 0 | AR157: 0 | AS157: 0 | AT157: 0 | AU157: 0 | AV157: 0 | AW157: 0 | AX157: 0 | AY157: 0 | AZ157: 0 | BA157: 0 | BB157: 0 | BC157: 0 | BD157: 0 | BE157: 0 | BF157: 0 | BG157: 0 | BH157: 0 | BI157: 0 | BJ157: 0 | BK157: 0 | BL157: 0 | BM157: 0 | BN157: 0 | BO157: 0 | BP157: 0 | BQ157: 0 | BR157: 0 | BS157: 0 | BT157: 0 | BU157: 0 | BV157: 0 | BW157: 0 | BX157: 0 | BY157: 0 | BZ157: 0 | CA157: 0 | CB157: 0 | CC157: 0 | CD157: 0 | CE157: 0 | CF157: 0 | CG157: 0 | CH157: 0 | CI157: 0 | CJ157: 0 | CK157: 0 | CL157: 0 | CM157: 0 | CN157: 0 | CO157: 0 | CP157: 0 | CQ157: 0 | CR157: 0 | CS157: 0 | CT157: 0 | CU157: 0 | CV157: 0 | CW157: 0 | CX157: 0 | CY157: 0 | CZ157: 0 | DA157: 0 | DB157: 0 | DC157: 0 | DD157: 0 | DE157: 0 | DF157: 0 | DG157: 0 | DH157: 0 | DI157: 0 | DJ157: 0
C158: > 330 kV & < = 500 kV ; Capacitors | D158: 0 | E158: 0 | F158: 0 | G158: 0 | H158: 0 | I158: 0 | J158: 0 | K158: 0 | L158: 0 | M158: 0 | N158: 0 | O158: 0 | P158: 0 | Q158: 0 | R158: 0 | S158: 0 | T158: 0 | U158: 0 | V158: 0 | W158: 0 | X158: 0 | Y158: 0 | Z158: 0 | AA158: 0 | AB158: 0 | AC158: 0 | AD158: 0 | AE158: 0 | AF158: 0 | AG158: 0 | AH158: 0 | AI158: 0 | AJ158: 0 | AK158: 0 | AL158: 0 | AM158: 0 | AN158: 0 | AO158: 0 | AP158: 0 | AQ158: 0 | AR158: 0 | AS158: 0 | AT158: 0 | AU158: 0 | AV158: 0 | AW158: 0 | AX158: 0 | AY158: 0 | AZ158: 0 | BA158: 0 | BB158: 0 | BC158: 0 | BD158: 0 | BE158: 0 | BF158: 0 | BG158: 0 | BH158: 0 | BI158: 0 | BJ158: 0 | BK158: 0 | BL158: 0 | BM158: 0 | BN158: 0 | BO158: 0 | BP158: 0 | BQ158: 0 | BR158: 0 | BS158: 0 | BT158: 0 | BU158: 0 | BV158: 0 | BW158: 0 | BX158: 0 | BY158: 0 | BZ158: 0 | CA158: 0 | CB158: 0 | CC158: 0 | CD158: 0 | CE158: 0 | CF158: 0 | CG158: 0 | CH158: 0 | CI158: 0 | CJ158: 0 | CK158: 0 | CL158: 0 | CM158: 0 | CN158: 0 | CO158: 0 | CP158: 0 | CQ158: 0 | CR158: 0 | CS158: 0 | CT158: 0 | CU158: 0 | CV158: 0 | CW158: 0 | CX158: 0 | CY158: 0 | CZ158: 0 | DA158: 0 | DB158: 0 | DC158: 0 | DD158: 0 | DE158: 0 | DF158: 0 | DG158: 0 | DH158: 0 | DI158: 0 | DJ158: 0
C159: > 500 kV ; Capacitors | D159: 0 | E159: 0 | F159: 0 | G159: 0 | H159: 0 | I159: 0 | J159: 0 | K159: 0 | L159: 0 | M159: 0 | N159: 0 | O159: 0 | P159: 0 | Q159: 0 | R159: 0 | S159: 0 | T159: 0 | U159: 0 | V159: 0 | W159: 0 | X159: 0 | Y159: 0 | Z159: 0 | AA159: 0 | AB159: 0 | AC159: 0 | AD159: 0 | AE159: 0 | AF159: 0 | AG159: 0 | AH159: 0 | AI159: 0 | AJ159: 0 | AK159: 0 | AL159: 0 | AM159: 0 | AN159: 0 | AO159: 0 | AP159: 0 | AQ159: 0 | AR159: 0 | AS159: 0 | AT159: 0 | AU159: 0 | AV159: 0 | AW159: 0 | AX159: 0 | AY159: 0 | AZ159: 0 | BA159: 0 | BB159: 0 | BC159: 0 | BD159: 0 | BE159: 0 | BF159: 0 | BG159: 0 | BH159: 0 | BI159: 0 | BJ159: 0 | BK159: 0 | BL159: 0 | BM159: 0 | BN159: 0 | BO159: 0 | BP159: 0 | BQ159: 0 | BR159: 0 | BS159: 0 | BT159: 0 | BU159: 0 | BV159: 0 | BW159: 0 | BX159: 0 | BY159: 0 | BZ159: 0 | CA159: 0 | CB159: 0 | CC159: 0 | CD159: 0 | CE159: 0 | CF159: 0 | CG159: 0 | CH159: 0 | CI159: 0 | CJ159: 0 | CK159: 0 | CL159: 0 | CM159: 0 | CN159: 0 | CO159: 0 | CP159: 0 | CQ159: 0 | CR159: 0 | CS159: 0 | CT159: 0 | CU159: 0 | CV159: 0 | CW159: 0 | CX159: 0 | CY159: 0 | CZ159: 0 | DA159: 0 | DB159: 0 | DC159: 0 | DD159: 0 | DE159: 0 | DF159: 0 | DG159: 0 | DH159: 0 | DI159: 0 | DJ159: 0
C160: < = 33 kV; Oil Filled Reactors | D160: 0 | E160: 0 | F160: 0 | G160: 0 | H160: 0 | I160: 0 | J160: 0 | K160: 0 | L160: 0 | M160: 0 | N160: 0 | O160: 0 | P160: 0 | Q160: 0 | R160: 0 | S160: 0 | T160: 0 | U160: 0 | V160: 0 | W160: 0 | X160: 0 | Y160: 0 | Z160: 0 | AA160: 0 | AB160: 0 | AC160: 0 | AD160: 0 | AE160: 0 | AF160: 0 | AG160: 0 | AH160: 0 | AI160: 0 | AJ160: 0 | AK160: 0 | AL160: 0 | AM160: 0 | AN160: 0 | AO160: 0 | AP160: 0 | AQ160: 0 | AR160: 0 | AS160: 0 | AT160: 0 | AU160: 0 | AV160: 0 | AW160: 0 | AX160: 0 | AY160: 0 | AZ160: 0 | BA160: 0 | BB160: 0 | BC160: 0 | BD160: 0 | BE160: 0 | BF160: 0 | BG160: 0 | BH160: 0 | BI160: 0 | BJ160: 0 | BK160: 0 | BL160: 0 | BM160: 0 | BN160: 0 | BO160: 0 | BP160: 0 | BQ160: 0 | BR160: 0 | BS160: 0 | BT160: 0 | BU160: 0 | BV160: 0 | BW160: 0 | BX160: 0 | BY160: 0 | BZ160: 0 | CA160: 0 | CB160: 0 | CC160: 0 | CD160: 0 | CE160: 0 | CF160: 0 | CG160: 0 | CH160: 0 | CI160: 0 | CJ160: 0 | CK160: 0 | CL160: 0 | CM160: 0 | CN160: 0 | CO160: 0 | CP160: 0 | CQ160: 0 | CR160: 0 | CS160: 0 | CT160: 0 | CU160: 0 | CV160: 0 | CW160: 0 | CX160: 0 | CY160: 0 | CZ160: 0 | DA160: 0 | DB160: 0 | DC160: 0 | DD160: 0 | DE160: 0 | DF160: 0 | DG160: 0 | DH160: 0 | DI160: 0 | DJ160: 0
C161: > 33 kV & < = 66 kV ; Oil Filled Reactors | D161: 0 | E161: 0 | F161: 0 | G161: 0 | H161: 0 | I161: 0 | J161: 0 | K161: 0 | L161: 0 | M161: 0 | N161: 0 | O161: 0 | P161: 0 | Q161: 0 | R161: 0 | S161: 0 | T161: 0 | U161: 0 | V161: 0 | W161: 0 | X161: 0 | Y161: 0 | Z161: 0 | AA161: 0 | AB161: 0 | AC161: 0 | AD161: 0 | AE161: 0 | AF161: 0 | AG161: 0 | AH161: 0 | AI161: 0 | AJ161: 0 | AK161: 0 | AL161: 0 | AM161: 0 | AN161: 0 | AO161: 0 | AP161: 0 | AQ161: 0 | AR161: 0 | AS161: 0 | AT161: 0 | AU161: 0 | AV161: 0 | AW161: 0 | AX161: 0 | AY161: 0 | AZ161: 0 | BA161: 0 | BB161: 0 | BC161: 0 | BD161: 0 | BE161: 0 | BF161: 0 | BG161: 0 | BH161: 0 | BI161: 0 | BJ161: 0 | BK161: 0 | BL161: 0 | BM161: 0 | BN161: 0 | BO161: 0 | BP161: 0 | BQ161: 0 | BR161: 0 | BS161: 0 | BT161: 0 | BU161: 0 | BV161: 0 | BW161: 0 | BX161: 0 | BY161: 0 | BZ161: 0 | CA161: 0 | CB161: 0 | CC161: 0 | CD161: 0 | CE161: 0 | CF161: 0 | CG161: 0 | CH161: 0 | CI161: 0 | CJ161: 0 | CK161: 0 | CL161: 0 | CM161: 0 | CN161: 0 | CO161: 0 | CP161: 0 | CQ161: 0 | CR161: 0 | CS161: 0 | CT161: 0 | CU161: 0 | CV161: 0 | CW161: 0 | CX161: 0 | CY161: 0 | CZ161: 0 | DA161: 0 | DB161: 0 | DC161: 0 | DD161: 0 | DE161: 0 | DF161: 0 | DG161: 0 | DH161: 0 | DI161: 0 | DJ161: 0
C162: > 66 kV & < = 132 kV ; Oil Filled Reactors | D162: 30 | E162: 5.5 | F162: 0 | G162: 0 | H162: 1 | I162: 0 | J162: 1 | K162: 0 | L162: 0 | M162: 0 | N162: 0 | O162: 1 | P162: 0 | Q162: 0 | R162: 0 | S162: 0 | T162: 0 | U162: 0 | V162: 0 | W162: 0 | X162: 0 | Y162: 0 | Z162: 0 | AA162: 0 | AB162: 0 | AC162: 0 | AD162: 0 | AE162: 0 | AF162: 0 | AG162: 0 | AH162: 0 | AI162: 0 | AJ162: 0 | AK162: 1 | AL162: 0 | AM162: 0 | AN162: 0 | AO162: 0 | AP162: 0 | AQ162: 0 | AR162: 0 | AS162: 0 | AT162: 0 | AU162: 0 | AV162: 0 | AW162: 0 | AX162: 0 | AY162: 0 | AZ162: 0 | BA162: 0 | BB162: 0 | BC162: 0 | BD162: 0 | BE162: 0 | BF162: 0 | BG162: 0 | BH162: 0 | BI162: 0 | BJ162: 0 | BK162: 0 | BL162: 0 | BM162: 0 | BN162: 0 | BO162: 0 | BP162: 0 | BQ162: 0 | BR162: 0 | BS162: 0 | BT162: 0 | BU162: 0 | BV162: 0 | BW162: 0 | BX162: 0 | BY162: 0 | BZ162: 0 | CA162: 0 | CB162: 0 | CC162: 0 | CD162: 0 | CE162: 0 | CF162: 0 | CG162: 0 | CH162: 0 | CI162: 0 | CJ162: 0 | CK162: 0 | CL162: 0 | CM162: 0 | CN162: 0 | CO162: 0 | CP162: 0 | CQ162: 0 | CR162: 0 | CS162: 0 | CT162: 0 | CU162: 0 | CV162: 0 | CW162: 0 | CX162: 0 | CY162: 0 | CZ162: 0 | DA162: 0 | DB162: 0 | DC162: 0 | DD162: 0 | DE162: 0 | DF162: 0 | DG162: 0 | DH162: 0 | DI162: 0 | DJ162: 0
C163: > 132 kV & < = 275 kV ; Oil Filled Reactors | D163: 30 | E163: 5.5 | F163: 0 | G163: 0 | H163: 3 | I163: 0 | J163: 0 | K163: 0 | L163: 0 | M163: 0 | N163: 0 | O163: 0 | P163: 0 | Q163: 0 | R163: 0 | S163: 0 | T163: 0 | U163: 0 | V163: 0 | W163: 0 | X163: 0 | Y163: 0 | Z163: 0 | AA163: 0 | AB163: 0 | AC163: 0 | AD163: 0 | AE163: 0 | AF163: 0 | AG163: 0 | AH163: 0 | AI163: 0 | AJ163: 2 | AK163: 0 | AL163: 0 | AM163: 0 | AN163: 0 | AO163: 0 | AP163: 0 | AQ163: 0 | AR163: 0 | AS163: 0 | AT163: 0 | AU163: 0 | AV163: 0 | AW163: 0 | AX163: 0 | AY163: 0 | AZ163: 0 | BA163: 0 | BB163: 0 | BC163: 0 | BD163: 0 | BE163: 0 | BF163: 0 | BG163: 0 | BH163: 0 | BI163: 0 | BJ163: 0 | BK163: 0 | BL163: 0 | BM163: 0 | BN163: 0 | BO163: 0 | BP163: 0 | BQ163: 0 | BR163: 0 | BS163: 0 | BT163: 0 | BU163: 0 | BV163: 0 | BW163: 0 | BX163: 0 | BY163: 0 | BZ163: 0 | CA163: 0 | CB163: 0 | CC163: 0 | CD163: 0 | CE163: 0 | CF163: 0 | CG163: 0 | CH163: 0 | CI163: 0 | CJ163: 0 | CK163: 0 | CL163: 0 | CM163: 0 | CN163: 0 | CO163: 0 | CP163: 0 | CQ163: 0 | CR163: 0 | CS163: 0 | CT163: 0 | CU163: 0 | CV163: 0 | CW163: 0 | CX163: 0 | CY163: 0 | CZ163: 0 | DA163: 0 | DB163: 0 | DC163: 0 | DD163: 0 | DE163: 0 | DF163: 0 | DG163: 0 | DH163: 0 | DI163: 0 | DJ163: 0
C164: > 275 kV & < = 330 kV ; Oil Filled Reactors | D164: 30 | E164: 5.5 | F164: 0 | G164: 0 | H164: 0 | I164: 0 | J164: 2 | K164: 0 | L164: 0 | M164: 2 | N164: 1 | O164: 2 | P164: 0 | Q164: 0 | R164: 0 | S164: 0 | T164: 3 | U164: 2 | V164: 0 | W164: 6 | X164: 0 | Y164: 0 | Z164: 0 | AA164: 0 | AB164: 0 | AC164: 0 | AD164: 0 | AE164: 9 | AF164: 0 | AG164: 0 | AH164: 0 | AI164: 0 | AJ164: 0 | AK164: 0 | AL164: 0 | AM164: 0 | AN164: 1 | AO164: 0 | AP164: 0 | AQ164: 0 | AR164: 0 | AS164: 0 | AT164: 0 | AU164: 0 | AV164: 0 | AW164: 0 | AX164: 0 | AY164: 0 | AZ164: 0 | BA164: 0 | BB164: 0 | BC164: 0 | BD164: 0 | BE164: 0 | BF164: 0 | BG164: 0 | BH164: 0 | BI164: 0 | BJ164: 0 | BK164: 0 | BL164: 0 | BM164: 0 | BN164: 0 | BO164: 0 | BP164: 0 | BQ164: 0 | BR164: 0 | BS164: 0 | BT164: 0 | BU164: 0 | BV164: 0 | BW164: 0 | BX164: 0 | BY164: 0 | BZ164: 0 | CA164: 0 | CB164: 0 | CC164: 0 | CD164: 0 | CE164: 0 | CF164: 0 | CG164: 0 | CH164: 0 | CI164: 0 | CJ164: 0 | CK164: 0 | CL164: 0 | CM164: 0 | CN164: 0 | CO164: 0 | CP164: 0 | CQ164: 0 | CR164: 0 | CS164: 0 | CT164: 0 | CU164: 0 | CV164: 0 | CW164: 0 | CX164: 0 | CY164: 0 | CZ164: 0 | DA164: 0 | DB164: 0 | DC164: 0 | DD164: 0 | DE164: 0 | DF164: 0 | DG164: 0 | DH164: 0 | DI164: 0 | DJ164: 0
C165: > 330 kV & < = 500 kV ; Oil Filled Reactors | D165: 0 | E165: 0 | F165: 0 | G165: 0 | H165: 0 | I165: 0 | J165: 0 | K165: 0 | L165: 0 | M165: 0 | N165: 0 | O165: 0 | P165: 0 | Q165: 0 | R165: 0 | S165: 0 | T165: 0 | U165: 0 | V165: 0 | W165: 0 | X165: 0 | Y165: 0 | Z165: 0 | AA165: 0 | AB165: 0 | AC165: 0 | AD165: 0 | AE165: 0 | AF165: 0 | AG165: 0 | AH165: 0 | AI165: 0 | AJ165: 0 | AK165: 0 | AL165: 0 | AM165: 0 | AN165: 0 | AO165: 0 | AP165: 0 | AQ165: 0 | AR165: 0 | AS165: 0 | AT165: 0 | AU165: 0 | AV165: 0 | AW165: 0 | AX165: 0 | AY165: 0 | AZ165: 0 | BA165: 0 | BB165: 0 | BC165: 0 | BD165: 0 | BE165: 0 | BF165: 0 | BG165: 0 | BH165: 0 | BI165: 0 | BJ165: 0 | BK165: 0 | BL165: 0 | BM165: 0 | BN165: 0 | BO165: 0 | BP165: 0 | BQ165: 0 | BR165: 0 | BS165: 0 | BT165: 0 | BU165: 0 | BV165: 0 | BW165: 0 | BX165: 0 | BY165: 0 | BZ165: 0 | CA165: 0 | CB165: 0 | CC165: 0 | CD165: 0 | CE165: 0 | CF165: 0 | CG165: 0 | CH165: 0 | CI165: 0 | CJ165: 0 | CK165: 0 | CL165: 0 | CM165: 0 | CN165: 0 | CO165: 0 | CP165: 0 | CQ165: 0 | CR165: 0 | CS165: 0 | CT165: 0 | CU165: 0 | CV165: 0 | CW165: 0 | CX165: 0 | CY165: 0 | CZ165: 0 | DA165: 0 | DB165: 0 | DC165: 0 | DD165: 0 | DE165: 0 | DF165: 0 | DG165: 0 | DH165: 0 | DI165: 0 | DJ165: 0
C166: > 500 kV ; Oil Filled Reactors | D166: 0 | E166: 0 | F166: 0 | G166: 0 | H166: 0 | I166: 0 | J166: 0 | K166: 0 | L166: 0 | M166: 0 | N166: 0 | O166: 0 | P166: 0 | Q166: 0 | R166: 0 | S166: 0 | T166: 0 | U166: 0 | V166: 0 | W166: 0 | X166: 0 | Y166: 0 | Z166: 0 | AA166: 0 | AB166: 0 | AC166: 0 | AD166: 0 | AE166: 0 | AF166: 0 | AG166: 0 | AH166: 0 | AI166: 0 | AJ166: 0 | AK166: 0 | AL166: 0 | AM166: 0 | AN166: 0 | AO166: 0 | AP166: 0 | AQ166: 0 | AR166: 0 | AS166: 0 | AT166: 0 | AU166: 0 | AV166: 0 | AW166: 0 | AX166: 0 | AY166: 0 | AZ166: 0 | BA166: 0 | BB166: 0 | BC166: 0 | BD166: 0 | BE166: 0 | BF166: 0 | BG166: 0 | BH166: 0 | BI166: 0 | BJ166: 0 | BK166: 0 | BL166: 0 | BM166: 0 | BN166: 0 | BO166: 0 | BP166: 0 | BQ166: 0 | BR166: 0 | BS166: 0 | BT166: 0 | BU166: 0 | BV166: 0 | BW166: 0 | BX166: 0 | BY166: 0 | BZ166: 0 | CA166: 0 | CB166: 0 | CC166: 0 | CD166: 0 | CE166: 0 | CF166: 0 | CG166: 0 | CH166: 0 | CI166: 0 | CJ166: 0 | CK166: 0 | CL166: 0 | CM166: 0 | CN166: 0 | CO166: 0 | CP166: 0 | CQ166: 0 | CR166: 0 | CS166: 0 | CT166: 0 | CU166: 0 | CV166: 0 | CW166: 0 | CX166: 0 | CY166: 0 | CZ166: 0 | DA166: 0 | DB166: 0 | DC166: 0 | DD166: 0 | DE166: 0 | DF166: 0 | DG166: 0 | DH166: 0 | DI166: 0 | DJ166: 0
C167: Other | D167: 0 | E167: 0 | F167: 0 | G167: 0 | H167: 0 | I167: 0 | J167: 0 | K167: 0 | L167: 0 | M167: 0 | N167: 0 | O167: 0 | P167: 0 | Q167: 0 | R167: 0 | S167: 3 | T167: 0 | U167: 0 | V167: 0 | W167: 0 | X167: 0 | Y167: 0 | Z167: 0 | AA167: 0 | AB167: 0 | AC167: 0 | AD167: 0 | AE167: 0 | AF167: 0 | AG167: 0 | AH167: 0 | AI167: 0 | AJ167: 0 | AK167: 0 | AL167: 0 | AM167: 0 | AN167: 0 | AO167: 0 | AP167: 0 | AQ167: 0 | AR167: 0 | AS167: 0 | AT167: 0 | AU167: 0 | AV167: 0 | AW167: 0 | AX167: 0 | AY167: 0 | AZ167: 0 | BA167: 0 | BB167: 0 | BC167: 0 | BD167: 0 | BE167: 0 | BF167: 0 | BG167: 0 | BH167: 0 | BI167: 0 | BJ167: 0 | BK167: 0 | BL167: 0 | BM167: 0 | BN167: 0 | BO167: 0 | BP167: 0 | BQ167: 0 | BR167: 0 | BS167: 0 | BT167: 0 | BU167: 0 | BV167: 0 | BW167: 0 | BX167: 0 | BY167: 0 | BZ167: 0 | CA167: 0 | CB167: 0 | CC167: 0 | CD167: 0 | CE167: 0 | CF167: 0 | CG167: 0 | CH167: 0 | CI167: 0 | CJ167: 0 | CK167: 0 | CL167: 0 | CM167: 0 | CN167: 0 | CO167: 0 | CP167: 0 | CQ167: 0 | CR167: 0 | CS167: 0 | CT167: 0 | CU167: 0 | CV167: 0 | CW167: 0 | CX167: 0 | CY167: 0 | CZ167: 0 | DA167: 0 | DB167: 0 | DC167: 0 | DD167: 0 | DE167: 0 | DF167: 0 | DG167: 0 | DH167: 0 | DI167: 0 | DJ167: 0
B168: SCADA, NETWORK CONTROL AND PROTECTION SYSTEMS BY: Function | C168: Communications Network Assets | D168: 15 | E168: 3.91 | F168: 33 | G168: 54 | H168: 53 | I168: 591 | J168: 200 | K168: 130 | L168: 96 | M168: 136 | N168: 127 | O168: 44 | P168: 140 | Q168: 142 | R168: 34 | S168: 52 | T168: 31 | U168: 7 | V168: 15 | W168: 21 | X168: 4 | Y168: 4 | Z168: 1 | AA168: 3 | AB168: 0 | AC168: 0 | AD168: 0 | AE168: 0 | AF168: 0 | AG168: 0 | AH168: 0 | AI168: 0 | AJ168: 0 | AK168: 0 | AL168: 0 | AM168: 0 | AN168: 0 | AO168: 0 | AP168: 0 | AQ168: 0 | AR168: 0 | AS168: 0 | AT168: 0 | AU168: 0 | AV168: 0 | AW168: 0 | AX168: 0 | AY168: 0 | AZ168: 0 | BA168: 0 | BB168: 0 | BC168: 0 | BD168: 0 | BE168: 0 | BF168: 0 | BG168: 0 | BH168: 0 | BI168: 0 | BJ168: 0 | BK168: 0 | BL168: 0 | BM168: 0 | BN168: 0 | BO168: 0 | BP168: 0 | BQ168: 0 | BR168: 0 | BS168: 0 | BT168: 0 | BU168: 0 | BV168: 0
C169: Master Station Assets
C170: Control equipment / systems | D170: 15 | E170: 5.03 | F170: 50 | G170: 43 | H170: 32 | I170: 275 | J170: 355 | K170: 181 | L170: 66 | M170: 7 | N170: 152 | O170: 86 | P170: 121 | Q170: 168 | R170: 59 | S170: 67 | T170: 99 | U170: 16 | V170: 25 | W170: 32 | X170: 41 | Y170: 48 | Z170: 25 | AA170: 13 | AB170: 0 | AC170: 0 | AD170: 0 | AE170: 0 | AF170: 0 | AG170: 0 | AH170: 0 | AI170: 0 | AJ170: 0 | AK170: 0 | AL170: 0 | AM170: 0 | AN170: 0 | AO170: 0 | AP170: 0 | AQ170: 0 | AR170: 0 | AS170: 0 | AT170: 0 | AU170: 0 | AV170: 0 | AW170: 0 | AX170: 0 | AY170: 0 | AZ170: 0 | BA170: 0 | BB170: 0 | BC170: 0 | BD170: 0 | BE170: 0 | BF170: 0 | BG170: 0 | BH170: 0 | BI170: 0 | BJ170: 0 | BK170: 0 | BL170: 0 | BM170: 0 | BN170: 0 | BO170: 0 | BP170: 0 | BQ170: 0 | BR170: 0 | BS170: 0 | BT170: 0 | BU170: 0 | BV170: 0
C171: Infrastructure: protection and control
C172: Metering systems | D172: 15 | E172: 4.49 | F172: 55 | G172: 67 | H172: 45 | I172: 75 | J172: 121 | K172: 61 | L172: 55 | M172: 59 | N172: 59 | O172: 33 | P172: 14 | Q172: 56 | R172: 42 | S172: 34 | T172: 25 | U172: 5 | V172: 13 | W172: 2 | X172: 9 | Y172: 7 | Z172: 0 | AA172: 0 | AB172: 0 | AC172: 0 | AD172: 0 | AE172: 0 | AF172: 0 | AG172: 0 | AH172: 0 | AI172: 0 | AJ172: 0 | AK172: 0 | AL172: 0 | AM172: 0 | AN172: 0 | AO172: 0 | AP172: 0 | AQ172: 0 | AR172: 0 | AS172: 0 | AT172: 0 | AU172: 0 | AV172: 0 | AW172: 0 | AX172: 0 | AY172: 0 | AZ172: 0 | BA172: 0 | BB172: 0 | BC172: 0 | BD172: 0 | BE172: 0 | BF172: 0 | BG172: 0 | BH172: 0 | BI172: 0 | BJ172: 0 | BK172: 0 | BL172: 0 | BM172: 0 | BN172: 0 | BO172: 0 | BP172: 0 | BQ172: 0 | BR172: 0 | BS172: 0 | BT172: 0 | BU172: 0 | BV172: 0
C173: OPGW
C174: Protection schemes / systems | D174: 22.89 | E174: 15.35 | F174: 177 | G174: 132 | H174: 236 | I174: 140 | J174: 234 | K174: 207 | L174: 136 | M174: 139 | N174: 198 | O174: 173 | P174: 97 | Q174: 89 | R174: 49 | S174: 72 | T174: 17 | U174: 48 | V174: 17 | W174: 78 | X174: 71 | Y174: 9 | Z174: 23 | AA174: 9 | AB174: 6 | AC174: 39 | AD174: 4 | AE174: 7 | AF174: 24 | AG174: 12 | AH174: 10 | AI174: 2 | AJ174: 32 | AK174: 4 | AL174: 30 | AM174: 42 | AN174: 119 | AO174: 77 | AP174: 28 | AQ174: 14 | AR174: 7 | AS174: 71 | AT174: 4 | AU174: 5 | AV174: 14 | AW174: 22 | AX174: 0 | AY174: 10 | AZ174: 14 | BA174: 20 | BB174: 73 | BC174: 36 | BD174: 12 | BE174: 44 | BF174: 0 | BG174: 20 | BH174: 0 | BI174: 9 | BJ174: 5 | BK174: 0 | BL174: 10 | BM174: 0 | BN174: 0 | BO174: 0 | BP174: 0 | BQ174: 0 | BR174: 6 | BS174: 0 | BT174: 0 | BU174: 0 | BV174: 0
C175: Site establishment
C176: Station SCADA and control systems
C177: Telecommunications Network / Systems
C178: Total secondary systems
C179: Other
B180: OTHER BY: TNSP defined | C180: <NSP to enter description for Asset Category not listed above>

Sheet 5.3 MD - Network level
B1: REGULATORY REPORTING STATEMENT
B2: =INDEX(dms_TradingNameFull_List,MATCH(dms_TradingName,dms_TradingName_List)) -> NSW Electricity Networks Operations Pty Ltd trading as TransGrid
B3: =CONCATENATE((LOOKUP(dms_Model,dms_Model_List,dms_Worksheet_List))&" "&CRY) -> CATEGORY ANALYSIS 2017-18
B4: 5.3 MAXIMUM DEMAND AT NETWORK LEVEL
B7: 5.3.1 - RAW AND WEATHER CORRECTED COINCIDENT MD AT NETWORK LEVEL (Summed at transmission connection point)
C8: UNIT | D8: =CRY -> 2017-18
B9: Raw network coincident MD | C9: MW | D9: 12200
B10: Date MD occurred | D10: 2017-07-20T19:15:00
B11: Half hour time period MD occurred | D11: 42936.80208
B12: Winter/summer peaking | D12: Winter
B13: Embedded generation | C13: MW
B14: Weather corrected (10% POE) network coincident MD | C14: MW | D14: 13200
B15: Weather corrected (50% POE) network coincident MD | C15: MW | D15: 12400

Sheet 5.4 MD & utilisation-Spatial
B1: REGULATORY REPORTING STATEMENT
B2: =INDEX(dms_TradingNameFull_List,MATCH(dms_TradingName,dms_TradingName_List)) -> NSW Electricity Networks Operations Pty Ltd trading as TransGrid
B3: =CONCATENATE((LOOKUP(dms_Model,dms_Model_List,dms_Worksheet_List))&" "&CRY) -> CATEGORY ANALYSIS 2017-18
B4: 5.4 MAXIMUM DEMAND AND UTILISATION AT SPATIAL LEVEL
B6: There is ONE table on this worksheet. It has been sub-grouped into blocks of approximately 1000 rows for ease of navigation. See the Instructions sheet on how to group or ungroup data.
B8: TABLE 5.4.1 NON-COINCIDENT & COINCIDENT MAXIMUM DEMAND
B9: CONNECTION POINT | C9: FORECASTING ELEMENTS | D9: UNIT | E9: MAX DEMAND | F9: =CRY -> 2017-18
B10: Broken Hill Mine | C10: Connection Point Rating | D10: MVA | E10: Non-Coincident
E11: Coincident
C12: Raw Adjusted MD | D12: MW | E12: Non-Coincident
E13: Coincident
C14: Raw Adjusted MD | D14: MVA | E14: Non-Coincident
E15: Coincident
C16: Date MD occurred | E16: Non-Coincident
E17: Coincident
C18: Half hour time period MD occurred | E18: Non-Coincident
E19: Coincident
C20: Winter/Summer Peaking | E20: Non-Coincident
E21: Coincident
C22: Adjustments - Embedded generation | D22: MW | E22: Non-Coincident
E23: Coincident
C24: Weather Corrected MD 10% POE | D24: MW | E24: Non-Coincident
E25: Coincident
C26: Weather Corrected MD 10% POE | D26: MVA | E26: Non-Coincident
E27: Coincident
C28: Weather Corrected MD 50% POE | D28: MW | E28: Non-Coincident
E29: Coincident
C30: Weather Corrected MD 50% POE | D30: MVA | E30: Non-Coincident
E31: Coincident
B32: Broken Hill Town | C32: Connection Point Rating | D32: MVA | E32: Non-Coincident | F32: 200
E33: Coincident | F33: 200
C34: Raw Adjusted MD | D34: MW | E34: Non-Coincident | F34: 39.6
E35: Coincident | F35: 31
C36: Raw Adjusted MD | D36: MVA | E36: Non-Coincident | F36: 40.8
E37: Coincident | F37: 31.2
C38: Date MD occurred | E38: Non-Coincident | F38: 2018-01-28T18:59:59.996
E39: Coincident | F39: 2017-07-20T19:15:00
C40: Half hour time period MD occurred | E40: Non-Coincident | F40: 43128.79167
E41: Coincident | F41: 42936.80208
C42: Winter/Summer Peaking | E42: Non-Coincident | F42: Summer
E43: Coincident | F43: Winter
C44: Adjustments - Embedded generation | D44: MW | E44: Non-Coincident | F44: 0
E45: Coincident | F45: 0
C46: Weather Corrected MD 10% POE | D46: MW | E46: Non-Coincident | F46: 42.7
E47: Coincident | F47: 31
C48: Weather Corrected MD 10% POE | D48: MVA | E48: Non-Coincident | F48: 43.9
E49: Coincident | F49: 31.2
C50: Weather Corrected MD 50% POE | D50: MW | E50: Non-Coincident | F50: 41.2
E51: Coincident | F51: 31
C52: Weather Corrected MD 50% POE | D52: MVA | E52: Non-Coincident | F52: 42.3
E53: Coincident | F53: 31.2
B54: Tuggerah | C54: Connection Point Rating | D54: MVA | E54: Non-Coincident | F54: 750
E55: Coincident | F55: 750
C56: Raw Adjusted MD | D56: MW | E56: Non-Coincident | F56: 289
E57: Coincident | F57: 186
C58: Raw Adjusted MD | D58: MVA | E58: Non-Coincident | F58: 299
E59: Coincident | F59: 196
C60: Date MD occurred | E60: Non-Coincident | F60: 2017-12-19T13:14:59.997
E61: Coincident | F61: 2017-07-20T19:15:00
C62: Half hour time period MD occurred | E62: Non-Coincident | F62: 43088.55208
E63: Coincident | F63: 42936.80208
C64: Winter/Summer Peaking | E64: Non-Coincident | F64: Summer
E65: Coincident | F65: Winter
C66: Adjustments - Embedded generation | D66: MW | E66: Non-Coincident | F66: 0
E67: Coincident | F67: 0
C68: Weather Corrected MD 10% POE | D68: MW | E68: Non-Coincident | F68: 312
E69: Coincident | F69: 189
C70: Weather Corrected MD 10% POE | D70: MVA | E70: Non-Coincident | F70: 323
E71: Coincident | F71: 199
C72: Weather Corrected MD 50% POE | D72: MW | E72: Non-Coincident | F72: 301
E73: Coincident | F73: 174
C74: Weather Corrected MD 50% POE | D74: MVA | E74: Non-Coincident | F74: 311
E75: Coincident | F75: 183
B76: Vales Pt 132 kV | C76: Connection Point Rating | D76: MVA | E76: Non-Coincident | F76: 400
E77: Coincident | F77: 400
C78: Raw Adjusted MD | D78: MW | E78: Non-Coincident | F78: 219
E79: Coincident | F79: 74.5
C80: Raw Adjusted MD | D80: MVA | E80: Non-Coincident | F80: 219
E81: Coincident | F81: 74.5
C82: Date MD occurred | E82: Non-Coincident | F82: 2017-07-22T09:00:00
E83: Coincident | F83: 2017-07-20T19:15:00
C84: Half hour time period MD occurred | E84: Non-Coincident | F84: 42938.375
E85: Coincident | F85: 42936.80208
C86: Winter/Summer Peaking | E86: Non-Coincident | F86: Winter
E87: Coincident | F87: Winter
C88: Adjustments - Embedded generation | D88: MW | E88: Non-Coincident | F88: 0
E89: Coincident | F89: 0
C90: Weather Corrected MD 10% POE | D90: MW | E90: Non-Coincident | F90: 236
E91: Coincident | F91: 75.5
C92: Weather Corrected MD 10% POE | D92: MVA | E92: Non-Coincident | F92: 237
E93: Coincident | F93: 75.5
C94: Weather Corrected MD 50% POE | D94: MW | E94: Non-Coincident | F94: 228
E95: Coincident | F95: 69.7
C96: Weather Corrected MD 50% POE | D96: MVA | E96: Non-Coincident | F96: 228
E97: Coincident | F97: 69.7
B98: Munmorah 132 kV | C98: Connection Point Rating | D98: MVA | E98: Non-Coincident | F98: 375
E99: Coincident | F99: 375
C100: Raw Adjusted MD | D100: MW | E100: Non-Coincident | F100: 142
E101: Coincident | F101: 109
C102: Raw Adjusted MD | D102: MVA | E102: Non-Coincident | F102: 143
E103: Coincident | F103: 109
C104: Date MD occurred | E104: Non-Coincident | F104: 2018-04-09T16:44:59.994
E105: Coincident | F105: 2017-07-20T19:15:00
C106: Half hour time period MD occurred | E106: Non-Coincident | F106: 43199.69792
E107: Coincident | F107: 42936.80208
C108: Winter/Summer Peaking | E108: Non-Coincident | F108: Winter
E109: Coincident | F109: Winter
C110: Adjustments - Embedded generation | D110: MW | E110: Non-Coincident | F110: 0
E111: Coincident | F111: 0
C112: Weather Corrected MD 10% POE | D112: MW | E112: Non-Coincident | F112: 154
E113: Coincident | F113: 110
C114: Weather Corrected MD 10% POE | D114: MVA | E114: Non-Coincident | F114: 154
E115: Coincident | F115: 110
C116: Weather Corrected MD 50% POE | D116: MW | E116: Non-Coincident | F116: 148
E117: Coincident | F117: 102
C118: Weather Corrected MD 50% POE | D118: MVA | E118: Non-Coincident | F118: 149
E119: Coincident | F119: 102
B120: Macksville | C120: Connection Point Rating | D120: MVA | E120: Non-Coincident | F120: 60
E121: Coincident | F121: 60
C122: Raw Adjusted MD | D122: MW | E122: Non-Coincident | F122: 9.5
E123: Coincident | F123: 7.42
C124: Raw Adjusted MD | D124: MVA | E124: Non-Coincident | F124: 9.75
E125: Coincident | F125: 7.44
C126: Date MD occurred | E126: Non-Coincident | F126: 2018-02-14T17:14:59.995
E127: Coincident | F127: 2017-07-20T19:15:00
C128: Half hour time period MD occurred | E128: Non-Coincident | F128: 43145.71875
E129: Coincident | F129: 42936.80208
C130: Winter/Summer Peaking | E130: Non-Coincident | F130: Summer
E131: Coincident | F131: Winter
C132: Adjustments - Embedded generation | D132: MW | E132: Non-Coincident | F132: 0
E133: Coincident | F133: 0
C134: Weather Corrected MD 10% POE | D134: MW | E134: Non-Coincident | F134: 10.4
E135: Coincident | F135: 8.3
C136: Weather Corrected MD 10% POE | D136: MVA | E136: Non-Coincident | F136: 10.6
E137: Coincident | F137: 8.33
C138: Weather Corrected MD 50% POE | D138: MW | E138: Non-Coincident | F138: 9.91
E139: Coincident | F139: 6.98
C140: Weather Corrected MD 50% POE | D140: MVA | E140: Non-Coincident | F140: 10.2
E141: Coincident | F141: 7
B142: Nambucca Heads | C142: Connection Point Rating | D142: MVA | E142: Non-Coincident | F142: 120
E143: Coincident | F143: 120
C144: Raw Adjusted MD | D144: MW | E144: Non-Coincident | F144: 7.77
E145: Coincident | F145: 6.22
C146: Raw Adjusted MD | D146: MVA | E146: Non-Coincident | F146: 7.88
E147: Coincident | F147: 6.22
C148: Date MD occurred | E148: Non-Coincident | F148: 2018-06-18T18:14:59.993
E149: Coincident | F149: 2017-07-20T19:15:00
C150: Half hour time period MD occurred | E150: Non-Coincident | F150: 43269.76042
E151: Coincident | F151: 42936.80208
C152: Winter/Summer Peaking | E152: Non-Coincident | F152: Winter
E153: Coincident | F153: Winter
C154: Adjustments - Embedded generation | D154: MW | E154: Non-Coincident | F154: 0
E155: Coincident | F155: 0
C156: Weather Corrected MD 10% POE | D156: MW | E156: Non-Coincident | F156: 8.5
E157: Coincident | F157: 5.66
C158: Weather Corrected MD 10% POE | D158: MVA | E158: Non-Coincident | F158: 8.63
E159: Coincident | F159: 5.66
C160: Weather Corrected MD 50% POE | D160: MW | E160: Non-Coincident | F160: 8.16
E161: Coincident | F161: 5.45
C162: Weather Corrected MD 50% POE | D162: MVA | E162: Non-Coincident | F162: 8.28
E163: Coincident | F163: 5.45
B164: Raleigh | C164: Connection Point Rating | D164: MVA | E164: Non-Coincident | F164: 120
E165: Coincident | F165: 120
C166: Raw Adjusted MD | D166: MW | E166: Non-Coincident | F166: 11
E167: Coincident | F167: 8.29
C168: Raw Adjusted MD | D168: MVA | E168: Non-Coincident | F168: 11.2
E169: Coincident | F169: 8.31
C170: Date MD occurred | E170: Non-Coincident | F170: 2018-02-14T17:44:59.995
E171: Coincident | F171: 2017-07-20T19:15:00
C172: Half hour time period MD occurred | E172: Non-Coincident | F172: 43145.73958
E173: Coincident | F173: 42936.80208
C174: Winter/Summer Peaking | E174: Non-Coincident | F174: Summer
E175: Coincident | F175: Winter
C176: Adjustments - Embedded generation | D176: MW | E176: Non-Coincident | F176: 0
E177: Coincident | F177: 0
C178: Weather Corrected MD 10% POE | D178: MW | E178: Non-Coincident | F178: 11.6
E179: Coincident | F179: 8.21
C180: Weather Corrected MD 10% POE | D180: MVA | E180: Non-Coincident | F180: 11.9
E181: Coincident | F181: 8.23
C182: Weather Corrected MD 50% POE | D182: MW | E182: Non-Coincident | F182: 11.2
E183: Coincident | F183: 7.15
C184: Weather Corrected MD 50% POE | D184: MVA | E184: Non-Coincident | F184: 11.5
E185: Coincident | F185: 7.17
B186: Boambee Sth | C186: Connection Point Rating | D186: MVA | E186: Non-Coincident | F186: 120
E187: Coincident | F187: 120
C188: Raw Adjusted MD | D188: MW | E188: Non-Coincident | F188: 19
E189: Coincident | F189: 13.8
C190: Raw Adjusted MD | D190: MVA | E190: Non-Coincident | F190: 19.1
E191: Coincident | F191: 13.8
C192: Date MD occurred | E192: Non-Coincident | F192: 2018-02-14T17:44:59.995
E193: Coincident | F193: 2017-07-20T19:15:00
C194: Half hour time period MD occurred | E194: Non-Coincident | F194: 43145.73958
E195: Coincident | F195: 42936.80208
C196: Winter/Summer Peaking | E196: Non-Coincident | F196: Summer
E197: Coincident | F197: Winter
C198: Adjustments - Embedded generation | D198: MW | E198: Non-Coincident | F198: 0
E199: Coincident | F199: 0
C200: Weather Corrected MD 10% POE | D200: MW | E200: Non-Coincident | F200: 21.1
E201: Coincident | F201: 13.6
C202: Weather Corrected MD 10% POE | D202: MVA | E202: Non-Coincident | F202: 21.2
... 4229 more rows

Sheet Amendments
B1: NSP data amendments
B2: =INDEX(dms_TradingNameFull_List,MATCH(dms_TradingName,dms_TradingName_List)) -> NSW Electricity Networks Operations Pty Ltd trading as TransGrid | C2: Table | D2: Comments
